Workbook

Sheet Planilha Orçamentária
A1: Ministério da Integração e do Desenvolvimento Regional
A2: Companhia de desenvolvimento dos Vales do São Francisco e do Parnaíba
A4: PLANILHA ORÇAMENTÁRIA - ORÇAMENTO NÃO DESONERADO
A5: OBRA: | B5: =UPPER("Manutenção da casa de Máquina e Substituição das comportas na barragem Ceraíma") -> MANUTENÇÃO DA CASA DE MÁQUINA E SUBSTITUIÇÃO DAS COMPORTAS NA BARRAGEM CERAÍMA | I5: BDI (serv.): | J5: ='BDI serv'!D23 -> 0.2591 | K5: Bancos
A6: LOCAL: | B6: BARRAGEM CERAÍMA (GUANAMBI - BA) | I6: BDI (forn.): | J6: ='BDI forn'!E6 -> 0.147 | K6: 05/2023 - SINAPI/BA
A7: DATA BASE: | B7: 2023-05-01 | H7: Encargos sociais Horistas: | J7: ='Encargos Sociais'!E47 -> 1.1515 | K7: 01/2023 - SICRO/BA
A8: PRAZO: | B8: 240 DIAS | H8: Encargos sociais - Mensalista: | J8: ='Encargos Sociais'!F47 -> 0.7122 | K8: 03/2023 - ORSE
A9: ITEM | B9: REFERÊNCIA | F9: DESCRIÇÃO | G9: UNID. | H9: QUANT. | I9: CUSTO UNITÁRIO | J9: PREÇO UNITÁRIO | K9: PREÇO TOTAL | L9: TIPO de BDI | M9: CLASSIF
B10: FONTE | C10: CÓDIGO | D10: CATSER
A11: 1 | F11: ADMINISTRAÇÃO LOCAL | K11: =SUM(K12:K15) -> 194404.0327 | M11: ss
A12: 1.1 | B12: SINAPI | C12: 90778 | D12: 22225 | E12: Serviço engenharia | F12: =PROPER(IF(L12="i",VLOOKUP(C12,'Ins SINAPI BA 05-2023 Onerado'!$A$8:$E$5189,2,0),VLOOKUP(C12,'Comp SINAPI BA 05-2023 Onerado'!$G$7:$K$7500,2,0))) -> Engenheiro Civil De Obra Pleno Com Encargos Complementares | G12: =LOWER(IF(L12="i",VLOOKUP(C12,'Ins SINAPI BA 05-2023 Onerado'!$A$8:$E$5189,3,0),VLOOKUP(C12,'Comp SINAPI BA 05-2023 Onerado'!$G$7:$K$7500,3,0))) -> h | H12: =16*8 -> 128 | I12: =SUMIFS(CPU!$H:$H,CPU!$B:$B,'Planilha Orçamentária'!$A12,CPU!$I:$I,"ss")+SUMIFS(CPU!$H:$H,CPU!$B:$B,'Planilha Orçamentária'!$A12,CPU!$I:$I,"mdo")+SUMIF('Comp SINAPI BA 05-2023 Onerado'!G:G,'Planilha Orçamentária'!C12,'Comp SINAPI BA 05-2023 Onerado'!K:K)+SUMIF('Ins SINAPI BA 05-2023 Onerado'!A:A,'Planilha Orçamentária'!C12,'Ins SINAPI BA 05-2023 Onerado'!E:E) -> 128.73 | J12: =IF(L12="SERV",I12*(1+$J$5),I12*(1+$J$6)) -> 162.083943 | K12: =H12*J12 -> 20746.7447 | L12: serv | M12: i
A13: 1.2 | B13: SINAPI | C13: 90778 | D13: 22225 | E13: Serviço engenharia | F13: Engenheiro Mecanico De Obra Pleno Com Encargos Complementares (Baseado SINAPI 90778) | G13: =LOWER(IF(L13="i",VLOOKUP(C13,'Ins SINAPI BA 05-2023 Onerado'!$A$8:$E$5189,3,0),VLOOKUP(C13,'Comp SINAPI BA 05-2023 Onerado'!$G$7:$K$7500,3,0))) -> h | H13: =32*8 -> 256 | I13: =SUMIFS(CPU!$H:$H,CPU!$B:$B,'Planilha Orçamentária'!$A13,CPU!$I:$I,"ss")+SUMIFS(CPU!$H:$H,CPU!$B:$B,'Planilha Orçamentária'!$A13,CPU!$I:$I,"mdo")+SUMIF('Comp SINAPI BA 05-2023 Onerado'!G:G,'Planilha Orçamentária'!C13,'Comp SINAPI BA 05-2023 Onerado'!K:K)+SUMIF('Ins SINAPI BA 05-2023 Onerado'!A:A,'Planilha Orçamentária'!C13,'Ins SINAPI BA 05-2023 Onerado'!E:E) -> 128.73 | J13: =IF(L13="SERV",I13*(1+$J$5),I13*(1+$J$6)) -> 162.083943 | K13: =H13*J13 -> 41493.48941 | L13: serv | M13: i
A14: 1.3 | B14: SINAPI | C14: 93572 | D14: 22225 | E14: Serviço engenharia | F14: =PROPER(IF(L14="i",VLOOKUP(C14,'Ins SINAPI BA 05-2023 Onerado'!$A$8:$E$5189,2,0),VLOOKUP(C14,'Comp SINAPI BA 05-2023 Onerado'!$G$7:$K$7500,2,0))) -> Encarregado Geral De Obras Com Encargos Complementares | G14: =LOWER(IF(L14="i",VLOOKUP(C14,'Ins SINAPI BA 05-2023 Onerado'!$A$8:$E$5189,3,0),VLOOKUP(C14,'Comp SINAPI BA 05-2023 Onerado'!$G$7:$K$7500,3,0))) -> mes | H14: 8 | I14: =SUMIFS(CPU!$H:$H,CPU!$B:$B,'Planilha Orçamentária'!$A14,CPU!$I:$I,"ss")+SUMIFS(CPU!$H:$H,CPU!$B:$B,'Planilha Orçamentária'!$A14,CPU!$I:$I,"mdo")+SUMIF('Comp SINAPI BA 05-2023 Onerado'!G:G,'Planilha Orçamentária'!C14,'Comp SINAPI BA 05-2023 Onerado'!K:K)+SUMIF('Ins SINAPI BA 05-2023 Onerado'!A:A,'Planilha Orçamentária'!C14,'Ins SINAPI BA 05-2023 Onerado'!E:E) -> 6446.14 | J14: 8116.334874 | K14: 64930.67899 | L14: serv | M14: i
A15: 1.4 | B15: SINAPI | C15: 101390 | D15: 22225 | E15: Serviço engenharia | F15: =PROPER(IF(L15="i",VLOOKUP(C15,'Ins SINAPI BA 05-2023 Onerado'!$A$8:$E$5189,2,0),VLOOKUP(C15,'Comp SINAPI BA 05-2023 Onerado'!$G$7:$K$7500,2,0))) -> Auxiliar Técnico / Assistente De Engenharia Com Encargos Complementares | G15: =LOWER(IF(L15="i",VLOOKUP(C15,'Ins SINAPI BA 05-2023 Onerado'!$A$8:$E$5189,3,0),VLOOKUP(C15,'Comp SINAPI BA 05-2023 Onerado'!$G$7:$K$7500,3,0))) -> mes | H15: 8 | I15: =SUMIFS(CPU!$H:$H,CPU!$B:$B,'Planilha Orçamentária'!$A15,CPU!$I:$I,"ss")+SUMIFS(CPU!$H:$H,CPU!$B:$B,'Planilha Orçamentária'!$A15,CPU!$I:$I,"mdo")+SUMIF('Comp SINAPI BA 05-2023 Onerado'!G:G,'Planilha Orçamentária'!C15,'Comp SINAPI BA 05-2023 Onerado'!K:K)+SUMIF('Ins SINAPI BA 05-2023 Onerado'!A:A,'Planilha Orçamentária'!C15,'Ins SINAPI BA 05-2023 Onerado'!E:E) -> 6674.72 | J15: 8404.139952 | K15: 67233.11962 | L15: serv | M15: i
A17: 2 | F17: SERVIÇOS PRELIMINARES | K17: =SUM(K18:K24)/2 -> 71324.89067 | M17: ss
A18: 2.1 | F18: Canteiro de obras | K18: =SUM(K19:K22) -> 70199.18224 | M18: s
A19: 2.1.1 | B19: SINAPI | C19: 10775 | D19: 22225 | E19: Serviço engenharia | F19: =PROPER(IF(M19="i",VLOOKUP(C19,'Ins SINAPI BA 05-2023 Onerado'!$A$8:$E$5189,2,0),VLOOKUP(C19,'Comp SINAPI BA 05-2023 Onerado'!$G$7:$K$7500,2,0))) -> Locacao De Container 2,30 X 6,00 M, Alt. 2,50 M, Com 1 Sanitario, Para Escritorio, Completo, Sem Divisorias Internas (Nao Inclui Mobilizacao/Desmobilizacao) | G19: =LOWER(IF(M19="i",VLOOKUP(C19,'Ins SINAPI BA 05-2023 Onerado'!$A$8:$E$5189,3,0),VLOOKUP(C19,'Comp SINAPI BA 05-2023 Onerado'!$G$7:$K$6879,3,0))) -> mes | H19: 8 | I19: =SUMIFS(CPU!$H:$H,CPU!$B:$B,'Planilha Orçamentária'!$A19,CPU!$I:$I,"ss")+SUMIFS(CPU!$H:$H,CPU!$B:$B,'Planilha Orçamentária'!$A19,CPU!$I:$I,"mdo")+SUMIF('Comp SINAPI BA 05-2023 Onerado'!G:G,'Planilha Orçamentária'!C19,'Comp SINAPI BA 05-2023 Onerado'!K:K)+SUMIF('Ins SINAPI BA 05-2023 Onerado'!A:A,'Planilha Orçamentária'!C19,'Ins SINAPI BA 05-2023 Onerado'!E:E) -> 1400 | J19: =IF(L19="SERV",I19*(1+$J$5),I19*(1+$J$6)) -> 1762.74 | K19: =H19*J19 -> 14101.92 | L19: serv | M19: i
A20: 2.1.2 | B20: SINAPI | C20: 10776 | D20: 22225 | E20: Serviço engenharia | F20: =PROPER(IF(M20="i",VLOOKUP(C20,'Ins SINAPI BA 05-2023 Onerado'!$A$8:$E$5189,2,0),VLOOKUP(C20,'Comp SINAPI BA 05-2023 Onerado'!$G$7:$K$7500,2,0))) -> Locacao De Container 2,30 X 6,00 M, Alt. 2,50 M, Para Escritorio, Sem Divisorias Internas E Sem Sanitario (Nao Inclui Mobilizacao/Desmobilizacao) | G20: =LOWER(IF(M20="i",VLOOKUP(C20,'Ins SINAPI BA 05-2023 Onerado'!$A$8:$E$5189,3,0),VLOOKUP(C20,'Comp SINAPI BA 05-2023 Onerado'!$G$7:$K$6879,3,0))) -> mes | H20: 8 | I20: =SUMIFS(CPU!$H:$H,CPU!$B:$B,'Planilha Orçamentária'!$A20,CPU!$I:$I,"ss")+SUMIFS(CPU!$H:$H,CPU!$B:$B,'Planilha Orçamentária'!$A20,CPU!$I:$I,"mdo")+SUMIF('Comp SINAPI BA 05-2023 Onerado'!G:G,'Planilha Orçamentária'!C20,'Comp SINAPI BA 05-2023 Onerado'!K:K)+SUMIF('Ins SINAPI BA 05-2023 Onerado'!A:A,'Planilha Orçamentária'!C20,'Ins SINAPI BA 05-2023 Onerado'!E:E) -> 1093.75 | J20: =IF(L20="SERV",I20*(1+$J$5),I20*(1+$J$6)) -> 1377.140625 | K20: 11017.125 | L20: serv | M20: i
A21: 2.1.3 | B21: ORSE | C21: 4296 | D21: 22225 | E21: Serviço engenharia | F21: Aluguel de container - Refeitório sem banheiro - 6,00 x 2,40m equipado com 01\ar condicionado e mesa para 12 pessoas | G21: mes | H21: 8 | I21: 1800 | J21: 2266.38 | K21: 18131.04 | L21: serv | M21: i
A22: 2.1.4 | B22: PRÓPRIA | C22: CPU.01 | D22: 25259 | E22: Remanejamento de equipamento / mobiliário | F22: Mobilização e Desmobilização de canteiro | G22: un | H22: 1 | I22: =SUMIFS(CPU!$H:$H,CPU!$B:$B,'Planilha Orçamentária'!$A22,CPU!$I:$I,"ss")+SUMIFS(CPU!$H:$H,CPU!$B:$B,'Planilha Orçamentária'!$A22,CPU!$I:$I,"mdo")+SUMIF('Comp SINAPI BA 05-2023 Onerado'!G:G,'Planilha Orçamentária'!C22,'Comp SINAPI BA 05-2023 Onerado'!K:K)+SUMIF('Ins SINAPI BA 05-2023 Onerado'!A:A,'Planilha Orçamentária'!C22,'Ins SINAPI BA 05-2023 Onerado'!E:E) -> 21403.4606 | J22: 26949.09724 | K22: 26949.09724 | L22: serv | M22: i
A23: 2.2 | F23: Sinalização | K23: =SUM(K24:K24) -> 1125.708428 | M23: s
A24: 2.2.1 | B24: PRÓPRIA | C24: CPU.02 | D24: 13455 | E24: Obras civis - pequenas obras / pintura em geral | F24: PLACA DE OBRA EM CHAPA DE ACO GALVANIZADO | G24: m² | H24: 2 | I24: =SUMIFS(CPU!$H:$H,CPU!$B:$B,'Planilha Orçamentária'!$A24,CPU!$I:$I,"ss")+SUMIFS(CPU!$H:$H,CPU!$B:$B,'Planilha Orçamentária'!$A24,CPU!$I:$I,"mdo")+SUMIF('Comp SINAPI BA 05-2023 Onerado'!G:G,'Planilha Orçamentária'!C24,'Comp SINAPI BA 05-2023 Onerado'!K:K)+SUMIF('Ins SINAPI BA 05-2023 Onerado'!A:A,'Planilha Orçamentária'!C24,'Ins SINAPI BA 05-2023 Onerado'!E:E) -> 447.029 | J24: =IF(L24="SERV",I24*(1+$J$5),I24*(1+$J$6)) -> 562.8542139 | K24: =H24*J24 -> 1125.708428 | L24: serv | M24: i
A26: 3 | F26: VISITA TÉCNICA NA REGIÃO DA COMPORTA DA TOMADA D’ÁGUA E COMPORTA SEGMENTO | K26: =SUM(K27,K30) -> 92066.82682
A27: 3.1 | F27: Vistoria e laudo da estrutura da região submersa | K27: =SUM(K28:K29) -> 66815.4006 | M27: s
A28: 3.1.1 | B28: PRÓPRIA | C28: CPU.03 | D28: 25259 | E28: Remanejamento de equipamento / mobiliário | F28: Mobilização da Equipe, Camara Hiperbarica e todos os equipamentos de mergulho envolvidos na operação | G28: un | H28: 1 | I28: =SUMIFS(CPU!$H:$H,CPU!$B:$B,'Planilha Orçamentária'!$A28,CPU!$I:$I,"ss")+SUMIFS(CPU!$H:$H,CPU!$B:$B,'Planilha Orçamentária'!$A28,CPU!$I:$I,"mdo")+SUMIF('Comp SINAPI BA 05-2023 Onerado'!G:G,'Planilha Orçamentária'!C28,'Comp SINAPI BA 05-2023 Onerado'!K:K)+SUMIF('Ins SINAPI BA 05-2023 Onerado'!A:A,'Planilha Orçamentária'!C28,'Ins SINAPI BA 05-2023 Onerado'!E:E) -> 42000 | J28: =IF(L28="SERV",I28*(1+$J$5),I28*(1+$J$6)) -> 52882.2 | K28: =H28*J28 -> 52882.2 | L28: serv | M28: i
A29: 3.1.2 | B29: SICRO | C29: 4816024 | D29: 22225 | E29: Serviço engenharia | F29: Operação de mergulho dependente em profundidade de até 30 m - inclusive descompressão | G29: h | H29: 40 | I29: 276.65 | J29: =IF(L29="SERV",I29*(1+$J$5),I29*(1+$J$6)) -> 348.330015 | K29: 13933.2006 | L29: serv | M29: i
A30: 3.2 | F30: Elaboração de plano para substituição das comportas | K30: =K31 -> 25251.42622 | L30: serv | M30: s
A31: 3.2.1 | B31: PRÓPRIA | C31: CPU.04 | D31: 809 | E31: Consultoria / assessoria - engenharia | F31: =PROPER("PLANO DE TRABALHO PARA SUBSTITUIÇÃO DA COMPORTA") -> Plano De Trabalho Para Substituição Da Comporta | G31: un | H31: 1 | I31: =SUMIFS(CPU!$H:$H,CPU!$B:$B,'Planilha Orçamentária'!$A31,CPU!$I:$I,"ss")+SUMIFS(CPU!$H:$H,CPU!$B:$B,'Planilha Orçamentária'!$A31,CPU!$I:$I,"mdo")+SUMIF('Comp SINAPI BA 05-2023 Onerado'!G:G,'Planilha Orçamentária'!C31,'Comp SINAPI BA 05-2023 Onerado'!K:K)+SUMIF('Ins SINAPI BA 05-2023 Onerado'!A:A,'Planilha Orçamentária'!C31,'Ins SINAPI BA 05-2023 Onerado'!E:E) -> 20055.13956 | J31: =IF(L31="SERV",I31*(1+$J$5),I31*(1+$J$6)) -> 25251.42622 | K31: 25251.42622 | L31: serv | M31: i
A33: 4 | F33: SERVIÇOS AUXILIARES | K33: =SUM(K34:K39) -> 446765.2317 | M33: ss
A34: 4.1 | B34: EMBASA | C34: M089500001 | D34: 477966 | E34: Tubo Plástico Pead; Diâmetro: 1.200 MM; Comprimento: 6 M; Aplicação: Adução E Distribuição De Água | F34: TUBO PEAD PN80 DE 600MM PN5 | G34: m | H34: 160 | I34: 1553.06 | J34: =IF(L34="SERV",I34*(1+$J$5),I34*(1+$J$6)) -> 1955.457846 | K34: =H34*J34 -> 312873.2554 | L34: serv | M34: i
A35: 4.2 | B35: EMBASA | C35: 12.95.65 | D35: 477966 | E35: Tubo Plástico Pead; Diâmetro: 1.200 MM; Comprimento: 6 M; Aplicação: Adução E Distribuição De Água | F35: ASSENTAMENTO DE TUBO PEAD ACIMA DE DN 630MM | G35: m | H35: 160 | I35: 62.74 | J35: =IF(L35="SERV",I35*(1+$J$5),I35*(1+$J$6)) -> 78.995934 | K35: 12639.34944 | L35: serv | M35: i
A36: 4.3 | B36: EMBASA | C36: M119000504 | D36: 22985 | E36: Instalação / manutenção - bombas hidráulicas / combustível | F36: CONJUNTO MOTO-BOMBA Q=340M3/H, H=38,5MCA, P=75CV TIPO LEAO S280R-2 OU SIMILAR | G36: cj | H36: 4 | I36: 16327.81 | J36: 20558.34557 | K36: 82233.38228 | L36: serv
A37: 4.4 | B37: EMBASA | C37: 19.01.13 | D37: 22985 | E37: Instalação / manutenção - bombas hidráulicas / combustível | F37: MONTAGEM E INST. DE CONJUNTO MOTO-BOMBA DE EIXO HORIZONTAL, POTENCIA MAIOR QUE75 ATE 150 CV | G37: un | H37: 4 | I37: 1726.63 | J37: 2173.999833 | K37: =H37*J37 -> 8695.999332 | L37: serv
A38: 4.5 | B38: EMBASA | C38: 19.01.57 | D38: 22985 | E38: Instalação / manutenção - bombas hidráulicas / combustível | F38: RETIRADA DE CONJ. MOTO BOMBA DE 60 A 100 CV | G38: un | H38: 4 | I38: 295.78 | J38: 372.416598 | K38: =H38*J38 -> 1489.666392 | L38: serv
A39: 4.6 | B39: EMBASA | C39: H019701006 | D39: 13455 | E39: Obras civis - pequenas obras / pintura em geral | F39: LOCACAO DE GRUPO GERADOR 240KVA | G39: mês | H39: 5 | I39: 4580.03 | J39: 5766.715773 | K39: 28833.57886 | L39: serv
L40: x
A41: 5 | F41: SUBSTITUIÇÃO DA COMPORTA | K41: =SUM(K45,K42) -> 1563541.671 | L41: S
A42: 5.1 | F42: Fornecimento das Comportas | K42: =SUM(K43:K44) -> 1075455.256
A43: 5.1.1 | B43: PRÓPRIA | C43: CPU.11 | D43: 2267 | E43: Instalação e montagem de equipamentos mecânicos/eletromecânicos | F43: Comportas ensecadeira (stop-log) em aço carbono com dimensões livres L x H = 1,20 x 1,20 m x Hs= 20,00 m.c.a. x Hconcr. = 20,0 m, a ser operada por viga pescadora (fornecimento) | G43: un | H43: 2 | I43: =SUMIFS(CPU!$H:$H,CPU!$B:$B,'Planilha Orçamentária'!$A43,CPU!$I:$I,"ss")+SUMIFS(CPU!$H:$H,CPU!$B:$B,'Planilha Orçamentária'!$A43,CPU!$I:$I,"mdo")+SUMIF('Comp SINAPI BA 05-2023 Onerado'!G:G,'Planilha Orçamentária'!C43,'Comp SINAPI BA 05-2023 Onerado'!K:K)+SUMIF('Ins SINAPI BA 05-2023 Onerado'!A:A,'Planilha Orçamentária'!C43,'Ins SINAPI BA 05-2023 Onerado'!E:E) -> 156587.74 | J43: =IF(L43="SERV",I43*(1+$J$5),I43*(1+$J$6)) -> 179606.1378 | K43: =H43*J43 -> 359212.2756
A44: 5.1.2 | B44: PRÓPRIA | C44: CPU.12 | D44: 2267 | E44: Instalação e montagem de equipamentos mecânicos/eletromecânicos | F44: Comportas deslizante em construção soldada de chapa de aço inoxidável, com abertura livre de L x H = 1,20 x 1,20 m x Hs = 20,0 m.c.a, x Hconcr. = 20,0 m, com acionamento elétrico (fornecimento) | G44: un | H44: 2 | I44: =SUMIFS(CPU!$H:$H,CPU!$B:$B,'Planilha Orçamentária'!$A44,CPU!$I:$I,"ss")+SUMIFS(CPU!$H:$H,CPU!$B:$B,'Planilha Orçamentária'!$A44,CPU!$I:$I,"mdo")+SUMIF('Comp SINAPI BA 05-2023 Onerado'!G:G,'Planilha Orçamentária'!C44,'Comp SINAPI BA 05-2023 Onerado'!K:K)+SUMIF('Ins SINAPI BA 05-2023 Onerado'!A:A,'Planilha Orçamentária'!C44,'Ins SINAPI BA 05-2023 Onerado'!E:E) -> 312224.49 | J44: =IF(L44="SERV",I44*(1+$J$5),I44*(1+$J$6)) -> 358121.49 | K44: =H44*J44 -> 716242.9801
A45: 5.2 | F45: Substituição com operação submersa | K45: =SUM(K46:K52) -> 488086.4151 | L45: ss
A46: 5.2.1 | B46: PRÓPRIA | C46: =C28 -> CPU.03 | D46: 25259 | E46: Remanejamento de equipamento / mobiliário | F46: =F28 -> Mobilização da Equipe, Camara Hiperbarica e todos os equipamentos de mergulho envolvidos na operação | G46: =G28 -> un | H46: 1 | I46: =I28 -> 42000 | J46: =IF(L46="SERV",I46*(1+$J$5),I46*(1+$J$6)) -> 52882.2 | K46: =H46*J46 -> 52882.2 | L46: serv | M46: i
A47: 5.2.2 | B47: PRÓPRIA | C47: CPU.05 | D47: 2267 | E47: Instalação e montagem de equipamentos mecânicos/eletromecânicos | F47: Demolição e transporte do concreto das ranhuras das peças fixas existentes e demolição das peças fixas, compreendendo caminho de deslizamento, peças fixas laterais, soleira e peça fixa frontal. | G47: un | H47: 2 | I47: =SUMIFS(CPU!$H:$H,CPU!$B:$B,'Planilha Orçamentária'!$A47,CPU!$I:$I,"ss")+SUMIFS(CPU!$H:$H,CPU!$B:$B,'Planilha Orçamentária'!$A47,CPU!$I:$I,"mdo")+SUMIF('Comp SINAPI BA 05-2023 Onerado'!G:G,'Planilha Orçamentária'!C47,'Comp SINAPI BA 05-2023 Onerado'!K:K)+SUMIF('Ins SINAPI BA 05-2023 Onerado'!A:A,'Planilha Orçamentária'!C47,'Ins SINAPI BA 05-2023 Onerado'!E:E) -> 41223.84404 | J47: =IF(L47="SERV",I47*(1+$J$5),I47*(1+$J$6)) -> 51904.94203 | K47: =H47*J47 -> 103809.8841 | L47: serv
A48: 5.2.3 | B48: PRÓPRIA | C48: CPU.06 | D48: 2267 | E48: Instalação e montagem de equipamentos mecânicos/eletromecânicos | F48: Preparação das ranhuras para receber as novas peças fixas | G48: un | H48: 2 | I48: =SUMIFS(CPU!$H:$H,CPU!$B:$B,'Planilha Orçamentária'!$A48,CPU!$I:$I,"ss")+SUMIFS(CPU!$H:$H,CPU!$B:$B,'Planilha Orçamentária'!$A48,CPU!$I:$I,"mdo")+SUMIF('Comp SINAPI BA 05-2023 Onerado'!G:G,'Planilha Orçamentária'!C48,'Comp SINAPI BA 05-2023 Onerado'!K:K)+SUMIF('Ins SINAPI BA 05-2023 Onerado'!A:A,'Planilha Orçamentária'!C48,'Ins SINAPI BA 05-2023 Onerado'!E:E) -> 44399.11107 | J48: =IF(L48="SERV",I48*(1+$J$5),I48*(1+$J$6)) -> 55902.92074 | K48: 111805.8415 | L48: serv
A49: 5.2.4 | B49: PRÓPRIA | C49: CPU.07 | D49: 2267 | E49: Instalação e montagem de equipamentos mecânicos/eletromecânicos | F49: Montagem das novas peças fixas | G49: un | H49: 2 | I49: =SUMIFS(CPU!$H:$H,CPU!$B:$B,'Planilha Orçamentária'!$A49,CPU!$I:$I,"ss")+SUMIFS(CPU!$H:$H,CPU!$B:$B,'Planilha Orçamentária'!$A49,CPU!$I:$I,"mdo")+SUMIF('Comp SINAPI BA 05-2023 Onerado'!G:G,'Planilha Orçamentária'!C49,'Comp SINAPI BA 05-2023 Onerado'!K:K)+SUMIF('Ins SINAPI BA 05-2023 Onerado'!A:A,'Planilha Orçamentária'!C49,'Ins SINAPI BA 05-2023 Onerado'!E:E) -> 46710.27107 | J49: 58812.9023 | K49: 117625.8046 | L49: serv
A50: 5.2.5 | B50: PRÓPRIA | C50: CPU.08 | D50: 17140 | E50: Obras civis - concretagem | F50: Concretagem das novas peças fixas | G50: un | H50: 2 | I50: =SUMIFS(CPU!$H:$H,CPU!$B:$B,'Planilha Orçamentária'!$A50,CPU!$I:$I,"ss")+SUMIFS(CPU!$H:$H,CPU!$B:$B,'Planilha Orçamentária'!$A50,CPU!$I:$I,"mdo")+SUMIF('Comp SINAPI BA 05-2023 Onerado'!G:G,'Planilha Orçamentária'!C50,'Comp SINAPI BA 05-2023 Onerado'!K:K)+SUMIF('Ins SINAPI BA 05-2023 Onerado'!A:A,'Planilha Orçamentária'!C50,'Ins SINAPI BA 05-2023 Onerado'!E:E) -> 38975.78457 | J50: 49074.41035 | K50: 98148.8207 | L50: serv
A51: 5.2.6 | B51: PRÓPRIA | C51: CPU.09 | D51: 1210 | E51: Inspeções e testes em materiais e equipamentos elétricos | F51: Realização de teste de comissionamento da comporta - verificação das peças fixas | G51: un | H51: 2 | I51: =SUMIFS(CPU!$H:$H,CPU!$B:$B,'Planilha Orçamentária'!$A51,CPU!$I:$I,"ss")+SUMIFS(CPU!$H:$H,CPU!$B:$B,'Planilha Orçamentária'!$A51,CPU!$I:$I,"mdo")+SUMIF('Comp SINAPI BA 05-2023 Onerado'!G:G,'Planilha Orçamentária'!C51,'Comp SINAPI BA 05-2023 Onerado'!K:K)+SUMIF('Ins SINAPI BA 05-2023 Onerado'!A:A,'Planilha Orçamentária'!C51,'Ins SINAPI BA 05-2023 Onerado'!E:E) -> 757.26 | J51: 953.466066 | K51: 1906.932132 | L51: serv
A52: 5.2.7 | B52: PRÓPRIA | C52: CPU.10 | D52: 1210 | E52: Inspeções e testes em materiais e equipamentos elétricos | F52: Realização de teste de comissionamento da comporta - operação com água | G52: un | H52: 2 | I52: =SUMIFS(CPU!$H:$H,CPU!$B:$B,'Planilha Orçamentária'!$A52,CPU!$I:$I,"ss")+SUMIFS(CPU!$H:$H,CPU!$B:$B,'Planilha Orçamentária'!$A52,CPU!$I:$I,"mdo")+SUMIF('Comp SINAPI BA 05-2023 Onerado'!G:G,'Planilha Orçamentária'!C52,'Comp SINAPI BA 05-2023 Onerado'!K:K)+SUMIF('Ins SINAPI BA 05-2023 Onerado'!A:A,'Planilha Orçamentária'!C52,'Ins SINAPI BA 05-2023 Onerado'!E:E) -> 757.26 | J52: 953.466066 | K52: 1906.932132 | L52: serv
L53: x
A54: 6 | F54: =UPPER("Casa de máquina, galeria e tomada d'água") -> CASA DE MÁQUINA, GALERIA E TOMADA D'ÁGUA | K54: =SUM(K55,K74) -> 114116.8876
A55: 6.1 | F55: Manutenção e Recuperação civis | K55: =SUM(K56:K73) -> 105595.4539
A56: 6.1.1 | B56: SINAPI | C56: 99814 | D56: 13455 | E56: Obras civis - pequenas obras / pintura em geral | F56: =PROPER(IF(L56="i",VLOOKUP(C56,'Ins SINAPI BA 05-2023 Onerado'!$A$8:$E$5189,2,0),VLOOKUP(C56,'Comp SINAPI BA 05-2023 Onerado'!$G$7:$K$6879,2,0))) -> Limpeza De Superfície Com Jato De Alta Pressão. Af_04/2019 | G56: =LOWER(IF(L56="i",VLOOKUP(C56,'Ins SINAPI BA 04-2023 Desoner'!$A$8:$E$5189,3,0),VLOOKUP(C56,'Comp SINAPI BA 04-2023 Desoner'!$G$7:$K$7500,3,0))) -> m2 | H56: 485.1 | I56: =SUMIFS(CPU!$H:$H,CPU!$B:$B,'Planilha Orçamentária'!$A55,CPU!$I:$I,"ss")+SUMIFS(CPU!$H:$H,CPU!$B:$B,'Planilha Orçamentária'!$A55,CPU!$I:$I,"mdo")+SUMIF('Comp SINAPI BA 05-2023 Onerado'!G:G,'Planilha Orçamentária'!C56,'Comp SINAPI BA 05-2023 Onerado'!K:K)+SUMIF('Ins SINAPI BA 05-2023 Onerado'!A:A,'Planilha Orçamentária'!C56,'Ins SINAPI BA 05-2023 Onerado'!E:E) -> 1.94 | J56: =IF(L56="SERV",I56*(1+$J$5),I56*(1+$J$6)) -> 2.442654 | K56: =H56*J56 -> 1184.931455 | L56: serv
A57: 6.1.2 | B57: SINAPI ADAPTADO | C57: 100728 | D57: 13455 | E57: Obras civis - pequenas obras / pintura em geral | F57: PINTURA COM TINTA EPOXÍDICA (BASEADO SINAPI 100728) | G57: =LOWER(IF(L57="i",VLOOKUP(C57,'Ins SINAPI BA 04-2023 Desoner'!$A$8:$E$5189,3,0),VLOOKUP(C57,'Comp SINAPI BA 04-2023 Desoner'!$G$7:$K$7500,3,0))) -> m2 | H57: 486.1 | I57: =SUMIFS(CPU!$H:$H,CPU!$B:$B,'Planilha Orçamentária'!$A56,CPU!$I:$I,"ss")+SUMIFS(CPU!$H:$H,CPU!$B:$B,'Planilha Orçamentária'!$A56,CPU!$I:$I,"mdo")+SUMIF('Comp SINAPI BA 05-2023 Onerado'!G:G,'Planilha Orçamentária'!C57,'Comp SINAPI BA 05-2023 Onerado'!K:K)+SUMIF('Ins SINAPI BA 05-2023 Onerado'!A:A,'Planilha Orçamentária'!C57,'Ins SINAPI BA 05-2023 Onerado'!E:E) -> 24.38 | J57: =IF(L57="SERV",I57*(1+$J$5),I57*(1+$J$6)) -> 30.696858 | K57: =H57*J57 -> 14921.74267 | L57: serv
A58: 6.1.3 | B58: SINAPI | C58: 98553 | D58: 13455 | E58: Obras civis - pequenas obras / pintura em geral | F58: =PROPER(IF(L58="i",VLOOKUP(C58,'Ins SINAPI BA 05-2023 Onerado'!$A$8:$E$5189,2,0),VLOOKUP(C58,'Comp SINAPI BA 05-2023 Onerado'!$G$7:$K$6879,2,0))) -> Impermeabilização De Superfície Com Membrana À Base De Poliuretano, 2 Demãos. Af_06/2018 | G58: =LOWER(IF(L58="i",VLOOKUP(C58,'Ins SINAPI BA 04-2023 Desoner'!$A$8:$E$5189,3,0),VLOOKUP(C58,'Comp SINAPI BA 04-2023 Desoner'!$G$7:$K$7500,3,0))) -> m2 | H58: 485.1 | I58: =SUMIFS(CPU!$H:$H,CPU!$B:$B,'Planilha Orçamentária'!$A56,CPU!$I:$I,"ss")+SUMIFS(CPU!$H:$H,CPU!$B:$B,'Planilha Orçamentária'!$A56,CPU!$I:$I,"mdo")+SUMIF('Comp SINAPI BA 05-2023 Onerado'!G:G,'Planilha Orçamentária'!C58,'Comp SINAPI BA 05-2023 Onerado'!K:K)+SUMIF('Ins SINAPI BA 05-2023 Onerado'!A:A,'Planilha Orçamentária'!C58,'Ins SINAPI BA 05-2023 Onerado'!E:E) -> 131.28 | J58: =IF(L58="SERV",I58*(1+$J$5),I58*(1+$J$6)) -> 165.294648 | K58: =H58*J58 -> 80184.43374 | L58: serv
A59: 6.1.4 | B59: SINAPI | C59: 88497 | D59: 13455 | E59: Obras civis - pequenas obras / pintura em geral | F59: =PROPER(IF(L59="i",VLOOKUP(C59,'Ins SINAPI BA 05-2023 Onerado'!$A$8:$E$5189,2,0),VLOOKUP(C59,'Comp SINAPI BA 05-2023 Onerado'!$G$7:$K$6879,2,0))) -> Emassamento Com Massa Látex, Aplicação Em Parede, Duas Demãos, Lixamento Manual. Af_04/2023 | G59: =LOWER(IF(L59="i",VLOOKUP(C59,'Ins SINAPI BA 04-2023 Desoner'!$A$8:$E$5189,3,0),VLOOKUP(C59,'Comp SINAPI BA 04-2023 Desoner'!$G$7:$K$7500,3,0))) -> m2 | H59: 93.7 | I59: =SUMIFS(CPU!$H:$H,CPU!$B:$B,'Planilha Orçamentária'!$A59,CPU!$I:$I,"ss")+SUMIFS(CPU!$H:$H,CPU!$B:$B,'Planilha Orçamentária'!$A59,CPU!$I:$I,"mdo")+SUMIF('Comp SINAPI BA 05-2023 Onerado'!G:G,'Planilha Orçamentária'!C59,'Comp SINAPI BA 05-2023 Onerado'!K:K)+SUMIF('Ins SINAPI BA 05-2023 Onerado'!A:A,'Planilha Orçamentária'!C59,'Ins SINAPI BA 05-2023 Onerado'!E:E) -> 18.3 | J59: 23.04153 | K59: =H59*J59 -> 2158.991361 | L59: serv
A60: 6.1.5 | B60: SINAPI | C60: 88489 | D60: 13455 | E60: Obras civis - pequenas obras / pintura em geral | F60: =PROPER(IF(L60="i",VLOOKUP(C60,'Ins SINAPI BA 05-2023 Onerado'!$A$8:$E$5189,2,0),VLOOKUP(C60,'Comp SINAPI BA 05-2023 Onerado'!$G$7:$K$6879,2,0))) -> Pintura Látex Acrílica Premium, Aplicação Manual Em Paredes, Duas Demãos. Af_04/2023 | G60: =LOWER(IF(L60="i",VLOOKUP(C60,'Ins SINAPI BA 04-2023 Desoner'!$A$8:$E$5189,3,0),VLOOKUP(C60,'Comp SINAPI BA 04-2023 Desoner'!$G$7:$K$7500,3,0))) -> m2 | H60: 93.7 | I60: =SUMIFS(CPU!$H:$H,CPU!$B:$B,'Planilha Orçamentária'!$A60,CPU!$I:$I,"ss")+SUMIFS(CPU!$H:$H,CPU!$B:$B,'Planilha Orçamentária'!$A60,CPU!$I:$I,"mdo")+SUMIF('Comp SINAPI BA 05-2023 Onerado'!G:G,'Planilha Orçamentária'!C60,'Comp SINAPI BA 05-2023 Onerado'!K:K)+SUMIF('Ins SINAPI BA 05-2023 Onerado'!A:A,'Planilha Orçamentária'!C60,'Ins SINAPI BA 05-2023 Onerado'!E:E) -> 12.05 | J60: 15.172155 | K60: =H60*J60 -> 1421.630924 | L60: serv
A61: 6.1.6 | B61: SINAPI | C61: 94570 | D61: 442642 | E61: Esquadria | F61: =PROPER(IF(L61="i",VLOOKUP(C61,'Ins SINAPI BA 05-2023 Onerado'!$A$8:$E$5189,2,0),VLOOKUP(C61,'Comp SINAPI BA 05-2023 Onerado'!$G$7:$K$6879,2,0))) -> Janela De Alumínio De Correr Com 2 Folhas Para Vidros, Com Vidros, Batente, Acabamento Com Acetato Ou Brilhante E Ferragens. Exclusive Alizar E Contramarco. Fornecimento E Instalação. Af_12/2019 | G61: =LOWER(IF(L61="i",VLOOKUP(C61,'Ins SINAPI BA 04-2023 Desoner'!$A$8:$E$5189,3,0),VLOOKUP(C61,'Comp SINAPI BA 04-2023 Desoner'!$G$7:$K$7500,3,0))) -> m2 | H61: 3.9 | I61: =SUMIFS(CPU!$H:$H,CPU!$B:$B,'Planilha Orçamentária'!$A61,CPU!$I:$I,"ss")+SUMIFS(CPU!$H:$H,CPU!$B:$B,'Planilha Orçamentária'!$A61,CPU!$I:$I,"mdo")+SUMIF('Comp SINAPI BA 05-2023 Onerado'!G:G,'Planilha Orçamentária'!C61,'Comp SINAPI BA 05-2023 Onerado'!K:K)+SUMIF('Ins SINAPI BA 05-2023 Onerado'!A:A,'Planilha Orçamentária'!C61,'Ins SINAPI BA 05-2023 Onerado'!E:E) -> 220.21 | J61: 277.266411 | K61: 1081.339003 | L61: serv
A62: 6.1.7 | B62: SINAPI | C62: 100702 | D62: 442642 | E62: Esquadria | F62: =PROPER(IF(L62="i",VLOOKUP(C62,'Ins SINAPI BA 05-2023 Onerado'!$A$8:$E$5189,2,0),VLOOKUP(C62,'Comp SINAPI BA 05-2023 Onerado'!$G$7:$K$6879,2,0))) -> Porta De Correr De Alumínio, Com Duas Folhas Para Vidro, Incluso Vidro Liso Incolor, Fechadura E Puxador, Sem Alizar. Af_12/2019 | G62: =LOWER(IF(L62="i",VLOOKUP(C62,'Ins SINAPI BA 04-2023 Desoner'!$A$8:$E$5189,3,0),VLOOKUP(C62,'Comp SINAPI BA 04-2023 Desoner'!$G$7:$K$7500,3,0))) -> m2 | H62: 2.52 | I62: =SUMIFS(CPU!$H:$H,CPU!$B:$B,'Planilha Orçamentária'!$A62,CPU!$I:$I,"ss")+SUMIFS(CPU!$H:$H,CPU!$B:$B,'Planilha Orçamentária'!$A62,CPU!$I:$I,"mdo")+SUMIF('Comp SINAPI BA 05-2023 Onerado'!G:G,'Planilha Orçamentária'!C62,'Comp SINAPI BA 05-2023 Onerado'!K:K)+SUMIF('Ins SINAPI BA 05-2023 Onerado'!A:A,'Planilha Orçamentária'!C62,'Ins SINAPI BA 05-2023 Onerado'!E:E) -> 310.53 | J62: 390.988323 | K62: 985.290574 | L62: serv
A63: 6.1.8 | B63: SINAPI | C63: 101878 | D63: 458535 | E63: Quadro Distribuição | F63: =PROPER(IF(L63="i",VLOOKUP(C63,'Ins SINAPI BA 05-2023 Onerado'!$A$8:$E$5189,2,0),VLOOKUP(C63,'Comp SINAPI BA 05-2023 Onerado'!$G$7:$K$6879,2,0))) -> Quadro De Distribuição De Energia Em Chapa De Aço Galvanizado, De Sobrepor, Com Barramento Trifásico, Para 18 Disjuntores Din 100A - Fornecimento E Instalação. Af_10/2020 | G63: =LOWER(IF(L63="i",VLOOKUP(C63,'Ins SINAPI BA 04-2023 Desoner'!$A$8:$E$5189,3,0),VLOOKUP(C63,'Comp SINAPI BA 04-2023 Desoner'!$G$7:$K$7500,3,0))) -> un | H63: 1 | I63: =SUMIFS(CPU!$H:$H,CPU!$B:$B,'Planilha Orçamentária'!$A63,CPU!$I:$I,"ss")+SUMIFS(CPU!$H:$H,CPU!$B:$B,'Planilha Orçamentária'!$A63,CPU!$I:$I,"mdo")+SUMIF('Comp SINAPI BA 05-2023 Onerado'!G:G,'Planilha Orçamentária'!C63,'Comp SINAPI BA 05-2023 Onerado'!K:K)+SUMIF('Ins SINAPI BA 05-2023 Onerado'!A:A,'Planilha Orçamentária'!C63,'Ins SINAPI BA 05-2023 Onerado'!E:E) -> 571.9 | J63: 720.07929 | K63: 720.07929 | L63: serv
A64: 6.1.9 | B64: SINAPI | C64: 93671 | D64: 337902 | E64: Disjuntor Baixa Tensão | F64: =PROPER(IF(L64="i",VLOOKUP(C64,'Ins SINAPI BA 05-2023 Onerado'!$A$8:$E$5189,2,0),VLOOKUP(C64,'Comp SINAPI BA 05-2023 Onerado'!$G$7:$K$6879,2,0))) -> Disjuntor Tripolar Tipo Din, Corrente Nominal De 32A - Fornecimento E Instalação. Af_10/2020 | G64: =LOWER(IF(L64="i",VLOOKUP(C64,'Ins SINAPI BA 04-2023 Desoner'!$A$8:$E$5189,3,0),VLOOKUP(C64,'Comp SINAPI BA 04-2023 Desoner'!$G$7:$K$7500,3,0))) -> un | H64: 5 | I64: =SUMIFS(CPU!$H:$H,CPU!$B:$B,'Planilha Orçamentária'!$A64,CPU!$I:$I,"ss")+SUMIFS(CPU!$H:$H,CPU!$B:$B,'Planilha Orçamentária'!$A64,CPU!$I:$I,"mdo")+SUMIF('Comp SINAPI BA 05-2023 Onerado'!G:G,'Planilha Orçamentária'!C64,'Comp SINAPI BA 05-2023 Onerado'!K:K)+SUMIF('Ins SINAPI BA 05-2023 Onerado'!A:A,'Planilha Orçamentária'!C64,'Ins SINAPI BA 05-2023 Onerado'!E:E) -> 74.63 | J64: =IF(L64="SERV",I64*(1+$J$5),I64*(1+$J$6)) -> 93.966633 | K64: 469.833165 | L64: serv
A65: 6.1.10 | B65: SINAPI | C65: 93655 | D65: 484195 | E65: Disjuntor Baixa Tensão | F65: =PROPER(IF(L65="i",VLOOKUP(C65,'Ins SINAPI BA 05-2023 Onerado'!$A$8:$E$5189,2,0),VLOOKUP(C65,'Comp SINAPI BA 05-2023 Onerado'!$G$7:$K$6879,2,0))) -> Disjuntor Monopolar Tipo Din, Corrente Nominal De 20A - Fornecimento E Instalação. Af_10/2020 | G65: =LOWER(IF(L65="i",VLOOKUP(C65,'Ins SINAPI BA 04-2023 Desoner'!$A$8:$E$5189,3,0),VLOOKUP(C65,'Comp SINAPI BA 04-2023 Desoner'!$G$7:$K$7500,3,0))) -> un | H65: 6 | I65: =SUMIFS(CPU!$H:$H,CPU!$B:$B,'Planilha Orçamentária'!$A65,CPU!$I:$I,"ss")+SUMIFS(CPU!$H:$H,CPU!$B:$B,'Planilha Orçamentária'!$A65,CPU!$I:$I,"mdo")+SUMIF('Comp SINAPI BA 05-2023 Onerado'!G:G,'Planilha Orçamentária'!C65,'Comp SINAPI BA 05-2023 Onerado'!K:K)+SUMIF('Ins SINAPI BA 05-2023 Onerado'!A:A,'Planilha Orçamentária'!C65,'Ins SINAPI BA 05-2023 Onerado'!E:E) -> 12.66 | J65: 15.940206 | K65: 95.641236 | L65: serv
A66: 6.1.11 | B66: SINAPI | C66: 93654 | D66: 482695 | E66: Disjuntor Baixa Tensão | F66: =PROPER(IF(L66="i",VLOOKUP(C66,'Ins SINAPI BA 05-2023 Onerado'!$A$8:$E$5189,2,0),VLOOKUP(C66,'Comp SINAPI BA 05-2023 Onerado'!$G$7:$K$6879,2,0))) -> Disjuntor Monopolar Tipo Din, Corrente Nominal De 16A - Fornecimento E Instalação. Af_10/2020 | G66: =LOWER(IF(L66="i",VLOOKUP(C66,'Ins SINAPI BA 04-2023 Desoner'!$A$8:$E$5189,3,0),VLOOKUP(C66,'Comp SINAPI BA 04-2023 Desoner'!$G$7:$K$7500,3,0))) -> un | H66: 4 | I66: =SUMIFS(CPU!$H:$H,CPU!$B:$B,'Planilha Orçamentária'!$A66,CPU!$I:$I,"ss")+SUMIFS(CPU!$H:$H,CPU!$B:$B,'Planilha Orçamentária'!$A66,CPU!$I:$I,"mdo")+SUMIF('Comp SINAPI BA 05-2023 Onerado'!G:G,'Planilha Orçamentária'!C66,'Comp SINAPI BA 05-2023 Onerado'!K:K)+SUMIF('Ins SINAPI BA 05-2023 Onerado'!A:A,'Planilha Orçamentária'!C66,'Ins SINAPI BA 05-2023 Onerado'!E:E) -> 11.38 | J66: 14.328558 | K66: 57.314232 | L66: serv
A67: 6.1.12 | B67: SINAPI | C67: 89957 | D67: 13546 | E67: Conexão hidráulica | F67: =PROPER(IF(L67="i",VLOOKUP(C67,'Ins SINAPI BA 05-2023 Onerado'!$A$8:$E$5189,2,0),VLOOKUP(C67,'Comp SINAPI BA 05-2023 Onerado'!$G$7:$K$6879,2,0))) -> Ponto De Consumo Terminal De Água Fria (Subramal) Com Tubulação De Pvc, Dn 25 Mm, Instalado Em Ramal De Água, Inclusos Rasgo E Chumbamento Em Alvenaria. Af_12/2014 | G67: =LOWER(IF(L67="i",VLOOKUP(C67,'Ins SINAPI BA 04-2023 Desoner'!$A$8:$E$5189,3,0),VLOOKUP(C67,'Comp SINAPI BA 04-2023 Desoner'!$G$7:$K$7500,3,0))) -> un | H67: 1 | I67: =SUMIFS(CPU!$H:$H,CPU!$B:$B,'Planilha Orçamentária'!$A67,CPU!$I:$I,"ss")+SUMIFS(CPU!$H:$H,CPU!$B:$B,'Planilha Orçamentária'!$A67,CPU!$I:$I,"mdo")+SUMIF('Comp SINAPI BA 05-2023 Onerado'!G:G,'Planilha Orçamentária'!C67,'Comp SINAPI BA 05-2023 Onerado'!K:K)+SUMIF('Ins SINAPI BA 05-2023 Onerado'!A:A,'Planilha Orçamentária'!C67,'Ins SINAPI BA 05-2023 Onerado'!E:E) -> 155.6 | J67: 195.91596 | K67: 195.91596 | L67: serv
A68: 6.1.13 | B68: PRÓPRIA | C68: CPU.13 | D68: 604838 | E68: Condulete | F68: PONTO COM CONDULETE 1" | G68: =CPU!E173 -> un | H68: 2 | I68: =SUMIFS(CPU!$H:$H,CPU!$B:$B,'Planilha Orçamentária'!$A68,CPU!$I:$I,"ss")+SUMIFS(CPU!$H:$H,CPU!$B:$B,'Planilha Orçamentária'!$A68,CPU!$I:$I,"mdo")+SUMIF('Comp SINAPI BA 05-2023 Onerado'!G:G,'Planilha Orçamentária'!C68,'Comp SINAPI BA 05-2023 Onerado'!K:K)+SUMIF('Ins SINAPI BA 05-2023 Onerado'!A:A,'Planilha Orçamentária'!C68,'Ins SINAPI BA 05-2023 Onerado'!E:E) -> 347.15368 | J68: 437.1011985 | K68: 874.202397 | L68: serv
A69: 6.1.14 | B69: PRÓPRIA | C69: CPU.14 | D69: 13546 | E69: Conexão hidráulica | F69: PONTO DE ÁGUA FRIA PARA TANQUE COM MAT. ABAS./ESGOTAMENTO | G69: =CPU!E190 -> un | H69: 1 | I69: =SUMIFS(CPU!$H:$H,CPU!$B:$B,'Planilha Orçamentária'!$A69,CPU!$I:$I,"ss")+SUMIFS(CPU!$H:$H,CPU!$B:$B,'Planilha Orçamentária'!$A69,CPU!$I:$I,"mdo")+SUMIF('Comp SINAPI BA 05-2023 Onerado'!G:G,'Planilha Orçamentária'!C69,'Comp SINAPI BA 05-2023 Onerado'!K:K)+SUMIF('Ins SINAPI BA 05-2023 Onerado'!A:A,'Planilha Orçamentária'!C69,'Ins SINAPI BA 05-2023 Onerado'!E:E) -> 658.1962 | J69: 828.7348354 | K69: 828.7348354 | L69: serv
A70: 6.1.15 | B70: SINAPI | C70: 104473 | D70: 426989 | E70: Caixa Medição | F70: =PROPER(IF(L70="i",VLOOKUP(C70,'Ins SINAPI BA 05-2023 Onerado'!$A$8:$E$5189,2,0),VLOOKUP(C70,'Comp SINAPI BA 05-2023 Onerado'!$G$7:$K$7500,2,0))) -> Composição Paramétrica De Ponto Elétrico De Iluminação, Com Interruptor Simples, Em Edifício Residencial Com Eletroduto Embutido Em Rasgos Nas Paredes, Incluso Tomada, Eletroduto, Cabo, Rasgo E Chumbamento (Sem Luminária E Lâmpada). Af_11/2022 | G70: =LOWER(IF(L70="i",VLOOKUP(C70,'Ins SINAPI BA 04-2023 Desoner'!$A$8:$E$5189,3,0),VLOOKUP(C70,'Comp SINAPI BA 04-2023 Desoner'!$G$7:$K$7500,3,0))) -> un | H70: 1 | I70: =SUMIFS(CPU!$H:$H,CPU!$B:$B,'Planilha Orçamentária'!$A70,CPU!$I:$I,"ss")+SUMIFS(CPU!$H:$H,CPU!$B:$B,'Planilha Orçamentária'!$A70,CPU!$I:$I,"mdo")+SUMIF('Comp SINAPI BA 05-2023 Onerado'!G:G,'Planilha Orçamentária'!C70,'Comp SINAPI BA 05-2023 Onerado'!K:K)+SUMIF('Ins SINAPI BA 05-2023 Onerado'!A:A,'Planilha Orçamentária'!C70,'Ins SINAPI BA 05-2023 Onerado'!E:E) -> 162.27 | J70: 204.314157 | K70: 204.314157 | L70: serv
A71: 6.1.16 | B71: SICRO | C71: 1600408 | D71: 17140 | E71: Obras civis - concretagem | F71: Apicoamento manual de concreto | G71: m² | H71: 2.88 | I71: 17.66 | J71: 22.235706 | K71: 64.03883328 | L71: serv
A72: 6.1.17 | B72: SINAPI | C72: 100717 | D72: 13455 | E72: Obras civis - pequenas obras / pintura em geral | F72: =PROPER(IF(L72="i",VLOOKUP(C72,'Ins SINAPI BA 05-2023 Onerado'!$A$8:$E$5189,2,0),VLOOKUP(C72,'Comp SINAPI BA 05-2023 Onerado'!$G$7:$K$7500,2,0))) -> Lixamento Manual Em Superfícies Metálicas Em Obra. Af_01/2020 | G72: =LOWER(IF(L72="i",VLOOKUP(C72,'Ins SINAPI BA 04-2023 Desoner'!$A$8:$E$5189,3,0),VLOOKUP(C72,'Comp SINAPI BA 04-2023 Desoner'!$G$7:$K$7500,3,0))) -> m2 | H72: 2.88 | I72: =SUMIFS(CPU!$H:$H,CPU!$B:$B,'Planilha Orçamentária'!$A72,CPU!$I:$I,"ss")+SUMIFS(CPU!$H:$H,CPU!$B:$B,'Planilha Orçamentária'!$A72,CPU!$I:$I,"mdo")+SUMIF('Comp SINAPI BA 05-2023 Onerado'!G:G,'Planilha Orçamentária'!C72,'Comp SINAPI BA 05-2023 Onerado'!K:K)+SUMIF('Ins SINAPI BA 05-2023 Onerado'!A:A,'Planilha Orçamentária'!C72,'Ins SINAPI BA 05-2023 Onerado'!E:E) -> 10.43 | J72: 13.132413 | K72: 37.82134944 | L72: serv
A73: 6.1.18 | B73: PRÓPRIA | C73: CPU.15 | D73: 13455 | E73: Obras civis - pequenas obras / pintura em geral | F73: PINTURA ESMALTE 2 DEMAOS CAIXILHO DE FERRO C/ MASSA E ZARCAO | G73: =CPU!E207 -> un | H73: 2.88 | I73: =SUMIFS(CPU!$H:$H,CPU!$B:$B,'Planilha Orçamentária'!$A73,CPU!$I:$I,"ss")+SUMIFS(CPU!$H:$H,CPU!$B:$B,'Planilha Orçamentária'!$A73,CPU!$I:$I,"mdo")+SUMIF('Comp SINAPI BA 05-2023 Onerado'!G:G,'Planilha Orçamentária'!C73,'Comp SINAPI BA 05-2023 Onerado'!K:K)+SUMIF('Ins SINAPI BA 05-2023 Onerado'!A:A,'Planilha Orçamentária'!C73,'Ins SINAPI BA 05-2023 Onerado'!E:E) -> 30.11374 | J73: 37.91621003 | K73: 109.1986849 | L73: serv
A74: 6.2 | F74: Demolição e construção das coroas de concreto | K74: =SUM(K75:K77) -> 8521.43371
A75: 6.2.1 | B75: PRÓPRIA | C75: CPU.16 | D75: 17140 | E75: Obras civis - concretagem | F75: CONCRETO USINADO CONVENCIONAL 25,0MPa PARA CINTAS/VIGAS | G75: =CPU!E219 -> m³ | H75: 0.144 | I75: =SUMIFS(CPU!$H:$H,CPU!$B:$B,'Planilha Orçamentária'!$A75,CPU!$I:$I,"ss")+SUMIFS(CPU!$H:$H,CPU!$B:$B,'Planilha Orçamentária'!$A75,CPU!$I:$I,"mdo")+SUMIF('Comp SINAPI BA 05-2023 Onerado'!G:G,'Planilha Orçamentária'!C75,'Comp SINAPI BA 05-2023 Onerado'!K:K)+SUMIF('Ins SINAPI BA 05-2023 Onerado'!A:A,'Planilha Orçamentária'!C75,'Ins SINAPI BA 05-2023 Onerado'!E:E) -> 675.90656 | J75: =IF(L75="SERV",I75*(1+$J$5),I75*(1+$J$6)) -> 851.0339497 | K75: 122.5488888 | L75: serv
A76: 6.2.2 | B76: SICRO | C76: 1600438 | D76: 17140 | E76: Obras civis - concretagem | F76: Demolição de concreto armado | G76: m³ | H76: 2.232 | I76: 564.59 | J76: =IF(L76="SERV",I76*(1+$J$5),I76*(1+$J$6)) -> 710.875269 | K76: 1586.6736 | L76: serv
A77: 6.2.3 | B77: ORSE | C77: 7369 | D77: 17140 | E77: Obras civis - concretagem | F77: Concreto Armado fck=30,0MPa, usinado, bombeado, adensado e lançado, para uso Geral, com formas planas em compensado resinado 12mm (05 usos) | G77: m³ | H77: 2.23 | I77: =2426.18 -> 2426.18 | J77: =IF(L77="SERV",I77*(1+$J$5),I77*(1+$J$6)) -> 3054.803238 | K77: 6812.211221 | L77: serv
A79: 7 | F79: CASA DE VÁLVULAS | K79: =SUM(K80) -> 3361.87519 | M79: ss
A80: 7.1 | F80: Estrutura | K80: =SUM(K81:K83) -> 3361.87519 | M80: s
A81: 7.1.1 | B81: SINAPI | C81: 100701 | D81: 288830 | E81: Chapa Aço | F81: =PROPER(IF(L81="i",VLOOKUP(C81,'Ins SINAPI BA 05-2023 Onerado'!$A$8:$E$5189,2,0),VLOOKUP(C81,'Comp SINAPI BA 05-2023 Onerado'!$G$7:$K$6879,2,0))) -> Porta De Ferro, De Abrir, Tipo Grade Com Chapa, Com Guarnições. Af_12/2019 | G81: =LOWER(IF(L81="i",VLOOKUP(C81,'Ins SINAPI BA 05-2023 Onerado'!$A$8:$E$5189,3,0),VLOOKUP(C81,'Comp SINAPI BA 05-2023 Onerado'!$G$7:$K$6879,3,0))) -> m2 | H81: 1.68 | I81: =SUMIFS(CPU!$H:$H,CPU!$B:$B,'Planilha Orçamentária'!$A81,CPU!$I:$I,"ss")+SUMIFS(CPU!$H:$H,CPU!$B:$B,'Planilha Orçamentária'!$A81,CPU!$I:$I,"mdo")+SUMIF('Comp SINAPI BA 05-2023 Onerado'!G:G,'Planilha Orçamentária'!C81,'Comp SINAPI BA 05-2023 Onerado'!K:K)+SUMIF('Ins SINAPI BA 05-2023 Onerado'!A:A,'Planilha Orçamentária'!C81,'Ins SINAPI BA 05-2023 Onerado'!E:E) -> 446.32 | J81: =IF(L81="SERV",I81*(1+$J$5),I81*(1+$J$6)) -> 561.961512 | K81: =H81*J81 -> 944.0953402 | L81: serv | M81: i
A82: 7.1.2 | B82: SINAPI | C82: 88497 | D82: 13455 | E82: Obras civis - pequenas obras / pintura em geral | F82: =PROPER(IF(L82="i",VLOOKUP(C82,'Ins SINAPI BA 05-2023 Onerado'!$A$8:$E$5189,2,0),VLOOKUP(C82,'Comp SINAPI BA 05-2023 Onerado'!$G$7:$K$6879,2,0))) -> Emassamento Com Massa Látex, Aplicação Em Parede, Duas Demãos, Lixamento Manual. Af_04/2023 | G82: =LOWER(IF(L82="i",VLOOKUP(C82,'Ins SINAPI BA 05-2023 Onerado'!$A$8:$E$5189,3,0),VLOOKUP(C82,'Comp SINAPI BA 05-2023 Onerado'!$G$7:$K$6879,3,0))) -> m2 | H82: 63.27 | I82: =SUMIFS(CPU!$H:$H,CPU!$B:$B,'Planilha Orçamentária'!$A82,CPU!$I:$I,"ss")+SUMIFS(CPU!$H:$H,CPU!$B:$B,'Planilha Orçamentária'!$A82,CPU!$I:$I,"mdo")+SUMIF('Comp SINAPI BA 05-2023 Onerado'!G:G,'Planilha Orçamentária'!C82,'Comp SINAPI BA 05-2023 Onerado'!K:K)+SUMIF('Ins SINAPI BA 05-2023 Onerado'!A:A,'Planilha Orçamentária'!C82,'Ins SINAPI BA 05-2023 Onerado'!E:E) -> 18.3 | J82: =IF(L82="SERV",I82*(1+$J$5),I82*(1+$J$6)) -> 23.04153 | K82: 1457.837603 | L82: serv | M82: i
A83: 7.1.3 | B83: SINAPI | C83: 88489 | D83: 13455 | E83: Obras civis - pequenas obras / pintura em geral | F83: =PROPER(IF(L83="i",VLOOKUP(C83,'Ins SINAPI BA 05-2023 Onerado'!$A$8:$E$5189,2,0),VLOOKUP(C83,'Comp SINAPI BA 05-2023 Onerado'!$G$7:$K$6879,2,0))) -> Pintura Látex Acrílica Premium, Aplicação Manual Em Paredes, Duas Demãos. Af_04/2023 | G83: =LOWER(IF(L83="i",VLOOKUP(C83,'Ins SINAPI BA 05-2023 Onerado'!$A$8:$E$5189,3,0),VLOOKUP(C83,'Comp SINAPI BA 05-2023 Onerado'!$G$7:$K$6879,3,0))) -> m2 | H83: 63.27 | I83: =SUMIFS(CPU!$H:$H,CPU!$B:$B,'Planilha Orçamentária'!$A83,CPU!$I:$I,"ss")+SUMIFS(CPU!$H:$H,CPU!$B:$B,'Planilha Orçamentária'!$A83,CPU!$I:$I,"mdo")+SUMIF('Comp SINAPI BA 05-2023 Onerado'!G:G,'Planilha Orçamentária'!C83,'Comp SINAPI BA 05-2023 Onerado'!K:K)+SUMIF('Ins SINAPI BA 05-2023 Onerado'!A:A,'Planilha Orçamentária'!C83,'Ins SINAPI BA 05-2023 Onerado'!E:E) -> 12.05 | J83: =IF(L83="SERV",I83*(1+$J$5),I83*(1+$J$6)) -> 15.172155 | K83: 959.9422469 | L83: serv | M83: i
A85: 8 | F85: PROJETOS | K85: =SUM(K86:K88) -> 8823.873528
A86: 8.1 | B86: PRÓPRIA | C86: CPU.17 | D86: 809 | E86: Consultoria / assessoria - engenharia | F86: PROJETO "AS BUILT" DE INSTALACOES HIDRÁULICAS | G86: un | H86: 1 | I86: =SUMIFS(CPU!$H:$H,CPU!$B:$B,'Planilha Orçamentária'!$A86,CPU!$I:$I,"ss")+SUMIFS(CPU!$H:$H,CPU!$B:$B,'Planilha Orçamentária'!$A86,CPU!$I:$I,"mdo")+SUMIF('Comp SINAPI BA 05-2023 Onerado'!G:G,'Planilha Orçamentária'!C86,'Comp SINAPI BA 05-2023 Onerado'!K:K)+SUMIF('Ins SINAPI BA 05-2023 Onerado'!A:A,'Planilha Orçamentária'!C86,'Ins SINAPI BA 05-2023 Onerado'!E:E) -> 2011.68 | J86: =IF(L86="SERV",I86*(1+$J$5),I86*(1+$J$6)) -> 2532.906288 | K86: =H86*J86 -> 2532.906288 | L86: serv
A87: 8.2 | B87: PRÓPRIA | C87: CPU.18 | D87: 809 | E87: Consultoria / assessoria - engenharia | F87: PROJETO "AS BUILT" DE INSTALACOES ELETRICAS | G87: un | H87: 1 | I87: =SUMIFS(CPU!$H:$H,CPU!$B:$B,'Planilha Orçamentária'!$A87,CPU!$I:$I,"ss")+SUMIFS(CPU!$H:$H,CPU!$B:$B,'Planilha Orçamentária'!$A87,CPU!$I:$I,"mdo")+SUMIF('Comp SINAPI BA 05-2023 Onerado'!G:G,'Planilha Orçamentária'!C87,'Comp SINAPI BA 05-2023 Onerado'!K:K)+SUMIF('Ins SINAPI BA 05-2023 Onerado'!A:A,'Planilha Orçamentária'!C87,'Ins SINAPI BA 05-2023 Onerado'!E:E) -> 2949.12 | J87: =IF(L87="SERV",I87*(1+$J$5),I87*(1+$J$6)) -> 3713.236992 | K87: =H87*J87 -> 3713.236992 | L87: serv
A88: 8.3 | B88: PRÓPRIA | C88: CPU.19 | D88: 809 | E88: Consultoria / assessoria - engenharia | F88: PROJETO "AS BUILT" DE ARQUITETURA | G88: un | H88: 1 | I88: =SUMIFS(CPU!$H:$H,CPU!$B:$B,'Planilha Orçamentária'!$A88,CPU!$I:$I,"ss")+SUMIFS(CPU!$H:$H,CPU!$B:$B,'Planilha Orçamentária'!$A88,CPU!$I:$I,"mdo")+SUMIF('Comp SINAPI BA 05-2023 Onerado'!G:G,'Planilha Orçamentária'!C88,'Comp SINAPI BA 05-2023 Onerado'!K:K)+SUMIF('Ins SINAPI BA 05-2023 Onerado'!A:A,'Planilha Orçamentária'!C88,'Ins SINAPI BA 05-2023 Onerado'!E:E) -> 2047.28 | J88: =IF(L88="SERV",I88*(1+$J$5),I88*(1+$J$6)) -> 2577.730248 | K88: 2577.730248 | L88: serv
F90: TOTAL Sem BDI: | K90: =SUMPRODUCT(H11:H89,I11:I89) -> 2064580.248
F91: BDI: | K91: =(K90-(SUMPRODUCT(H43:H44,I43:I44)))*J5+((SUMPRODUCT(H43:H44,I43:I44))*J6) -> 429825.0404
F92: TOTAL COM BDI: | K92: =SUM(K90:K91) -> 2494405.289 | L92: =SUM(K11,K17,K26,K41,K54,K79,K33,K85) -> 2494405.289

Sheet Planilha Orçamentária Desoner (hidden)
A1: Ministério da Integração e do Desenvolvimento Regional
A2: Companhia de desenvolvimento dos Vales do São Francisco e do Parnaíba
A4: PLANILHA ORÇAMENTÁRIA - ORÇAMENTO DESONERADO
A5: OBRA: | B5: =UPPER("Manutenção da casa de Máquina e Substituição das comportas na barragem Ceraíma") -> MANUTENÇÃO DA CASA DE MÁQUINA E SUBSTITUIÇÃO DAS COMPORTAS NA BARRAGEM CERAÍMA | F5: BDI (serv.): | G5: ='BDI serv Desonerado'!D23 -> 0.3351 | I5: Bancos
A6: LOCAL: | B6: BARRAGEM CERAÍMA (GUANAMBI - BA) | F6: BDI (forn.): | G6: ='BDI forn Desonerado'!D23 -> 0.212 | I6: 04/2023 - SINAPI/BA
A7: DATA BASE: | B7: 2023-04-01 | I7: 01/2023 - SICRO/BA
A8: PRAZO: | B8: 240 DIAS | I8: 02/2023 - ORSE
A9: ITEM | B9: REFERÊNCIA | D9: DESCRIÇÃO | E9: UNID. | F9: QUANT. | G9: CUSTO UNITÁRIO | H9: PREÇO UNITÁRIO | I9: PREÇO TOTAL | J9: TIPO de BDI | K9: CLASSIF
B10: FONTE | C10: CÓDIGO
A11: 1 | D11: ADMINISTRAÇÃO LOCAL | I11: =SUM(I12:I15) -> 177510.5169 | K11: ss
A12: 1.1 | B12: SINAPI | C12: 90778 | D12: =PROPER(IF(J12="i",VLOOKUP(C12,'Ins SINAPI BA 05-2023 Onerado'!$A$8:$E$5189,2,0),VLOOKUP(C12,'Comp SINAPI BA 05-2023 Onerado'!$G$7:$K$7500,2,0))) -> Engenheiro Civil De Obra Pleno Com Encargos Complementares | E12: =LOWER(IF(J12="i",VLOOKUP(C12,'Ins SINAPI BA 05-2023 Onerado'!$A$8:$E$5189,3,0),VLOOKUP(C12,'Comp SINAPI BA 05-2023 Onerado'!$G$7:$K$7500,3,0))) -> h | F12: =16*8 -> 128 | G12: =SUMIFS('CPU DESONERADO'!$H:$H,'CPU DESONERADO'!$B:$B,'Planilha Orçamentária Desoner'!$A12,'CPU DESONERADO'!$I:$I,"ss")+SUMIFS('CPU DESONERADO'!$H:$H,'CPU DESONERADO'!$B:$B,'Planilha Orçamentária Desoner'!$A12,'CPU DESONERADO'!$I:$I,"mdo")+SUMIF('Comp SINAPI BA 04-2023 Desoner'!G:G,'Planilha Orçamentária Desoner'!C12,'Comp SINAPI BA 04-2023 Desoner'!K:K)+SUMIF('Ins SINAPI BA 04-2023 Desoner'!A:A,'Planilha Orçamentária Desoner'!C12,'Ins SINAPI BA 04-2023 Desoner'!E:E) -> 109.79 | H12: =IF(J12="SERV",G12*(1+$G$5),G12*(1+$G$6)) -> 146.580629 | I12: =F12*H12 -> 18762.32051 | J12: serv | K12: s
A13: 1.2 | B13: SINAPI | C13: 90778 | D13: Engenheiro Mecanico De Obra Pleno Com Encargos Complementares (Baseado SINAPI 90778) | E13: =LOWER(IF(J13="i",VLOOKUP(C13,'Ins SINAPI BA 05-2023 Onerado'!$A$8:$E$5189,3,0),VLOOKUP(C13,'Comp SINAPI BA 05-2023 Onerado'!$G$7:$K$7500,3,0))) -> h | F13: =32*8 -> 256 | G13: =SUMIFS('CPU DESONERADO'!$H:$H,'CPU DESONERADO'!$B:$B,'Planilha Orçamentária Desoner'!$A13,'CPU DESONERADO'!$I:$I,"ss")+SUMIFS('CPU DESONERADO'!$H:$H,'CPU DESONERADO'!$B:$B,'Planilha Orçamentária Desoner'!$A13,'CPU DESONERADO'!$I:$I,"mdo")+SUMIF('Comp SINAPI BA 04-2023 Desoner'!G:G,'Planilha Orçamentária Desoner'!C13,'Comp SINAPI BA 04-2023 Desoner'!K:K)+SUMIF('Ins SINAPI BA 04-2023 Desoner'!A:A,'Planilha Orçamentária Desoner'!C13,'Ins SINAPI BA 04-2023 Desoner'!E:E) -> 109.79 | H13: =IF(J13="SERV",G13*(1+$G$5),G13*(1+$G$6)) -> 146.580629 | I13: =F13*H13 -> 37524.64102 | J13: serv | K13: i
A14: 1.3 | B14: SINAPI | C14: 93572 | D14: =PROPER(IF(J14="i",VLOOKUP(C14,'Ins SINAPI BA 05-2023 Onerado'!$A$8:$E$5189,2,0),VLOOKUP(C14,'Comp SINAPI BA 05-2023 Onerado'!$G$7:$K$7500,2,0))) -> Encarregado Geral De Obras Com Encargos Complementares | E14: =LOWER(IF(J14="i",VLOOKUP(C14,'Ins SINAPI BA 05-2023 Onerado'!$A$8:$E$5189,3,0),VLOOKUP(C14,'Comp SINAPI BA 05-2023 Onerado'!$G$7:$K$7500,3,0))) -> mes | F14: 8 | G14: =SUMIFS('CPU DESONERADO'!$H:$H,'CPU DESONERADO'!$B:$B,'Planilha Orçamentária Desoner'!$A14,'CPU DESONERADO'!$I:$I,"ss")+SUMIFS('CPU DESONERADO'!$H:$H,'CPU DESONERADO'!$B:$B,'Planilha Orçamentária Desoner'!$A14,'CPU DESONERADO'!$I:$I,"mdo")+SUMIF('Comp SINAPI BA 04-2023 Desoner'!G:G,'Planilha Orçamentária Desoner'!C14,'Comp SINAPI BA 04-2023 Desoner'!K:K)+SUMIF('Ins SINAPI BA 04-2023 Desoner'!A:A,'Planilha Orçamentária Desoner'!C14,'Ins SINAPI BA 04-2023 Desoner'!E:E) -> 5620.52 | H14: 7503.956252 | I14: 60031.65002 | J14: serv | K14: i
A15: 1.4 | B15: SINAPI | C15: 101390 | D15: =PROPER(IF(J15="i",VLOOKUP(C15,'Ins SINAPI BA 05-2023 Onerado'!$A$8:$E$5189,2,0),VLOOKUP(C15,'Comp SINAPI BA 05-2023 Onerado'!$G$7:$K$7500,2,0))) -> Auxiliar Técnico / Assistente De Engenharia Com Encargos Complementares | E15: =LOWER(IF(J15="i",VLOOKUP(C15,'Ins SINAPI BA 05-2023 Onerado'!$A$8:$E$5189,3,0),VLOOKUP(C15,'Comp SINAPI BA 05-2023 Onerado'!$G$7:$K$7500,3,0))) -> mes | F15: 8 | G15: =SUMIFS('CPU DESONERADO'!$H:$H,'CPU DESONERADO'!$B:$B,'Planilha Orçamentária Desoner'!$A15,'CPU DESONERADO'!$I:$I,"ss")+SUMIFS('CPU DESONERADO'!$H:$H,'CPU DESONERADO'!$B:$B,'Planilha Orçamentária Desoner'!$A15,'CPU DESONERADO'!$I:$I,"mdo")+SUMIF('Comp SINAPI BA 04-2023 Desoner'!G:G,'Planilha Orçamentária Desoner'!C15,'Comp SINAPI BA 04-2023 Desoner'!K:K)+SUMIF('Ins SINAPI BA 04-2023 Desoner'!A:A,'Planilha Orçamentária Desoner'!C15,'Ins SINAPI BA 04-2023 Desoner'!E:E) -> 5729.15 | H15: 7648.988165 | I15: 61191.90532 | J15: serv | K15: i
K16: s
A17: 2 | D17: SERVIÇOS PRELIMINARES | I17: =SUM(I18:I24)/2 -> 67749.87086 | K17: ss
A18: 2.1 | D18: Canteiro de obras | I18: =SUM(I19:I22) -> 66567.91778 | K18: s
A19: 2.1.1 | B19: SINAPI | C19: 10775 | D19: =PROPER(IF(K19="i",VLOOKUP(C19,'Ins SINAPI BA 05-2023 Onerado'!$A$8:$E$5189,2,0),VLOOKUP(C19,'Comp SINAPI BA 05-2023 Onerado'!$G$7:$K$7500,2,0))) -> Locacao De Container 2,30 X 6,00 M, Alt. 2,50 M, Com 1 Sanitario, Para Escritorio, Completo, Sem Divisorias Internas (Nao Inclui Mobilizacao/Desmobilizacao) | E19: =LOWER(IF(K19="i",VLOOKUP(C19,'Ins SINAPI BA 05-2023 Onerado'!$A$8:$E$5189,3,0),VLOOKUP(C19,'Comp SINAPI BA 05-2023 Onerado'!$G$7:$K$6879,3,0))) -> mes | F19: 8 | G19: =SUMIFS('CPU DESONERADO'!$H:$H,'CPU DESONERADO'!$B:$B,'Planilha Orçamentária Desoner'!$A19,'CPU DESONERADO'!$I:$I,"ss")+SUMIFS('CPU DESONERADO'!$H:$H,'CPU DESONERADO'!$B:$B,'Planilha Orçamentária Desoner'!$A19,'CPU DESONERADO'!$I:$I,"mdo")+SUMIF('Comp SINAPI BA 04-2023 Desoner'!G:G,'Planilha Orçamentária Desoner'!C19,'Comp SINAPI BA 04-2023 Desoner'!K:K)+SUMIF('Ins SINAPI BA 04-2023 Desoner'!A:A,'Planilha Orçamentária Desoner'!C19,'Ins SINAPI BA 04-2023 Desoner'!E:E) -> 1400 | H19: =IF(J19="SERV",G19*(1+$G$5),G19*(1+$G$6)) -> 1869.14 | I19: =F19*H19 -> 14953.12 | J19: serv | K19: i
A20: 2.1.2 | B20: SINAPI | C20: 10776 | D20: =PROPER(IF(K20="i",VLOOKUP(C20,'Ins SINAPI BA 05-2023 Onerado'!$A$8:$E$5189,2,0),VLOOKUP(C20,'Comp SINAPI BA 05-2023 Onerado'!$G$7:$K$7500,2,0))) -> Locacao De Container 2,30 X 6,00 M, Alt. 2,50 M, Para Escritorio, Sem Divisorias Internas E Sem Sanitario (Nao Inclui Mobilizacao/Desmobilizacao) | E20: =LOWER(IF(K20="i",VLOOKUP(C20,'Ins SINAPI BA 05-2023 Onerado'!$A$8:$E$5189,3,0),VLOOKUP(C20,'Comp SINAPI BA 05-2023 Onerado'!$G$7:$K$6879,3,0))) -> mes | F20: 8 | G20: =SUMIFS('CPU DESONERADO'!$H:$H,'CPU DESONERADO'!$B:$B,'Planilha Orçamentária Desoner'!$A20,'CPU DESONERADO'!$I:$I,"ss")+SUMIFS('CPU DESONERADO'!$H:$H,'CPU DESONERADO'!$B:$B,'Planilha Orçamentária Desoner'!$A20,'CPU DESONERADO'!$I:$I,"mdo")+SUMIF('Comp SINAPI BA 04-2023 Desoner'!G:G,'Planilha Orçamentária Desoner'!C20,'Comp SINAPI BA 04-2023 Desoner'!K:K)+SUMIF('Ins SINAPI BA 04-2023 Desoner'!A:A,'Planilha Orçamentária Desoner'!C20,'Ins SINAPI BA 04-2023 Desoner'!E:E) -> 1093.75 | H20: =IF(J20="SERV",G20*(1+$G$5),G20*(1+$G$6)) -> 1460.265625 | I20: =F20*H20 -> 11682.125 | J20: serv | K20: i
A21: 2.1.3 | B21: ORSE | C21: 4296 | D21: Aluguel de container - Refeitório sem banheiro - 6,00 x 2,40m equipado com 01\ar condicionado e mesa para 12 pessoas | E21: mes | F21: 8 | G21: 1800 | H21: 2403.18 | I21: 19225.44 | J21: serv | K21: i
A22: 2.1.4 | B22: PRÓPRIA | C22: CPU.01 | D22: Mobilização e Desmobilização de canteiro | E22: un | F22: 1 | G22: =SUMIFS('CPU DESONERADO'!$H:$H,'CPU DESONERADO'!$B:$B,'Planilha Orçamentária Desoner'!$A22,'CPU DESONERADO'!$I:$I,"ss")+SUMIFS('CPU DESONERADO'!$H:$H,'CPU DESONERADO'!$B:$B,'Planilha Orçamentária Desoner'!$A22,'CPU DESONERADO'!$I:$I,"mdo")+SUMIF('Comp SINAPI BA 04-2023 Desoner'!G:G,'Planilha Orçamentária Desoner'!C22,'Comp SINAPI BA 04-2023 Desoner'!K:K)+SUMIF('Ins SINAPI BA 04-2023 Desoner'!A:A,'Planilha Orçamentária Desoner'!C22,'Ins SINAPI BA 04-2023 Desoner'!E:E) -> 15509.874 | H22: 20707.23278 | I22: 20707.23278 | J22: serv | K22: i
A23: 2.2 | D23: Sinalização | I23: =SUM(I24:I24) -> 1181.953082 | K23: s
A24: 2.2.1 | B24: PRÓPRIA | C24: CPU.02 | D24: PLACA DE OBRA EM CHAPA DE ACO GALVANIZADO | E24: m² | F24: 2 | G24: =SUMIFS('CPU DESONERADO'!$H:$H,'CPU DESONERADO'!$B:$B,'Planilha Orçamentária Desoner'!$A24,'CPU DESONERADO'!$I:$I,"ss")+SUMIFS('CPU DESONERADO'!$H:$H,'CPU DESONERADO'!$B:$B,'Planilha Orçamentária Desoner'!$A24,'CPU DESONERADO'!$I:$I,"mdo")+SUMIF('Comp SINAPI BA 04-2023 Desoner'!G:G,'Planilha Orçamentária Desoner'!C24,'Comp SINAPI BA 04-2023 Desoner'!K:K)+SUMIF('Ins SINAPI BA 04-2023 Desoner'!A:A,'Planilha Orçamentária Desoner'!C24,'Ins SINAPI BA 04-2023 Desoner'!E:E) -> 442.6459 | H24: 590.9765411 | I24: =F24*H24 -> 1181.953082 | J24: serv | K24: i
A26: 3 | D26: VISITA TÉCNICA NA REGIÃO DA COMPORTA DA TOMADA D’ÁGUA E COMPORTA SEGMENTO | I26: =SUM(I27,I30) -> 93040.41664
A27: 3.1 | D27: Vistoria e laudo da estrutura da região submersa | I27: =SUM(I28:I29) -> 69168.8608 | K27: s
A28: 3.1.1 | B28: PRÓPRIA | C28: CPU.03 | D28: Mobilização da Equipe, Camara Hiperbarica e todos os equipamentos de mergulho envolvidos na operação | E28: un | F28: 1 | G28: =SUMIFS('CPU DESONERADO'!$H:$H,'CPU DESONERADO'!$B:$B,'Planilha Orçamentária Desoner'!$A28,'CPU DESONERADO'!$I:$I,"ss")+SUMIFS('CPU DESONERADO'!$H:$H,'CPU DESONERADO'!$B:$B,'Planilha Orçamentária Desoner'!$A28,'CPU DESONERADO'!$I:$I,"mdo")+SUMIF('Comp SINAPI BA 04-2023 Desoner'!G:G,'Planilha Orçamentária Desoner'!C28,'Comp SINAPI BA 04-2023 Desoner'!K:K)+SUMIF('Ins SINAPI BA 04-2023 Desoner'!A:A,'Planilha Orçamentária Desoner'!C28,'Ins SINAPI BA 04-2023 Desoner'!E:E) -> 41600 | H28: =IF(J28="SERV",G28*(1+$G$5),G28*(1+$G$6)) -> 55540.16 | I28: =F28*H28 -> 55540.16 | J28: serv | K28: i
A29: 3.1.2 | B29: SICRO | C29: 4816024 | D29: Operação de mergulho dependente em profundidade de até 30 m - inclusive descompressão | E29: h | F29: 40 | G29: 255.2 | H29: =IF(J29="SERV",G29*(1+$G$5),G29*(1+$G$6)) -> 340.71752 | I29: =F29*H29 -> 13628.7008 | J29: serv | K29: i
A30: 3.2 | D30: Elaboração de plano para substituição das comportas | I30: =I31 -> 23871.55584 | J30: serv | K30: s
A31: 3.2.1 | B31: PRÓPRIA | C31: CPU.04 | D31: =PROPER("PLANO DE TRABALHO PARA SUBSTITUIÇÃO DA COMPORTA") -> Plano De Trabalho Para Substituição Da Comporta | E31: un | F31: 1 | G31: =SUMIFS('CPU DESONERADO'!$H:$H,'CPU DESONERADO'!$B:$B,'Planilha Orçamentária Desoner'!$A31,'CPU DESONERADO'!$I:$I,"ss")+SUMIFS('CPU DESONERADO'!$H:$H,'CPU DESONERADO'!$B:$B,'Planilha Orçamentária Desoner'!$A31,'CPU DESONERADO'!$I:$I,"mdo")+SUMIF('Comp SINAPI BA 04-2023 Desoner'!G:G,'Planilha Orçamentária Desoner'!C31,'Comp SINAPI BA 04-2023 Desoner'!K:K)+SUMIF('Ins SINAPI BA 04-2023 Desoner'!A:A,'Planilha Orçamentária Desoner'!C31,'Ins SINAPI BA 04-2023 Desoner'!E:E) -> 17879.97591 | H31: =IF(J31="SERV",G31*(1+$G$5),G31*(1+$G$6)) -> 23871.55584 | I31: =F31*H31 -> 23871.55584 | J31: serv | K31: i
A33: 4 | D33: SERVIÇOS AUXILIARES | I33: =SUM(I34:I39) -> 471550.8982 | K33: ss
A34: 4.1 | B34: EMBASA | C34: M089500001 | D34: TUBO PEAD PN80 DE 600MM PN5 | E34: m | F34: 160 | G34: 1553.06 | H34: =IF(J34="SERV",G34*(1+$G$5),G34*(1+$G$6)) -> 2073.490406 | I34: =F34*H34 -> 331758.465 | J34: serv | K34: i
A35: 4.2 | B35: EMBASA | C35: 12.95.65 | D35: ASSENTAMENTO DE TUBO PEAD ACIMA DE DN 630MM | E35: m | F35: 160 | G35: 58.05 | H35: 77.502555 | I35: 12400.4088 | J35: serv | K35: i
A36: 4.3 | B36: EMBASA | C36: M119000504 | D36: CONJUNTO MOTO-BOMBA Q=340M3/H, H=38,5MCA, P=75CV TIPO LEAO S280R-2 OU SIMILAR | E36: cj | F36: 4 | G36: 16327.81 | H36: 21799.25913 | I36: 87197.03652 | J36: serv
A37: 4.4 | B37: EMBASA | C37: 19.01.13 | D37: MONTAGEM E INST. DE CONJUNTO MOTO-BOMBA DE EIXO HORIZONTAL, POTENCIA MAIOR QUE75 ATE 150 CV | E37: un | F37: 4 | G37: 1525.47 | H37: 2036.654997 | I37: =F37*H37 -> 8146.619988 | J37: serv
A38: 4.5 | B38: EMBASA | C38: 19.01.57 | D38: RETIRADA DE CONJ. MOTO BOMBA DE 60 A 100 CV | E38: un | F38: 4 | G38: 276.08 | H38: 368.594408 | I38: =F38*H38 -> 1474.377632 | J38: serv
A39: 4.6 | B39: EMBASA | C39: H019701006 | D39: LOCACAO DE GRUPO GERADOR 240KVA | E39: mês | F39: 5 | G39: 4580.03 | H39: 6114.798053 | I39: 30573.99026 | J39: serv
A41: 5 | D41: SUBSTITUIÇÃO DA COMPORTA | I41: =SUM(I45,I42) -> 1712560.301 | J41: S
A42: 5.1 | D42: Fornecimento das Comportas | I42: =SUM(I43:I44) -> 1274091.705
A43: 5.1.1 | B43: PRÓPRIA | C43: CPU.14 | D43: Comportas ensecadeira (stop-log) em aço carbono com dimensões livres L x H = 1,20 x 1,20 m x Hs= 20,00 m.c.a. x Hconcr. = 20,0 m, a ser operada por viga pescadora (fornecimento) | E43: un | F43: 2 | G43: =SUMIFS('CPU DESONERADO'!$H:$H,'CPU DESONERADO'!$B:$B,'Planilha Orçamentária Desoner'!$A43,'CPU DESONERADO'!$I:$I,"ss")+SUMIFS('CPU DESONERADO'!$H:$H,'CPU DESONERADO'!$B:$B,'Planilha Orçamentária Desoner'!$A43,'CPU DESONERADO'!$I:$I,"mdo")+SUMIF('Comp SINAPI BA 04-2023 Desoner'!G:G,'Planilha Orçamentária Desoner'!C43,'Comp SINAPI BA 04-2023 Desoner'!K:K)+SUMIF('Ins SINAPI BA 04-2023 Desoner'!A:A,'Planilha Orçamentária Desoner'!C43,'Ins SINAPI BA 04-2023 Desoner'!E:E) -> 176785.3567 | H43: =IF(J43="SERV",G43*(1+$G$5),G43*(1+$G$6)) -> 214263.8523 | I43: =F43*H43 -> 428527.7046
A44: 5.1.2 | B44: PRÓPRIA | C44: CPU.15 | D44: Comportas deslizante em construção soldada de chapa de aço inoxidável, com abertura livre de L x H = 1,20 x 1,20 m x Hs = 20,0 m.c.a, x Hconcr. = 20,0 m, com acionamento elétrico (fornecimento) | E44: un | F44: 2 | G44: =SUMIFS('CPU DESONERADO'!$H:$H,'CPU DESONERADO'!$B:$B,'Planilha Orçamentária Desoner'!$A44,'CPU DESONERADO'!$I:$I,"ss")+SUMIFS('CPU DESONERADO'!$H:$H,'CPU DESONERADO'!$B:$B,'Planilha Orçamentária Desoner'!$A44,'CPU DESONERADO'!$I:$I,"mdo")+SUMIF('Comp SINAPI BA 04-2023 Desoner'!G:G,'Planilha Orçamentária Desoner'!C44,'Comp SINAPI BA 04-2023 Desoner'!K:K)+SUMIF('Ins SINAPI BA 04-2023 Desoner'!A:A,'Planilha Orçamentária Desoner'!C44,'Ins SINAPI BA 04-2023 Desoner'!E:E) -> 348830.0333 | H44: =IF(J44="SERV",G44*(1+$G$5),G44*(1+$G$6)) -> 422782.0004 | I44: =F44*H44 -> 845564.0008
A45: 5.2 | D45: Substituição com operação submersa | I45: =SUM(I46:I52) -> 438468.5952 | J45: ss
A46: 5.2.1 | B46: PRÓPRIA | C46: =C28 -> CPU.03 | D46: =D28 -> Mobilização da Equipe, Camara Hiperbarica e todos os equipamentos de mergulho envolvidos na operação | E46: =E28 -> un | F46: 1 | G46: =G28 -> 41600 | H46: =IF(J46="SERV",G46*(1+$G$5),G46*(1+$G$6)) -> 55540.16 | I46: =F46*H46 -> 55540.16 | J46: serv | K46: i
A47: 5.2.2 | B47: PRÓPRIA | C47: CPU.05 | D47: Demolição e transporte do concreto das ranhuras das peças fixas existentes e demolição das peças fixas, compreendendo caminho de deslizamento, peças fixas laterais, soleira e peça fixa frontal. | E47: un | F47: 2 | G47: =SUMIFS('CPU DESONERADO'!$H:$H,'CPU DESONERADO'!$B:$B,'Planilha Orçamentária Desoner'!$A47,'CPU DESONERADO'!$I:$I,"ss")+SUMIFS('CPU DESONERADO'!$H:$H,'CPU DESONERADO'!$B:$B,'Planilha Orçamentária Desoner'!$A47,'CPU DESONERADO'!$I:$I,"mdo")+SUMIF('Comp SINAPI BA 04-2023 Desoner'!G:G,'Planilha Orçamentária Desoner'!C47,'Comp SINAPI BA 04-2023 Desoner'!K:K)+SUMIF('Ins SINAPI BA 04-2023 Desoner'!A:A,'Planilha Orçamentária Desoner'!C47,'Ins SINAPI BA 04-2023 Desoner'!E:E) -> 33649.62912 | H47: =IF(J47="SERV",G47*(1+$G$5),G47*(1+$G$6)) -> 44925.61984 | I47: =F47*H47 -> 89851.23968 | J47: serv
A48: 5.2.3 | B48: PRÓPRIA | C48: CPU.06 | D48: Preparação das ranhuras para receber as novas peças fixas | E48: un | F48: 2 | G48: =SUMIFS('CPU DESONERADO'!$H:$H,'CPU DESONERADO'!$B:$B,'Planilha Orçamentária Desoner'!$A48,'CPU DESONERADO'!$I:$I,"ss")+SUMIFS('CPU DESONERADO'!$H:$H,'CPU DESONERADO'!$B:$B,'Planilha Orçamentária Desoner'!$A48,'CPU DESONERADO'!$I:$I,"mdo")+SUMIF('Comp SINAPI BA 04-2023 Desoner'!G:G,'Planilha Orçamentária Desoner'!C48,'Comp SINAPI BA 04-2023 Desoner'!K:K)+SUMIF('Ins SINAPI BA 04-2023 Desoner'!A:A,'Planilha Orçamentária Desoner'!C48,'Ins SINAPI BA 04-2023 Desoner'!E:E) -> 37124.06827 | H48: =IF(J48="SERV",G48*(1+$G$5),G48*(1+$G$6)) -> 49564.34354 | I48: 99128.68709 | J48: serv
A49: 5.2.4 | B49: PRÓPRIA | C49: CPU.07 | D49: Montagem das novas peças fixas | E49: un | F49: 2 | G49: =SUMIFS('CPU DESONERADO'!$H:$H,'CPU DESONERADO'!$B:$B,'Planilha Orçamentária Desoner'!$A49,'CPU DESONERADO'!$I:$I,"ss")+SUMIFS('CPU DESONERADO'!$H:$H,'CPU DESONERADO'!$B:$B,'Planilha Orçamentária Desoner'!$A49,'CPU DESONERADO'!$I:$I,"mdo")+SUMIF('Comp SINAPI BA 04-2023 Desoner'!G:G,'Planilha Orçamentária Desoner'!C49,'Comp SINAPI BA 04-2023 Desoner'!K:K)+SUMIF('Ins SINAPI BA 04-2023 Desoner'!A:A,'Planilha Orçamentária Desoner'!C49,'Ins SINAPI BA 04-2023 Desoner'!E:E) -> 39502.90827 | H49: 52740.33283 | I49: 105480.6657 | J49: serv
A50: 5.2.5 | B50: PRÓPRIA | C50: CPU.08 | D50: Concretagem das novas peças fixas | E50: un | F50: 2 | G50: =SUMIFS('CPU DESONERADO'!$H:$H,'CPU DESONERADO'!$B:$B,'Planilha Orçamentária Desoner'!$A50,'CPU DESONERADO'!$I:$I,"ss")+SUMIFS('CPU DESONERADO'!$H:$H,'CPU DESONERADO'!$B:$B,'Planilha Orçamentária Desoner'!$A50,'CPU DESONERADO'!$I:$I,"mdo")+SUMIF('Comp SINAPI BA 04-2023 Desoner'!G:G,'Planilha Orçamentária Desoner'!C50,'Comp SINAPI BA 04-2023 Desoner'!K:K)+SUMIF('Ins SINAPI BA 04-2023 Desoner'!A:A,'Planilha Orçamentária Desoner'!C50,'Ins SINAPI BA 04-2023 Desoner'!E:E) -> 31704.70177 | H50: 42328.94733 | I50: 84657.89466 | J50: serv
A51: 5.2.6 | B51: PRÓPRIA | C51: CPU.09 | D51: Realização de teste de comissionamento da comporta - verificação das peças fixas | E51: un | F51: 2 | G51: =SUMIFS('CPU DESONERADO'!$H:$H,'CPU DESONERADO'!$B:$B,'Planilha Orçamentária Desoner'!$A51,'CPU DESONERADO'!$I:$I,"ss")+SUMIFS('CPU DESONERADO'!$H:$H,'CPU DESONERADO'!$B:$B,'Planilha Orçamentária Desoner'!$A51,'CPU DESONERADO'!$I:$I,"mdo")+SUMIF('Comp SINAPI BA 04-2023 Desoner'!G:G,'Planilha Orçamentária Desoner'!C51,'Comp SINAPI BA 04-2023 Desoner'!K:K)+SUMIF('Ins SINAPI BA 04-2023 Desoner'!A:A,'Planilha Orçamentária Desoner'!C51,'Ins SINAPI BA 04-2023 Desoner'!E:E) -> 713.42 | H51: 952.487042 | I51: 1904.974084 | J51: serv
A52: 5.2.7 | B52: PRÓPRIA | C52: CPU.10 | D52: Realização de teste de comissionamento da comporta - operação com água | E52: un | F52: 2 | G52: =SUMIFS('CPU DESONERADO'!$H:$H,'CPU DESONERADO'!$B:$B,'Planilha Orçamentária Desoner'!$A52,'CPU DESONERADO'!$I:$I,"ss")+SUMIFS('CPU DESONERADO'!$H:$H,'CPU DESONERADO'!$B:$B,'Planilha Orçamentária Desoner'!$A52,'CPU DESONERADO'!$I:$I,"mdo")+SUMIF('Comp SINAPI BA 04-2023 Desoner'!G:G,'Planilha Orçamentária Desoner'!C52,'Comp SINAPI BA 04-2023 Desoner'!K:K)+SUMIF('Ins SINAPI BA 04-2023 Desoner'!A:A,'Planilha Orçamentária Desoner'!C52,'Ins SINAPI BA 04-2023 Desoner'!E:E) -> 713.42 | H52: 952.487042 | I52: 1904.974084 | J52: serv
A54: 6 | D54: =UPPER("Casa de máquina, galeria e tomada d'água") -> CASA DE MÁQUINA, GALERIA E TOMADA D'ÁGUA | I54: =SUM(I55,I74) -> 117135.3487
A55: 6.1 | D55: Manutenção e Recuperação civis | I55: =SUM(I56:I73) -> 108457.4474
A56: 6.1.1 | B56: SINAPI | C56: 99814 | D56: =PROPER(IF(J56="i",VLOOKUP(C56,'Ins SINAPI BA 05-2023 Onerado'!$A$8:$E$5189,2,0),VLOOKUP(C56,'Comp SINAPI BA 05-2023 Onerado'!$G$7:$K$6879,2,0))) -> Limpeza De Superfície Com Jato De Alta Pressão. Af_04/2019 | E56: =LOWER(IF(J56="i",VLOOKUP(C56,'Ins SINAPI BA 04-2023 Desoner'!$A$8:$E$5189,3,0),VLOOKUP(C56,'Comp SINAPI BA 04-2023 Desoner'!$G$7:$K$7500,3,0))) -> m2 | F56: 484.1 | G56: =SUMIFS('CPU DESONERADO'!$H:$H,'CPU DESONERADO'!$B:$B,'Planilha Orçamentária Desoner'!$A56,'CPU DESONERADO'!$I:$I,"ss")+SUMIFS('CPU DESONERADO'!$H:$H,'CPU DESONERADO'!$B:$B,'Planilha Orçamentária Desoner'!$A56,'CPU DESONERADO'!$I:$I,"mdo")+SUMIF('Comp SINAPI BA 04-2023 Desoner'!G:G,'Planilha Orçamentária Desoner'!C56,'Comp SINAPI BA 04-2023 Desoner'!K:K)+SUMIF('Ins SINAPI BA 04-2023 Desoner'!A:A,'Planilha Orçamentária Desoner'!C56,'Ins SINAPI BA 04-2023 Desoner'!E:E) -> 1.81 | H56: =IF(J56="SERV",G56*(1+$G$5),G56*(1+$G$6)) -> 2.416531 | I56: =F56*H56 -> 1169.842657 | J56: serv
A57: 6.1.2 | B57: SINAPI ADAPTADO | C57: 100728 | D57: PINTURA COM TINTA EPOXÍDICA (BASEADO SINAPI 100728) | E57: =LOWER(IF(J57="i",VLOOKUP(C57,'Ins SINAPI BA 04-2023 Desoner'!$A$8:$E$5189,3,0),VLOOKUP(C57,'Comp SINAPI BA 04-2023 Desoner'!$G$7:$K$7500,3,0))) -> m2 | F57: 486.1 | G57: =SUMIFS('CPU DESONERADO'!$H:$H,'CPU DESONERADO'!$B:$B,'Planilha Orçamentária Desoner'!$A57,'CPU DESONERADO'!$I:$I,"ss")+SUMIFS('CPU DESONERADO'!$H:$H,'CPU DESONERADO'!$B:$B,'Planilha Orçamentária Desoner'!$A57,'CPU DESONERADO'!$I:$I,"mdo")+SUMIF('Comp SINAPI BA 04-2023 Desoner'!G:G,'Planilha Orçamentária Desoner'!C57,'Comp SINAPI BA 04-2023 Desoner'!K:K)+SUMIF('Ins SINAPI BA 04-2023 Desoner'!A:A,'Planilha Orçamentária Desoner'!C57,'Ins SINAPI BA 04-2023 Desoner'!E:E) -> 23.67 | H57: 31.601817 | I57: =F57*H57 -> 15361.64324 | J57: serv
A58: 6.1.3 | B58: SINAPI | C58: 98553 | D58: =PROPER(IF(J58="i",VLOOKUP(C58,'Ins SINAPI BA 05-2023 Onerado'!$A$8:$E$5189,2,0),VLOOKUP(C58,'Comp SINAPI BA 05-2023 Onerado'!$G$7:$K$6879,2,0))) -> Impermeabilização De Superfície Com Membrana À Base De Poliuretano, 2 Demãos. Af_06/2018 | E58: =LOWER(IF(J58="i",VLOOKUP(C58,'Ins SINAPI BA 04-2023 Desoner'!$A$8:$E$5189,3,0),VLOOKUP(C58,'Comp SINAPI BA 04-2023 Desoner'!$G$7:$K$7500,3,0))) -> m2 | F58: 485.1 | G58: =SUMIFS('CPU DESONERADO'!$H:$H,'CPU DESONERADO'!$B:$B,'Planilha Orçamentária Desoner'!$A58,'CPU DESONERADO'!$I:$I,"ss")+SUMIFS('CPU DESONERADO'!$H:$H,'CPU DESONERADO'!$B:$B,'Planilha Orçamentária Desoner'!$A58,'CPU DESONERADO'!$I:$I,"mdo")+SUMIF('Comp SINAPI BA 04-2023 Desoner'!G:G,'Planilha Orçamentária Desoner'!C58,'Comp SINAPI BA 04-2023 Desoner'!K:K)+SUMIF('Ins SINAPI BA 04-2023 Desoner'!A:A,'Planilha Orçamentária Desoner'!C58,'Ins SINAPI BA 04-2023 Desoner'!E:E) -> 127.21 | H58: =IF(J58="SERV",G58*(1+$G$5),G58*(1+$G$6)) -> 169.838071 | I58: =F58*H58 -> 82388.44824 | J58: serv
A59: 6.1.4 | B59: SINAPI | C59: 88497 | D59: =PROPER(IF(J59="i",VLOOKUP(C59,'Ins SINAPI BA 05-2023 Onerado'!$A$8:$E$5189,2,0),VLOOKUP(C59,'Comp SINAPI BA 05-2023 Onerado'!$G$7:$K$6879,2,0))) -> Emassamento Com Massa Látex, Aplicação Em Parede, Duas Demãos, Lixamento Manual. Af_04/2023 | E59: =LOWER(IF(J59="i",VLOOKUP(C59,'Ins SINAPI BA 04-2023 Desoner'!$A$8:$E$5189,3,0),VLOOKUP(C59,'Comp SINAPI BA 04-2023 Desoner'!$G$7:$K$7500,3,0))) -> m2 | F59: 93.7 | G59: =SUMIFS('CPU DESONERADO'!$H:$H,'CPU DESONERADO'!$B:$B,'Planilha Orçamentária Desoner'!$A59,'CPU DESONERADO'!$I:$I,"ss")+SUMIFS('CPU DESONERADO'!$H:$H,'CPU DESONERADO'!$B:$B,'Planilha Orçamentária Desoner'!$A59,'CPU DESONERADO'!$I:$I,"mdo")+SUMIF('Comp SINAPI BA 04-2023 Desoner'!G:G,'Planilha Orçamentária Desoner'!C59,'Comp SINAPI BA 04-2023 Desoner'!K:K)+SUMIF('Ins SINAPI BA 04-2023 Desoner'!A:A,'Planilha Orçamentária Desoner'!C59,'Ins SINAPI BA 04-2023 Desoner'!E:E) -> 16.98 | H59: 22.669998 | I59: 2124.178813 | J59: serv
A60: 6.1.5 | B60: SINAPI | C60: 88489 | D60: =PROPER(IF(J60="i",VLOOKUP(C60,'Ins SINAPI BA 05-2023 Onerado'!$A$8:$E$5189,2,0),VLOOKUP(C60,'Comp SINAPI BA 05-2023 Onerado'!$G$7:$K$6879,2,0))) -> Pintura Látex Acrílica Premium, Aplicação Manual Em Paredes, Duas Demãos. Af_04/2023 | E60: =LOWER(IF(J60="i",VLOOKUP(C60,'Ins SINAPI BA 04-2023 Desoner'!$A$8:$E$5189,3,0),VLOOKUP(C60,'Comp SINAPI BA 04-2023 Desoner'!$G$7:$K$7500,3,0))) -> m2 | F60: 93.7 | G60: =SUMIFS('CPU DESONERADO'!$H:$H,'CPU DESONERADO'!$B:$B,'Planilha Orçamentária Desoner'!$A60,'CPU DESONERADO'!$I:$I,"ss")+SUMIFS('CPU DESONERADO'!$H:$H,'CPU DESONERADO'!$B:$B,'Planilha Orçamentária Desoner'!$A60,'CPU DESONERADO'!$I:$I,"mdo")+SUMIF('Comp SINAPI BA 04-2023 Desoner'!G:G,'Planilha Orçamentária Desoner'!C60,'Comp SINAPI BA 04-2023 Desoner'!K:K)+SUMIF('Ins SINAPI BA 04-2023 Desoner'!A:A,'Planilha Orçamentária Desoner'!C60,'Ins SINAPI BA 04-2023 Desoner'!E:E) -> 11.24 | H60: 15.006524 | I60: 1406.111299 | J60: serv
A61: 6.1.6 | B61: SINAPI | C61: 94570 | D61: =PROPER(IF(J61="i",VLOOKUP(C61,'Ins SINAPI BA 05-2023 Onerado'!$A$8:$E$5189,2,0),VLOOKUP(C61,'Comp SINAPI BA 05-2023 Onerado'!$G$7:$K$6879,2,0))) -> Janela De Alumínio De Correr Com 2 Folhas Para Vidros, Com Vidros, Batente, Acabamento Com Acetato Ou Brilhante E Ferragens. Exclusive Alizar E Contramarco. Fornecimento E Instalação. Af_12/2019 | E61: =LOWER(IF(J61="i",VLOOKUP(C61,'Ins SINAPI BA 04-2023 Desoner'!$A$8:$E$5189,3,0),VLOOKUP(C61,'Comp SINAPI BA 04-2023 Desoner'!$G$7:$K$7500,3,0))) -> m2 | F61: 3.9 | G61: =SUMIFS('CPU DESONERADO'!$H:$H,'CPU DESONERADO'!$B:$B,'Planilha Orçamentária Desoner'!$A61,'CPU DESONERADO'!$I:$I,"ss")+SUMIFS('CPU DESONERADO'!$H:$H,'CPU DESONERADO'!$B:$B,'Planilha Orçamentária Desoner'!$A61,'CPU DESONERADO'!$I:$I,"mdo")+SUMIF('Comp SINAPI BA 04-2023 Desoner'!G:G,'Planilha Orçamentária Desoner'!C61,'Comp SINAPI BA 04-2023 Desoner'!K:K)+SUMIF('Ins SINAPI BA 04-2023 Desoner'!A:A,'Planilha Orçamentária Desoner'!C61,'Ins SINAPI BA 04-2023 Desoner'!E:E) -> 216.53 | H61: 289.089203 | I61: 1127.447892 | J61: serv
A62: 6.1.7 | B62: SINAPI | C62: 100702 | D62: =PROPER(IF(J62="i",VLOOKUP(C62,'Ins SINAPI BA 05-2023 Onerado'!$A$8:$E$5189,2,0),VLOOKUP(C62,'Comp SINAPI BA 05-2023 Onerado'!$G$7:$K$6879,2,0))) -> Porta De Correr De Alumínio, Com Duas Folhas Para Vidro, Incluso Vidro Liso Incolor, Fechadura E Puxador, Sem Alizar. Af_12/2019 | E62: =LOWER(IF(J62="i",VLOOKUP(C62,'Ins SINAPI BA 04-2023 Desoner'!$A$8:$E$5189,3,0),VLOOKUP(C62,'Comp SINAPI BA 04-2023 Desoner'!$G$7:$K$7500,3,0))) -> m2 | F62: 2.52 | G62: =SUMIFS('CPU DESONERADO'!$H:$H,'CPU DESONERADO'!$B:$B,'Planilha Orçamentária Desoner'!$A62,'CPU DESONERADO'!$I:$I,"ss")+SUMIFS('CPU DESONERADO'!$H:$H,'CPU DESONERADO'!$B:$B,'Planilha Orçamentária Desoner'!$A62,'CPU DESONERADO'!$I:$I,"mdo")+SUMIF('Comp SINAPI BA 04-2023 Desoner'!G:G,'Planilha Orçamentária Desoner'!C62,'Comp SINAPI BA 04-2023 Desoner'!K:K)+SUMIF('Ins SINAPI BA 04-2023 Desoner'!A:A,'Planilha Orçamentária Desoner'!C62,'Ins SINAPI BA 04-2023 Desoner'!E:E) -> 357.06 | H62: 476.710806 | I62: 1201.311231 | J62: serv
A63: 6.1.8 | B63: SINAPI | C63: 101878 | D63: =PROPER(IF(J63="i",VLOOKUP(C63,'Ins SINAPI BA 05-2023 Onerado'!$A$8:$E$5189,2,0),VLOOKUP(C63,'Comp SINAPI BA 05-2023 Onerado'!$G$7:$K$6879,2,0))) -> Quadro De Distribuição De Energia Em Chapa De Aço Galvanizado, De Sobrepor, Com Barramento Trifásico, Para 18 Disjuntores Din 100A - Fornecimento E Instalação. Af_10/2020 | E63: =LOWER(IF(J63="i",VLOOKUP(C63,'Ins SINAPI BA 04-2023 Desoner'!$A$8:$E$5189,3,0),VLOOKUP(C63,'Comp SINAPI BA 04-2023 Desoner'!$G$7:$K$7500,3,0))) -> un | F63: 1 | G63: =SUMIFS('CPU DESONERADO'!$H:$H,'CPU DESONERADO'!$B:$B,'Planilha Orçamentária Desoner'!$A63,'CPU DESONERADO'!$I:$I,"ss")+SUMIFS('CPU DESONERADO'!$H:$H,'CPU DESONERADO'!$B:$B,'Planilha Orçamentária Desoner'!$A63,'CPU DESONERADO'!$I:$I,"mdo")+SUMIF('Comp SINAPI BA 04-2023 Desoner'!G:G,'Planilha Orçamentária Desoner'!C63,'Comp SINAPI BA 04-2023 Desoner'!K:K)+SUMIF('Ins SINAPI BA 04-2023 Desoner'!A:A,'Planilha Orçamentária Desoner'!C63,'Ins SINAPI BA 04-2023 Desoner'!E:E) -> 564.17 | H63: 753.223367 | I63: 753.223367 | J63: serv
A64: 6.1.9 | B64: SINAPI | C64: 93671 | D64: =PROPER(IF(J64="i",VLOOKUP(C64,'Ins SINAPI BA 05-2023 Onerado'!$A$8:$E$5189,2,0),VLOOKUP(C64,'Comp SINAPI BA 05-2023 Onerado'!$G$7:$K$6879,2,0))) -> Disjuntor Tripolar Tipo Din, Corrente Nominal De 32A - Fornecimento E Instalação. Af_10/2020 | E64: =LOWER(IF(J64="i",VLOOKUP(C64,'Ins SINAPI BA 04-2023 Desoner'!$A$8:$E$5189,3,0),VLOOKUP(C64,'Comp SINAPI BA 04-2023 Desoner'!$G$7:$K$7500,3,0))) -> un | F64: 5 | G64: =SUMIFS('CPU DESONERADO'!$H:$H,'CPU DESONERADO'!$B:$B,'Planilha Orçamentária Desoner'!$A64,'CPU DESONERADO'!$I:$I,"ss")+SUMIFS('CPU DESONERADO'!$H:$H,'CPU DESONERADO'!$B:$B,'Planilha Orçamentária Desoner'!$A64,'CPU DESONERADO'!$I:$I,"mdo")+SUMIF('Comp SINAPI BA 04-2023 Desoner'!G:G,'Planilha Orçamentária Desoner'!C64,'Comp SINAPI BA 04-2023 Desoner'!K:K)+SUMIF('Ins SINAPI BA 04-2023 Desoner'!A:A,'Planilha Orçamentária Desoner'!C64,'Ins SINAPI BA 04-2023 Desoner'!E:E) -> 73.1 | H64: 97.59581 | I64: 487.97905 | J64: serv
A65: 6.1.10 | B65: SINAPI | C65: 93655 | D65: =PROPER(IF(J65="i",VLOOKUP(C65,'Ins SINAPI BA 05-2023 Onerado'!$A$8:$E$5189,2,0),VLOOKUP(C65,'Comp SINAPI BA 05-2023 Onerado'!$G$7:$K$6879,2,0))) -> Disjuntor Monopolar Tipo Din, Corrente Nominal De 20A - Fornecimento E Instalação. Af_10/2020 | E65: =LOWER(IF(J65="i",VLOOKUP(C65,'Ins SINAPI BA 04-2023 Desoner'!$A$8:$E$5189,3,0),VLOOKUP(C65,'Comp SINAPI BA 04-2023 Desoner'!$G$7:$K$7500,3,0))) -> un | F65: 6 | G65: =SUMIFS('CPU DESONERADO'!$H:$H,'CPU DESONERADO'!$B:$B,'Planilha Orçamentária Desoner'!$A65,'CPU DESONERADO'!$I:$I,"ss")+SUMIFS('CPU DESONERADO'!$H:$H,'CPU DESONERADO'!$B:$B,'Planilha Orçamentária Desoner'!$A65,'CPU DESONERADO'!$I:$I,"mdo")+SUMIF('Comp SINAPI BA 04-2023 Desoner'!G:G,'Planilha Orçamentária Desoner'!C65,'Comp SINAPI BA 04-2023 Desoner'!K:K)+SUMIF('Ins SINAPI BA 04-2023 Desoner'!A:A,'Planilha Orçamentária Desoner'!C65,'Ins SINAPI BA 04-2023 Desoner'!E:E) -> 12.31 | H65: 16.435081 | I65: 98.610486 | J65: serv
A66: 6.1.11 | B66: SINAPI | C66: 93654 | D66: =PROPER(IF(J66="i",VLOOKUP(C66,'Ins SINAPI BA 05-2023 Onerado'!$A$8:$E$5189,2,0),VLOOKUP(C66,'Comp SINAPI BA 05-2023 Onerado'!$G$7:$K$6879,2,0))) -> Disjuntor Monopolar Tipo Din, Corrente Nominal De 16A - Fornecimento E Instalação. Af_10/2020 | E66: =LOWER(IF(J66="i",VLOOKUP(C66,'Ins SINAPI BA 04-2023 Desoner'!$A$8:$E$5189,3,0),VLOOKUP(C66,'Comp SINAPI BA 04-2023 Desoner'!$G$7:$K$7500,3,0))) -> un | F66: 4 | G66: =SUMIFS('CPU DESONERADO'!$H:$H,'CPU DESONERADO'!$B:$B,'Planilha Orçamentária Desoner'!$A66,'CPU DESONERADO'!$I:$I,"ss")+SUMIFS('CPU DESONERADO'!$H:$H,'CPU DESONERADO'!$B:$B,'Planilha Orçamentária Desoner'!$A66,'CPU DESONERADO'!$I:$I,"mdo")+SUMIF('Comp SINAPI BA 04-2023 Desoner'!G:G,'Planilha Orçamentária Desoner'!C66,'Comp SINAPI BA 04-2023 Desoner'!K:K)+SUMIF('Ins SINAPI BA 04-2023 Desoner'!A:A,'Planilha Orçamentária Desoner'!C66,'Ins SINAPI BA 04-2023 Desoner'!E:E) -> 11.13 | H66: 14.859663 | I66: 59.438652 | J66: serv
A67: 6.1.12 | B67: SINAPI | C67: 89957 | D67: =PROPER(IF(J67="i",VLOOKUP(C67,'Ins SINAPI BA 05-2023 Onerado'!$A$8:$E$5189,2,0),VLOOKUP(C67,'Comp SINAPI BA 05-2023 Onerado'!$G$7:$K$6879,2,0))) -> Ponto De Consumo Terminal De Água Fria (Subramal) Com Tubulação De Pvc, Dn 25 Mm, Instalado Em Ramal De Água, Inclusos Rasgo E Chumbamento Em Alvenaria. Af_12/2014 | E67: =LOWER(IF(J67="i",VLOOKUP(C67,'Ins SINAPI BA 04-2023 Desoner'!$A$8:$E$5189,3,0),VLOOKUP(C67,'Comp SINAPI BA 04-2023 Desoner'!$G$7:$K$7500,3,0))) -> un | F67: 1 | G67: =SUMIFS('CPU DESONERADO'!$H:$H,'CPU DESONERADO'!$B:$B,'Planilha Orçamentária Desoner'!$A67,'CPU DESONERADO'!$I:$I,"ss")+SUMIFS('CPU DESONERADO'!$H:$H,'CPU DESONERADO'!$B:$B,'Planilha Orçamentária Desoner'!$A67,'CPU DESONERADO'!$I:$I,"mdo")+SUMIF('Comp SINAPI BA 04-2023 Desoner'!G:G,'Planilha Orçamentária Desoner'!C67,'Comp SINAPI BA 04-2023 Desoner'!K:K)+SUMIF('Ins SINAPI BA 04-2023 Desoner'!A:A,'Planilha Orçamentária Desoner'!C67,'Ins SINAPI BA 04-2023 Desoner'!E:E) -> 142.65 | H67: 190.452015 | I67: 190.452015 | J67: serv
A68: 6.1.13 | B68: PRÓPRIA | C68: CPU.11 | D68: PONTO COM CONDULETE 1" | E68: =CPU!E173 -> un | F68: 2 | G68: =SUMIFS('CPU DESONERADO'!$H:$H,'CPU DESONERADO'!$B:$B,'Planilha Orçamentária Desoner'!$A68,'CPU DESONERADO'!$I:$I,"ss")+SUMIFS('CPU DESONERADO'!$H:$H,'CPU DESONERADO'!$B:$B,'Planilha Orçamentária Desoner'!$A68,'CPU DESONERADO'!$I:$I,"mdo")+SUMIF('Comp SINAPI BA 04-2023 Desoner'!G:G,'Planilha Orçamentária Desoner'!C68,'Comp SINAPI BA 04-2023 Desoner'!K:K)+SUMIF('Ins SINAPI BA 04-2023 Desoner'!A:A,'Planilha Orçamentária Desoner'!C68,'Ins SINAPI BA 04-2023 Desoner'!E:E) -> 324.14447 | H68: 432.7652819 | I68: 865.5305638 | J68: serv
A69: 6.1.14 | B69: PRÓPRIA | C69: CPU.12 | D69: PONTO DE ÁGUA FRIA PARA TANQUE COM MAT. ABAS./ESGOTAMENTO | E69: =CPU!E190 -> un | F69: 1 | G69: =SUMIFS('CPU DESONERADO'!$H:$H,'CPU DESONERADO'!$B:$B,'Planilha Orçamentária Desoner'!$A69,'CPU DESONERADO'!$I:$I,"ss")+SUMIFS('CPU DESONERADO'!$H:$H,'CPU DESONERADO'!$B:$B,'Planilha Orçamentária Desoner'!$A69,'CPU DESONERADO'!$I:$I,"mdo")+SUMIF('Comp SINAPI BA 04-2023 Desoner'!G:G,'Planilha Orçamentária Desoner'!C69,'Comp SINAPI BA 04-2023 Desoner'!K:K)+SUMIF('Ins SINAPI BA 04-2023 Desoner'!A:A,'Planilha Orçamentária Desoner'!C69,'Ins SINAPI BA 04-2023 Desoner'!E:E) -> 607.54984 | H69: 811.1397914 | I69: 811.1397914 | J69: serv
A70: 6.1.15 | B70: SINAPI | C70: 104473 | D70: =PROPER(IF(J70="i",VLOOKUP(C70,'Ins SINAPI BA 05-2023 Onerado'!$A$8:$E$5189,2,0),VLOOKUP(C70,'Comp SINAPI BA 05-2023 Onerado'!$G$7:$K$7500,2,0))) -> Composição Paramétrica De Ponto Elétrico De Iluminação, Com Interruptor Simples, Em Edifício Residencial Com Eletroduto Embutido Em Rasgos Nas Paredes, Incluso Tomada, Eletroduto, Cabo, Rasgo E Chumbamento (Sem Luminária E Lâmpada). Af_11/2022 | E70: =LOWER(IF(J70="i",VLOOKUP(C70,'Ins SINAPI BA 04-2023 Desoner'!$A$8:$E$5189,3,0),VLOOKUP(C70,'Comp SINAPI BA 04-2023 Desoner'!$G$7:$K$7500,3,0))) -> un | F70: 1 | G70: =SUMIFS('CPU DESONERADO'!$H:$H,'CPU DESONERADO'!$B:$B,'Planilha Orçamentária Desoner'!$A70,'CPU DESONERADO'!$I:$I,"ss")+SUMIFS('CPU DESONERADO'!$H:$H,'CPU DESONERADO'!$B:$B,'Planilha Orçamentária Desoner'!$A70,'CPU DESONERADO'!$I:$I,"mdo")+SUMIF('Comp SINAPI BA 04-2023 Desoner'!G:G,'Planilha Orçamentária Desoner'!C70,'Comp SINAPI BA 04-2023 Desoner'!K:K)+SUMIF('Ins SINAPI BA 04-2023 Desoner'!A:A,'Planilha Orçamentária Desoner'!C70,'Ins SINAPI BA 04-2023 Desoner'!E:E) -> 151.54 | H70: 202.321054 | I70: 202.321054 | J70: serv
A71: 6.1.16 | B71: SICRO | C71: 1600408 | D71: Apicoamento manual de concreto | E71: m² | F71: 2.88 | G71: 16.15 | H71: 21.561865 | I71: 62.0981712 | J71: serv
A72: 6.1.17 | B72: SINAPI | C72: 100717 | D72: =PROPER(IF(J72="i",VLOOKUP(C72,'Ins SINAPI BA 05-2023 Onerado'!$A$8:$E$5189,2,0),VLOOKUP(C72,'Comp SINAPI BA 05-2023 Onerado'!$G$7:$K$7500,2,0))) -> Lixamento Manual Em Superfícies Metálicas Em Obra. Af_01/2020 | E72: =LOWER(IF(J72="i",VLOOKUP(C72,'Ins SINAPI BA 04-2023 Desoner'!$A$8:$E$5189,3,0),VLOOKUP(C72,'Comp SINAPI BA 04-2023 Desoner'!$G$7:$K$7500,3,0))) -> m2 | F72: 2.88 | G72: =SUMIFS('CPU DESONERADO'!$H:$H,'CPU DESONERADO'!$B:$B,'Planilha Orçamentária Desoner'!$A72,'CPU DESONERADO'!$I:$I,"ss")+SUMIFS('CPU DESONERADO'!$H:$H,'CPU DESONERADO'!$B:$B,'Planilha Orçamentária Desoner'!$A72,'CPU DESONERADO'!$I:$I,"mdo")+SUMIF('Comp SINAPI BA 04-2023 Desoner'!G:G,'Planilha Orçamentária Desoner'!C72,'Comp SINAPI BA 04-2023 Desoner'!K:K)+SUMIF('Ins SINAPI BA 04-2023 Desoner'!A:A,'Planilha Orçamentária Desoner'!C72,'Ins SINAPI BA 04-2023 Desoner'!E:E) -> 9.52 | H72: 12.710152 | I72: 36.60523776 | J72: serv
A73: 6.1.18 | B73: PRÓPRIA | C73: CPU.13 | D73: PINTURA ESMALTE 2 DEMAOS CAIXILHO DE FERRO C/ MASSA E ZARCAO | E73: =CPU!E207 -> un | F73: 2.88 | G73: =SUMIFS('CPU DESONERADO'!$H:$H,'CPU DESONERADO'!$B:$B,'Planilha Orçamentária Desoner'!$A73,'CPU DESONERADO'!$I:$I,"ss")+SUMIFS('CPU DESONERADO'!$H:$H,'CPU DESONERADO'!$B:$B,'Planilha Orçamentária Desoner'!$A73,'CPU DESONERADO'!$I:$I,"mdo")+SUMIF('Comp SINAPI BA 04-2023 Desoner'!G:G,'Planilha Orçamentária Desoner'!C73,'Comp SINAPI BA 04-2023 Desoner'!K:K)+SUMIF('Ins SINAPI BA 04-2023 Desoner'!A:A,'Planilha Orçamentária Desoner'!C73,'Ins SINAPI BA 04-2023 Desoner'!E:E) -> 28.88506 | H73: 38.56444361 | I73: 111.0655976 | J73: serv
A74: 6.2 | D74: Demolição e construção das coroas de concreto | I74: =SUM(I75:I77) -> 8677.901378
A75: 6.2.1 | B75: PRÓPRIA | C75: CPU.16 | D75: CONCRETO USINADO CONVENCIONAL 25,0MPa PARA CINTAS/VIGAS | E75: =CPU!E219 -> m³ | F75: 0.144 | G75: =SUMIFS('CPU DESONERADO'!$H:$H,'CPU DESONERADO'!$B:$B,'Planilha Orçamentária Desoner'!$A75,'CPU DESONERADO'!$I:$I,"ss")+SUMIFS('CPU DESONERADO'!$H:$H,'CPU DESONERADO'!$B:$B,'Planilha Orçamentária Desoner'!$A75,'CPU DESONERADO'!$I:$I,"mdo")+SUMIF('Comp SINAPI BA 04-2023 Desoner'!G:G,'Planilha Orçamentária Desoner'!C75,'Comp SINAPI BA 04-2023 Desoner'!K:K)+SUMIF('Ins SINAPI BA 04-2023 Desoner'!A:A,'Planilha Orçamentária Desoner'!C75,'Ins SINAPI BA 04-2023 Desoner'!E:E) -> 660.14042 | H75: 881.3534747 | I75: 126.9149004 | J75: serv
A76: 6.2.2 | B76: SICRO | C76: 1600438 | D76: Demolição de concreto armado | E76: m³ | F76: 2.232 | G76: 520.48 | H76: 694.892848 | I76: 1551.000837 | J76: serv
A77: 6.2.3 | B77: ORSE | C77: 7369 | D77: Concreto Armado fck=30,0MPa, usinado, bombeado, adensado e lançado, para uso Geral, com formas planas em compensado resinado 12mm (05 usos) | E77: m³ | F77: 2.23 | G77: =2351.14 -> 2351.14 | H77: 3139.007014 | I77: 6999.985641 | J77: serv
A79: 7 | D79: CASA DE VÁLVULAS | I79: =SUM(I80) -> 3380.254511 | K79: ss
A80: 7.1 | D80: Estrutura | I80: =SUM(I81:I83) -> 3380.254511 | K80: s
A81: 7.1.1 | B81: SINAPI | C81: 100701 | D81: =PROPER(IF(J81="i",VLOOKUP(C81,'Ins SINAPI BA 05-2023 Onerado'!$A$8:$E$5189,2,0),VLOOKUP(C81,'Comp SINAPI BA 05-2023 Onerado'!$G$7:$K$6879,2,0))) -> Porta De Ferro, De Abrir, Tipo Grade Com Chapa, Com Guarnições. Af_12/2019 | E81: =LOWER(IF(J81="i",VLOOKUP(C81,'Ins SINAPI BA 05-2023 Onerado'!$A$8:$E$5189,3,0),VLOOKUP(C81,'Comp SINAPI BA 05-2023 Onerado'!$G$7:$K$6879,3,0))) -> m2 | F81: 1.68 | G81: =SUMIFS('CPU DESONERADO'!$H:$H,'CPU DESONERADO'!$B:$B,'Planilha Orçamentária Desoner'!$A81,'CPU DESONERADO'!$I:$I,"ss")+SUMIFS('CPU DESONERADO'!$H:$H,'CPU DESONERADO'!$B:$B,'Planilha Orçamentária Desoner'!$A81,'CPU DESONERADO'!$I:$I,"mdo")+SUMIF('Comp SINAPI BA 04-2023 Desoner'!G:G,'Planilha Orçamentária Desoner'!C81,'Comp SINAPI BA 04-2023 Desoner'!K:K)+SUMIF('Ins SINAPI BA 04-2023 Desoner'!A:A,'Planilha Orçamentária Desoner'!C81,'Ins SINAPI BA 04-2023 Desoner'!E:E) -> 444.26 | H81: =IF(J81="SERV",G81*(1+$G$5),G81*(1+$G$6)) -> 593.131526 | I81: =F81*H81 -> 996.4609637 | J81: serv | K81: i
A82: 7.1.2 | B82: SINAPI | C82: 88497 | D82: =PROPER(IF(J82="i",VLOOKUP(C82,'Ins SINAPI BA 05-2023 Onerado'!$A$8:$E$5189,2,0),VLOOKUP(C82,'Comp SINAPI BA 05-2023 Onerado'!$G$7:$K$6879,2,0))) -> Emassamento Com Massa Látex, Aplicação Em Parede, Duas Demãos, Lixamento Manual. Af_04/2023 | E82: =LOWER(IF(J82="i",VLOOKUP(C82,'Ins SINAPI BA 05-2023 Onerado'!$A$8:$E$5189,3,0),VLOOKUP(C82,'Comp SINAPI BA 05-2023 Onerado'!$G$7:$K$6879,3,0))) -> m2 | F82: 63.27 | G82: =SUMIFS('CPU DESONERADO'!$H:$H,'CPU DESONERADO'!$B:$B,'Planilha Orçamentária Desoner'!$A82,'CPU DESONERADO'!$I:$I,"ss")+SUMIFS('CPU DESONERADO'!$H:$H,'CPU DESONERADO'!$B:$B,'Planilha Orçamentária Desoner'!$A82,'CPU DESONERADO'!$I:$I,"mdo")+SUMIF('Comp SINAPI BA 04-2023 Desoner'!G:G,'Planilha Orçamentária Desoner'!C82,'Comp SINAPI BA 04-2023 Desoner'!K:K)+SUMIF('Ins SINAPI BA 04-2023 Desoner'!A:A,'Planilha Orçamentária Desoner'!C82,'Ins SINAPI BA 04-2023 Desoner'!E:E) -> 16.98 | H82: =IF(J82="SERV",G82*(1+$G$5),G82*(1+$G$6)) -> 22.669998 | I82: =F82*H82 -> 1434.330773 | J82: serv | K82: i
A83: 7.1.3 | B83: SINAPI | C83: 88489 | D83: =PROPER(IF(J83="i",VLOOKUP(C83,'Ins SINAPI BA 05-2023 Onerado'!$A$8:$E$5189,2,0),VLOOKUP(C83,'Comp SINAPI BA 05-2023 Onerado'!$G$7:$K$6879,2,0))) -> Pintura Látex Acrílica Premium, Aplicação Manual Em Paredes, Duas Demãos. Af_04/2023 | E83: =LOWER(IF(J83="i",VLOOKUP(C83,'Ins SINAPI BA 05-2023 Onerado'!$A$8:$E$5189,3,0),VLOOKUP(C83,'Comp SINAPI BA 05-2023 Onerado'!$G$7:$K$6879,3,0))) -> m2 | F83: 63.27 | G83: =SUMIFS('CPU DESONERADO'!$H:$H,'CPU DESONERADO'!$B:$B,'Planilha Orçamentária Desoner'!$A83,'CPU DESONERADO'!$I:$I,"ss")+SUMIFS('CPU DESONERADO'!$H:$H,'CPU DESONERADO'!$B:$B,'Planilha Orçamentária Desoner'!$A83,'CPU DESONERADO'!$I:$I,"mdo")+SUMIF('Comp SINAPI BA 04-2023 Desoner'!G:G,'Planilha Orçamentária Desoner'!C83,'Comp SINAPI BA 04-2023 Desoner'!K:K)+SUMIF('Ins SINAPI BA 04-2023 Desoner'!A:A,'Planilha Orçamentária Desoner'!C83,'Ins SINAPI BA 04-2023 Desoner'!E:E) -> 11.24 | H83: 15.006524 | I83: 949.4627735 | J83: serv | K83: i
A85: 8 | D85: PROJETOS | I85: =SUM(I86:I88) -> 8027.262048
A86: 8.1 | B86: PRÓPRIA | C86: CPU.17 | D86: PROJETO "AS BUILT" DE INSTALACOES HIDRÁULICAS | E86: un | F86: 1 | G86: =SUMIFS('CPU DESONERADO'!$H:$H,'CPU DESONERADO'!$B:$B,'Planilha Orçamentária Desoner'!$A86,'CPU DESONERADO'!$I:$I,"ss")+SUMIFS('CPU DESONERADO'!$H:$H,'CPU DESONERADO'!$B:$B,'Planilha Orçamentária Desoner'!$A86,'CPU DESONERADO'!$I:$I,"mdo")+SUMIF('Comp SINAPI BA 04-2023 Desoner'!G:G,'Planilha Orçamentária Desoner'!C86,'Comp SINAPI BA 04-2023 Desoner'!K:K)+SUMIF('Ins SINAPI BA 04-2023 Desoner'!A:A,'Planilha Orçamentária Desoner'!C86,'Ins SINAPI BA 04-2023 Desoner'!E:E) -> 1727.52 | H86: =IF(J86="SERV",G86*(1+$G$5),G86*(1+$G$6)) -> 2306.411952 | I86: =F86*H86 -> 2306.411952 | J86: serv
A87: 8.2 | B87: PRÓPRIA | C87: CPU.18 | D87: PROJETO "AS BUILT" DE INSTALACOES ELETRICAS | E87: un | F87: 1 | G87: =SUMIFS('CPU DESONERADO'!$H:$H,'CPU DESONERADO'!$B:$B,'Planilha Orçamentária Desoner'!$A87,'CPU DESONERADO'!$I:$I,"ss")+SUMIFS('CPU DESONERADO'!$H:$H,'CPU DESONERADO'!$B:$B,'Planilha Orçamentária Desoner'!$A87,'CPU DESONERADO'!$I:$I,"mdo")+SUMIF('Comp SINAPI BA 04-2023 Desoner'!G:G,'Planilha Orçamentária Desoner'!C87,'Comp SINAPI BA 04-2023 Desoner'!K:K)+SUMIF('Ins SINAPI BA 04-2023 Desoner'!A:A,'Planilha Orçamentária Desoner'!C87,'Ins SINAPI BA 04-2023 Desoner'!E:E) -> 2527.2 | H87: 3374.06472 | I87: 3374.06472 | J87: serv
A88: 8.3 | B88: PRÓPRIA | C88: CPU.19 | D88: PROJETO "AS BUILT" DE ARQUITETURA | E88: un | F88: 1 | G88: =SUMIFS('CPU DESONERADO'!$H:$H,'CPU DESONERADO'!$B:$B,'Planilha Orçamentária Desoner'!$A88,'CPU DESONERADO'!$I:$I,"ss")+SUMIFS('CPU DESONERADO'!$H:$H,'CPU DESONERADO'!$B:$B,'Planilha Orçamentária Desoner'!$A88,'CPU DESONERADO'!$I:$I,"mdo")+SUMIF('Comp SINAPI BA 04-2023 Desoner'!G:G,'Planilha Orçamentária Desoner'!C88,'Comp SINAPI BA 04-2023 Desoner'!K:K)+SUMIF('Ins SINAPI BA 04-2023 Desoner'!A:A,'Planilha Orçamentária Desoner'!C88,'Ins SINAPI BA 04-2023 Desoner'!E:E) -> 1757.76 | H88: 2346.785376 | I88: 2346.785376 | J88: serv
D90: TOTAL Sem BDI: | I90: =SUMPRODUCT(F11:F89,G11:G89) -> 2082511.705
D91: BDI: | I91: =I90*G5 -> 697849.6724
D92: TOTAL COM BDI: | I92: =SUM(I90:I91) -> 2780361.377 | J92: =SUM(I11,I17,I26,I41,I54,I79,I33,I85) -> 2650954.868

Sheet CPU
B1: Ministério da Integração e do Desenvolvimento Regional
B2: Companhia de Desenvolvimento dos Vales do São Francisco e do Parnaíba
B3: ='Planilha Orçamentária'!A3 -> 0
B4: COMPOSIÇÕES DE PREÇOS UNITÁRIOS - ORÇAMENTO NÃO DESONERADO
B5: OBRA: | C5: ='Planilha Orçamentária'!B5 -> MANUTENÇÃO DA CASA DE MÁQUINA E SUBSTITUIÇÃO DAS COMPORTAS NA BARRAGEM CERAÍMA | E5: BDI (serv.): | F5: ='BDI serv'!D23 -> 0.2591
B6: LOCAL: | C6: ='Planilha Orçamentária'!B6 -> BARRAGEM CERAÍMA (GUANAMBI - BA)
B7: DATA BASE: | C7: ='Planilha Orçamentária'!B7 -> 2023-05-01
B8: PRAZO: | C8: ='Planilha Orçamentária'!B8 -> 240 DIAS
B10: REFERÊNCIA | C10: CÓDIGO | D10: DESCRIÇÃO | E10: UNIDADE | F10: ÍNDICE | G10: CUSTO UNITÁRIO | H10: PREÇO TOTAL
A11: =B11 -> 2.1.4 | B11: ='Planilha Orçamentária'!A22 -> 2.1.4 | C11: =VLOOKUP($B11,'Planilha Orçamentária'!$A$11:$K$89,3,) -> CPU.01 | D11: =VLOOKUP($B11,'Planilha Orçamentária'!$A$11:$K$89,4+2,) -> Mobilização e Desmobilização de canteiro | E11: un | H11: =SUM(H17,H16,H13,H12) -> 21403.4606 | I11: s
A12: =B11 -> 2.1.4 | B12: =B11 -> 2.1.4 | D12: MATERIAL | I12: ss
A13: =B11 -> 2.1.4 | B13: =B11 -> 2.1.4 | D13: EQUIPAMENTOS | H13: =SUM(H14:H15) -> 15568.68 | I13: ss
A14: =B11 -> 2.1.4 | B14: SICRO | C14: E9134 | D14: Miniônibus com capacidade para 30 passageiros - 111 kW | E14: h | F14: 60 | G14: 222.63 | H14: =F14*G14 -> 13357.8 | I14: i
A15: =B11 -> 2.1.4 | B15: SINAPI | C15: 100950 | D15: =IF(I15="i",VLOOKUP(C15,'Ins SINAPI BA 05-2023 Onerado'!$A$8:$E$5189,2,0),VLOOKUP(C15,'Comp SINAPI BA 05-2023 Onerado'!$G$7:$K$7500,2,0)) -> TRANSPORTE COM CAMINHÃO CARROCERIA COM GUINDAUTO (MUNCK), MOMENTO MÁXIMO DE CARGA 11,7 TM, EM VIA URBANA EM LEITO NATURAL (UNIDADE: TXKM). AF_07/2020 | E15: TXKM | F15: =2.8*40*2*3 -> 672 | G15: =IF(I15="i",VLOOKUP(C15,'Ins SINAPI BA 05-2023 Onerado'!$A$8:$E$5189,5,0),VLOOKUP(C15,'Comp SINAPI BA 05-2023 Onerado'!$G$7:$K$7500,5,0)) -> 3.29 | H15: =F15*G15 -> 2210.88 | I15: ca
A16: =B11 -> 2.1.4 | B16: =B11 -> 2.1.4 | D16: SERVIÇOS | I16: ss
A17: =B11 -> 2.1.4 | B17: =B11 -> 2.1.4 | D17: MÃO DE OBRA | H17: =SUM(H18:H26) -> 5834.7806 | I17: ss
A18: =B11 -> 2.1.4 | B18: SINAPI | C18: 88239 | D18: =IF(I18="i",VLOOKUP(C18,'[1]Ins SINAPI BA 04-2023 Onerado'!$A$8:$E$5189,2,0),VLOOKUP(C18,'[1]Comp SINAPI BA 04-2023 Onerado'!$G$7:$K$7500,2,0)) -> AJUDANTE DE CARPINTEIRO COM ENCARGOS COMPLEMENTARES | E18: H | F18: 15.529 | G18: =IF(I18="i",VLOOKUP(C18,'[1]Ins SINAPI BA 04-2023 Onerado'!$A$8:$E$5189,5,0),VLOOKUP(C18,'[1]Comp SINAPI BA 04-2023 Onerado'!$G$7:$K$7500,5,0)) -> 21.9 | H18: =F18*G18 -> 340.0851 | I18: ca
A19: =B11 -> 2.1.4 | B19: SINAPI | C19: 88247 | D19: =IF(I19="i",VLOOKUP(C19,'[1]Ins SINAPI BA 04-2023 Onerado'!$A$8:$E$5189,2,0),VLOOKUP(C19,'[1]Comp SINAPI BA 04-2023 Onerado'!$G$7:$K$7500,2,0)) -> AUXILIAR DE ELETRICISTA COM ENCARGOS COMPLEMENTARES | E19: H | F19: 49.327 | G19: =IF(I19="i",VLOOKUP(C19,'[1]Ins SINAPI BA 04-2023 Onerado'!$A$8:$E$5189,5,0),VLOOKUP(C19,'[1]Comp SINAPI BA 04-2023 Onerado'!$G$7:$K$7500,5,0)) -> 22.4 | H19: =F19*G19 -> 1104.9248 | I19: ca
A20: =B11 -> 2.1.4 | B20: SINAPI | C20: 88261 | D20: =IF(I20="i",VLOOKUP(C20,'[1]Ins SINAPI BA 04-2023 Onerado'!$A$8:$E$5189,2,0),VLOOKUP(C20,'[1]Comp SINAPI BA 04-2023 Onerado'!$G$7:$K$7500,2,0)) -> CARPINTEIRO DE ESQUADRIA COM ENCARGOS COMPLEMENTARES | E20: H | F20: 15.529 | G20: =IF(I20="i",VLOOKUP(C20,'[1]Ins SINAPI BA 04-2023 Onerado'!$A$8:$E$5189,5,0),VLOOKUP(C20,'[1]Comp SINAPI BA 04-2023 Onerado'!$G$7:$K$7500,5,0)) -> 29.23 | H20: 453.91267 | I20: ca
A21: =B11 -> 2.1.4 | B21: SINAPI | C21: 88264 | D21: =IF(I21="i",VLOOKUP(C21,'[1]Ins SINAPI BA 04-2023 Onerado'!$A$8:$E$5189,2,0),VLOOKUP(C21,'[1]Comp SINAPI BA 04-2023 Onerado'!$G$7:$K$7500,2,0)) -> ELETRICISTA COM ENCARGOS COMPLEMENTARES | E21: H | F21: 24.664 | G21: =IF(I21="i",VLOOKUP(C21,'[1]Ins SINAPI BA 04-2023 Onerado'!$A$8:$E$5189,5,0),VLOOKUP(C21,'[1]Comp SINAPI BA 04-2023 Onerado'!$G$7:$K$7500,5,0)) -> 30.96 | H21: 763.59744 | I21: ca
A22: =B11 -> 2.1.4 | B22: SINAPI | C22: 88267 | D22: =IF(I22="i",VLOOKUP(C22,'[1]Ins SINAPI BA 04-2023 Onerado'!$A$8:$E$5189,2,0),VLOOKUP(C22,'[1]Comp SINAPI BA 04-2023 Onerado'!$G$7:$K$7500,2,0)) -> ENCANADOR OU BOMBEIRO HIDRÁULICO COM ENCARGOS COMPLEMENTARES | E22: H | F22: 17.356 | G22: =IF(I22="i",VLOOKUP(C22,'[1]Ins SINAPI BA 04-2023 Onerado'!$A$8:$E$5189,5,0),VLOOKUP(C22,'[1]Comp SINAPI BA 04-2023 Onerado'!$G$7:$K$7500,5,0)) -> 29.85 | H22: 518.0766 | I22: ca
A23: =B11 -> 2.1.4 | B23: SINAPI | C23: 88273 | D23: =IF(I23="i",VLOOKUP(C23,'[1]Ins SINAPI BA 04-2023 Onerado'!$A$8:$E$5189,2,0),VLOOKUP(C23,'[1]Comp SINAPI BA 04-2023 Onerado'!$G$7:$K$7500,2,0)) -> MARCENEIRO COM ENCARGOS COMPLEMENTARES | E23: H | F23: 5.481 | G23: =IF(I23="i",VLOOKUP(C23,'[1]Ins SINAPI BA 04-2023 Onerado'!$A$8:$E$5189,5,0),VLOOKUP(C23,'[1]Comp SINAPI BA 04-2023 Onerado'!$G$7:$K$7500,5,0)) -> 29.61 | H23: 162.29241 | I23: ca
A24: =B11 -> 2.1.4 | B24: SINAPI | C24: 88310 | D24: =IF(I24="i",VLOOKUP(C24,'[1]Ins SINAPI BA 04-2023 Onerado'!$A$8:$E$5189,2,0),VLOOKUP(C24,'[1]Comp SINAPI BA 04-2023 Onerado'!$G$7:$K$7500,2,0)) -> PINTOR COM ENCARGOS COMPLEMENTARES | E24: H | F24: 11.875 | G24: =IF(I24="i",VLOOKUP(C24,'[1]Ins SINAPI BA 04-2023 Onerado'!$A$8:$E$5189,5,0),VLOOKUP(C24,'[1]Comp SINAPI BA 04-2023 Onerado'!$G$7:$K$7500,5,0)) -> 31.8 | H24: 377.625 | I24: ca
A25: =B11 -> 2.1.4 | B25: SINAPI | C25: 88316 | D25: =IF(I25="i",VLOOKUP(C25,'[1]Ins SINAPI BA 04-2023 Onerado'!$A$8:$E$5189,2,0),VLOOKUP(C25,'[1]Comp SINAPI BA 04-2023 Onerado'!$G$7:$K$7500,2,0)) -> SERVENTE COM ENCARGOS COMPLEMENTARES | E25: H | F25: 86.722 | G25: =IF(I25="i",VLOOKUP(C25,'[1]Ins SINAPI BA 04-2023 Onerado'!$A$8:$E$5189,5,0),VLOOKUP(C25,'[1]Comp SINAPI BA 04-2023 Onerado'!$G$7:$K$7500,5,0)) -> 21.47 | H25: 1861.92134 | I25: ca
A26: =B11 -> 2.1.4 | B26: SINAPI | C26: 88325 | D26: =IF(I26="i",VLOOKUP(C26,'[1]Ins SINAPI BA 04-2023 Onerado'!$A$8:$E$5189,2,0),VLOOKUP(C26,'[1]Comp SINAPI BA 04-2023 Onerado'!$G$7:$K$7500,2,0)) -> VIDRACEIRO COM ENCARGOS COMPLEMENTARES | E26: H | F26: 10.962 | G26: =IF(I26="i",VLOOKUP(C26,'[1]Ins SINAPI BA 04-2023 Onerado'!$A$8:$E$5189,5,0),VLOOKUP(C26,'[1]Comp SINAPI BA 04-2023 Onerado'!$G$7:$K$7500,5,0)) -> 23.02 | H26: 252.34524 | I26: ca
I27: x
B28: ='Planilha Orçamentária'!A24 -> 2.2.1 | C28: =VLOOKUP($B28,'Planilha Orçamentária'!$A$11:$K$89,3,) -> CPU.02 | D28: =VLOOKUP($B28,'Planilha Orçamentária'!$A$11:$K$89,4+2,) -> PLACA DE OBRA EM CHAPA DE ACO GALVANIZADO | E28: m² | H28: =SUM(H29,H35,H36,H37) -> 447.029 | I28: S
A29: =B28 -> 2.2.1 | B29: =B28 -> 2.2.1 | D29: MATERIAL | H29: =SUM(H30:H34) -> 373.889 | I29: ss
A30: =B28 -> 2.2.1 | B30: SINAPI | C30: 4417 | D30: =IF(I30="i",VLOOKUP(C30,'Ins SINAPI BA 05-2023 Onerado'!$A$8:$E$5189,2,0),VLOOKUP(C30,'Comp SINAPI BA 05-2023 Onerado'!$G$7:$K$6879,2,0)) -> SARRAFO NAO APARELHADO *2,5 X 7* CM, EM MACARANDUBA, ANGELIM OU EQUIVALENTE DA REGIAO - BRUTA | E30: M | F30: 4 | G30: =IF(I30="i",VLOOKUP(C30,'Ins SINAPI BA 05-2023 Onerado'!$A$8:$E$5189,5,0),VLOOKUP(C30,'Comp SINAPI BA 05-2023 Onerado'!$G$7:$K$7500,5,0)) -> 7.18 | H30: =F30*G30 -> 28.72 | I30: I
A31: =B28 -> 2.2.1 | B31: SINAPI | C31: 4491 | D31: =IF(I31="i",VLOOKUP(C31,'Ins SINAPI BA 05-2023 Onerado'!$A$8:$E$5189,2,0),VLOOKUP(C31,'Comp SINAPI BA 05-2023 Onerado'!$G$7:$K$6879,2,0)) -> PONTALETE *7,5 X 7,5* CM EM PINUS, MISTA OU EQUIVALENTE DA REGIAO - BRUTA | E31: M | F31: 4 | G31: =IF(I31="i",VLOOKUP(C31,'Ins SINAPI BA 05-2023 Onerado'!$A$8:$E$5189,5,0),VLOOKUP(C31,'Comp SINAPI BA 05-2023 Onerado'!$G$7:$K$7500,5,0)) -> 9.65 | H31: 38.6 | I31: I
A32: =B28 -> 2.2.1 | B32: SINAPI | C32: 4813 | D32: =IF(I32="i",VLOOKUP(C32,'Ins SINAPI BA 05-2023 Onerado'!$A$8:$E$5189,2,0),VLOOKUP(C32,'Comp SINAPI BA 05-2023 Onerado'!$G$7:$K$6879,2,0)) -> PLACA DE OBRA (PARA CONSTRUCAO CIVIL) EM CHAPA GALVANIZADA *N. 22*, ADESIVADA, DE *2,4 X 1,2* M (SEM POSTES PARA FIXACAO) | E32: M2 | F32: 1 | G32: =IF(I32="i",VLOOKUP(C32,'Ins SINAPI BA 05-2023 Onerado'!$A$8:$E$5189,5,0),VLOOKUP(C32,'Comp SINAPI BA 05-2023 Onerado'!$G$7:$K$7500,5,0)) -> 300 | H32: 300 | I32: I
A33: =B28 -> 2.2.1 | B33: SINAPI | C33: 5075 | D33: =IF(I33="i",VLOOKUP(C33,'Ins SINAPI BA 05-2023 Onerado'!$A$8:$E$5189,2,0),VLOOKUP(C33,'Comp SINAPI BA 05-2023 Onerado'!$G$7:$K$6879,2,0)) -> PREGO DE ACO POLIDO COM CABECA 18 X 30 (2 3/4 X 10) | E33: KG | F33: 0.11 | G33: =IF(I33="i",VLOOKUP(C33,'Ins SINAPI BA 05-2023 Onerado'!$A$8:$E$5189,5,0),VLOOKUP(C33,'Comp SINAPI BA 05-2023 Onerado'!$G$7:$K$7500,5,0)) -> 20.6 | H33: 2.266 | I33: I
A34: =B28 -> 2.2.1 | B34: SINAPI | C34: 94962 | D34: =IF(I34="i",VLOOKUP(C34,'Ins SINAPI BA 05-2023 Onerado'!$A$8:$E$5189,2,0),VLOOKUP(C34,'Comp SINAPI BA 05-2023 Onerado'!$G$7:$K$6879,2,0)) -> CONCRETO MAGRO PARA LASTRO, TRAÇO 1:4,5:4,5 (EM MASSA SECA DE CIMENTO/ AREIA MÉDIA/ BRITA 1) - PREPARO MECÂNICO COM BETONEIRA 400 L. AF_05/2021 | E34: M3 | F34: 0.01 | G34: =IF(I34="i",VLOOKUP(C34,'Ins SINAPI BA 05-2023 Onerado'!$A$8:$E$5189,5,0),VLOOKUP(C34,'Comp SINAPI BA 05-2023 Onerado'!$G$7:$K$7500,5,0)) -> 430.3 | H34: 4.303 | I34: ca
A35: =B28 -> 2.2.1 | B35: =B28 -> 2.2.1 | D35: EQUIPAMENTOS | H35: 0 | I35: ss
A36: =B28 -> 2.2.1 | B36: =B28 -> 2.2.1 | D36: SERVIÇOS | H36: 0 | I36: ss
A37: =B28 -> 2.2.1 | B37: =B28 -> 2.2.1 | D37: MÃO DE OBRA | H37: =SUM(H38:H39) -> 73.14 | I37: mdo
A38: =B28 -> 2.2.1 | B38: SINAPI | C38: 88262 | D38: =IF(I38="i",VLOOKUP(C38,'Ins SINAPI BA 05-2023 Onerado'!$A$8:$E$5189,2,0),VLOOKUP(C38,'Comp SINAPI BA 05-2023 Onerado'!$G$7:$K$7500,2,0)) -> CARPINTEIRO DE FORMAS COM ENCARGOS COMPLEMENTARES | E38: H | F38: 1 | G38: =IF(I38="i",VLOOKUP(C38,'Ins SINAPI BA 05-2023 Onerado'!$A$8:$E$5189,5,0),VLOOKUP(C38,'Comp SINAPI BA 05-2023 Onerado'!$G$7:$K$7500,5,0)) -> 30.2 | H38: =F38*G38 -> 30.2 | I38: ca
A39: =B28 -> 2.2.1 | B39: SINAPI | C39: 88316 | D39: =IF(I39="i",VLOOKUP(C39,'Ins SINAPI BA 05-2023 Onerado'!$A$8:$E$5189,2,0),VLOOKUP(C39,'Comp SINAPI BA 05-2023 Onerado'!$G$7:$K$7500,2,0)) -> SERVENTE COM ENCARGOS COMPLEMENTARES | E39: H | F39: 2 | G39: =IF(I39="i",VLOOKUP(C39,'Ins SINAPI BA 05-2023 Onerado'!$A$8:$E$5189,5,0),VLOOKUP(C39,'Comp SINAPI BA 05-2023 Onerado'!$G$7:$K$7500,5,0)) -> 21.47 | H39: 42.94 | I39: ca
I40: x
A41: =B41 -> 3.1.1 | B41: ='Planilha Orçamentária'!A28 -> 3.1.1 | C41: =VLOOKUP($B41,'Planilha Orçamentária'!$A$11:$K$89,3,) -> CPU.03 | D41: =VLOOKUP($B41,'Planilha Orçamentária'!$A$11:$K$89,4+2,) -> Mobilização da Equipe, Camara Hiperbarica e todos os equipamentos de mergulho envolvidos na operação | E41: un | F41: 1 | H41: =SUM(H42,H44,H46) -> 42000 | I41: S
A42: =B41 -> 3.1.1 | B42: =B41 -> 3.1.1 | D42: MATERIAL | H42: 0 | I42: ss
A43: =B41 -> 3.1.1 | B43: =B41 -> 3.1.1 | D43: EQUIPAMENTOS | H43: 0 | I43: ss
A44: =B41 -> 3.1.1 | B44: =B41 -> 3.1.1 | D44: SERVIÇOS | H44: =H45 -> 42000 | I44: ss
A45: =B41 -> 3.1.1 | B45: 2023-05-01 | C45: COTAÇÃO | D45: Mobilização e desmobilização da Equipe, Camara Hiperbarica e todos os equipamentos de mergulho envolvidos na operação | E45: un | F45: 1 | G45: 42000 | H45: =F45*G45 -> 42000 | I45: ca
A46: =B41 -> 3.1.1 | B46: =B41 -> 3.1.1 | D46: MÃO DE OBRA | H46: 0 | I46: mdo
I47: x
A48: =B48 -> 3.2.1 | B48: ='Planilha Orçamentária'!A31 -> 3.2.1 | C48: =VLOOKUP($B48,'Planilha Orçamentária'!$A$11:$K$89,3,) -> CPU.04 | D48: =VLOOKUP($B48,'Planilha Orçamentária'!$A$11:$K$89,4+2,) -> Plano De Trabalho Para Substituição Da Comporta | E48: un | H48: =SUM(H49,H51,H53,H54) -> 20055.13956 | I48: S
A49: =B48 -> 3.2.1 | B49: =B48 -> 3.2.1 | D49: MATERIAL | H49: =SUM(H50) -> 3661.2 | I49: ss
A50: =B48 -> 3.2.1 | B50: CODE | C50: DP | D50: DIÁRIA | E50: DIA | F50: =3*4 -> 12 | G50: 305.1 | H50: =F50*G50 -> 3661.2
A51: =B48 -> 3.2.1 | B51: =B48 -> 3.2.1 | D51: EQUIPAMENTOS | H51: =SUM(H52) -> 980.8883333 | I51: ss
A52: =B48 -> 3.2.1 | B52: CODEVASF | D52: CAMINHONETE | E52: mes | F52: 0.1666666667 | G52: 5885.33 | H52: =F52*G52 -> 980.8883333
A53: =B48 -> 3.2.1 | B53: =B48 -> 3.2.1 | D53: SERVIÇOS | I53: ss
A54: =B48 -> 3.2.1 | B54: =B48 -> 3.2.1 | D54: MÃO DE OBRA | H54: =SUM(H55:H57) -> 15413.05122 | I54: ss
A55: =B48 -> 3.2.1 | B55: SINAPI | C55: 100306 | D55: ENGENHEIRO CIVIL PLENO COM ENCARGOS COMPLEMENTARES | E55: h | F55: 40 | G55: =IF(I55="i",VLOOKUP(C55,'Ins SINAPI BA 05-2023 Onerado'!$A$8:$E$5189,5,0),VLOOKUP(C55,'Comp SINAPI BA 05-2023 Onerado'!$G$7:$K$7500,5,0)) -> 129.03 | H55: =F55*G55 -> 5161.2 | I55: ca
A56: =B48 -> 3.2.1 | B56: SINAPI | C56: 100306 | D56: ENGENHEIRO MECÂNICO PLENO COM ENCARGOS COMPLEMENTARES (BASEADO EM SINAPI 100320) | E56: h | F56: 40 | G56: =IF(I56="i",VLOOKUP(C56,'Ins SINAPI BA 05-2023 Onerado'!$A$8:$E$5189,5,0),VLOOKUP(C56,'Comp SINAPI BA 05-2023 Onerado'!$G$7:$K$7500,5,0)) -> 129.03 | H56: 5161.2 | I56: ca
A57: =B49 -> 3.2.1 | B57: SICRO3 | C57: P9864 | D57: Engenheiro de segurança do trabalho | E57: mês | F57: =1/4 -> 0.25 | G57: 20362.6049 | H57: 5090.651225 | I57: ca
B59: ='Planilha Orçamentária'!A47 -> 5.2.2 | C59: =VLOOKUP($B59,'Planilha Orçamentária'!$A$11:$K$89,3,) -> CPU.05 | D59: =VLOOKUP($B59,'Planilha Orçamentária'!$A$11:$K$89,4+2,) -> Demolição e transporte do concreto das ranhuras das peças fixas existentes e demolição das peças fixas, compreendendo caminho de deslizamento, peças fixas laterais, soleira e peça fixa frontal. | E59: un | H59: =SUM(H60,H62,H72,H75) -> 41223.84404 | I59: S
B60: =B59 -> 5.2.2 | D60: MATERIAL | H60: =SUM(H61) -> 12204 | I60: SS
B61: CODE | C61: DP | D61: DIÁRIA | E61: DIA | F61: =10*4 -> 40 | G61: 305.1 | H61: =F61*G61 -> 12204 | I61: i
B62: =B59 -> 5.2.2 | D62: EQUIPAMENTOS | H62: =SUM(H63:H71) -> 12532.05293 | I62: SS
B63: SICRO | C63: E9677 | D63: Martelete perfurador/rompedor a ar comprimido de 10 kg com capacidade de 1.800 gpm | E63: h | F63: ='EQUIPE DE MERGULHO'!F23 -> 49.33333333 | G63: 31.0682 | H63: =F63*G63 -> 1532.697867 | I63: i
B64: SICRO | C64: E9640 | D64: Compressor de ar portátil de 33,51 l/s (71 PCM) - 14 kW | E64: h | F64: ='EQUIPE DE MERGULHO'!$F$23 -> 49.33333333 | G64: 26.9057 | H64: 1327.347867 | I64: i
B65: SICRO | C65: E9536 | D65: Embarcação de transporte de pessoal e apoio logístico - 30 kW | E65: h | F65: ='EQUIPE DE MERGULHO'!$F$23 -> 49.33333333 | G65: 94.7165 | H65: 4672.680667 | I65: i
B66: SICRO | C66: E9243 | D66: Câmara hiperbárica com filtro, serpentina e reservatório de ar para mergulho raso - D= 1,80 m e H = 2,22 m. | E66: h | F66: ='EQUIPE DE MERGULHO'!$F$23 -> 49.33333333 | G66: 63.4057 | H66: 3128.014533 | I66: i
B67: SICRO | C67: E9245 | D67: Estação transmissora de superfície para comunicação com fio | E67: h | F67: ='EQUIPE DE MERGULHO'!$F$23 -> 49.33333333 | G67: 0.7428 | H67: 36.6448 | I67: i
B68: SICRO | C68: E9242 | D68: Estação transmissora de superfície para televisionamento | E68: h | F68: ='EQUIPE DE MERGULHO'!$F$23 -> 49.33333333 | G68: 1.3333 | H68: 65.77613333 | I68: i
B69: SICRO | C69: E9066 | D69: Grupo gerador - 14 kVA | E69: h | F69: ='EQUIPE DE MERGULHO'!$F$23 -> 49.33333333 | G69: 19.3801 | H69: 956.0849333 | I69: i
B70: SICRO | C70: E9246 | D70: Painel de controle de ar com manômetros e pneufatômetros | E70: h | F70: ='EQUIPE DE MERGULHO'!$F$23 -> 49.33333333 | G70: 1.4255 | H70: 70.32466667 | I70: i
B71: SICRO | C71: E9248 | D71: Sistema de ar comprimido para mergulho até 30 m com pressão de trabalho de 1,4 MPa - 7,46 kW | E71: h | F71: ='EQUIPE DE MERGULHO'!$F$23 -> 49.33333333 | G71: 15.0503 | H71: 742.4814667 | I71: i
B72: =B59 -> 5.2.2 | D72: SERVIÇOS | H72: =SUM(H73:H74) -> 2981.96724 | I72: SS
B73: SINAPI | C73: 100235 | D73: =IF(I73="i",VLOOKUP(C73,'Ins SINAPI BA 05-2023 Onerado'!$A$8:$E$5189,2,0),VLOOKUP(C73,'Comp SINAPI BA 05-2023 Onerado'!$G$7:$K$7500,2,0)) -> TRANSPORTE VERTICAL MANUAL, 1 PAVIMENTO, DE LATA DE 18 LITROS (UNIDADE: L). AF_07/2019 | E73: L | F73: 6741.3 | G73: =IF(I73="i",VLOOKUP(C73,'Ins SINAPI BA 05-2023 Onerado'!$A$8:$E$5189,5,0),VLOOKUP(C73,'Comp SINAPI BA 05-2023 Onerado'!$G$7:$K$7500,5,0)) -> 0.04 | H73: 269.652 | I73: ca
B74: SINAPI | C74: 97914 | D74: =IF(I74="i",VLOOKUP(C74,'Ins SINAPI BA 05-2023 Onerado'!$A$8:$E$5189,2,0),VLOOKUP(C74,'Comp SINAPI BA 05-2023 Onerado'!$G$7:$K$7500,2,0)) -> TRANSPORTE COM CAMINHÃO BASCULANTE DE 6 M³, EM VIA URBANA PAVIMENTADA, DMT ATÉ 30 KM (UNIDADE: M3XKM). AF_07/2020 | E74: M3XKM | F74: 972.156 | G74: =IF(I74="i",VLOOKUP(C74,'Ins SINAPI BA 05-2023 Onerado'!$A$8:$E$5189,5,0),VLOOKUP(C74,'Comp SINAPI BA 05-2023 Onerado'!$G$7:$K$7500,5,0)) -> 2.79 | H74: 2712.31524 | I74: ca
B75: =B59 -> 5.2.2 | D75: MÃO DE OBRA | H75: =SUM(H76:H78) -> 13505.82387 | I75: MDO
B76: SICRO | C76: P9926 | D76: Mergulhador raso auxiliar de superfície | E76: h | F76: ='EQUIPE DE MERGULHO'!$F$23 -> 49.33333333 | G76: 31.434 | H76: 1550.744 | I76: ca
B77: EMBASA | C77: B010000113 | D77: MERGULHADOR PROFISSIONAL | E77: h | F77: ='EQUIPE DE MERGULHO'!$F$23 -> 49.33333333 | G77: 207.46 | H77: 10234.69333 | I77: ca
B78: SICRO | C78: P9922 | D78: Mergulhador raso dependente de emergência | E78: h | F78: ='EQUIPE DE MERGULHO'!$F$23 -> 49.33333333 | G78: 34.8727 | H78: 1720.386533 | I78: ca
I79: x
B80: ='Planilha Orçamentária'!A48 -> 5.2.3 | C80: =VLOOKUP($B80,'Planilha Orçamentária'!$A$11:$K$89,3,) -> CPU.06 | D80: =VLOOKUP($B80,'Planilha Orçamentária'!$A$11:$K$89,4+2,) -> Preparação das ranhuras para receber as novas peças fixas | E80: un | H80: =SUM(H81,H84,H92,H93) -> 44399.11107 | I80: S
B81: =B80 -> 5.2.3 | D81: MATERIAL | H81: =SUM(H82:H83) -> 21221.28 | I81: SS
B82: CODE | C82: DP | D82: DIÁRIA | E82: DIA | F82: =10*4 -> 40 | G82: 305.1 | H82: =F82*G82 -> 12204 | I82: i
B83: SINAPI | C83: 4049 | D83: =IF(I83="i",VLOOKUP(C83,'Ins SINAPI BA 05-2023 Onerado'!$A$8:$E$5189,2,0),VLOOKUP(C83,'Comp SINAPI BA 05-2023 Onerado'!$G$7:$K$7500,2,0)) -> MASSA EPOXI BICOMPONENTE (MASSA + CATALIZADOR) | E83: L | F83: 144 | G83: =IF(I83="i",VLOOKUP(C83,'Ins SINAPI BA 05-2023 Onerado'!$A$8:$E$5189,5,0),VLOOKUP(C83,'Comp SINAPI BA 05-2023 Onerado'!$G$7:$K$7500,5,0)) -> 62.62 | H83: =F83*G83 -> 9017.28 | I83: i
B84: =B80 -> 5.2.3 | D84: EQUIPAMENTOS | H84: =SUM(H85:H91) -> 9672.0072 | I84: SS
B85: SICRO | C85: E9536 | D85: Embarcação de transporte de pessoal e apoio logístico - 30 kW | E85: h | F85: ='EQUIPE DE MERGULHO'!$F$24 -> 49.33333333 | G85: 94.7165 | H85: =F85*G85 -> 4672.680667 | I85: i
B86: SICRO | C86: E9243 | D86: Câmara hiperbárica com filtro, serpentina e reservatório de ar para mergulho raso - D= 1,80 m e H = 2,22 m. | E86: h | F86: ='EQUIPE DE MERGULHO'!$F$24 -> 49.33333333 | G86: 63.4057 | H86: 3128.014533 | I86: i
B87: SICRO | C87: E9245 | D87: Estação transmissora de superfície para comunicação com fio | E87: h | F87: ='EQUIPE DE MERGULHO'!$F$24 -> 49.33333333 | G87: 0.7428 | H87: 36.6448 | I87: i
B88: SICRO | C88: E9242 | D88: Estação transmissora de superfície para televisionamento | E88: h | F88: ='EQUIPE DE MERGULHO'!$F$24 -> 49.33333333 | G88: 1.3333 | H88: 65.77613333 | I88: i
B89: SICRO | C89: E9066 | D89: Grupo gerador - 14 kVA | E89: h | F89: ='EQUIPE DE MERGULHO'!$F$24 -> 49.33333333 | G89: 19.3801 | H89: 956.0849333 | I89: i
B90: SICRO | C90: E9246 | D90: Painel de controle de ar com manômetros e pneufatômetros | E90: h | F90: ='EQUIPE DE MERGULHO'!$F$24 -> 49.33333333 | G90: 1.4255 | H90: 70.32466667 | I90: i
B91: SICRO | C91: E9248 | D91: Sistema de ar comprimido para mergulho até 30 m com pressão de trabalho de 1,4 MPa - 7,46 kW | E91: h | F91: ='EQUIPE DE MERGULHO'!$F$24 -> 49.33333333 | G91: 15.0503 | H91: 742.4814667 | I91: i
B92: =B80 -> 5.2.3 | D92: SERVIÇOS | H92: 0 | I92: ss
B93: =B81 -> 5.2.3 | D93: MÃO DE OBRA | H93: =SUM(H94:H96) -> 13505.82387 | I93: mdo
B94: SICRO | C94: P9926 | D94: Mergulhador raso auxiliar de superfície | E94: h | F94: ='EQUIPE DE MERGULHO'!$F$24 -> 49.33333333 | G94: 31.434 | H94: =F94*G94 -> 1550.744 | I94: ca
B95: EMBASA | C95: B010000113 | D95: MERGULHADOR PROFISSIONAL | E95: h | F95: ='EQUIPE DE MERGULHO'!$F$24 -> 49.33333333 | G95: 207.46 | H95: 10234.69333 | I95: ca
B96: SICRO | C96: P9922 | D96: Mergulhador raso dependente de emergência | E96: h | F96: ='EQUIPE DE MERGULHO'!$F$24 -> 49.33333333 | G96: 34.8727 | H96: 1720.386533 | I96: ca
I97: x
B98: ='Planilha Orçamentária'!A49 -> 5.2.4 | C98: =VLOOKUP($B98,'Planilha Orçamentária'!$A$11:$K$89,3,) -> CPU.07 | D98: =VLOOKUP($B98,'Planilha Orçamentária'!$A$11:$K$89,4+2,) -> Montagem das novas peças fixas | E98: un | H98: =SUM(H99,H104,H116,H117) -> 46710.27107 | I98: S
B99: =B98 -> 5.2.4 | D99: MATERIAL | H99: =SUM(H100:H103) -> 14383.92 | I99: SS
B100: CODE | C100: DP | D100: DIÁRIA | E100: DIA | F100: =10*4 -> 40 | G100: 305.1 | H100: =F100*G100 -> 12204 | I100: i
B101: SINAPI | C101: 10997 | D101: =IF(I101="i",VLOOKUP(C101,'Ins SINAPI BA 05-2023 Onerado'!$A$8:$E$5189,2,0),VLOOKUP(C101,'Comp SINAPI BA 05-2023 Onerado'!$G$7:$K$7500,2,0)) -> ELETRODO REVESTIDO AWS - E7018, DIAMETRO IGUAL A 4,00 MM | E101: KG | F101: 15 | G101: =IF(I101="i",VLOOKUP(C101,'Ins SINAPI BA 05-2023 Onerado'!$A$8:$E$5189,5,0),VLOOKUP(C101,'Comp SINAPI BA 05-2023 Onerado'!$G$7:$K$7500,5,0)) -> 31.68 | H101: =F101*G101 -> 475.2 | I101: i
B102: SINAPI | C102: 38412 | D102: =IF(I102="i",VLOOKUP(C102,'Ins SINAPI BA 05-2023 Onerado'!$A$8:$E$5189,2,0),VLOOKUP(C102,'Comp SINAPI BA 05-2023 Onerado'!$G$7:$K$7500,2,0)) -> INVERSOR DE SOLDA MONOFASICO DE 160 A, POTENCIA DE 5400 W, TENSAO DE 220 V, TURBO VENTILADO, PROTECAO POR FUSIVEL TERMICO, PARA ELETRODOS DE 2,0 A 4,0 MM | E102: un | F102: 1 | G102: =IF(I102="i",VLOOKUP(C102,'Ins SINAPI BA 05-2023 Onerado'!$A$8:$E$5189,5,0),VLOOKUP(C102,'Comp SINAPI BA 05-2023 Onerado'!$G$7:$K$7500,5,0)) -> 1169.72 | H102: 1169.72 | I102: i
B103: SINAPI | C103: 1 | D103: =IF(I103="i",VLOOKUP(C103,'Ins SINAPI BA 05-2023 Onerado'!$A$8:$E$5189,2,0),VLOOKUP(C103,'Comp SINAPI BA 05-2023 Onerado'!$G$7:$K$7500,2,0)) -> ACETILENO (RECARGA DE GAS ACETILENO PARA CILINDRO DE CONJUNTO OXICORTE GRANDE) NAO INCLUI TROCA/MANUTENCAO DO CILINDRO | E103: KG | F103: 5 | G103: =IF(I103="i",VLOOKUP(C103,'Ins SINAPI BA 05-2023 Onerado'!$A$8:$E$5189,5,0),VLOOKUP(C103,'Comp SINAPI BA 05-2023 Onerado'!$G$7:$K$7500,5,0)) -> 107 | H103: 535 | I103: i
B104: =B98 -> 5.2.4 | D104: EQUIPAMENTOS | H104: =SUM(H105:H115) -> 18820.5272 | I104: SS
B105: SINAPI | C105: 102867 | D105: =IF(I105="i",VLOOKUP(C105,'Ins SINAPI BA 05-2023 Onerado'!$A$8:$E$5189,2,0),VLOOKUP(C105,'Comp SINAPI BA 05-2023 Onerado'!$G$7:$K$7500,2,0)) -> MÁQUINA SOLDA ARCO COM PISTOLA DE SOLDAGEM PARA STUD BOLT DE 5 MM A 22 MM - MATERIAIS NA OPERAÇÃO. AF_05/2023 | E105: h | F105: ='EQUIPE DE MERGULHO'!$F$25 -> 49.33333333 | G105: =IF(I105="i",VLOOKUP(C105,'Ins SINAPI BA 05-2023 Onerado'!$A$8:$E$5189,5,0),VLOOKUP(C105,'Comp SINAPI BA 05-2023 Onerado'!$G$7:$K$7500,5,0)) -> 0.78 | H105: 38.48 | I105: ca
B106: SICRO | C106: E9536 | D106: Embarcação de transporte de pessoal e apoio logístico - 30 kW | E106: h | F106: ='EQUIPE DE MERGULHO'!$F$25 -> 49.33333333 | G106: 94.7165 | H106: 4672.680667 | I106: i
B107: SICRO | C107: E9243 | D107: Câmara hiperbárica com filtro, serpentina e reservatório de ar para mergulho raso - D= 1,80 m e H = 2,22 m. | E107: h | F107: ='EQUIPE DE MERGULHO'!$F$25 -> 49.33333333 | G107: 63.4057 | H107: 3128.014533 | I107: i
B108: SICRO | C108: E9245 | D108: Estação transmissora de superfície para comunicação com fio | E108: h | F108: ='EQUIPE DE MERGULHO'!$F$25 -> 49.33333333 | G108: 0.7428 | H108: 36.6448 | I108: i
B109: SICRO | C109: E9242 | D109: Estação transmissora de superfície para televisionamento | E109: h | F109: ='EQUIPE DE MERGULHO'!$F$25 -> 49.33333333 | G109: 1.3333 | H109: 65.77613333 | I109: i
B110: SICRO | C110: E9066 | D110: Grupo gerador - 14 kVA | E110: h | F110: ='EQUIPE DE MERGULHO'!$F$25 -> 49.33333333 | G110: 19.3801 | H110: 956.0849333 | I110: i
B111: SICRO | C111: E9246 | D111: Painel de controle de ar com manômetros e pneufatômetros | E111: h | F111: ='EQUIPE DE MERGULHO'!$F$25 -> 49.33333333 | G111: 1.4255 | H111: 70.32466667 | I111: i
B112: SICRO | C112: E9248 | D112: Sistema de ar comprimido para mergulho até 30 m com pressão de trabalho de 1,4 MPa - 7,46 kW | E112: h | F112: ='EQUIPE DE MERGULHO'!$F$25 -> 49.33333333 | G112: 15.0503 | H112: 742.4814667 | I112: i
B113: SINAPI | C113: 92715 | D113: =IF(I113="i",VLOOKUP(C113,'Ins SINAPI BA 05-2023 Onerado'!$A$8:$E$5189,2,0),VLOOKUP(C113,'Comp SINAPI BA 05-2023 Onerado'!$G$7:$K$7500,2,0)) -> APARELHO PARA CORTE E SOLDA OXI-ACETILENO SOBRE RODAS, INCLUSIVE CILINDROS E MAÇARICOS - MATERIAIS NA OPERAÇÃO. AF_05/2023 | E113: H | F113: 36 | G113: =IF(I113="i",VLOOKUP(C113,'Ins SINAPI BA 05-2023 Onerado'!$A$8:$E$5189,5,0),VLOOKUP(C113,'Comp SINAPI BA 05-2023 Onerado'!$G$7:$K$7500,5,0)) -> 111.61 | H113: 4017.96 | I113: ca
B114: SINAPI | C114: 10527 | D114: =IF(I114="i",VLOOKUP(C114,'Ins SINAPI BA 05-2023 Onerado'!$A$8:$E$5189,2,0),VLOOKUP(C114,'Comp SINAPI BA 05-2023 Onerado'!$G$7:$K$7500,2,0)) -> LOCACAO DE ANDAIME METALICO TUBULAR DE ENCAIXE, TIPO DE TORRE, CADA PAINEL COM LARGURA DE 1 ATE 1,5 M E ALTURA DE *1,00* M, INCLUINDO DIAGONAL, BARRAS DE LIGACAO, SAPATAS OU RODIZIOS E DEMAIS ITENS NECESSARIOS A MONTAGEM (NAO INCLUI INSTALACAO) | E114: MXMES | F114: 12 | G114: =IF(I114="i",VLOOKUP(C114,'Ins SINAPI BA 05-2023 Onerado'!$A$8:$E$5189,5,0),VLOOKUP(C114,'Comp SINAPI BA 05-2023 Onerado'!$G$7:$K$7500,5,0)) -> 20 | H114: 240 | I114: i
B115: SINAPI | C115: 89272 | D115: =IF(I115="i",VLOOKUP(C115,'Ins SINAPI BA 05-2023 Onerado'!$A$8:$E$5189,2,0),VLOOKUP(C115,'Comp SINAPI BA 05-2023 Onerado'!$G$7:$K$7500,2,0)) -> GUINDASTE HIDRÁULICO AUTOPROPELIDO, COM LANÇA TELESCÓPICA 28,80 M, CAPACIDADE MÁXIMA 30 T, POTÊNCIA 97 KW, TRAÇÃO 4 X 4 - CHP DIURNO. AF_11/2014 | E115: CHP | F115: 24 | G115: =IF(I115="i",VLOOKUP(C115,'Ins SINAPI BA 05-2023 Onerado'!$A$8:$E$5189,5,0),VLOOKUP(C115,'Comp SINAPI BA 05-2023 Onerado'!$G$7:$K$7500,5,0)) -> 202.17 | H115: 4852.08 | I115: ca
B116: =B98 -> 5.2.4 | D116: SERVIÇOS | H116: 0 | I116: SS
B117: =B98 -> 5.2.4 | D117: MÃO DE OBRA | H117: =SUM(H118:H120) -> 13505.82387 | I117: MDO
B118: SICRO | C118: P9926 | D118: Mergulhador raso auxiliar de superfície | E118: h | F118: ='EQUIPE DE MERGULHO'!$F$25 -> 49.33333333 | G118: 31.434 | H118: =F118*G118 -> 1550.744 | I118: ca
B119: EMBASA | C119: B010000113 | D119: MERGULHADOR PROFISSIONAL | E119: h | F119: ='EQUIPE DE MERGULHO'!$F$25 -> 49.33333333 | G119: 207.46 | H119: 10234.69333 | I119: ca
B120: SICRO | C120: P9922 | D120: Mergulhador raso dependente de emergência | E120: h | F120: ='EQUIPE DE MERGULHO'!$F$25 -> 49.33333333 | G120: 34.8727 | H120: 1720.386533 | I120: ca
I121: x
B122: ='Planilha Orçamentária'!A50 -> 5.2.5 | C122: =VLOOKUP($B122,'Planilha Orçamentária'!$A$11:$K$89,3,) -> CPU.08 | D122: =VLOOKUP($B122,'Planilha Orçamentária'!$A$11:$K$89,4+2,) -> Concretagem das novas peças fixas | E122: un | H122: =SUM(H123,H127,H135,H138) -> 38975.78457 | I122: S
B123: =B122 -> 5.2.5 | D123: MATERIAL | H123: =SUM(H124:H126) -> 12387.87 | I123: ss
B124: CODE | C124: DP | D124: DIÁRIA | E124: DIA | F124: =10*4 -> 40 | G124: 305.1 | H124: =F124*G124 -> 12204 | I124: i
B125: SINAPI | C125: 4491 | D125: =IF(I125="i",VLOOKUP(C125,'Ins SINAPI BA 05-2023 Onerado'!$A$8:$E$5189,2,0),VLOOKUP(C125,'Comp SINAPI BA 05-2023 Onerado'!$G$7:$K$7500,2,0)) -> PONTALETE *7,5 X 7,5* CM EM PINUS, MISTA OU EQUIVALENTE DA REGIAO - BRUTA | E125: M | F125: 15 | G125: =IF(I125="i",VLOOKUP(C125,'Ins SINAPI BA 05-2023 Onerado'!$A$8:$E$5189,5,0),VLOOKUP(C125,'Comp SINAPI BA 05-2023 Onerado'!$G$7:$K$7500,5,0)) -> 9.65 | H125: 144.75 | I125: I
B126: SINAPI | C126: 4509 | D126: =IF(I126="i",VLOOKUP(C126,'Ins SINAPI BA 05-2023 Onerado'!$A$8:$E$5189,2,0),VLOOKUP(C126,'Comp SINAPI BA 05-2023 Onerado'!$G$7:$K$7500,2,0)) -> SARRAFO *2,5 X 10* CM EM PINUS, MISTA OU EQUIVALENTE DA REGIAO - BRUTA | E126: M | F126: 8 | G126: =IF(I126="i",VLOOKUP(C126,'Ins SINAPI BA 05-2023 Onerado'!$A$8:$E$5189,5,0),VLOOKUP(C126,'Comp SINAPI BA 05-2023 Onerado'!$G$7:$K$7500,5,0)) -> 4.89 | H126: =F126*G126 -> 39.12 | I126: I
B127: =B122 -> 5.2.5 | D127: EQUIPAMENTOS | H127: =SUM(H128:H134) -> 9672.0072 | I127: ss
B128: SICRO | C128: E9536 | D128: Embarcação de transporte de pessoal e apoio logístico - 30 kW | E128: h | F128: ='EQUIPE DE MERGULHO'!$F$26 -> 49.33333333 | G128: 94.7165 | H128: =F128*G128 -> 4672.680667 | I128: i
B129: SICRO | C129: E9243 | D129: Câmara hiperbárica com filtro, serpentina e reservatório de ar para mergulho raso - D= 1,80 m e H = 2,22 m. | E129: h | F129: ='EQUIPE DE MERGULHO'!$F$26 -> 49.33333333 | G129: 63.4057 | H129: 3128.014533 | I129: i
B130: SICRO | C130: E9245 | D130: Estação transmissora de superfície para comunicação com fio | E130: h | F130: ='EQUIPE DE MERGULHO'!$F$26 -> 49.33333333 | G130: 0.7428 | H130: 36.6448 | I130: i
B131: SICRO | C131: E9242 | D131: Estação transmissora de superfície para televisionamento | E131: h | F131: ='EQUIPE DE MERGULHO'!$F$26 -> 49.33333333 | G131: 1.3333 | H131: 65.77613333 | I131: i
B132: SICRO | C132: E9066 | D132: Grupo gerador - 14 kVA | E132: h | F132: ='EQUIPE DE MERGULHO'!$F$26 -> 49.33333333 | G132: 19.3801 | H132: 956.0849333 | I132: i
B133: SICRO | C133: E9246 | D133: Painel de controle de ar com manômetros e pneufatômetros | E133: h | F133: ='EQUIPE DE MERGULHO'!$F$26 -> 49.33333333 | G133: 1.4255 | H133: 70.32466667 | I133: i
B134: SICRO | C134: E9248 | D134: Sistema de ar comprimido para mergulho até 30 m com pressão de trabalho de 1,4 MPa - 7,46 kW | E134: h | F134: ='EQUIPE DE MERGULHO'!$F$26 -> 49.33333333 | G134: 15.0503 | H134: 742.4814667 | I134: i
B135: =B122 -> 5.2.5 | D135: SERVIÇOS | H135: =SUM(H136:H137) -> 3410.0835 | I135: ss
B136: SINAPI | C136: 97914 | D136: =IF(I136="i",VLOOKUP(C136,'Ins SINAPI BA 05-2023 Onerado'!$A$8:$E$5189,2,0),VLOOKUP(C136,'Comp SINAPI BA 05-2023 Onerado'!$G$7:$K$7500,2,0)) -> TRANSPORTE COM CAMINHÃO BASCULANTE DE 6 M³, EM VIA URBANA PAVIMENTADA, DMT ATÉ 30 KM (UNIDADE: M3XKM). AF_07/2020 | E136: M3XKM | F136: =60*F137 -> 207 | G136: =IF(I136="i",VLOOKUP(C136,'Ins SINAPI BA 05-2023 Onerado'!$A$8:$E$5189,5,0),VLOOKUP(C136,'Comp SINAPI BA 05-2023 Onerado'!$G$7:$K$7500,5,0)) -> 2.79 | H136: =F136*G136 -> 577.53 | I136: CA
B137: SEINFRA-CE | C137: C4438 | D137: CONCRETO FCK > 30 MPa SUBMERSO C/ PLATAFORMA FLUTUANTE, INCLUSIVE LANÇAMENTO, CURA E TRANSPORTE | E137: M³ | F137: 3.45 | G137: 821.03 | H137: 2832.5535 | I137: i
B138: =B123 -> 5.2.5 | D138: MÃO DE OBRA | H138: =SUM(H139:H141) -> 13505.82387 | I138: mdo
B139: SICRO | C139: P9926 | D139: Mergulhador raso auxiliar de superfície | E139: h | F139: ='EQUIPE DE MERGULHO'!$F$26 -> 49.33333333 | G139: 31.434 | H139: 1550.744 | I139: ca
B140: EMBASA | C140: B010000113 | D140: MERGULHADOR PROFISSIONAL | E140: h | F140: ='EQUIPE DE MERGULHO'!$F$26 -> 49.33333333 | G140: 207.46 | H140: 10234.69333 | I140: ca
B141: SICRO | C141: P9922 | D141: Mergulhador raso dependente de emergência | E141: h | F141: ='EQUIPE DE MERGULHO'!$F$26 -> 49.33333333 | G141: 34.8727 | H141: 1720.386533 | I141: ca
B143: ='Planilha Orçamentária'!A51 -> 5.2.6 | C143: =VLOOKUP($B143,'Planilha Orçamentária'!$A$11:$K$89,3,) -> CPU.09 | D143: =VLOOKUP($B143,'Planilha Orçamentária'!$A$11:$K$89,4+2,) -> Realização de teste de comissionamento da comporta - verificação das peças fixas | E143: un | F143: 1 | H143: =SUM(H144,H148) -> 757.26 | I143: S
B144: =B143 -> 5.2.6 | D144: MATERIAL | H144: =SUM(H145) -> 305.1 | I144: SS
B145: CODE | C145: DP | D145: DIÁRIA | E145: DIA | F145: =1 -> 1 | G145: 305.1 | H145: =F145*G145 -> 305.1 | I145: i
B146: =B143 -> 5.2.6 | D146: EQUIPAMENTOS | H146: 0 | I146: SS
B147: =B143 -> 5.2.6 | D147: SERVIÇOS | H147: 0 | I147: SS
B148: =B143 -> 5.2.6 | D148: MÃO DE OBRA | H148: =SUM(H149:H149) -> 452.16 | I148: mdo
B149: SINAPI | C149: 88241 | D149: =IF(I149="i",VLOOKUP(C149,'Ins SINAPI BA 05-2023 Onerado'!$A$8:$E$5189,2,0),VLOOKUP(C149,'Comp SINAPI BA 05-2023 Onerado'!$G$7:$K$7500,2,0)) -> AJUDANTE DE OPERAÇÃO EM GERAL COM ENCARGOS COMPLEMENTARES | E149: H | F149: 16 | G149: =IF(I149="i",VLOOKUP(C149,'Ins SINAPI BA 05-2023 Onerado'!$A$8:$E$5189,5,0),VLOOKUP(C149,'Comp SINAPI BA 05-2023 Onerado'!$G$7:$K$7500,5,0)) -> 28.26 | H149: =F149*G149 -> 452.16 | I149: ca
B151: ='Planilha Orçamentária'!A52 -> 5.2.7 | C151: =VLOOKUP($B151,'Planilha Orçamentária'!$A$11:$K$89,3,) -> CPU.10 | D151: =VLOOKUP($B151,'Planilha Orçamentária'!$A$11:$K$89,4+2,) -> Realização de teste de comissionamento da comporta - operação com água | E151: un | H151: =SUM(H152,H154,H155,H156) -> 757.26 | I151: S
B152: =B151 -> 5.2.7 | D152: MATERIAL | H152: =SUM(H153) -> 305.1 | I152: ss
B153: CODE | C153: DP | D153: DIÁRIA | E153: DIA | F153: =1 -> 1 | G153: 305.1 | H153: =F153*G153 -> 305.1 | I153: i
B154: =B151 -> 5.2.7 | D154: EQUIPAMENTOS | H154: 0 | I154: ss
B155: =B151 -> 5.2.7 | D155: SERVIÇOS | H155: 0 | I155: ss
B156: =B151 -> 5.2.7 | D156: MÃO DE OBRA | H156: =SUM(H157:H157) -> 452.16 | I156: mdo
B157: SINAPI | C157: 88241 | D157: =IF(I157="i",VLOOKUP(C157,'Ins SINAPI BA 05-2023 Onerado'!$A$8:$E$5189,2,0),VLOOKUP(C157,'Comp SINAPI BA 05-2023 Onerado'!$G$7:$K$7500,2,0)) -> AJUDANTE DE OPERAÇÃO EM GERAL COM ENCARGOS COMPLEMENTARES | E157: H | F157: 16 | G157: =IF(I157="i",VLOOKUP(C157,'Ins SINAPI BA 05-2023 Onerado'!$A$8:$E$5189,5,0),VLOOKUP(C157,'Comp SINAPI BA 05-2023 Onerado'!$G$7:$K$7500,5,0)) -> 28.26 | H157: =F157*G157 -> 452.16 | I157: ca
I158: x
B159: ='Planilha Orçamentária'!A43 -> 5.1.1 | C159: =VLOOKUP($B159,'Planilha Orçamentária'!$A$11:$K$89,3,) -> CPU.11 | D159: =VLOOKUP($B159,'Planilha Orçamentária'!$A$11:$K$89,4+2,) -> Comportas ensecadeira (stop-log) em aço carbono com dimensões livres L x H = 1,20 x 1,20 m x Hs= 20,00 m.c.a. x Hconcr. = 20,0 m, a ser operada por viga pescadora (fornecimento) | E159: un | F159: 1 | H159: =SUM(H160,H162,H163,H164) -> 156587.74 | I159: S
B160: =B159 -> 5.1.1 | D160: MATERIAL | H160: =SUM(H161:H161) -> 156587.74 | I160: ss
B161: COTAÇÃO | C161: 2023-07-01 | D161: Comportas ensecadeira (stop-log) em aço carbono com dimensões livres L x H = 1,20 x 1,20 m x Hs= 20,00 m.c.a. x Hconcr. = 20,0 m, a ser operada por viga pescadora | E161: un | F161: 1 | G161: =156587.74 -> 156587.74 | H161: =F161*G161 -> 156587.74 | I161: i
B162: =B159 -> 5.1.1 | D162: EQUIPAMENTOS | H162: 0 | I162: ss
B163: =B159 -> 5.1.1 | D163: SERVIÇOS | H163: 0 | I163: ss
B164: =B159 -> 5.1.1 | D164: MÃO DE OBRA | H164: 0 | I164: mdo
I165: x
B166: ='Planilha Orçamentária'!A44 -> 5.1.2 | C166: =VLOOKUP($B166,'Planilha Orçamentária'!$A$11:$K$89,3,) -> CPU.12 | D166: =VLOOKUP($B166,'Planilha Orçamentária'!$A$11:$K$89,4+2,) -> Comportas deslizante em construção soldada de chapa de aço inoxidável, com abertura livre de L x H = 1,20 x 1,20 m x Hs = 20,0 m.c.a, x Hconcr. = 20,0 m, com acionamento elétrico (fornecimento) | E166: un | F166: 1 | H166: =SUM(H167,H169,H170,H171) -> 312224.49 | I166: S
B167: =B166 -> 5.1.2 | D167: MATERIAL | H167: =SUM(H168:H168) -> 312224.49 | I167: ss
B168: COTAÇÃO | C168: 2023-07-01 | D168: Comportas deslizante em construção soldada de chapa de aço inoxidável, com abertura livre de L x H = 1,20 x 1,20 m x Hs = 20,0 m.c.a, x Hconcr. = 20,0 m | E168: un | F168: 1 | G168: 312224.49 | H168: =F168*G168 -> 312224.49 | I168: i
B169: =B166 -> 5.1.2 | D169: EQUIPAMENTOS | H169: 0 | I169: ss
B170: =B166 -> 5.1.2 | D170: SERVIÇOS | H170: 0 | I170: ss
B171: =B166 -> 5.1.2 | D171: MÃO DE OBRA | H171: 0 | I171: mdo
I172: x
A173: =B173 -> 6.1.13 | B173: ='Planilha Orçamentária'!A68 -> 6.1.13 | C173: =VLOOKUP($B173,'Planilha Orçamentária'!$A$11:$K$89,3,) -> CPU.13 | D173: =VLOOKUP($B173,'Planilha Orçamentária'!$A$11:$K$89,4+2,) -> PONTO COM CONDULETE 1" | E173: un | F173: 1 | H173: =H174+H184+H185+H186 -> 347.15368 | I173: S
A174: =B173 -> 6.1.13 | B174: =B173 -> 6.1.13 | D174: MATERIAL | H174: =SUM(H175:H183) -> 124.412 | I174: ss
A175: =B173 -> 6.1.13 | B175: SINAPI | C175: 7528 | D175: =IF(I175="i",VLOOKUP(C175,'Ins SINAPI BA 05-2023 Onerado'!$A$8:$E$5189,2,0),VLOOKUP(C175,'Comp SINAPI BA 05-2023 Onerado'!$G$7:$K$7500,2,0)) -> TOMADA 2P+T 10A, 250V, CONJUNTO MONTADO PARA EMBUTIR 4" X 2" (PLACA + SUPORTE + MODULO) | E175: UN | F175: 1 | G175: =IF(I175="i",VLOOKUP(C175,'Ins SINAPI BA 05-2023 Onerado'!$A$8:$E$5189,5,0),VLOOKUP(C175,'Comp SINAPI BA 05-2023 Onerado'!$G$7:$K$7500,5,0)) -> 7.22 | H175: =F175*G175 -> 7.22 | I175: i
A176: =B173 -> 6.1.13 | B176: SINAPI | C176: 21136 | D176: =IF(I176="i",VLOOKUP(C176,'Ins SINAPI BA 05-2023 Onerado'!$A$8:$E$5189,2,0),VLOOKUP(C176,'Comp SINAPI BA 05-2023 Onerado'!$G$7:$K$7500,2,0)) -> ELETRODUTO EM ACO GALVANIZADO ELETROLITICO, LEVE, DIAMETRO 1", PAREDE DE 0,90 MM | E176: M | F176: 3.6 | G176: =IF(I176="i",VLOOKUP(C176,'Ins SINAPI BA 05-2023 Onerado'!$A$8:$E$5189,5,0),VLOOKUP(C176,'Comp SINAPI BA 05-2023 Onerado'!$G$7:$K$7500,5,0)) -> 11.68 | H176: 42.048 | I176: i
A177: =B173 -> 6.1.13 | B177: SINAPI | C177: 20111 | D177: =IF(I177="i",VLOOKUP(C177,'Ins SINAPI BA 05-2023 Onerado'!$A$8:$E$5189,2,0),VLOOKUP(C177,'Comp SINAPI BA 05-2023 Onerado'!$G$7:$K$7500,2,0)) -> FITA ISOLANTE ADESIVA ANTICHAMA, USO ATE 750 V, EM ROLO DE 19 MM X 20 M | E177: UN | F177: 0.12 | G177: =IF(I177="i",VLOOKUP(C177,'Ins SINAPI BA 05-2023 Onerado'!$A$8:$E$5189,5,0),VLOOKUP(C177,'Comp SINAPI BA 05-2023 Onerado'!$G$7:$K$7500,5,0)) -> 9.5 | H177: 1.14 | I177: i
A178: =B173 -> 6.1.13 | B178: SINAPI | C178: 39174 | D178: =IF(I178="i",VLOOKUP(C178,'Ins SINAPI BA 05-2023 Onerado'!$A$8:$E$5189,2,0),VLOOKUP(C178,'Comp SINAPI BA 05-2023 Onerado'!$G$7:$K$7500,2,0)) -> BUCHA EM ALUMINIO, COM ROSCA, DE 1/2", PARA ELETRODUTO | E178: UN | F178: 2 | G178: =IF(I178="i",VLOOKUP(C178,'Ins SINAPI BA 05-2023 Onerado'!$A$8:$E$5189,5,0),VLOOKUP(C178,'Comp SINAPI BA 05-2023 Onerado'!$G$7:$K$7500,5,0)) -> 1.16 | H178: 2.32 | I178: i
A179: =B173 -> 6.1.13 | B179: SINAPI | C179: 938 | D179: =IF(I179="i",VLOOKUP(C179,'Ins SINAPI BA 05-2023 Onerado'!$A$8:$E$5189,2,0),VLOOKUP(C179,'Comp SINAPI BA 05-2023 Onerado'!$G$7:$K$7500,2,0)) -> FIO DE COBRE, SOLIDO, CLASSE 1, ISOLACAO EM PVC/A, ANTICHAMA BWF-B, 450/750V, SECAO NOMINAL 1,5 MM2 | E179: M | F179: 12.2 | G179: =IF(I179="i",VLOOKUP(C179,'Ins SINAPI BA 05-2023 Onerado'!$A$8:$E$5189,5,0),VLOOKUP(C179,'Comp SINAPI BA 05-2023 Onerado'!$G$7:$K$7500,5,0)) -> 1.42 | H179: 17.324 | I179: i
A180: =B173 -> 6.1.13 | B180: SINAPI | C180: 39208 | D180: =IF(I180="i",VLOOKUP(C180,'Ins SINAPI BA 05-2023 Onerado'!$A$8:$E$5189,2,0),VLOOKUP(C180,'Comp SINAPI BA 05-2023 Onerado'!$G$7:$K$7500,2,0)) -> ARRUELA EM ALUMINIO, COM ROSCA, DE 1/2", PARA ELETRODUTO | E180: UN | F180: 2 | G180: =IF(I180="i",VLOOKUP(C180,'Ins SINAPI BA 05-2023 Onerado'!$A$8:$E$5189,5,0),VLOOKUP(C180,'Comp SINAPI BA 05-2023 Onerado'!$G$7:$K$7500,5,0)) -> 0.62 | H180: 1.24 | I180: i
A181: =B173 -> 6.1.13 | B181: SINAPI | C181: 39137 | D181: =IF(I181="i",VLOOKUP(C181,'Ins SINAPI BA 05-2023 Onerado'!$A$8:$E$5189,2,0),VLOOKUP(C181,'Comp SINAPI BA 05-2023 Onerado'!$G$7:$K$7500,2,0)) -> ABRACADEIRA EM ACO PARA AMARRACAO DE ELETRODUTOS, TIPO U SIMPLES, COM 1/2" | E181: UN | F181: 3 | G181: =IF(I181="i",VLOOKUP(C181,'Ins SINAPI BA 05-2023 Onerado'!$A$8:$E$5189,5,0),VLOOKUP(C181,'Comp SINAPI BA 05-2023 Onerado'!$G$7:$K$7500,5,0)) -> 0.72 | H181: 2.16 | I181: i
A182: =B173 -> 6.1.13 | B182: SINAPI | C182: 11950 | D182: =IF(I182="i",VLOOKUP(C182,'Ins SINAPI BA 05-2023 Onerado'!$A$8:$E$5189,2,0),VLOOKUP(C182,'Comp SINAPI BA 05-2023 Onerado'!$G$7:$K$7500,2,0)) -> BUCHA DE NYLON SEM ABA S6, COM PARAFUSO DE 4,20 X 40 MM EM ACO ZINCADO COM ROSCA SOBERBA, CABECA CHATA E FENDA PHILLIPS | E182: UN | F182: 3 | G182: =IF(I182="i",VLOOKUP(C182,'Ins SINAPI BA 05-2023 Onerado'!$A$8:$E$5189,5,0),VLOOKUP(C182,'Comp SINAPI BA 05-2023 Onerado'!$G$7:$K$7500,5,0)) -> 0.2 | H182: 0.6 | I182: i
A183: =B173 -> 6.1.13 | B183: SINAPI | C183: 95796 | D183: =IF(I183="i",VLOOKUP(C183,'Ins SINAPI BA 05-2023 Onerado'!$A$8:$E$5189,2,0),VLOOKUP(C183,'Comp SINAPI BA 05-2023 Onerado'!$G$7:$K$7500,2,0)) -> CONDULETE DE ALUMÍNIO, TIPO T, PARA ELETRODUTO DE AÇO GALVANIZADO DN 25 MM (1''), APARENTE - FORNECIMENTO E INSTALAÇÃO. AF_10/2022 | E183: UN | F183: 1 | G183: =IF(I183="i",VLOOKUP(C183,'Ins SINAPI BA 05-2023 Onerado'!$A$8:$E$5189,5,0),VLOOKUP(C183,'Comp SINAPI BA 05-2023 Onerado'!$G$7:$K$7500,5,0)) -> 50.36 | H183: 50.36 | I183: ca
B184: =B173 -> 6.1.13 | D184: EQUIPAMENTOS | H184: =SUM(H185:H185) -> 0 | I184: ss
B185: =B173 -> 6.1.13 | D185: SERVIÇOS | H185: 0 | I185: ss
B186: =B173 -> 6.1.13 | D186: MÃO DE OBRA | H186: =SUM(H187:H188) -> 222.74168 | I186: mdo
B187: SINAPI | C187: 88247 | D187: =IF(I187="i",VLOOKUP(C187,'Ins SINAPI BA 05-2023 Onerado'!$A$8:$E$5189,2,0),VLOOKUP(C187,'Comp SINAPI BA 05-2023 Onerado'!$G$7:$K$7500,2,0)) -> AUXILIAR DE ELETRICISTA COM ENCARGOS COMPLEMENTARES | E187: H | F187: 3.955 | G187: =IF(I187="i",VLOOKUP(C187,'Ins SINAPI BA 05-2023 Onerado'!$A$8:$E$5189,5,0),VLOOKUP(C187,'Comp SINAPI BA 05-2023 Onerado'!$G$7:$K$7500,5,0)) -> 22.4 | H187: =F187*G187 -> 88.592 | I187: ss
B188: SINAPI | C188: 88264 | D188: =IF(I188="i",VLOOKUP(C188,'Ins SINAPI BA 05-2023 Onerado'!$A$8:$E$5189,2,0),VLOOKUP(C188,'Comp SINAPI BA 05-2023 Onerado'!$G$7:$K$7500,2,0)) -> ELETRICISTA COM ENCARGOS COMPLEMENTARES | E188: H | F188: 4.333 | G188: =IF(I188="i",VLOOKUP(C188,'Ins SINAPI BA 05-2023 Onerado'!$A$8:$E$5189,5,0),VLOOKUP(C188,'Comp SINAPI BA 05-2023 Onerado'!$G$7:$K$7500,5,0)) -> 30.96 | H188: 134.14968 | I188: ss
I189: ca
B190: ='Planilha Orçamentária'!A69 -> 6.1.14 | C190: =VLOOKUP($B190,'Planilha Orçamentária'!$A$11:$K$89,3,) -> CPU.14 | D190: =VLOOKUP($B190,'Planilha Orçamentária'!$A$11:$K$89,4+2,) -> PONTO DE ÁGUA FRIA PARA TANQUE COM MAT. ABAS./ESGOTAMENTO | E190: un | H190: =H191+H201+H202+H203 -> 658.1962 | I190: S
B191: =B190 -> 6.1.14 | D191: MATERIAL | H191: =SUM(H192:H200) -> 132.241 | I191: ss
B192: SINAPI | C192: 3884 | D192: =IF(I192="i",VLOOKUP(C192,'Ins SINAPI BA 05-2023 Onerado'!$A$8:$E$5189,2,0),VLOOKUP(C192,'Comp SINAPI BA 05-2023 Onerado'!$G$7:$K$7500,2,0)) -> LUVA PVC, ROSCAVEL, 3/4", AGUA FRIA PREDIAL | E192: UN | F192: 1 | G192: =IF(I192="i",VLOOKUP(C192,'Ins SINAPI BA 05-2023 Onerado'!$A$8:$E$5189,5,0),VLOOKUP(C192,'Comp SINAPI BA 05-2023 Onerado'!$G$7:$K$7500,5,0)) -> 2.52 | H192: =F192*G192 -> 2.52 | I192: i
B193: SINAPI | C193: 9859 | D193: =IF(I193="i",VLOOKUP(C193,'Ins SINAPI BA 05-2023 Onerado'!$A$8:$E$5189,2,0),VLOOKUP(C193,'Comp SINAPI BA 05-2023 Onerado'!$G$7:$K$7500,2,0)) -> TUBO PVC ROSCAVEL, 3/4", AGUA FRIA PREDIAL | E193: M | F193: 6 | G193: =IF(I193="i",VLOOKUP(C193,'Ins SINAPI BA 05-2023 Onerado'!$A$8:$E$5189,5,0),VLOOKUP(C193,'Comp SINAPI BA 05-2023 Onerado'!$G$7:$K$7500,5,0)) -> 10.6 | H193: 63.6 | I193: i
B194: SINAPI | C194: 9838 | D194: =IF(I194="i",VLOOKUP(C194,'Ins SINAPI BA 05-2023 Onerado'!$A$8:$E$5189,2,0),VLOOKUP(C194,'Comp SINAPI BA 05-2023 Onerado'!$G$7:$K$7500,2,0)) -> TUBO PVC SERIE NORMAL, DN 50 MM, PARA ESGOTO PREDIAL (NBR 5688) | E194: M | F194: 3 | G194: =IF(I194="i",VLOOKUP(C194,'Ins SINAPI BA 05-2023 Onerado'!$A$8:$E$5189,5,0),VLOOKUP(C194,'Comp SINAPI BA 05-2023 Onerado'!$G$7:$K$7500,5,0)) -> 10.69 | H194: 32.07 | I194: i
B195: SINAPI | C195: 296 | D195: =IF(I195="i",VLOOKUP(C195,'Ins SINAPI BA 05-2023 Onerado'!$A$8:$E$5189,2,0),VLOOKUP(C195,'Comp SINAPI BA 05-2023 Onerado'!$G$7:$K$7500,2,0)) -> ANEL BORRACHA PARA TUBO ESGOTO PREDIAL, DN 50 MM (NBR 5688) | E195: UN | F195: 2 | G195: =IF(I195="i",VLOOKUP(C195,'Ins SINAPI BA 05-2023 Onerado'!$A$8:$E$5189,5,0),VLOOKUP(C195,'Comp SINAPI BA 05-2023 Onerado'!$G$7:$K$7500,5,0)) -> 2.03 | H195: 4.06 | I195: i
B196: SINAPI | C196: 7097 | D196: =IF(I196="i",VLOOKUP(C196,'Ins SINAPI BA 05-2023 Onerado'!$A$8:$E$5189,2,0),VLOOKUP(C196,'Comp SINAPI BA 05-2023 Onerado'!$G$7:$K$7500,2,0)) -> TE SANITARIO, PVC, DN 50 X 50 MM, SERIE NORMAL, PARA ESGOTO PREDIAL | E196: UN | F196: 1 | G196: =IF(I196="i",VLOOKUP(C196,'Ins SINAPI BA 05-2023 Onerado'!$A$8:$E$5189,5,0),VLOOKUP(C196,'Comp SINAPI BA 05-2023 Onerado'!$G$7:$K$7500,5,0)) -> 7.47 | H196: 7.47 | I196: i
B197: SINAPI | C197: 3526 | D197: =IF(I197="i",VLOOKUP(C197,'Ins SINAPI BA 05-2023 Onerado'!$A$8:$E$5189,2,0),VLOOKUP(C197,'Comp SINAPI BA 05-2023 Onerado'!$G$7:$K$7500,2,0)) -> JOELHO PVC, SOLDAVEL, PB, 90 GRAUS, DN 50 MM, PARA ESGOTO PREDIAL | E197: UN | F197: 1 | G197: =IF(I197="i",VLOOKUP(C197,'Ins SINAPI BA 05-2023 Onerado'!$A$8:$E$5189,5,0),VLOOKUP(C197,'Comp SINAPI BA 05-2023 Onerado'!$G$7:$K$7500,5,0)) -> 3.04 | H197: 3.04 | I197: i
B198: SINAPI | C198: 3143 | D198: =IF(I198="i",VLOOKUP(C198,'Ins SINAPI BA 05-2023 Onerado'!$A$8:$E$5189,2,0),VLOOKUP(C198,'Comp SINAPI BA 05-2023 Onerado'!$G$7:$K$7500,2,0)) -> FITA VEDA ROSCA EM ROLOS DE 18 MM X 25 M (L X C) | E198: UN | F198: 1.8 | G198: =IF(I198="i",VLOOKUP(C198,'Ins SINAPI BA 05-2023 Onerado'!$A$8:$E$5189,5,0),VLOOKUP(C198,'Comp SINAPI BA 05-2023 Onerado'!$G$7:$K$7500,5,0)) -> 7.41 | H198: 13.338 | I198: i
B199: SINAPI | C199: 20078 | D199: =IF(I199="i",VLOOKUP(C199,'Ins SINAPI BA 05-2023 Onerado'!$A$8:$E$5189,2,0),VLOOKUP(C199,'Comp SINAPI BA 05-2023 Onerado'!$G$7:$K$7500,2,0)) -> PASTA LUBRIFICANTE PARA TUBOS E CONEXOES COM JUNTA ELASTICA, EMBALAGEM DE *400* GR (USO EM PVC, ACO, POLIETILENO E OUTROS) | E199: UN | F199: 0.02 | G199: =IF(I199="i",VLOOKUP(C199,'Ins SINAPI BA 05-2023 Onerado'!$A$8:$E$5189,5,0),VLOOKUP(C199,'Comp SINAPI BA 05-2023 Onerado'!$G$7:$K$7500,5,0)) -> 27.15 | H199: 0.543 | I199: i
B200: SINAPI | C200: 3907 | D200: =IF(I200="i",VLOOKUP(C200,'Ins SINAPI BA 05-2023 Onerado'!$A$8:$E$5189,2,0),VLOOKUP(C200,'Comp SINAPI BA 05-2023 Onerado'!$G$7:$K$7500,2,0)) -> LUVA DE REDUCAO ROSCAVEL, PVC, 1" X 3/4", PARA AGUA FRIA PREDIAL | E200: UN | F200: 1 | G200: =IF(I200="i",VLOOKUP(C200,'Ins SINAPI BA 05-2023 Onerado'!$A$8:$E$5189,5,0),VLOOKUP(C200,'Comp SINAPI BA 05-2023 Onerado'!$G$7:$K$7500,5,0)) -> 5.6 | H200: 5.6 | I200: i
B201: =B190 -> 6.1.14 | D201: EQUIPAMENTOS | H201: =SUM(H202:H202) -> 0 | I201: ss
B202: =B190 -> 6.1.14 | D202: SERVIÇOS | H202: 0 | I202: ss
B203: =B190 -> 6.1.14 | D203: MÃO DE OBRA | H203: =SUM(H204:H205) -> 525.9552 | I203: mdo
B204: SINAPI | C204: 88248 | D204: =IF(I204="i",VLOOKUP(C204,'Ins SINAPI BA 05-2023 Onerado'!$A$8:$E$5189,2,0),VLOOKUP(C204,'Comp SINAPI BA 05-2023 Onerado'!$G$7:$K$7500,2,0)) -> AUXILIAR DE ENCANADOR OU BOMBEIRO HIDRÁULICO COM ENCARGOS COMPLEMENTARES | E204: H | F204: 11.528 | G204: =IF(I204="i",VLOOKUP(C204,'Ins SINAPI BA 05-2023 Onerado'!$A$8:$E$5189,5,0),VLOOKUP(C204,'Comp SINAPI BA 05-2023 Onerado'!$G$7:$K$7500,5,0)) -> 21.45 | H204: =F204*G204 -> 247.2756 | I204: ss
... 44 more rows

Sheet CPU DESONERADO (hidden)
B1: Ministério da Integração e do Desenvolvimento Regional
B2: Companhia de Desenvolvimento dos Vales do São Francisco e do Parnaíba
B3: ='Planilha Orçamentária'!A3 -> 0
B4: COMPOSIÇÕES DE PREÇOS UNITÁRIOS - ORÇAMENTO DESONERADO
B5: OBRA: | C5: ='Planilha Orçamentária'!B5 -> MANUTENÇÃO DA CASA DE MÁQUINA E SUBSTITUIÇÃO DAS COMPORTAS NA BARRAGEM CERAÍMA | E5: BDI (serv.): | F5: ='BDI serv Desonerado'!D23 -> 0.3351
B6: LOCAL: | C6: ='Planilha Orçamentária'!B6 -> BARRAGEM CERAÍMA (GUANAMBI - BA)
B7: DATA BASE: | C7: ='Planilha Orçamentária'!B7 -> 2023-05-01
B8: PRAZO: | C8: ='Planilha Orçamentária'!B8 -> 240 DIAS
B10: REFERÊNCIA | C10: CÓDIGO | D10: DESCRIÇÃO | E10: UNIDADE | F10: ÍNDICE | G10: CUSTO UNITÁRIO | H10: PREÇO TOTAL
A11: =B11 -> 2.1.4 | B11: ='Planilha Orçamentária Desoner'!A22 -> 2.1.4 | C11: =VLOOKUP($B11,'Planilha Orçamentária Desoner'!$A$11:$I$89,3) -> CPU.01 | D11: =VLOOKUP($B11,'Planilha Orçamentária Desoner'!$A$11:$I$89,4,) -> Mobilização e Desmobilização de canteiro | E11: un | H11: =SUM(H17,H16,H13,H12) -> 15509.874 | I11: s
A12: =B11 -> 2.1.4 | B12: =B11 -> 2.1.4 | D12: MATERIAL | I12: ss
A13: =B11 -> 2.1.4 | B13: =B11 -> 2.1.4 | D13: EQUIPAMENTOS | H13: =SUM(H14:H15) -> 15509.874 | I13: ss
A14: =B11 -> 2.1.4 | B14: SICRO | C14: E9134 | D14: Miniônibus com capacidade para 30 passageiros - 111 kW | E14: h | F14: 60 | G14: 219.4099 | H14: =F14*G14 -> 13164.594 | I14: i
A15: =B11 -> 2.1.4 | B15: SINAPI | C15: 100950 | D15: =IF(I15="i",VLOOKUP(C15,'Ins SINAPI BA 05-2023 Onerado'!$A$8:$E$5189,2,0),VLOOKUP(C15,'Comp SINAPI BA 05-2023 Onerado'!$G$7:$K$7500,2,0)) -> TRANSPORTE COM CAMINHÃO CARROCERIA COM GUINDAUTO (MUNCK), MOMENTO MÁXIMO DE CARGA 11,7 TM, EM VIA URBANA EM LEITO NATURAL (UNIDADE: TXKM). AF_07/2020 | E15: TXKM | F15: =2.8*40*2*3 -> 672 | G15: 3.49 | H15: =F15*G15 -> 2345.28 | I15: ca
A16: =B11 -> 2.1.4 | B16: =B11 -> 2.1.4 | D16: SERVIÇOS | I16: ss
A17: =B11 -> 2.1.4 | B17: =B11 -> 2.1.4 | D17: MÃO DE OBRA | H17: 0 | I17: ss
I18: x
B19: ='Planilha Orçamentária Desoner'!A24 -> 2.2.1 | C19: =VLOOKUP($B19,'Planilha Orçamentária Desoner'!$A$11:$I$89,3) -> CPU.02 | D19: =VLOOKUP($B19,'Planilha Orçamentária Desoner'!$A$11:$I$89,4,) -> PLACA DE OBRA EM CHAPA DE ACO GALVANIZADO | E19: m² | H19: =SUM(H20,H26,H27,H28) -> 442.6459 | I19: S
A20: =B19 -> 2.2.1 | B20: =B19 -> 2.2.1 | D20: MATERIAL | H20: =SUM(H21:H25) -> 376.1859 | I20: ss
A21: =B19 -> 2.2.1 | B21: SINAPI | C21: 4417 | D21: =IF(I21="i",VLOOKUP(C21,'Ins SINAPI BA 05-2023 Onerado'!$A$8:$E$5189,2,0),VLOOKUP(C21,'Comp SINAPI BA 05-2023 Onerado'!$G$7:$K$7500,2,0)) -> SARRAFO NAO APARELHADO *2,5 X 7* CM, EM MACARANDUBA, ANGELIM OU EQUIVALENTE DA REGIAO - BRUTA | E21: M | F21: 4 | G21: =IF(I21="i",VLOOKUP(C21,'Ins SINAPI BA 04-2023 Desoner'!$A$8:$E$5189,5,0),VLOOKUP(C21,'Comp SINAPI BA 04-2023 Desoner'!$G$7:$K$7500,5,0)) -> 7.18 | H21: =F21*G21 -> 28.72 | I21: I
A22: =B19 -> 2.2.1 | B22: SINAPI | C22: 4491 | D22: =IF(I22="i",VLOOKUP(C22,'Ins SINAPI BA 05-2023 Onerado'!$A$8:$E$5189,2,0),VLOOKUP(C22,'Comp SINAPI BA 05-2023 Onerado'!$G$7:$K$6879,2,0)) -> PONTALETE *7,5 X 7,5* CM EM PINUS, MISTA OU EQUIVALENTE DA REGIAO - BRUTA | E22: M | F22: 4 | G22: =IF(I22="i",VLOOKUP(C22,'Ins SINAPI BA 04-2023 Desoner'!$A$8:$E$5189,5,0),VLOOKUP(C22,'Comp SINAPI BA 04-2023 Desoner'!$G$7:$K$7500,5,0)) -> 9.65 | H22: 38.6 | I22: I
A23: =B19 -> 2.2.1 | B23: SINAPI | C23: 4813 | D23: =IF(I23="i",VLOOKUP(C23,'Ins SINAPI BA 05-2023 Onerado'!$A$8:$E$5189,2,0),VLOOKUP(C23,'Comp SINAPI BA 05-2023 Onerado'!$G$7:$K$6879,2,0)) -> PLACA DE OBRA (PARA CONSTRUCAO CIVIL) EM CHAPA GALVANIZADA *N. 22*, ADESIVADA, DE *2,4 X 1,2* M (SEM POSTES PARA FIXACAO) | E23: M2 | F23: 1 | G23: =IF(I23="i",VLOOKUP(C23,'Ins SINAPI BA 04-2023 Desoner'!$A$8:$E$5189,5,0),VLOOKUP(C23,'Comp SINAPI BA 04-2023 Desoner'!$G$7:$K$7500,5,0)) -> 302.5 | H23: 302.5 | I23: I
A24: =B19 -> 2.2.1 | B24: SINAPI | C24: 5075 | D24: =IF(I24="i",VLOOKUP(C24,'Ins SINAPI BA 05-2023 Onerado'!$A$8:$E$5189,2,0),VLOOKUP(C24,'Comp SINAPI BA 05-2023 Onerado'!$G$7:$K$6879,2,0)) -> PREGO DE ACO POLIDO COM CABECA 18 X 30 (2 3/4 X 10) | E24: KG | F24: 0.11 | G24: =IF(I24="i",VLOOKUP(C24,'Ins SINAPI BA 04-2023 Desoner'!$A$8:$E$5189,5,0),VLOOKUP(C24,'Comp SINAPI BA 04-2023 Desoner'!$G$7:$K$7500,5,0)) -> 20.34 | H24: 2.2374 | I24: I
A25: =B19 -> 2.2.1 | B25: SINAPI | C25: 94962 | D25: =IF(I25="i",VLOOKUP(C25,'Ins SINAPI BA 05-2023 Onerado'!$A$8:$E$5189,2,0),VLOOKUP(C25,'Comp SINAPI BA 05-2023 Onerado'!$G$7:$K$6879,2,0)) -> CONCRETO MAGRO PARA LASTRO, TRAÇO 1:4,5:4,5 (EM MASSA SECA DE CIMENTO/ AREIA MÉDIA/ BRITA 1) - PREPARO MECÂNICO COM BETONEIRA 400 L. AF_05/2021 | E25: M3 | F25: 0.01 | G25: =IF(I25="i",VLOOKUP(C25,'Ins SINAPI BA 04-2023 Desoner'!$A$8:$E$5189,5,0),VLOOKUP(C25,'Comp SINAPI BA 04-2023 Desoner'!$G$7:$K$7500,5,0)) -> 412.85 | H25: 4.1285 | I25: ca
A26: =B19 -> 2.2.1 | B26: =B19 -> 2.2.1 | D26: EQUIPAMENTOS | H26: 0 | I26: ss
A27: =B19 -> 2.2.1 | B27: =B19 -> 2.2.1 | D27: SERVIÇOS | H27: 0 | I27: ss
A28: =B19 -> 2.2.1 | B28: =B19 -> 2.2.1 | D28: MÃO DE OBRA | H28: =SUM(H29:H30) -> 66.46 | I28: mdo
A29: =B19 -> 2.2.1 | B29: SINAPI | C29: 88262 | D29: =IF(I29="i",VLOOKUP(C29,'Ins SINAPI BA 05-2023 Onerado'!$A$8:$E$5189,2,0),VLOOKUP(C29,'Comp SINAPI BA 05-2023 Onerado'!$G$7:$K$7500,2,0)) -> CARPINTEIRO DE FORMAS COM ENCARGOS COMPLEMENTARES | E29: H | F29: 1 | G29: =IF(I29="i",VLOOKUP(C29,'Ins SINAPI BA 04-2023 Desoner'!$A$8:$E$5189,5,0),VLOOKUP(C29,'Comp SINAPI BA 04-2023 Desoner'!$G$7:$K$7500,5,0)) -> 27.16 | H29: =F29*G29 -> 27.16 | I29: ca
A30: =B19 -> 2.2.1 | B30: SINAPI | C30: 88316 | D30: =IF(I30="i",VLOOKUP(C30,'Ins SINAPI BA 05-2023 Onerado'!$A$8:$E$5189,2,0),VLOOKUP(C30,'Comp SINAPI BA 05-2023 Onerado'!$G$7:$K$7500,2,0)) -> SERVENTE COM ENCARGOS COMPLEMENTARES | E30: H | F30: 2 | G30: =IF(I30="i",VLOOKUP(C30,'Ins SINAPI BA 04-2023 Desoner'!$A$8:$E$5189,5,0),VLOOKUP(C30,'Comp SINAPI BA 04-2023 Desoner'!$G$7:$K$7500,5,0)) -> 19.65 | H30: 39.3 | I30: ca
I31: x
A32: =B32 -> 3.1.1 | B32: ='Planilha Orçamentária Desoner'!A28 -> 3.1.1 | C32: =VLOOKUP($B32,'Planilha Orçamentária Desoner'!$A$11:$I$89,3,) -> CPU.03 | D32: =VLOOKUP($B32,'Planilha Orçamentária Desoner'!$A$11:$I$89,4,) -> Mobilização da Equipe, Camara Hiperbarica e todos os equipamentos de mergulho envolvidos na operação | E32: un | F32: 1 | H32: =SUM(H33,H35,H37) -> 41600 | I32: s
A33: =B32 -> 3.1.1 | B33: =B32 -> 3.1.1 | D33: MATERIAL | H33: 0 | I33: ss
A34: =B32 -> 3.1.1 | B34: =B32 -> 3.1.1 | D34: EQUIPAMENTOS | H34: 0 | I34: ss
A35: =B32 -> 3.1.1 | B35: =B32 -> 3.1.1 | D35: SERVIÇOS | H35: =H36 -> 41600 | I35: ss
A36: =B32 -> 3.1.1 | B36: 2023-05-01 | C36: COTAÇÃO | D36: Mobilização e desmobilização da Equipe, Camara Hiperbarica e todos os equipamentos de mergulho envolvidos na operação | E36: un | F36: 1 | G36: =2*(21000+22000+19400)/3 -> 41600 | H36: =F36*G36 -> 41600 | I36: ca
A37: =B32 -> 3.1.1 | B37: =B32 -> 3.1.1 | D37: MÃO DE OBRA | H37: 0 | I37: mdo
I38: x
A39: =B39 -> 3.2.1 | B39: ='Planilha Orçamentária Desoner'!A31 -> 3.2.1 | C39: =VLOOKUP($B39,'Planilha Orçamentária Desoner'!$A$11:$I$89,3) -> CPU.04 | D39: =VLOOKUP($B39,'Planilha Orçamentária Desoner'!$A$11:$I$89,4,) -> Plano De Trabalho Para Substituição Da Comporta | E39: un | H39: =SUM(H40,H42,H44,H45) -> 17879.97591 | I39: S
A40: =B39 -> 3.2.1 | B40: =B39 -> 3.2.1 | D40: MATERIAL | H40: =SUM(H41) -> 3661.2 | I40: ss
A41: =B39 -> 3.2.1 | B41: CODE | C41: DP | D41: DIÁRIA | E41: DIA | F41: =3*4 -> 12 | G41: 305.1 | H41: =F41*G41 -> 3661.2
A42: =B39 -> 3.2.1 | B42: =B39 -> 3.2.1 | D42: EQUIPAMENTOS | H42: =SUM(H43) -> 980.8883333 | I42: ss
A43: =B39 -> 3.2.1 | B43: CODEVASF | D43: CAMINHONETE | E43: mes | F43: 0.1666666667 | G43: 5885.33 | H43: =F43*G43 -> 980.8883333
A44: =B39 -> 3.2.1 | B44: =B39 -> 3.2.1 | D44: SERVIÇOS | I44: ss
A45: =B39 -> 3.2.1 | B45: =B39 -> 3.2.1 | D45: MÃO DE OBRA | H45: =SUM(H46:H48) -> 13237.88758 | I45: ss
A46: =B39 -> 3.2.1 | B46: SINAPI | C46: 100306 | D46: ENGENHEIRO CIVIL PLENO COM ENCARGOS COMPLEMENTARES | E46: h | F46: 40 | G46: =IF(I46="i",VLOOKUP(C46,'Ins SINAPI BA 04-2023 Desoner'!$A$8:$E$5189,5,0),VLOOKUP(C46,'Comp SINAPI BA 04-2023 Desoner'!$G$7:$K$7500,5,0)) -> 110.03 | H46: =F46*G46 -> 4401.2 | I46: ca
A47: =B39 -> 3.2.1 | B47: SINAPI | C47: 100306 | D47: ENGENHEIRO MECÂNICO PLENO COM ENCARGOS COMPLEMENTARES (BASEADO EM SINAPI 100320) | E47: h | F47: 40 | G47: =IF(I47="i",VLOOKUP(C47,'Ins SINAPI BA 04-2023 Desoner'!$A$8:$E$5189,5,0),VLOOKUP(C47,'Comp SINAPI BA 04-2023 Desoner'!$G$7:$K$7500,5,0)) -> 110.03 | H47: 4401.2 | I47: ca
A48: =B40 -> 3.2.1 | B48: SICRO3 | C48: P9864 | D48: Engenheiro de segurança do trabalho | E48: mês | F48: =1/4 -> 0.25 | G48: 17741.9503 | H48: 4435.487575 | I48: ca
I49: x
B50: ='Planilha Orçamentária Desoner'!A47 -> 5.2.2 | C50: =VLOOKUP($B50,'Planilha Orçamentária Desoner'!$A$11:$I$89,3,) -> CPU.05 | D50: =VLOOKUP($B50,'Planilha Orçamentária Desoner'!$A$11:$I$89,4,) -> Demolição e transporte do concreto das ranhuras das peças fixas existentes e demolição das peças fixas, compreendendo caminho de deslizamento, peças fixas laterais, soleira e peça fixa frontal. | E50: un | H50: =SUM(H51,H53,H63,H66) -> 33649.62912 | I50: S
B51: =B50 -> 5.2.2 | D51: MATERIAL | H51: =H52 -> 12204 | I51: SS
B52: CODE | C52: DP | D52: DIÁRIA | E52: DIA | F52: =10*4 -> 40 | G52: 305.1 | H52: =F52*G52 -> 12204 | I52: i
B53: =B50 -> 5.2.2 | D53: EQUIPAMENTOS | H53: =SUM(H54:H62) -> 11940.25027 | I53: SS
B54: SICRO | C54: E9677 | D54: Martelete perfurador/rompedor a ar comprimido de 10 kg com capacidade de 1.800 gpm | E54: h | F54: ='EQUIPE DE MERGULHO'!F23 -> 49.33333333 | G54: 28.1513 | H54: =F54*G54 -> 1388.797467 | I54: i
B55: SICRO | C55: E9640 | D55: Compressor de ar portátil de 33,51 l/s (71 PCM) - 14 kW | E55: h | F55: ='EQUIPE DE MERGULHO'!$F$23 -> 49.33333333 | G55: 26.9057 | H55: 1327.347867 | I55: i
B56: SICRO | C56: E9536 | D56: Embarcação de transporte de pessoal e apoio logístico - 30 kW | E56: h | F56: ='EQUIPE DE MERGULHO'!$F$23 -> 49.33333333 | G56: 90.6874 | H56: 4473.911733 | I56: i
B57: SICRO | C57: E9243 | D57: Câmara hiperbárica com filtro, serpentina e reservatório de ar para mergulho raso - D= 1,80 m e H = 2,22 m. | E57: h | F57: ='EQUIPE DE MERGULHO'!$F$23 -> 49.33333333 | G57: 58.3517 | H57: 2878.683867 | I57: i
B58: SICRO | C58: E9245 | D58: Estação transmissora de superfície para comunicação com fio | E58: h | F58: ='EQUIPE DE MERGULHO'!$F$23 -> 49.33333333 | G58: 0.7428 | H58: 36.6448 | I58: i
B59: SICRO | C59: E9242 | D59: Estação transmissora de superfície para televisionamento | E59: h | F59: ='EQUIPE DE MERGULHO'!$F$23 -> 49.33333333 | G59: 1.3333 | H59: 65.77613333 | I59: i
B60: SICRO | C60: E9066 | D60: Grupo gerador - 14 kVA | E60: h | F60: ='EQUIPE DE MERGULHO'!$F$23 -> 49.33333333 | G60: 19.3801 | H60: 956.0849333 | I60: i
B61: SICRO | C61: E9246 | D61: Painel de controle de ar com manômetros e pneufatômetros | E61: h | F61: ='EQUIPE DE MERGULHO'!$F$23 -> 49.33333333 | G61: 1.4255 | H61: 70.32466667 | I61: i
B62: SICRO | C62: E9248 | D62: Sistema de ar comprimido para mergulho até 30 m com pressão de trabalho de 1,4 MPa - 7,46 kW | E62: h | F62: ='EQUIPE DE MERGULHO'!$F$23 -> 49.33333333 | G62: 15.0543 | H62: 742.6788 | I62: i
B63: =B50 -> 5.2.2 | D63: SERVIÇOS | H63: =SUM(H64:H65) -> 2797.89552 | I63: SS
B64: SINAPI | C64: 100235 | D64: =IF(I64="i",VLOOKUP(C64,'Ins SINAPI BA 05-2023 Onerado'!$A$8:$E$5189,2,0),VLOOKUP(C64,'Comp SINAPI BA 05-2023 Onerado'!$G$7:$K$7500,2,0)) -> TRANSPORTE VERTICAL MANUAL, 1 PAVIMENTO, DE LATA DE 18 LITROS (UNIDADE: L). AF_07/2019 | E64: L | F64: 6741.3 | G64: =IF(I64="i",VLOOKUP(C64,'Ins SINAPI BA 04-2023 Desoner'!$A$8:$E$5189,5,0),VLOOKUP(C64,'Comp SINAPI BA 04-2023 Desoner'!$G$7:$K$7500,5,0)) -> 0.03 | H64: 202.239 | I64: ca
B65: SINAPI | C65: 97914 | D65: =IF(I65="i",VLOOKUP(C65,'Ins SINAPI BA 05-2023 Onerado'!$A$8:$E$5189,2,0),VLOOKUP(C65,'Comp SINAPI BA 05-2023 Onerado'!$G$7:$K$7500,2,0)) -> TRANSPORTE COM CAMINHÃO BASCULANTE DE 6 M³, EM VIA URBANA PAVIMENTADA, DMT ATÉ 30 KM (UNIDADE: M3XKM). AF_07/2020 | E65: M3XKM | F65: 972.156 | G65: =IF(I65="i",VLOOKUP(C65,'Ins SINAPI BA 04-2023 Desoner'!$A$8:$E$5189,5,0),VLOOKUP(C65,'Comp SINAPI BA 04-2023 Desoner'!$G$7:$K$7500,5,0)) -> 2.67 | H65: 2595.65652 | I65: ca
B66: =B50 -> 5.2.2 | D66: MÃO DE OBRA | H66: =SUM(H67:H69) -> 6707.483333 | I66: MDO
B67: SICRO | C67: P9926 | D67: Mergulhador raso auxiliar de superfície | E67: h | F67: ='EQUIPE DE MERGULHO'!$F$23 -> 49.33333333 | G67: 28.2203 | H67: 1392.201467 | I67: ca
B68: EMBASA | C68: B010000113 | D68: MERGULHADOR PROFISSIONAL | E68: h | F68: ='EQUIPE DE MERGULHO'!$F$23 -> 49.33333333 | G68: 76.19 | H68: 3758.706667 | I68: ca
B69: SICRO | C69: P9922 | D69: Mergulhador raso dependente de emergência | E69: h | F69: ='EQUIPE DE MERGULHO'!$F$23 -> 49.33333333 | G69: 31.5522 | H69: 1556.5752 | I69: ca
I70: x
B71: ='Planilha Orçamentária Desoner'!A48 -> 5.2.3 | C71: =VLOOKUP($B71,'Planilha Orçamentária Desoner'!$A$11:$I$89,3,) -> CPU.06 | D71: =VLOOKUP($B71,'Planilha Orçamentária Desoner'!$A$11:$I$89,4,) -> Preparação das ranhuras para receber as novas peças fixas | E71: un | H71: =SUM(H72,H75,H83,H84) -> 37124.06827 | I71: S
B72: =B71 -> 5.2.3 | D72: MATERIAL | H72: =SUM(H73:H74) -> 21192.48 | I72: SS
B73: CODE | C73: DP | D73: DIÁRIA | E73: DIA | F73: =10*4 -> 40 | G73: 305.1 | H73: =F73*G73 -> 12204 | I73: i
B74: SINAPI | C74: 4049 | D74: =IF(I74="i",VLOOKUP(C74,'Ins SINAPI BA 05-2023 Onerado'!$A$8:$E$5189,2,0),VLOOKUP(C74,'Comp SINAPI BA 05-2023 Onerado'!$G$7:$K$7500,2,0)) -> MASSA EPOXI BICOMPONENTE (MASSA + CATALIZADOR) | E74: L | F74: 144 | G74: =IF(I74="i",VLOOKUP(C74,'Ins SINAPI BA 04-2023 Desoner'!$A$8:$E$5189,5,0),VLOOKUP(C74,'Comp SINAPI BA 04-2023 Desoner'!$G$7:$K$7500,5,0)) -> 62.42 | H74: =F74*G74 -> 8988.48 | I74: i
B75: =B71 -> 5.2.3 | D75: EQUIPAMENTOS | H75: =SUM(H76:H82) -> 9224.104933 | I75: SS
B76: SICRO | C76: E9536 | D76: Embarcação de transporte de pessoal e apoio logístico - 30 kW | E76: h | F76: ='EQUIPE DE MERGULHO'!$F$24 -> 49.33333333 | G76: 90.6874 | H76: =F76*G76 -> 4473.911733 | I76: i
B77: SICRO | C77: E9243 | D77: Câmara hiperbárica com filtro, serpentina e reservatório de ar para mergulho raso - D= 1,80 m e H = 2,22 m. | E77: h | F77: ='EQUIPE DE MERGULHO'!$F$24 -> 49.33333333 | G77: 58.3517 | H77: 2878.683867 | I77: i
B78: SICRO | C78: E9245 | D78: Estação transmissora de superfície para comunicação com fio | E78: h | F78: ='EQUIPE DE MERGULHO'!$F$24 -> 49.33333333 | G78: 0.7428 | H78: 36.6448 | I78: i
B79: SICRO | C79: E9242 | D79: Estação transmissora de superfície para televisionamento | E79: h | F79: ='EQUIPE DE MERGULHO'!$F$24 -> 49.33333333 | G79: 1.3333 | H79: 65.77613333 | I79: i
B80: SICRO | C80: E9066 | D80: Grupo gerador - 14 kVA | E80: h | F80: ='EQUIPE DE MERGULHO'!$F$24 -> 49.33333333 | G80: 19.3801 | H80: 956.0849333 | I80: i
B81: SICRO | C81: E9246 | D81: Painel de controle de ar com manômetros e pneufatômetros | E81: h | F81: ='EQUIPE DE MERGULHO'!$F$24 -> 49.33333333 | G81: 1.4255 | H81: 70.32466667 | I81: i
B82: SICRO | C82: E9248 | D82: Sistema de ar comprimido para mergulho até 30 m com pressão de trabalho de 1,4 MPa - 7,46 kW | E82: h | F82: ='EQUIPE DE MERGULHO'!$F$24 -> 49.33333333 | G82: 15.0543 | H82: 742.6788 | I82: i
B83: =B71 -> 5.2.3 | D83: SERVIÇOS | H83: 0 | I83: ss
B84: =B72 -> 5.2.3 | D84: MÃO DE OBRA | H84: =SUM(H85:H87) -> 6707.483333 | I84: mdo
B85: SICRO | C85: P9926 | D85: Mergulhador raso auxiliar de superfície | E85: h | F85: ='EQUIPE DE MERGULHO'!$F$24 -> 49.33333333 | G85: 28.2203 | H85: =F85*G85 -> 1392.201467 | I85: ca
B86: EMBASA | C86: B010000113 | D86: MERGULHADOR PROFISSIONAL | E86: h | F86: ='EQUIPE DE MERGULHO'!$F$24 -> 49.33333333 | G86: 76.19 | H86: 3758.706667 | I86: ca
B87: SICRO | C87: P9922 | D87: Mergulhador raso dependente de emergência | E87: h | F87: ='EQUIPE DE MERGULHO'!$F$24 -> 49.33333333 | G87: 31.5522 | H87: 1556.5752 | I87: ca
I88: x
B89: ='Planilha Orçamentária Desoner'!A49 -> 5.2.4 | C89: =VLOOKUP($B89,'Planilha Orçamentária Desoner'!$A$11:$I$89,3,) -> CPU.07 | D89: =VLOOKUP($B89,'Planilha Orçamentária Desoner'!$A$11:$I$89,4,) -> Montagem das novas peças fixas | E89: un | H89: =SUM(H90,H95,H107,H108) -> 39502.90827 | I89: S
B90: =B89 -> 5.2.4 | D90: MATERIAL | H90: =SUM(H91:H94) -> 14446.04 | I90: SS
B91: CODE | C91: DP | D91: DIÁRIA | E91: DIA | F91: =10*4 -> 40 | G91: 305.1 | H91: =F91*G91 -> 12204 | I91: i
B92: SINAPI | C92: 10997 | D92: =IF(I92="i",VLOOKUP(C92,'Ins SINAPI BA 05-2023 Onerado'!$A$8:$E$5189,2,0),VLOOKUP(C92,'Comp SINAPI BA 05-2023 Onerado'!$G$7:$K$7500,2,0)) -> ELETRODO REVESTIDO AWS - E7018, DIAMETRO IGUAL A 4,00 MM | E92: KG | F92: 15 | G92: =IF(I92="i",VLOOKUP(C92,'Ins SINAPI BA 04-2023 Desoner'!$A$8:$E$5189,5,0),VLOOKUP(C92,'Comp SINAPI BA 04-2023 Desoner'!$G$7:$K$7500,5,0)) -> 33.84 | H92: =F92*G92 -> 507.6 | I92: i
B93: SINAPI | C93: 38412 | D93: =IF(I93="i",VLOOKUP(C93,'Ins SINAPI BA 05-2023 Onerado'!$A$8:$E$5189,2,0),VLOOKUP(C93,'Comp SINAPI BA 05-2023 Onerado'!$G$7:$K$7500,2,0)) -> INVERSOR DE SOLDA MONOFASICO DE 160 A, POTENCIA DE 5400 W, TENSAO DE 220 V, TURBO VENTILADO, PROTECAO POR FUSIVEL TERMICO, PARA ELETRODOS DE 2,0 A 4,0 MM | E93: un | F93: 1 | G93: =IF(I93="i",VLOOKUP(C93,'Ins SINAPI BA 04-2023 Desoner'!$A$8:$E$5189,5,0),VLOOKUP(C93,'Comp SINAPI BA 04-2023 Desoner'!$G$7:$K$7500,5,0)) -> 1199.44 | H93: 1199.44 | I93: i
B94: SINAPI | C94: 1 | D94: =IF(I94="i",VLOOKUP(C94,'Ins SINAPI BA 05-2023 Onerado'!$A$8:$E$5189,2,0),VLOOKUP(C94,'Comp SINAPI BA 05-2023 Onerado'!$G$7:$K$7500,2,0)) -> ACETILENO (RECARGA DE GAS ACETILENO PARA CILINDRO DE CONJUNTO OXICORTE GRANDE) NAO INCLUI TROCA/MANUTENCAO DO CILINDRO | E94: KG | F94: 5 | G94: =IF(I94="i",VLOOKUP(C94,'Ins SINAPI BA 04-2023 Desoner'!$A$8:$E$5189,5,0),VLOOKUP(C94,'Comp SINAPI BA 04-2023 Desoner'!$G$7:$K$7500,5,0)) -> 107 | H94: 535 | I94: i
B95: =B89 -> 5.2.4 | D95: EQUIPAMENTOS | H95: =SUM(H96:H106) -> 18349.38493 | I95: SS
B96: SINAPI | C96: 102867 | D96: =IF(I96="i",VLOOKUP(C96,'Ins SINAPI BA 05-2023 Onerado'!$A$8:$E$5189,2,0),VLOOKUP(C96,'Comp SINAPI BA 05-2023 Onerado'!$G$7:$K$7500,2,0)) -> MÁQUINA SOLDA ARCO COM PISTOLA DE SOLDAGEM PARA STUD BOLT DE 5 MM A 22 MM - MATERIAIS NA OPERAÇÃO. AF_05/2023 | E96: h | F96: ='EQUIPE DE MERGULHO'!$F$25 -> 49.33333333 | G96: =IF(I96="i",VLOOKUP(C96,'Ins SINAPI BA 04-2023 Desoner'!$A$8:$E$5189,5,0),VLOOKUP(C96,'Comp SINAPI BA 04-2023 Desoner'!$G$7:$K$7500,5,0)) -> 0.72 | H96: 35.52 | I96: ca
B97: SICRO | C97: E9536 | D97: Embarcação de transporte de pessoal e apoio logístico - 30 kW | E97: h | F97: ='EQUIPE DE MERGULHO'!$F$25 -> 49.33333333 | G97: 90.6874 | H97: 4473.911733 | I97: i
B98: SICRO | C98: E9243 | D98: Câmara hiperbárica com filtro, serpentina e reservatório de ar para mergulho raso - D= 1,80 m e H = 2,22 m. | E98: h | F98: ='EQUIPE DE MERGULHO'!$F$25 -> 49.33333333 | G98: 58.3517 | H98: 2878.683867 | I98: i
B99: SICRO | C99: E9245 | D99: Estação transmissora de superfície para comunicação com fio | E99: h | F99: ='EQUIPE DE MERGULHO'!$F$25 -> 49.33333333 | G99: 0.7428 | H99: 36.6448 | I99: i
B100: SICRO | C100: E9242 | D100: Estação transmissora de superfície para televisionamento | E100: h | F100: ='EQUIPE DE MERGULHO'!$F$25 -> 49.33333333 | G100: 1.3333 | H100: 65.77613333 | I100: i
B101: SICRO | C101: E9066 | D101: Grupo gerador - 14 kVA | E101: h | F101: ='EQUIPE DE MERGULHO'!$F$25 -> 49.33333333 | G101: 19.3801 | H101: 956.0849333 | I101: i
B102: SICRO | C102: E9246 | D102: Painel de controle de ar com manômetros e pneufatômetros | E102: h | F102: ='EQUIPE DE MERGULHO'!$F$25 -> 49.33333333 | G102: 1.4255 | H102: 70.32466667 | I102: i
B103: SICRO | C103: E9248 | D103: Sistema de ar comprimido para mergulho até 30 m com pressão de trabalho de 1,4 MPa - 7,46 kW | E103: h | F103: ='EQUIPE DE MERGULHO'!$F$25 -> 49.33333333 | G103: 15.0543 | H103: 742.6788 | I103: i
B104: SINAPI | C104: 92715 | D104: =IF(I104="i",VLOOKUP(C104,'Ins SINAPI BA 05-2023 Onerado'!$A$8:$E$5189,2,0),VLOOKUP(C104,'Comp SINAPI BA 05-2023 Onerado'!$G$7:$K$7500,2,0)) -> APARELHO PARA CORTE E SOLDA OXI-ACETILENO SOBRE RODAS, INCLUSIVE CILINDROS E MAÇARICOS - MATERIAIS NA OPERAÇÃO. AF_05/2023 | E104: H | F104: 36 | G104: =IF(I104="i",VLOOKUP(C104,'Ins SINAPI BA 04-2023 Desoner'!$A$8:$E$5189,5,0),VLOOKUP(C104,'Comp SINAPI BA 04-2023 Desoner'!$G$7:$K$7500,5,0)) -> 112.36 | H104: 4044.96 | I104: ca
B105: SINAPI | C105: 10527 | D105: =IF(I105="i",VLOOKUP(C105,'Ins SINAPI BA 05-2023 Onerado'!$A$8:$E$5189,2,0),VLOOKUP(C105,'Comp SINAPI BA 05-2023 Onerado'!$G$7:$K$7500,2,0)) -> LOCACAO DE ANDAIME METALICO TUBULAR DE ENCAIXE, TIPO DE TORRE, CADA PAINEL COM LARGURA DE 1 ATE 1,5 M E ALTURA DE *1,00* M, INCLUINDO DIAGONAL, BARRAS DE LIGACAO, SAPATAS OU RODIZIOS E DEMAIS ITENS NECESSARIOS A MONTAGEM (NAO INCLUI INSTALACAO) | E105: MXMES | F105: 12 | G105: =IF(I105="i",VLOOKUP(C105,'Ins SINAPI BA 04-2023 Desoner'!$A$8:$E$5189,5,0),VLOOKUP(C105,'Comp SINAPI BA 04-2023 Desoner'!$G$7:$K$7500,5,0)) -> 20 | H105: 240 | I105: i
B106: SINAPI | C106: 89272 | D106: =IF(I106="i",VLOOKUP(C106,'Ins SINAPI BA 05-2023 Onerado'!$A$8:$E$5189,2,0),VLOOKUP(C106,'Comp SINAPI BA 05-2023 Onerado'!$G$7:$K$7500,2,0)) -> GUINDASTE HIDRÁULICO AUTOPROPELIDO, COM LANÇA TELESCÓPICA 28,80 M, CAPACIDADE MÁXIMA 30 T, POTÊNCIA 97 KW, TRAÇÃO 4 X 4 - CHP DIURNO. AF_11/2014 | E106: CHP | F106: 24 | G106: =IF(I106="i",VLOOKUP(C106,'Ins SINAPI BA 04-2023 Desoner'!$A$8:$E$5189,5,0),VLOOKUP(C106,'Comp SINAPI BA 04-2023 Desoner'!$G$7:$K$7500,5,0)) -> 200.2 | H106: 4804.8 | I106: ca
B107: =B89 -> 5.2.4 | D107: SERVIÇOS | H107: 0 | I107: SS
B108: =B89 -> 5.2.4 | D108: MÃO DE OBRA | H108: =SUM(H109:H111) -> 6707.483333 | I108: MDO
B109: SICRO | C109: P9926 | D109: Mergulhador raso auxiliar de superfície | E109: h | F109: ='EQUIPE DE MERGULHO'!$F$25 -> 49.33333333 | G109: 28.2203 | H109: =F109*G109 -> 1392.201467 | I109: ca
B110: EMBASA | C110: B010000113 | D110: MERGULHADOR PROFISSIONAL | E110: h | F110: ='EQUIPE DE MERGULHO'!$F$25 -> 49.33333333 | G110: 76.19 | H110: 3758.706667 | I110: ca
B111: SICRO | C111: P9922 | D111: Mergulhador raso dependente de emergência | E111: h | F111: ='EQUIPE DE MERGULHO'!$F$25 -> 49.33333333 | G111: 31.5522 | H111: 1556.5752 | I111: ca
I112: x
B113: ='Planilha Orçamentária Desoner'!A50 -> 5.2.5 | C113: =VLOOKUP($B113,'Planilha Orçamentária Desoner'!$A$11:$I$89,3,) -> CPU.08 | D113: =VLOOKUP($B113,'Planilha Orçamentária Desoner'!$A$11:$I$89,4,) -> Concretagem das novas peças fixas | E113: un | H113: =SUM(H114,H118,H126,H129) -> 31704.70177 | I113: S
B114: =B113 -> 5.2.5 | D114: MATERIAL | H114: =SUM(H115:H117) -> 12387.87 | I114: ss
B115: CODE | C115: DP | D115: DIÁRIA | E115: DIA | F115: =10*4 -> 40 | G115: 305.1 | H115: =F115*G115 -> 12204 | I115: i
B116: SINAPI | C116: 4491 | D116: =IF(I116="i",VLOOKUP(C116,'Ins SINAPI BA 05-2023 Onerado'!$A$8:$E$5189,2,0),VLOOKUP(C116,'Comp SINAPI BA 05-2023 Onerado'!$G$7:$K$7500,2,0)) -> PONTALETE *7,5 X 7,5* CM EM PINUS, MISTA OU EQUIVALENTE DA REGIAO - BRUTA | E116: M | F116: 15 | G116: =IF(I116="i",VLOOKUP(C116,'Ins SINAPI BA 04-2023 Desoner'!$A$8:$E$5189,5,0),VLOOKUP(C116,'Comp SINAPI BA 04-2023 Desoner'!$G$7:$K$7500,5,0)) -> 9.65 | H116: 144.75 | I116: i
B117: SINAPI | C117: 4509 | D117: =IF(I117="i",VLOOKUP(C117,'Ins SINAPI BA 05-2023 Onerado'!$A$8:$E$5189,2,0),VLOOKUP(C117,'Comp SINAPI BA 05-2023 Onerado'!$G$7:$K$7500,2,0)) -> SARRAFO *2,5 X 10* CM EM PINUS, MISTA OU EQUIVALENTE DA REGIAO - BRUTA | E117: M | F117: 8 | G117: =IF(I117="i",VLOOKUP(C117,'Ins SINAPI BA 04-2023 Desoner'!$A$8:$E$5189,5,0),VLOOKUP(C117,'Comp SINAPI BA 04-2023 Desoner'!$G$7:$K$7500,5,0)) -> 4.89 | H117: =F117*G117 -> 39.12 | I117: i
B118: =B113 -> 5.2.5 | D118: EQUIPAMENTOS | H118: =SUM(H119:H125) -> 9224.104933 | I118: ss
B119: SICRO | C119: E9536 | D119: Embarcação de transporte de pessoal e apoio logístico - 30 kW | E119: h | F119: ='EQUIPE DE MERGULHO'!$F$26 -> 49.33333333 | G119: 90.6874 | H119: =F119*G119 -> 4473.911733 | I119: i
B120: SICRO | C120: E9243 | D120: Câmara hiperbárica com filtro, serpentina e reservatório de ar para mergulho raso - D= 1,80 m e H = 2,22 m. | E120: h | F120: ='EQUIPE DE MERGULHO'!$F$26 -> 49.33333333 | G120: 58.3517 | H120: 2878.683867 | I120: i
B121: SICRO | C121: E9245 | D121: Estação transmissora de superfície para comunicação com fio | E121: h | F121: ='EQUIPE DE MERGULHO'!$F$26 -> 49.33333333 | G121: 0.7428 | H121: 36.6448 | I121: i
B122: SICRO | C122: E9242 | D122: Estação transmissora de superfície para televisionamento | E122: h | F122: ='EQUIPE DE MERGULHO'!$F$26 -> 49.33333333 | G122: 1.3333 | H122: 65.77613333 | I122: i
B123: SICRO | C123: E9066 | D123: Grupo gerador - 14 kVA | E123: h | F123: ='EQUIPE DE MERGULHO'!$F$26 -> 49.33333333 | G123: 19.3801 | H123: 956.0849333 | I123: i
B124: SICRO | C124: E9246 | D124: Painel de controle de ar com manômetros e pneufatômetros | E124: h | F124: ='EQUIPE DE MERGULHO'!$F$26 -> 49.33333333 | G124: 1.4255 | H124: 70.32466667 | I124: i
B125: SICRO | C125: E9248 | D125: Sistema de ar comprimido para mergulho até 30 m com pressão de trabalho de 1,4 MPa - 7,46 kW | E125: h | F125: ='EQUIPE DE MERGULHO'!$F$26 -> 49.33333333 | G125: 15.0543 | H125: 742.6788 | I125: i
B126: =B113 -> 5.2.5 | D126: SERVIÇOS | H126: =SUM(H127:H128) -> 3385.2435 | I126: ss
B127: SINAPI | C127: 97914 | D127: =IF(I127="i",VLOOKUP(C127,'Ins SINAPI BA 05-2023 Onerado'!$A$8:$E$5189,2,0),VLOOKUP(C127,'Comp SINAPI BA 05-2023 Onerado'!$G$7:$K$7500,2,0)) -> TRANSPORTE COM CAMINHÃO BASCULANTE DE 6 M³, EM VIA URBANA PAVIMENTADA, DMT ATÉ 30 KM (UNIDADE: M3XKM). AF_07/2020 | E127: M3XKM | F127: =60*F128 -> 207 | G127: =IF(I127="i",VLOOKUP(C127,'Ins SINAPI BA 04-2023 Desoner'!$A$8:$E$5189,5,0),VLOOKUP(C127,'Comp SINAPI BA 04-2023 Desoner'!$G$7:$K$7500,5,0)) -> 2.67 | H127: =F127*G127 -> 552.69 | I127: ca
B128: SEINFRA-CE | C128: C4438 | D128: CONCRETO FCK > 30 MPa SUBMERSO C/ PLATAFORMA FLUTUANTE, INCLUSIVE LANÇAMENTO, CURA E TRANSPORTE | E128: M³ | F128: 3.45 | G128: 821.03 | H128: 2832.5535 | I128: i
B129: =B114 -> 5.2.5 | D129: MÃO DE OBRA | H129: =SUM(H130:H132) -> 6707.483333 | I129: mdo
B130: SICRO | C130: P9926 | D130: Mergulhador raso auxiliar de superfície | E130: h | F130: ='EQUIPE DE MERGULHO'!$F$26 -> 49.33333333 | G130: 28.2203 | H130: 1392.201467 | I130: ca
B131: EMBASA | C131: B010000113 | D131: MERGULHADOR PROFISSIONAL | E131: h | F131: ='EQUIPE DE MERGULHO'!$F$26 -> 49.33333333 | G131: 76.19 | H131: 3758.706667 | I131: ca
B132: SICRO | C132: P9922 | D132: Mergulhador raso dependente de emergência | E132: h | F132: ='EQUIPE DE MERGULHO'!$F$26 -> 49.33333333 | G132: 31.5522 | H132: 1556.5752 | I132: ca
I133: x
B134: ='Planilha Orçamentária Desoner'!A51 -> 5.2.6 | C134: =VLOOKUP($B134,'Planilha Orçamentária Desoner'!$A$11:$I$89,3,) -> CPU.09 | D134: =VLOOKUP($B134,'Planilha Orçamentária Desoner'!$A$11:$I$89,4,) -> Realização de teste de comissionamento da comporta - verificação das peças fixas | E134: un | F134: 1 | H134: =SUM(H135,H139) -> 713.42 | I134: S
B135: =B134 -> 5.2.6 | D135: MATERIAL | H135: =H136 -> 305.1 | I135: SS
B136: CODE | C136: DP | D136: DIÁRIA | E136: DIA | F136: =1 -> 1 | G136: 305.1 | H136: =F136*G136 -> 305.1 | I136: i
B137: =B134 -> 5.2.6 | D137: EQUIPAMENTOS | H137: 0 | I137: SS
B138: =B134 -> 5.2.6 | D138: SERVIÇOS | H138: 0 | I138: SS
B139: =B134 -> 5.2.6 | D139: MÃO DE OBRA | H139: =SUM(H140:H140) -> 408.32 | I139: mdo
B140: SINAPI | C140: 88241 | D140: =IF(I140="i",VLOOKUP(C140,'Ins SINAPI BA 05-2023 Onerado'!$A$8:$E$5189,2,0),VLOOKUP(C140,'Comp SINAPI BA 05-2023 Onerado'!$G$7:$K$7500,2,0)) -> AJUDANTE DE OPERAÇÃO EM GERAL COM ENCARGOS COMPLEMENTARES | E140: H | F140: 16 | G140: =IF(I140="i",VLOOKUP(C140,'Ins SINAPI BA 04-2023 Desoner'!$A$8:$E$5189,5,0),VLOOKUP(C140,'Comp SINAPI BA 04-2023 Desoner'!$G$7:$K$7500,5,0)) -> 25.52 | H140: =F140*G140 -> 408.32 | I140: ca
B142: ='Planilha Orçamentária Desoner'!A52 -> 5.2.7 | C142: =VLOOKUP($B142,'Planilha Orçamentária Desoner'!$A$11:$I$89,3,) -> CPU.10 | D142: =VLOOKUP($B142,'Planilha Orçamentária Desoner'!$A$11:$I$89,4,) -> Realização de teste de comissionamento da comporta - operação com água | E142: un | H142: =SUM(H143,H147) -> 713.42 | I142: S
B143: =B142 -> 5.2.7 | D143: MATERIAL | H143: =H144 -> 305.1 | I143: ss
B144: CODE | C144: DP | D144: DIÁRIA | E144: DIA | F144: =1 -> 1 | G144: 305.1 | H144: =F144*G144 -> 305.1 | I144: i
B145: =B142 -> 5.2.7 | D145: EQUIPAMENTOS | H145: 0 | I145: ss
B146: =B142 -> 5.2.7 | D146: SERVIÇOS | H146: 0 | I146: ss
B147: =B142 -> 5.2.7 | D147: MÃO DE OBRA | H147: =SUM(H148:H148) -> 408.32 | I147: mdo
B148: SINAPI | C148: 88241 | D148: =IF(I148="i",VLOOKUP(C148,'Ins SINAPI BA 05-2023 Onerado'!$A$8:$E$5189,2,0),VLOOKUP(C148,'Comp SINAPI BA 05-2023 Onerado'!$G$7:$K$7500,2,0)) -> AJUDANTE DE OPERAÇÃO EM GERAL COM ENCARGOS COMPLEMENTARES | E148: H | F148: 16 | G148: =IF(I148="i",VLOOKUP(C148,'Ins SINAPI BA 04-2023 Desoner'!$A$8:$E$5189,5,0),VLOOKUP(C148,'Comp SINAPI BA 04-2023 Desoner'!$G$7:$K$7500,5,0)) -> 25.52 | H148: =F148*G148 -> 408.32 | I148: ca
I149: x
A150: 4.10 | B150: ='Planilha Orçamentária Desoner'!A68 -> 6.1.13 | C150: =VLOOKUP($B150,'Planilha Orçamentária Desoner'!$A$11:$I$89,3,) -> CPU.11 | D150: =VLOOKUP($B150,'Planilha Orçamentária Desoner'!$A$11:$I$89,4,) -> PONTO COM CONDULETE 1" | E150: un | F150: 1 | H150: =H151+H161+H162+H163 -> 324.14447 | I150: s
B151: =B150 -> 6.1.13 | D151: MATERIAL | H151: =SUM(H152:H160) -> 122.634 | I151: ss
A152: =B150 -> 6.1.13 | B152: SINAPI | C152: 7528 | D152: =IF(I152="i",VLOOKUP(C152,'Ins SINAPI BA 05-2023 Onerado'!$A$8:$E$5189,2,0),VLOOKUP(C152,'Comp SINAPI BA 05-2023 Onerado'!$G$7:$K$7500,2,0)) -> TOMADA 2P+T 10A, 250V, CONJUNTO MONTADO PARA EMBUTIR 4" X 2" (PLACA + SUPORTE + MODULO) | E152: UN | F152: 1 | G152: =IF(I152="i",VLOOKUP(C152,'Ins SINAPI BA 04-2023 Desoner'!$A$8:$E$5189,5,0),VLOOKUP(C152,'Comp SINAPI BA 04-2023 Desoner'!$G$7:$K$7500,5,0)) -> 7.5 | H152: =F152*G152 -> 7.5 | I152: i
A153: =B150 -> 6.1.13 | B153: SINAPI | C153: 21136 | D153: =IF(I153="i",VLOOKUP(C153,'Ins SINAPI BA 05-2023 Onerado'!$A$8:$E$5189,2,0),VLOOKUP(C153,'Comp SINAPI BA 05-2023 Onerado'!$G$7:$K$7500,2,0)) -> ELETRODUTO EM ACO GALVANIZADO ELETROLITICO, LEVE, DIAMETRO 1", PAREDE DE 0,90 MM | E153: M | F153: 3.6 | G153: =IF(I153="i",VLOOKUP(C153,'Ins SINAPI BA 04-2023 Desoner'!$A$8:$E$5189,5,0),VLOOKUP(C153,'Comp SINAPI BA 04-2023 Desoner'!$G$7:$K$7500,5,0)) -> 12.16 | H153: 43.776 | I153: i
A154: =B150 -> 6.1.13 | B154: SINAPI | C154: 20111 | D154: =IF(I154="i",VLOOKUP(C154,'Ins SINAPI BA 05-2023 Onerado'!$A$8:$E$5189,2,0),VLOOKUP(C154,'Comp SINAPI BA 05-2023 Onerado'!$G$7:$K$7500,2,0)) -> FITA ISOLANTE ADESIVA ANTICHAMA, USO ATE 750 V, EM ROLO DE 19 MM X 20 M | E154: UN | F154: 0.12 | G154: =IF(I154="i",VLOOKUP(C154,'Ins SINAPI BA 04-2023 Desoner'!$A$8:$E$5189,5,0),VLOOKUP(C154,'Comp SINAPI BA 04-2023 Desoner'!$G$7:$K$7500,5,0)) -> 9.5 | H154: 1.14 | I154: i
A155: =B150 -> 6.1.13 | B155: SINAPI | C155: 39174 | D155: =IF(I155="i",VLOOKUP(C155,'Ins SINAPI BA 05-2023 Onerado'!$A$8:$E$5189,2,0),VLOOKUP(C155,'Comp SINAPI BA 05-2023 Onerado'!$G$7:$K$7500,2,0)) -> BUCHA EM ALUMINIO, COM ROSCA, DE 1/2", PARA ELETRODUTO | E155: UN | F155: 2 | G155: =IF(I155="i",VLOOKUP(C155,'Ins SINAPI BA 04-2023 Desoner'!$A$8:$E$5189,5,0),VLOOKUP(C155,'Comp SINAPI BA 04-2023 Desoner'!$G$7:$K$7500,5,0)) -> 1.11 | H155: 2.22 | I155: i
A156: =B150 -> 6.1.13 | B156: SINAPI | C156: 938 | D156: =IF(I156="i",VLOOKUP(C156,'Ins SINAPI BA 05-2023 Onerado'!$A$8:$E$5189,2,0),VLOOKUP(C156,'Comp SINAPI BA 05-2023 Onerado'!$G$7:$K$7500,2,0)) -> FIO DE COBRE, SOLIDO, CLASSE 1, ISOLACAO EM PVC/A, ANTICHAMA BWF-B, 450/750V, SECAO NOMINAL 1,5 MM2 | E156: M | F156: 12.2 | G156: =IF(I156="i",VLOOKUP(C156,'Ins SINAPI BA 04-2023 Desoner'!$A$8:$E$5189,5,0),VLOOKUP(C156,'Comp SINAPI BA 04-2023 Desoner'!$G$7:$K$7500,5,0)) -> 1.39 | H156: 16.958 | I156: i
A157: =B150 -> 6.1.13 | B157: SINAPI | C157: 39208 | D157: =IF(I157="i",VLOOKUP(C157,'Ins SINAPI BA 05-2023 Onerado'!$A$8:$E$5189,2,0),VLOOKUP(C157,'Comp SINAPI BA 05-2023 Onerado'!$G$7:$K$7500,2,0)) -> ARRUELA EM ALUMINIO, COM ROSCA, DE 1/2", PARA ELETRODUTO | E157: UN | F157: 2 | G157: =IF(I157="i",VLOOKUP(C157,'Ins SINAPI BA 04-2023 Desoner'!$A$8:$E$5189,5,0),VLOOKUP(C157,'Comp SINAPI BA 04-2023 Desoner'!$G$7:$K$7500,5,0)) -> 0.59 | H157: 1.18 | I157: i
A158: =B150 -> 6.1.13 | B158: SINAPI | C158: 39137 | D158: =IF(I158="i",VLOOKUP(C158,'Ins SINAPI BA 05-2023 Onerado'!$A$8:$E$5189,2,0),VLOOKUP(C158,'Comp SINAPI BA 05-2023 Onerado'!$G$7:$K$7500,2,0)) -> ABRACADEIRA EM ACO PARA AMARRACAO DE ELETRODUTOS, TIPO U SIMPLES, COM 1/2" | E158: UN | F158: 3 | G158: =IF(I158="i",VLOOKUP(C158,'Ins SINAPI BA 04-2023 Desoner'!$A$8:$E$5189,5,0),VLOOKUP(C158,'Comp SINAPI BA 04-2023 Desoner'!$G$7:$K$7500,5,0)) -> 0.77 | H158: 2.31 | I158: i
A159: =B150 -> 6.1.13 | B159: SINAPI | C159: 11950 | D159: =IF(I159="i",VLOOKUP(C159,'Ins SINAPI BA 05-2023 Onerado'!$A$8:$E$5189,2,0),VLOOKUP(C159,'Comp SINAPI BA 05-2023 Onerado'!$G$7:$K$7500,2,0)) -> BUCHA DE NYLON SEM ABA S6, COM PARAFUSO DE 4,20 X 40 MM EM ACO ZINCADO COM ROSCA SOBERBA, CABECA CHATA E FENDA PHILLIPS | E159: UN | F159: 3 | G159: =IF(I159="i",VLOOKUP(C159,'Ins SINAPI BA 04-2023 Desoner'!$A$8:$E$5189,5,0),VLOOKUP(C159,'Comp SINAPI BA 04-2023 Desoner'!$G$7:$K$7500,5,0)) -> 0.2 | H159: 0.6 | I159: i
A160: =B150 -> 6.1.13 | B160: SINAPI | C160: 95796 | D160: =IF(I160="i",VLOOKUP(C160,'Ins SINAPI BA 05-2023 Onerado'!$A$8:$E$5189,2,0),VLOOKUP(C160,'Comp SINAPI BA 05-2023 Onerado'!$G$7:$K$7500,2,0)) -> CONDULETE DE ALUMÍNIO, TIPO T, PARA ELETRODUTO DE AÇO GALVANIZADO DN 25 MM (1''), APARENTE - FORNECIMENTO E INSTALAÇÃO. AF_10/2022 | E160: UN | F160: 1 | G160: =IF(I160="i",VLOOKUP(C160,'Ins SINAPI BA 04-2023 Desoner'!$A$8:$E$5189,5,0),VLOOKUP(C160,'Comp SINAPI BA 04-2023 Desoner'!$G$7:$K$7500,5,0)) -> 46.95 | H160: 46.95 | I160: ca
B161: =B150 -> 6.1.13 | D161: EQUIPAMENTOS | H161: =SUM(H162:H162) -> 0 | I161: ss
B162: =B150 -> 6.1.13 | D162: SERVIÇOS | H162: 0 | I162: ss
B163: =B150 -> 6.1.13 | D163: MÃO DE OBRA | H163: =SUM(H164:H165) -> 201.51047 | I163: mdo
B164: SINAPI | C164: 88247 | D164: =IF(I164="i",VLOOKUP(C164,'Ins SINAPI BA 05-2023 Onerado'!$A$8:$E$5189,2,0),VLOOKUP(C164,'Comp SINAPI BA 05-2023 Onerado'!$G$7:$K$7500,2,0)) -> AUXILIAR DE ELETRICISTA COM ENCARGOS COMPLEMENTARES | E164: H | F164: 3.955 | G164: =IF(I164="i",VLOOKUP(C164,'Ins SINAPI BA 04-2023 Desoner'!$A$8:$E$5189,5,0),VLOOKUP(C164,'Comp SINAPI BA 04-2023 Desoner'!$G$7:$K$7500,5,0)) -> 20.45 | H164: =F164*G164 -> 80.87975 | I164: ca
B165: SINAPI | C165: 88264 | D165: =IF(I165="i",VLOOKUP(C165,'Ins SINAPI BA 05-2023 Onerado'!$A$8:$E$5189,2,0),VLOOKUP(C165,'Comp SINAPI BA 05-2023 Onerado'!$G$7:$K$7500,2,0)) -> ELETRICISTA COM ENCARGOS COMPLEMENTARES | E165: H | F165: 4.333 | G165: =IF(I165="i",VLOOKUP(C165,'Ins SINAPI BA 04-2023 Desoner'!$A$8:$E$5189,5,0),VLOOKUP(C165,'Comp SINAPI BA 04-2023 Desoner'!$G$7:$K$7500,5,0)) -> 27.84 | H165: 120.63072 | I165: ca
B167: ='Planilha Orçamentária Desoner'!A69 -> 6.1.14 | C167: =VLOOKUP($B167,'Planilha Orçamentária Desoner'!$A$11:$I$89,3,) -> CPU.12 | D167: =VLOOKUP($B167,'Planilha Orçamentária Desoner'!$A$11:$I$89,4,) -> PONTO DE ÁGUA FRIA PARA TANQUE COM MAT. ABAS./ESGOTAMENTO | E167: un | H167: =H168+H178+H179+H180 -> 607.54984 | I167: s
B168: =B167 -> 6.1.14 | D168: MATERIAL | H168: =SUM(H169:H177) -> 132.066 | I168: ss
B169: SINAPI | C169: 3884 | D169: =IF(I169="i",VLOOKUP(C169,'Ins SINAPI BA 05-2023 Onerado'!$A$8:$E$5189,2,0),VLOOKUP(C169,'Comp SINAPI BA 05-2023 Onerado'!$G$7:$K$7500,2,0)) -> LUVA PVC, ROSCAVEL, 3/4", AGUA FRIA PREDIAL | E169: UN | F169: 1 | G169: =IF(I169="i",VLOOKUP(C169,'Ins SINAPI BA 04-2023 Desoner'!$A$8:$E$5189,5,0),VLOOKUP(C169,'Comp SINAPI BA 04-2023 Desoner'!$G$7:$K$7500,5,0)) -> 2.49 | H169: =F169*G169 -> 2.49 | I169: i
B170: SINAPI | C170: 9859 | D170: =IF(I170="i",VLOOKUP(C170,'Ins SINAPI BA 05-2023 Onerado'!$A$8:$E$5189,2,0),VLOOKUP(C170,'Comp SINAPI BA 05-2023 Onerado'!$G$7:$K$7500,2,0)) -> TUBO PVC ROSCAVEL, 3/4", AGUA FRIA PREDIAL | E170: M | F170: 6 | G170: =IF(I170="i",VLOOKUP(C170,'Ins SINAPI BA 04-2023 Desoner'!$A$8:$E$5189,5,0),VLOOKUP(C170,'Comp SINAPI BA 04-2023 Desoner'!$G$7:$K$7500,5,0)) -> 10.48 | H170: 62.88 | I170: i
B171: SINAPI | C171: 9838 | D171: =IF(I171="i",VLOOKUP(C171,'Ins SINAPI BA 05-2023 Onerado'!$A$8:$E$5189,2,0),VLOOKUP(C171,'Comp SINAPI BA 05-2023 Onerado'!$G$7:$K$7500,2,0)) -> TUBO PVC SERIE NORMAL, DN 50 MM, PARA ESGOTO PREDIAL (NBR 5688) | E171: M | F171: 3 | G171: =IF(I171="i",VLOOKUP(C171,'Ins SINAPI BA 04-2023 Desoner'!$A$8:$E$5189,5,0),VLOOKUP(C171,'Comp SINAPI BA 04-2023 Desoner'!$G$7:$K$7500,5,0)) -> 10.81 | H171: 32.43 | I171: i
B172: SINAPI | C172: 296 | D172: =IF(I172="i",VLOOKUP(C172,'Ins SINAPI BA 05-2023 Onerado'!$A$8:$E$5189,2,0),VLOOKUP(C172,'Comp SINAPI BA 05-2023 Onerado'!$G$7:$K$7500,2,0)) -> ANEL BORRACHA PARA TUBO ESGOTO PREDIAL, DN 50 MM (NBR 5688) | E172: UN | F172: 2 | G172: =IF(I172="i",VLOOKUP(C172,'Ins SINAPI BA 04-2023 Desoner'!$A$8:$E$5189,5,0),VLOOKUP(C172,'Comp SINAPI BA 04-2023 Desoner'!$G$7:$K$7500,5,0)) -> 2.03 | H172: 4.06 | I172: i
B173: SINAPI | C173: 7097 | D173: =IF(I173="i",VLOOKUP(C173,'Ins SINAPI BA 05-2023 Onerado'!$A$8:$E$5189,2,0),VLOOKUP(C173,'Comp SINAPI BA 05-2023 Onerado'!$G$7:$K$7500,2,0)) -> TE SANITARIO, PVC, DN 50 X 50 MM, SERIE NORMAL, PARA ESGOTO PREDIAL | E173: UN | F173: 1 | G173: =IF(I173="i",VLOOKUP(C173,'Ins SINAPI BA 04-2023 Desoner'!$A$8:$E$5189,5,0),VLOOKUP(C173,'Comp SINAPI BA 04-2023 Desoner'!$G$7:$K$7500,5,0)) -> 7.56 | H173: 7.56 | I173: i
B174: SINAPI | C174: 3526 | D174: =IF(I174="i",VLOOKUP(C174,'Ins SINAPI BA 05-2023 Onerado'!$A$8:$E$5189,2,0),VLOOKUP(C174,'Comp SINAPI BA 05-2023 Onerado'!$G$7:$K$7500,2,0)) -> JOELHO PVC, SOLDAVEL, PB, 90 GRAUS, DN 50 MM, PARA ESGOTO PREDIAL | E174: UN | F174: 1 | G174: =IF(I174="i",VLOOKUP(C174,'Ins SINAPI BA 04-2023 Desoner'!$A$8:$E$5189,5,0),VLOOKUP(C174,'Comp SINAPI BA 04-2023 Desoner'!$G$7:$K$7500,5,0)) -> 3.08 | H174: 3.08 | I174: i
B175: SINAPI | C175: 3143 | D175: =IF(I175="i",VLOOKUP(C175,'Ins SINAPI BA 05-2023 Onerado'!$A$8:$E$5189,2,0),VLOOKUP(C175,'Comp SINAPI BA 05-2023 Onerado'!$G$7:$K$7500,2,0)) -> FITA VEDA ROSCA EM ROLOS DE 18 MM X 25 M (L X C) | E175: UN | F175: 1.8 | G175: =IF(I175="i",VLOOKUP(C175,'Ins SINAPI BA 04-2023 Desoner'!$A$8:$E$5189,5,0),VLOOKUP(C175,'Comp SINAPI BA 04-2023 Desoner'!$G$7:$K$7500,5,0)) -> 7.5 | H175: 13.5 | I175: i
B176: SINAPI | C176: 20078 | D176: =IF(I176="i",VLOOKUP(C176,'Ins SINAPI BA 05-2023 Onerado'!$A$8:$E$5189,2,0),VLOOKUP(C176,'Comp SINAPI BA 05-2023 Onerado'!$G$7:$K$7500,2,0)) -> PASTA LUBRIFICANTE PARA TUBOS E CONEXOES COM JUNTA ELASTICA, EMBALAGEM DE *400* GR (USO EM PVC, ACO, POLIETILENO E OUTROS) | E176: UN | F176: 0.02 | G176: =IF(I176="i",VLOOKUP(C176,'Ins SINAPI BA 04-2023 Desoner'!$A$8:$E$5189,5,0),VLOOKUP(C176,'Comp SINAPI BA 04-2023 Desoner'!$G$7:$K$7500,5,0)) -> 26.8 | H176: 0.536 | I176: i
B177: SINAPI | C177: 3907 | D177: =IF(I177="i",VLOOKUP(C177,'Ins SINAPI BA 05-2023 Onerado'!$A$8:$E$5189,2,0),VLOOKUP(C177,'Comp SINAPI BA 05-2023 Onerado'!$G$7:$K$7500,2,0)) -> LUVA DE REDUCAO ROSCAVEL, PVC, 1" X 3/4", PARA AGUA FRIA PREDIAL | E177: UN | F177: 1 | G177: =IF(I177="i",VLOOKUP(C177,'Ins SINAPI BA 04-2023 Desoner'!$A$8:$E$5189,5,0),VLOOKUP(C177,'Comp SINAPI BA 04-2023 Desoner'!$G$7:$K$7500,5,0)) -> 5.53 | H177: 5.53 | I177: i
B178: =B167 -> 6.1.14 | D178: EQUIPAMENTOS | H178: =SUM(H179:H179) -> 0 | I178: ss
B179: =B167 -> 6.1.14 | D179: SERVIÇOS | H179: 0 | I179: ss
B180: =B167 -> 6.1.14 | D180: MÃO DE OBRA | H180: =SUM(H181:H182) -> 475.48384 | I180: mdo
B181: SINAPI | C181: 88248 | D181: =IF(I181="i",VLOOKUP(C181,'Ins SINAPI BA 05-2023 Onerado'!$A$8:$E$5189,2,0),VLOOKUP(C181,'Comp SINAPI BA 05-2023 Onerado'!$G$7:$K$7500,2,0)) -> AUXILIAR DE ENCANADOR OU BOMBEIRO HIDRÁULICO COM ENCARGOS COMPLEMENTARES | E181: H | F181: 11.528 | G181: =IF(I181="i",VLOOKUP(C181,'Ins SINAPI BA 04-2023 Desoner'!$A$8:$E$5189,5,0),VLOOKUP(C181,'Comp SINAPI BA 04-2023 Desoner'!$G$7:$K$7500,5,0)) -> 19.55 | H181: =F181*G181 -> 225.3724 | I181: ca
B182: SINAPI | C182: 88267 | D182: =IF(I182="i",VLOOKUP(C182,'Ins SINAPI BA 05-2023 Onerado'!$A$8:$E$5189,2,0),VLOOKUP(C182,'Comp SINAPI BA 05-2023 Onerado'!$G$7:$K$7500,2,0)) -> ENCANADOR OU BOMBEIRO HIDRÁULICO COM ENCARGOS COMPLEMENTARES | E182: H | F182: 9.336 | G182: =IF(I182="i",VLOOKUP(C182,'Ins SINAPI BA 04-2023 Desoner'!$A$8:$E$5189,5,0),VLOOKUP(C182,'Comp SINAPI BA 04-2023 Desoner'!$G$7:$K$7500,5,0)) -> 26.79 | H182: 250.11144 | I182: ca
B184: ='Planilha Orçamentária Desoner'!A73 -> 6.1.18 | C184: =VLOOKUP($B184,'Planilha Orçamentária Desoner'!$A$11:$I$89,3,) -> CPU.13 | D184: =VLOOKUP($B184,'Planilha Orçamentária Desoner'!$A$11:$I$89,4,) -> PINTURA ESMALTE 2 DEMAOS CAIXILHO DE FERRO C/ MASSA E ZARCAO | E184: un | H184: =SUM(H185,H190,H191,H192) -> 28.88506 | I184: s
B185: =B184 -> 6.1.18 | D185: MATERIAL | H185: =SUM(H186:H189) -> 16.8726 | I185: ss
B186: SINAPI | C186: 3768 | D186: =IF(I186="i",VLOOKUP(C186,'Ins SINAPI BA 05-2023 Onerado'!$A$8:$E$5189,2,0),VLOOKUP(C186,'Comp SINAPI BA 05-2023 Onerado'!$G$7:$K$7500,2,0)) -> LIXA EM FOLHA PARA FERRO, NUMERO 150 | E186: UN | F186: 0.6 | G186: =IF(I186="i",VLOOKUP(C186,'Ins SINAPI BA 04-2023 Desoner'!$A$8:$E$5189,5,0),VLOOKUP(C186,'Comp SINAPI BA 04-2023 Desoner'!$G$7:$K$7500,5,0)) -> 3.14 | H186: =F186*G186 -> 1.884 | I186: i
B187: SINAPI | C187: 7307 | D187: =IF(I187="i",VLOOKUP(C187,'Ins SINAPI BA 05-2023 Onerado'!$A$8:$E$5189,2,0),VLOOKUP(C187,'Comp SINAPI BA 05-2023 Onerado'!$G$7:$K$7500,2,0)) -> FUNDO ANTICORROSIVO PARA METAIS FERROSOS (ZARCAO) | E187: L | F187: 0.16 | G187: =IF(I187="i",VLOOKUP(C187,'Ins SINAPI BA 04-2023 Desoner'!$A$8:$E$5189,5,0),VLOOKUP(C187,'Comp SINAPI BA 04-2023 Desoner'!$G$7:$K$7500,5,0)) -> 38.93 | H187: 6.2288 | I187: i
B188: SINAPI | C188: 7311 | D188: =IF(I188="i",VLOOKUP(C188,'Ins SINAPI BA 05-2023 Onerado'!$A$8:$E$5189,2,0),VLOOKUP(C188,'Comp SINAPI BA 05-2023 Onerado'!$G$7:$K$7500,2,0)) -> TINTA ESMALTE SINTETICO PREMIUM ACETINADO | E188: L | F188: 0.16 | G188: =IF(I188="i",VLOOKUP(C188,'Ins SINAPI BA 04-2023 Desoner'!$A$8:$E$5189,5,0),VLOOKUP(C188,'Comp SINAPI BA 04-2023 Desoner'!$G$7:$K$7500,5,0)) -> 37.28 | H188: 5.9648 | I188: i
B189: SINAPI | C189: 43651 | D189: =IF(I189="i",VLOOKUP(C189,'Ins SINAPI BA 05-2023 Onerado'!$A$8:$E$5189,2,0),VLOOKUP(C189,'Comp SINAPI BA 05-2023 Onerado'!$G$7:$K$7500,2,0)) -> MASSA ACRILICA PARA SUPERFICIES INTERNAS E EXTERNAS | E189: KG | F189: 0.5 | G189: =IF(I189="i",VLOOKUP(C189,'Ins SINAPI BA 04-2023 Desoner'!$A$8:$E$5189,5,0),VLOOKUP(C189,'Comp SINAPI BA 04-2023 Desoner'!$G$7:$K$7500,5,0)) -> 5.59 | H189: 2.795 | I189: i
B190: =B184 -> 6.1.18 | D190: EQUIPAMENTOS | H190: 0 | I190: SS
B191: =B184 -> 6.1.18 | D191: SERVIÇOS | H191: 0 | I191: ss
B192: =B184 -> 6.1.18 | D192: MÃO DE OBRA | H192: =SUM(H193:H194) -> 12.01246 | I192: mdo
B193: SINAPI | C193: 88310 | D193: =IF(I193="i",VLOOKUP(C193,'Ins SINAPI BA 05-2023 Onerado'!$A$8:$E$5189,2,0),VLOOKUP(C193,'Comp SINAPI BA 05-2023 Onerado'!$G$7:$K$7500,2,0)) -> PINTOR COM ENCARGOS COMPLEMENTARES | E193: H | F193: 0.266 | G193: =IF(I193="i",VLOOKUP(C193,'Ins SINAPI BA 04-2023 Desoner'!$A$8:$E$5189,5,0),VLOOKUP(C193,'Comp SINAPI BA 04-2023 Desoner'!$G$7:$K$7500,5,0)) -> 28.76 | H193: =F193*G193 -> 7.65016 | I193: ca
B194: SINAPI | C194: 88316 | D194: =IF(I194="i",VLOOKUP(C194,'Ins SINAPI BA 05-2023 Onerado'!$A$8:$E$5189,2,0),VLOOKUP(C194,'Comp SINAPI BA 05-2023 Onerado'!$G$7:$K$7500,2,0)) -> SERVENTE COM ENCARGOS COMPLEMENTARES | E194: H | F194: 0.222 | G194: =IF(I194="i",VLOOKUP(C194,'Ins SINAPI BA 04-2023 Desoner'!$A$8:$E$5189,5,0),VLOOKUP(C194,'Comp SINAPI BA 04-2023 Desoner'!$G$7:$K$7500,5,0)) -> 19.65 | H194: 4.3623 | I194: x
B196: ='Planilha Orçamentária Desoner'!A43 -> 5.1.1 | C196: =VLOOKUP($B196,'Planilha Orçamentária Desoner'!$A$11:$I$89,3,) -> CPU.14 | D196: =VLOOKUP($B196,'Planilha Orçamentária Desoner'!$A$11:$I$89,4,) -> Comportas ensecadeira (stop-log) em aço carbono com dimensões livres L x H = 1,20 x 1,20 m x Hs= 20,00 m.c.a. x Hconcr. = 20,0 m, a ser operada por viga pescadora (fornecimento) | E196: un | F196: 1 | H196: =SUM(H197,H199,H200,H201) -> 176785.3567 | I196: s
B197: =B196 -> 5.1.1 | D197: MATERIAL | H197: =SUM(H198:H198) -> 176785.3567 | I197: ss
B198: COTAÇÃO | C198: 2023-07-01 | D198: Comportas ensecadeira (stop-log) em aço carbono com dimensões livres L x H = 1,20 x 1,20 m x Hs= 20,00 m.c.a. x Hconcr. = 20,0 m, a ser operada por viga pescadora | E198: un | F198: 1 | G198: =(156587.7+108768.37+265000)/3 -> 176785.3567 | H198: =F198*G198 -> 176785.3567 | I198: ca
B199: =B196 -> 5.1.1 | D199: EQUIPAMENTOS | H199: 0 | I199: ss
B200: =B196 -> 5.1.1 | D200: SERVIÇOS | H200: 0 | I200: ss
B201: =B196 -> 5.1.1 | D201: MÃO DE OBRA | H201: 0 | I201: mdo
I202: x
B203: ='Planilha Orçamentária Desoner'!A44 -> 5.1.2 | C203: =VLOOKUP($B203,'Planilha Orçamentária Desoner'!$A$11:$I$89,3,) -> CPU.15 | D203: =VLOOKUP($B203,'Planilha Orçamentária Desoner'!$A$11:$I$89,4,) -> Comportas deslizante em construção soldada de chapa de aço inoxidável, com abertura livre de L x H = 1,20 x 1,20 m x Hs = 20,0 m.c.a, x Hconcr. = 20,0 m, com acionamento elétrico (fornecimento) | E203: un | F203: 1 | H203: =SUM(H204,H206,H207,H208) -> 348830.0333 | I203: ss
B204: =B203 -> 5.1.2 | D204: MATERIAL | H204: =SUM(H205:H205) -> 348830.0333 | I204: s
B205: COTAÇÃO | C205: 2023-07-01 | D205: Comportas deslizante em construção soldada de chapa de aço inoxidável, com abertura livre de L x H = 1,20 x 1,20 m x Hs = 20,0 m.c.a, x Hconcr. = 20,0 m | E205: un | F205: 1 | G205: =(281490.1+405000+360000)/3 -> 348830.0333 | H205: =F205*G205 -> 348830.0333 | I205: ca
... 144 more rows

Sheet EQUIPE DE MERGULHO (hidden)
B2: Definições de acordo com a TABELA REFERÊNCIA | H2: TABELA REFERÊNCIA
B3: 16.8 | C3: m | D3: Profundidade
B4: 74 | C4: min | D4: Tempo de mergulho
B5: =B4/60 -> 1.233333333 | C5: h
B6: 8 | C6: un | D6: Qd de mergulhadores
B8: EQUIPE ADOTADA DE ACORDO COM A NR 15 - ATIVIDADES E OPERAÇÕES INSALUBRES (POR DIA)
B9: H | C9: QTD
B10: =$B$5 -> 1.233333333 | C10: 1 | D10: Mergulhador Profissional
B11: =$B$5 -> 1.233333333 | C11: 1 | D11: Mergulhador Profissional
B12: 1.233333333 | C12: 1 | D12: Mergulhador Profissional
B13: 1.233333333 | C13: 1 | D13: Mergulhador Profissional
B14: 1.233333333 | C14: 1 | D14: Mergulhador Profissional
B15: 1.233333333 | C15: 1 | D15: Mergulhador Profissional
B16: 1.233333333 | C16: 1 | D16: Mergulhador Profissional
B17: 1.233333333 | C17: 1 | D17: Mergulhador Profissional
B18: =B5*B6 -> 9.866666667 | C18: 1 | D18: Mergulhador raso auxiliar de superfície
B19: =B5*B6 -> 9.866666667 | C19: 1 | D19: Mergulhador raso dependente de emergência
B20: =MAX(B10:B19) -> 9.866666667 | C20: =SUM(C10:C19) -> 10 | D20: TOTAL
B22: Identificação | D22: Serviço | E22: Duração (dias) | F22: Total (h)
B23: ='Planilha Orçamentária'!A47 -> 5.2.2 | C23: =VLOOKUP($B23,'Planilha Orçamentária'!$A$11:$K$89,3,) -> CPU.05 | D23: =VLOOKUP($B23,'Planilha Orçamentária'!$A$11:$K$127,4,) -> 2267 | E23: 5 | F23: =$B$20*E23 -> 49.33333333
B24: ='Planilha Orçamentária'!A48 -> 5.2.3 | C24: =VLOOKUP($B24,'Planilha Orçamentária'!$A$11:$K$89,3,) -> CPU.06 | D24: =VLOOKUP($B24,'Planilha Orçamentária'!$A$11:$K$127,4,) -> 2267 | E24: 5 | F24: =$B$20*E24 -> 49.33333333
B25: ='Planilha Orçamentária'!A49 -> 5.2.4 | C25: =VLOOKUP($B25,'Planilha Orçamentária'!$A$11:$K$89,3,) -> CPU.07 | D25: =VLOOKUP($B25,'Planilha Orçamentária'!$A$11:$K$127,4,) -> 2267 | E25: 5 | F25: =$B$20*E25 -> 49.33333333
B26: ='Planilha Orçamentária'!A50 -> 5.2.5 | C26: =VLOOKUP($B26,'Planilha Orçamentária'!$A$11:$K$89,3,) -> CPU.08 | D26: =VLOOKUP($B26,'Planilha Orçamentária'!$A$11:$K$127,4,) -> 17140 | E26: 5 | F26: 49.33333333
D28: De acordo com a duração do serviço será atualizada a quantidade de diárias
D29: Duração | E29: 5
D30: Diária | E30: =E29-1 -> 4

Sheet MEM (hidden)
B2: Lado (m) | C2: 3
B3: Área (m²) | C3: 4
B4: Espessura (m) | C4: 0.01588
B5: Volume (m³) | C5: =C4*C3*2 -> 0.12704
B6: Densidade (kg/m³) | C6: 7860
B7: Massa | C7: =C6*C5*1.1 -> 1098.38784

Sheet Cronograma
A1: Ministério da Integração e do Desenvolvimento Regional
A2: Companhia de Desenvolvimento dos Vales do São Francisco e do Parnaíba
A3: ='Planilha Orçamentária'!A3:K3 -> 0
A4: CRONOGRAMA FÍSICO-FINANCEIRO NÃO-DESONERADO
A5: OBRA: | B5: ='Planilha Orçamentária'!B5 -> MANUTENÇÃO DA CASA DE MÁQUINA E SUBSTITUIÇÃO DAS COMPORTAS NA BARRAGEM CERAÍMA | D5: BDI (serv.): | E5: ='BDI serv'!D23 -> 0.2591
A6: LOCAL: | B6: ='Planilha Orçamentária'!B6 -> BARRAGEM CERAÍMA (GUANAMBI - BA) | D6: BDI (forn.): | E6: ='BDI forn'!E6 -> 0.147
A7: DATA BASE: | B7: ='Planilha Orçamentária'!B7 -> 2023-05-01
A8: PRAZO: | B8: ='Planilha Orçamentária'!B8 -> 240 DIAS
A9: ITEM | B9: DESCRIÇÃO | C9: TOTAL POR ETAPA | D9: MESES | L9: TOTAL
D10: 1 | E10: 2 | F10: 3 | G10: 4 | H10: 5 | I10: 6 | J10: 7 | K10: 8
A11: 1 | B11: =VLOOKUP(A11,'Planilha Orçamentária'!$A$11:$F$126,4) -> 0 | C11: =SUMIF('Planilha Orçamentária'!$A$11:$A$89,A11,'Planilha Orçamentária'!$K$11:$K$89) -> 194404.0327 | D11: =$C11*D12 -> 12734.10096 | E11: =$C11*E12 -> 24719.60797 | F11: 15176.6223 | G11: 27100.03842 | H11: 71957.08314 | I11: 38437.71067 | J11: 3257.693565 | K11: 1021.175688 | L11: =SUM(D11:K11) -> 194404.0327 | M11: R$
C12: =C11/C11 -> 1 | D12: =D35 -> 0.06550327576 | E12: =D36-D35+E35 -> 0.1271558394 | F12: 0.07806742527 | G12: 0.139400598 | H12: 0.3701419263 | I12: 0.1977207475 | J12: =I36-I35+J35 -> 0.01675733532 | K12: =1-SUM(D12:J12) -> 0.005252852389 | L12: =SUM(D12:K12) -> 1 | M12: %
A13: 2 | B13: =VLOOKUP(A13,'Planilha Orçamentária'!$A$11:$F$126,4) -> 0 | C13: =SUMIF('Planilha Orçamentária'!$A$11:$A$89,A13,'Planilha Orçamentária'!$K$11:$K$89) -> 71324.89067 | D13: =$C13*D14 -> 71324.89067 | L13: 71324.89067 | M13: R$
C14: =C13/C13 -> 1 | D14: 1 | L14: 1 | M14: %
A15: 3.1 | B15: =VLOOKUP(A15,'Planilha Orçamentária'!$A$11:$F$126,4) -> 0 | C15: =SUMIF('Planilha Orçamentária'!$A$11:$A$89,A15,'Planilha Orçamentária'!$K$11:$K$89) -> 66815.4006 | D15: =$C15*D16 -> 66815.4006 | L15: 66815.4006 | M15: R$
C16: =C15/C15 -> 1 | D16: 1 | L16: 1 | M16: %
A17: 3.2 | B17: =VLOOKUP(A17,'Planilha Orçamentária'!$A$11:$F$126,4) -> 0 | C17: =SUMIF('Planilha Orçamentária'!$A$11:$A$89,A17,'Planilha Orçamentária'!$K$11:$K$89) -> 25251.42622 | D17: =$C17*D18 -> 25251.42622 | L17: 25251.42622 | M17: R$
C18: =C17/C17 -> 1 | D18: 1 | L18: 1 | M18: %
A19: 4 | B19: =VLOOKUP(A19,'Planilha Orçamentária'!$A$11:$F$126,4) -> 0 | C19: =SUMIF('Planilha Orçamentária'!$A$11:$A$89,A19,'Planilha Orçamentária'!$K$11:$K$89) -> 446765.2317 | E19: =$C19*E20 -> 89353.04633 | F19: 89353.04633 | G19: 89353.04633 | H19: 89353.04633 | I19: 89353.04633 | L19: 446765.2317 | M19: R$
C20: =C19/C19 -> 1 | E20: 0.2 | F20: 0.2 | G20: 0.2 | H20: 0.2 | I20: 0.2 | L20: 1 | M20: %
A21: 5.1 | B21: =VLOOKUP(A21,'Planilha Orçamentária'!$A$11:$F$126,4) -> 0 | C21: =SUMIF('Planilha Orçamentária'!$A$11:$A$89,A21,'Planilha Orçamentária'!$K$11:$K$89) -> 1075455.256 | E21: =$C21*E22 -> 215091.0511 | F21: =$C21*F22 -> 80659.14417 | G21: =$C21*G22 -> 80659.14417 | H21: =$C21*H22 -> 591500.3906 | I21: =$C21*I22 -> 107545.5256 | L21: 1075455.256 | M21: R$
C22: =C21/C21 -> 1 | E22: 0.2 | F22: 0.075 | G22: 0.075 | H22: 0.55 | I22: 0.1 | L22: 1 | M22: %
A23: 5.2 | B23: =VLOOKUP(A23,'Planilha Orçamentária'!$A$11:$F$126,4) -> 0 | C23: =SUMIF('Planilha Orçamentária'!$A$11:$A$89,A23,'Planilha Orçamentária'!$K$11:$K$89) -> 488086.4151 | G23: =$C23*G24 -> 162532.7762 | H23: =$C23*H24 -> 162532.7762 | I23: =$C23*I24 -> 163020.8626 | L23: 488086.4151 | M23: R$
C24: =C23/C23 -> 1 | G24: 0.333 | H24: 0.333 | I24: 0.334 | L24: 1 | M24: %
A25: 6.1 | B25: =VLOOKUP(A25,'Planilha Orçamentária'!$A$11:$F$126,4) -> 0 | C25: =SUMIF('Planilha Orçamentária'!$A$11:$A$89,A25,'Planilha Orçamentária'!$K$11:$K$89) -> 105595.4539 | H25: =$C25*H26 -> 52797.72694 | I25: =$C25*I26 -> 52797.72694 | L25: 105595.4539 | M25: R$
C26: =C25/C25 -> 1 | H26: 0.5 | I26: 0.5 | L26: 1 | M26: %
A27: 6.2 | B27: =VLOOKUP(A27,'Planilha Orçamentária'!$A$11:$F$126,4) -> 0 | C27: =SUMIF('Planilha Orçamentária'!$A$11:$A$89,A27,'Planilha Orçamentária'!$K$11:$K$89) -> 8521.43371 | I27: =$C27*I28 -> 8521.43371 | L27: 8521.43371 | M27: R$
C28: =C27/C27 -> 1 | I28: 1 | L28: 1 | M28: %
A29: 7 | B29: =VLOOKUP(A29,'Planilha Orçamentária'!$A$11:$F$126,4) -> 0 | C29: =SUMIF('Planilha Orçamentária'!$A$11:$A$89,A29,'Planilha Orçamentária'!$K$11:$K$89) -> 3361.87519 | J29: =$C29*J30 -> 3361.87519 | L29: 3361.87519 | M29: R$
C30: =C29/C29 -> 1 | J30: 1 | L30: 1 | M30: %
A31: 8 | B31: =VLOOKUP(A31,'Planilha Orçamentária'!$A$11:$F$126,4,) -> 0 | C31: =SUMIF('Planilha Orçamentária'!$A$11:$A$89,A31,'Planilha Orçamentária'!$K$11:$K$89) -> 8823.873528 | K31: =$C31*K32 -> 8823.873528 | L31: 8823.873528 | M31: R$
C32: =C31/C31 -> 1 | K32: 1 | L32: 1 | M32: %
B33: VALOR TOTAL: | C33: =SUMIF($M$11:$M$32,"R$",C$11:C$32) -> 2494405.289 | D33: 176125.8185 | E33: 329163.7054 | F33: 185188.8128 | G33: 359645.0052 | H33: 968141.0232 | I33: 459676.3059 | J33: 6619.568755 | K33: 9845.049216 | L33: 2494405.289
B34: VALOR ACUMULADO: | D34: =D33 -> 176125.8185 | E34: =E33+D34 -> 505289.5239 | F34: =F33+E34 -> 690478.3367 | G34: =G33+F34 -> 1050123.342 | H34: 2018264.365 | I34: 2477940.671 | J34: =J33+I34 -> 2484560.24 | K34: 2494405.289 | L34: =L33 -> 2494405.289
B35: FÍSICO PARCIAL: | D35: =SUMIF($M$13:$M$32,"R$",D$13:D$32)/$C$33 -> 0.06550327576 | E35: 0.1220507745 | F35: 0.0681574046 | G35: 0.1333163332 | H35: 0.3592775978 | I35: 0.1688733571 | J35: 0.001347766221 | K35: 0.003537465851 | L35: =L33/$C$33 -> 1
B36: AVANÇO FÍSICO: | D36: =D33/$C$33 -> 0.07060834069 | E36: 0.1319607952 | F36: 0.0742416694 | G36: 0.1441806617 | H36: 0.3881249882 | I36: 0.1842829262 | J36: 0.002653766324 | K36: 0.003946852286 | L36: =SUM(D36:K36) -> 1

Sheet Cronograma Desoner (hidden)
A1: Ministério da Integração e do Desenvolvimento Regional
A2: Companhia de Desenvolvimento dos Vales do São Francisco e do Parnaíba
A3: ='Planilha Orçamentária'!A3:K3 -> 0
A4: CRONOGRAMA FÍSICO-FINANCEIRO DESONERADO
A5: OBRA: | B5: ='Planilha Orçamentária'!B5 -> MANUTENÇÃO DA CASA DE MÁQUINA E SUBSTITUIÇÃO DAS COMPORTAS NA BARRAGEM CERAÍMA | D5: BDI (serv.): | E5: ='Planilha Orçamentária Desoner'!G5 -> 0.3351
A6: LOCAL: | B6: ='Planilha Orçamentária'!B6 -> BARRAGEM CERAÍMA (GUANAMBI - BA) | D6: BDI (forn.): | E6: ='Planilha Orçamentária Desoner'!G6 -> 0.212
A7: DATA BASE: | B7: ='Planilha Orçamentária'!B7 -> 2023-05-01
A8: PRAZO: | B8: ='Planilha Orçamentária'!B8 -> 240 DIAS
A9: ITEM | B9: DESCRIÇÃO | C9: TOTAL POR ETAPA | D9: MESES | L9: TOTAL
D10: 1 | E10: 2 | F10: 3 | G10: 4 | H10: 5 | I10: 6 | J10: 7 | K10: 8
A11: 1 | B11: =VLOOKUP(A11,'Planilha Orçamentária Desoner'!$A$11:$D$126,4) -> ADMINISTRAÇÃO LOCAL | C11: =SUMIF('Planilha Orçamentária Desoner'!$A$11:$A$89,A11,'Planilha Orçamentária Desoner'!$I$11:$I$89) -> 177510.5169 | D11: =$C11*D12 -> 10766.67407 | E11: =$C11*E12 -> 24098.93235 | F11: 14327.37083 | G11: 23450.03203 | H11: 68216.45191 | I11: 33433.00692 | J11: 2465.051798 | K11: 752.9969505 | L11: =SUM(D11:K11) -> 177510.5169 | M11: R$
C12: =C11/C11 -> 1 | D12: =D35 -> 0.06065372497 | E12: =D36-D35+E35 -> 0.1357605892 | F12: 0.08071279992 | G12: 0.1321050293 | H12: 0.3842952695 | I12: 0.1883438092 | J12: 0.01388679297 | K12: =1-SUM(D12:J12) -> 0.004241985003 | L12: 1 | M12: %
A13: 2 | B13: =VLOOKUP(A13,'Planilha Orçamentária Desoner'!$A$11:$D$126,4) -> SERVIÇOS PRELIMINARES | C13: =SUMIF('Planilha Orçamentária Desoner'!$A$11:$A$89,A13,'Planilha Orçamentária Desoner'!$I$11:$I$89) -> 67749.87086 | D13: =$C13*D14 -> 67749.87086 | L13: 67749.87086 | M13: R$
C14: =C13/C13 -> 1 | D14: 1 | L14: 1 | M14: %
A15: 3.1 | B15: =VLOOKUP(A15,'Planilha Orçamentária Desoner'!$A$11:$D$126,4) -> Vistoria e laudo da estrutura da região submersa | C15: =SUMIF('Planilha Orçamentária Desoner'!$A$11:$A$89,A15,'Planilha Orçamentária Desoner'!$I$11:$I$89) -> 69168.8608 | D15: =$C15*D16 -> 69168.8608 | L15: 69168.8608 | M15: R$
C16: =C15/C15 -> 1 | D16: 1 | L16: 1 | M16: %
A17: 3.2 | B17: =VLOOKUP(A17,'Planilha Orçamentária Desoner'!$A$11:$D$126,4) -> Elaboração de plano para substituição das comportas | C17: =SUMIF('Planilha Orçamentária Desoner'!$A$11:$A$89,A17,'Planilha Orçamentária Desoner'!$I$11:$I$89) -> 23871.55584 | D17: =$C17*D18 -> 23871.55584 | L17: 23871.55584 | M17: R$
C18: =C17/C17 -> 1 | D18: 1 | L18: 1 | M18: %
A19: 4 | B19: =VLOOKUP(A19,'Planilha Orçamentária Desoner'!$A$11:$D$126,4) -> SERVIÇOS AUXILIARES | C19: =SUMIF('Planilha Orçamentária Desoner'!$A$11:$A$89,A19,'Planilha Orçamentária Desoner'!$I$11:$I$89) -> 471550.8982 | E19: =$C19*E20 -> 94310.17963 | F19: 94310.17963 | G19: 94310.17963 | H19: 94310.17963 | I19: 94310.17963 | L19: 471550.8982 | M19: R$
C20: =C19/C19 -> 1 | E20: 0.2 | F20: 0.2 | G20: 0.2 | H20: 0.2 | I20: 0.2 | L20: 1 | M20: %
A21: 5.1 | B21: =VLOOKUP(A21,'Planilha Orçamentária Desoner'!$A$11:$D$126,4) -> Fornecimento das Comportas | C21: =SUMIF('Planilha Orçamentária Desoner'!$A$11:$A$89,A21,'Planilha Orçamentária Desoner'!$I$11:$I$89) -> 1274091.705 | E21: =$C21*E22 -> 254818.3411 | F21: =$C21*F22 -> 95556.8779 | G21: =$C21*G22 -> 95556.8779 | H21: =$C21*H22 -> 700750.4379 | I21: =$C21*I22 -> 127409.1705 | L21: 1274091.705 | M21: R$
C22: =C21/C21 -> 1 | E22: 0.2 | F22: 0.075 | G22: 0.075 | H22: 0.55 | I22: 0.1 | L22: 1 | M22: %
A23: 5.2 | B23: =VLOOKUP(A23,'Planilha Orçamentária Desoner'!$A$11:$D$126,4) -> Substituição com operação submersa | C23: =SUMIF('Planilha Orçamentária Desoner'!$A$11:$A$89,A23,'Planilha Orçamentária Desoner'!$I$11:$I$89) -> 438468.5952 | G23: =$C23*G24 -> 146010.0422 | H23: =$C23*H24 -> 146010.0422 | I23: =$C23*I24 -> 146448.5108 | L23: 438468.5952 | M23: R$
C24: =C23/C23 -> 1 | G24: 0.333 | H24: 0.333 | I24: 0.334 | L24: 1 | M24: %
A25: 6.1 | B25: =VLOOKUP(A25,'Planilha Orçamentária Desoner'!$A$11:$D$126,4) -> Manutenção e Recuperação civis | C25: =SUMIF('Planilha Orçamentária Desoner'!$A$11:$A$89,A25,'Planilha Orçamentária Desoner'!$I$11:$I$89) -> 108457.4474 | H25: =$C25*H26 -> 54228.72368 | I25: =$C25*I26 -> 54228.72368 | L25: 108457.4474 | M25: R$
C26: =C25/C25 -> 1 | H26: 0.5 | I26: 0.5 | L26: 1 | M26: %
A27: 6.2 | B27: =VLOOKUP(A27,'Planilha Orçamentária Desoner'!$A$11:$D$126,4) -> Demolição e construção das coroas de concreto | C27: =SUMIF('Planilha Orçamentária Desoner'!$A$11:$A$89,A27,'Planilha Orçamentária Desoner'!$I$11:$I$89) -> 8677.901378 | I27: =$C27*I28 -> 8677.901378 | L27: 8677.901378 | M27: R$
C28: =C27/C27 -> 1 | I28: 1 | L28: 1 | M28: %
A29: 7 | B29: =VLOOKUP(A29,'Planilha Orçamentária Desoner'!$A$11:$D$126,4) -> CASA DE VÁLVULAS | C29: =SUMIF('Planilha Orçamentária Desoner'!$A$11:$A$89,A29,'Planilha Orçamentária Desoner'!$I$11:$I$89) -> 3380.254511 | J29: =$C29*J30 -> 3380.254511 | L29: 3380.254511 | M29: R$
C30: 1 | J30: 1 | L30: 1 | M30: %
A31: 8 | B31: =VLOOKUP(A31,'Planilha Orçamentária Desoner'!$A$11:$D$126,4) -> PROJETOS | C31: =SUMIF('Planilha Orçamentária Desoner'!$A$11:$A$89,A31,'Planilha Orçamentária Desoner'!$I$11:$I$89) -> 8027.262048 | K31: =$C31*K32 -> 8027.262048 | L31: 8027.262048 | M31: R$
C32: =C31/C31 -> 1 | K32: 1 | L32: 1 | M32: %
B33: VALOR TOTAL: | C33: =SUMIF($M$11:$M$32,"R$",C$11:C$32) -> 2650954.868 | D33: =SUMIF($M$11:$M$32,"R$",D$11:D$32) -> 171556.9616 | E33: 373227.4531 | F33: 204194.4284 | G33: 359327.1318 | H33: 1063515.835 | I33: 464507.493 | J33: 5845.306309 | K33: 8780.258999 | L33: 2650954.868
B34: VALOR ACUMULADO: | D34: =D33 -> 171556.9616 | E34: =E33+D34 -> 544784.4146 | F34: 748978.843 | G34: 1108305.975 | H34: 2171821.81 | I34: 2636329.303 | J34: 2642174.609 | K34: 2650954.868 | L34: =L33 -> 2650954.868
B35: FÍSICO PARCIAL: | D35: =SUMIF($M$13:$M$32,"R$",D$13:D$32)/$C$33 -> 0.06065372497 | E35: =SUMIF($M$13:$M$32,"R$",E$13:E$32)/$C$33 -> 0.1316991567 | F35: 0.0716221388 | G35: 0.1267004217 | H35: 0.3754493882 | I35: 0.1626110241 | J35: 0.001275108283 | K35: =SUMIF($M$13:$M$32,"R$",K$13:K$32)/$C$33 -> 0.003028064394 | L35: =L33/$C$33 -> 1
B36: AVANÇO FÍSICO: | D36: =D33/$C$33 -> 0.0647151574 | E36: =E33/$C$33 -> 0.1407898179 | F36: =F33/$C$33 -> 0.0770267464 | G36: =G33/$C$33 -> 0.135546303 | H36: 0.4011821733 | I36: 0.1752227088 | J36: 0.00220498145 | K36: =K33/$C$33 -> 0.003312111837 | L36: =SUM(D36:K36) -> 1

Sheet BDI serv
A1: Ministério da Integração e do Desenvolvimento Regional
A2: Companhia de Desenvolvimento dos Vales do São Francisco e do Parnaíba
A3: ='Planilha Orçamentária'!A3:K3 -> 0
A4: COMPOSIÇÃO DE BDI - SERVIÇOS - ONERADO
A5: OBRA: | B5: ='Planilha Orçamentária'!B5 -> MANUTENÇÃO DA CASA DE MÁQUINA E SUBSTITUIÇÃO DAS COMPORTAS NA BARRAGEM CERAÍMA | D5: BDI (serv.): | E5: =D23 -> 0.2591
A6: LOCAL: | B6: ='Planilha Orçamentária'!B6 -> BARRAGEM CERAÍMA (GUANAMBI - BA) | D6: BDI (forn.): | E6: ='BDI forn'!D23 -> 0.147
A7: DATA BASE: | B7: ='Planilha Orçamentária'!B7 -> 2023-05-01
A8: PRAZO: | B8: ='Planilha Orçamentária'!B8 -> 240 DIAS
A9: ITEM | B9: DESCRIÇÃO | C9: SIGLA | D9: % APLICADO | E9: REFERÊNCIA TCU (ACÓRDÃO Nº 2622/2013)
E10: 1º QUARTIL | F10: 2º QUARTIL | G10: 3º QUARTIL
A11: 1 | B11: ADMINISTRAÇÃO CENTRAL | C11: AC | D11: =E11 -> 0.04 | E11: 0.04 | F11: 0.0552 | G11: 0.0785
A12: 2 | B12: IMPOSTOS | C12: T | D12: =SUM(D13:D16) -> 0.0865
A13: 2.1 | B13: ISS (*) | D13: 0.05 | E13: - | F13: - | G13: -
A14: 2.2 | B14: PIS | D14: 0.0065 | E14: - | F14: - | G14: -
A15: 2.3 | B15: Cofins | D15: 0.03 | E15: - | F15: - | G15: -
A16: 2.4 | B16: Contribuição previdênciária sobre a receita bruta (CPRB) | E16: - | F16: - | G16: -
A17: 3 | B17: SEGURO, GARANTIA E RISCO | D17: =SUM(D18:D20) -> 0.0227
A18: 3.1 | B18: Seguro | C18: S | D18: =E18 -> 0.0081 | E18: 0.0081 | F18: 0.0122 | G18: 0.0199
A19: 3.2 | B19: Garantia | C19: G
A20: 3.3 | B20: Risco | C20: R | D20: =E20 -> 0.0146 | E20: 0.0146 | F20: 0.0232 | G20: 0.0316
A21: 4 | B21: DESPESAS FINANCEIRAS | C21: DF | D21: =F21 -> 0.0102 | E21: 0.0094 | F21: 0.0102 | G21: 0.01363
A22: 5 | B22: LUCRO | C22: L | D22: =E22 -> 0.0714 | E22: 0.0714 | F22: 0.084 | G22: 0.1043
B23: BDI ADOTADO: | D23: =ROUND(((((1+D11+D17)*(1+D21)*(1+D22))/(1-D12))-1),4) -> 0.2591
A24: Considerações: O BDI foi calculado através da seguinte fórmula, regulamentada pelo Acórdão Nº 2622/2013 – TCU. * O percentual de ISSQN aqui utilizado refere-se ao município de Porteirinha/MG, conforme Lei Complementar 1899/2007 - Art. 1º (Item 7.02C). Conforme Art. 112, § 14, na base de cálculo do ISSQN considerou-se dedução do percentual abaixo discriminado.

Sheet BDI serv Desonerado (hidden)
A1: Ministério da Integração e do Desenvolvimento Regional
A2: Companhia de Desenvolvimento dos Vales do São Francisco e do Parnaíba
A3: ='Planilha Orçamentária'!A3:K3 -> 0
A4: COMPOSIÇÃO DE BDI - SERVIÇOS - DESONERADO
A5: OBRA: | B5: ='Planilha Orçamentária'!B5 -> MANUTENÇÃO DA CASA DE MÁQUINA E SUBSTITUIÇÃO DAS COMPORTAS NA BARRAGEM CERAÍMA | D5: BDI (serv.): | E5: =D23 -> 0.3351
A6: LOCAL: | B6: ='Planilha Orçamentária'!B6 -> BARRAGEM CERAÍMA (GUANAMBI - BA) | D6: BDI (forn.): | E6: ='BDI forn Desonerado'!E6 -> 0.212
A7: DATA BASE: | B7: ='Planilha Orçamentária'!B7 -> 2023-05-01
A8: PRAZO: | B8: ='Planilha Orçamentária'!B8 -> 240 DIAS
A9: ITEM | B9: DESCRIÇÃO | C9: SIGLA | D9: % APLICADO | E9: REFERÊNCIA TCU (ACÓRDÃO Nº 2622/2013)
E10: 1º QUARTIL | F10: 2º QUARTIL | G10: 3º QUARTIL
A11: 1 | B11: ADMINISTRAÇÃO CENTRAL | C11: AC | D11: =E11 -> 0.04 | E11: 0.04 | F11: 0.0552 | G11: 0.0785
A12: 2 | B12: IMPOSTOS | C12: T | D12: =SUM(D13:D16) -> 0.1315
A13: 2.1 | B13: ISS (*) | D13: 0.05 | E13: - | F13: - | G13: -
A14: 2.2 | B14: PIS | D14: 0.0065 | E14: - | F14: - | G14: -
A15: 2.3 | B15: Cofins | D15: 0.03 | E15: - | F15: - | G15: -
A16: 2.4 | B16: Contribuição previdênciária sobre a receita bruta (CPRB) | D16: 0.045 | E16: - | F16: - | G16: -
A17: 3 | B17: SEGURO, GARANTIA E RISCO | D17: =SUM(D18:D20) -> 0.0313
A18: 3.1 | B18: Seguro | C18: S | D18: =E18 -> 0.0081 | E18: 0.0081 | F18: 0.0122 | G18: 0.0199
A19: 3.2 | B19: Garantia | C19: G
A20: 3.3 | B20: Risco | C20: R | D20: =F20 -> 0.0232 | E20: 0.0146 | F20: 0.0232 | G20: 0.0316
A21: 4 | B21: DESPESAS FINANCEIRAS | C21: DF | D21: =F21 -> 0.0102 | E21: 0.0094 | F21: 0.0102 | G21: 0.01363
A22: 5 | B22: LUCRO | C22: L | D22: =E22 -> 0.0714 | E22: 0.0714 | F22: 0.084 | G22: 0.1043
B23: BDI ADOTADO: | D23: =ROUND(((((1+D11+D17)*(1+D21)*(1+D22))/(1-D12))-1),4) -> 0.3351
A24: Considerações: O BDI foi calculado através da seguinte fórmula, regulamentada pelo Acórdão Nº 2622/2013 – TCU. * O percentual de ISSQN aqui utilizado refere-se ao município de Porteirinha/MG, conforme Lei Complementar 1899/2007 - Art. 1º (Item 7.02C). Conforme Art. 112, § 14, na base de cálculo do ISSQN considerou-se dedução do percentual abaixo discriminado.

Sheet BDI forn
A1: Ministério da Integração e do Desenvolvimento Regional
A2: Companhia de Desenvolvimento dos Vales do São Francisco e do Parnaíba
A3: ='Planilha Orçamentária'!A3:K3 -> 0
A4: COMPOSIÇÃO DE BDI - FORNECIMENTO - ONERADO
A5: OBRA: | B5: ='Planilha Orçamentária'!B5 -> MANUTENÇÃO DA CASA DE MÁQUINA E SUBSTITUIÇÃO DAS COMPORTAS NA BARRAGEM CERAÍMA | D5: BDI (serv.): | E5: ='BDI serv'!D23 -> 0.2591
A6: LOCAL: | B6: ='Planilha Orçamentária'!B6 -> BARRAGEM CERAÍMA (GUANAMBI - BA) | D6: BDI (forn.): | E6: =D23 -> 0.147
A7: DATA BASE: | B7: ='Planilha Orçamentária'!B7 -> 2023-05-01
A8: PRAZO: | B8: ='Planilha Orçamentária'!B8 -> 240 DIAS
A9: ITEM | B9: DESCRIÇÃO | C9: SIGLA | D9: % APLICADO | E9: REFERÊNCIA TCU (ACÓRDÃO Nº 2622/2013)
E10: 1º QUARTIL | F10: 2º QUARTIL | G10: 3º QUARTIL
A11: 1 | B11: ADMINISTRAÇÃO CENTRAL | C11: AC | D11: 0.04 | E11: 0.015 | F11: 0.0345 | G11: 0.0449
A12: 2 | B12: IMPOSTOS | C12: T | D12: =SUM(D13:D16) -> 0.0365
A13: 2.1 | B13: ISS (*) | E13: - | F13: - | G13: -
A14: 2.2 | B14: PIS | D14: 0.0065 | E14: - | F14: - | G14: -
A15: 2.3 | B15: Cofins | D15: 0.03 | E15: - | F15: - | G15: -
A16: 2.4 | B16: Contribuição previdênciária sobre a receita bruta (CPRB) | E16: - | F16: - | G16: -
A17: 3 | B17: SEGURO, GARANTIA E RISCO | D17: =SUM(D18:D20) -> 0.0086
A18: 3.1 | B18: Seguro | C18: S | D18: =E18 -> 0.003 | E18: 0.003 | F18: 0.0048 | G18: 0.0082
A19: 3.2 | B19: Garantia | C19: G
A20: 3.3 | B20: Risco | C20: R | D20: =E20 -> 0.0056 | E20: 0.0056 | F20: 0.0085 | G20: 0.0089
A21: 4 | B21: DESPESAS FINANCEIRAS | C21: DF | D21: =E21 -> 0.0085 | E21: 0.0085 | F21: 0.0085 | G21: 0.0111
A22: 5 | B22: LUCRO | C22: L | D22: 0.045 | E22: 0.035 | F22: 0.0511 | G22: 0.0622
B23: BDI ADOTADO: | D23: =ROUND(((((1+D11+D17)*(1+D21)*(1+D22))/(1-D12))-1),4) -> 0.147
A24: Considerações: O BDI foi calculado através da seguinte fórmula, regulamentada pelo Acórdão Nº 2622/2013 – TCU.

Sheet BDI forn Desonerado (hidden)
A1: Ministério da Integração e do Desenvolvimento Regional
A2: Companhia de Desenvolvimento dos Vales do São Francisco e do Parnaíba
A3: ='Planilha Orçamentária'!A3:K3 -> 0
A4: COMPOSIÇÃO DE BDI - FORNECIMENTO - DESONERADO
A5: OBRA: | B5: ='Planilha Orçamentária'!B5 -> MANUTENÇÃO DA CASA DE MÁQUINA E SUBSTITUIÇÃO DAS COMPORTAS NA BARRAGEM CERAÍMA | D5: BDI (serv.): | E5: ='BDI serv Desonerado'!E5 -> 0.3351
A6: LOCAL: | B6: ='Planilha Orçamentária'!B6 -> BARRAGEM CERAÍMA (GUANAMBI - BA) | D6: BDI (forn.): | E6: =D23 -> 0.212
A7: DATA BASE: | B7: ='Planilha Orçamentária'!B7 -> 2023-05-01
A8: PRAZO: | B8: ='Planilha Orçamentária'!B8 -> 240 DIAS
A9: ITEM | B9: DESCRIÇÃO | C9: SIGLA | D9: % APLICADO | E9: REFERÊNCIA TCU (ACÓRDÃO Nº 2622/2013)
E10: 1º QUARTIL | F10: 2º QUARTIL | G10: 3º QUARTIL
A11: 1 | B11: ADMINISTRAÇÃO CENTRAL | C11: AC | D11: 0.04 | E11: 0.015 | F11: 0.0345 | G11: 0.0449
A12: 2 | B12: IMPOSTOS | C12: T | D12: =SUM(D13:D16) -> 0.0815
A13: 2.1 | B13: ISS (*) | E13: - | F13: - | G13: -
A14: 2.2 | B14: PIS | D14: 0.0065 | E14: - | F14: - | G14: -
A15: 2.3 | B15: Cofins | D15: 0.03 | E15: - | F15: - | G15: -
A16: 2.4 | B16: Contribuição previdênciária sobre a receita bruta (CPRB) | D16: 0.045 | E16: - | F16: - | G16: -
A17: 3 | B17: SEGURO, GARANTIA E RISCO | D17: =SUM(D18:D20) -> 0.0086
A18: 3.1 | B18: Seguro | C18: S | D18: =E18 -> 0.003 | E18: 0.003 | F18: 0.0048 | G18: 0.0082
A19: 3.2 | B19: Garantia | C19: G
A20: 3.3 | B20: Risco | C20: R | D20: =E20 -> 0.0056 | E20: 0.0056 | F20: 0.0085 | G20: 0.0089
A21: 4 | B21: DESPESAS FINANCEIRAS | C21: DF | D21: 0.01 | E21: 0.0085 | F21: 0.0085 | G21: 0.0111
A22: 5 | B22: LUCRO | C22: L | D22: =F22 -> 0.0511 | E22: 0.035 | F22: 0.0511 | G22: 0.0622
B23: BDI ADOTADO: | D23: =ROUND(((((1+D11+D17)*(1+D21)*(1+D22))/(1-D12))-1),4) -> 0.212
A24: Considerações: O BDI foi calculado através da seguinte fórmula, regulamentada pelo Acórdão Nº 2622/2013 – TCU.

Sheet Encargos Sociais
A1: Ministério da Integração e do Desenvolvimento Regional
A2: Companhia de Desenvolvimento dos Vales do São Francisco e do Parnaíba
A3: ='Planilha Orçamentária'!A3:K3 -> 0
A4: COMPOSIÇÃO DE ENCARGOS SOCIAIS SOBRE A MÃO DE OBRA
A5: OBRA: | B5: ='Planilha Orçamentária'!B5 -> MANUTENÇÃO DA CASA DE MÁQUINA E SUBSTITUIÇÃO DAS COMPORTAS NA BARRAGEM CERAÍMA | D5: BDI (serv.): | E5: ='BDI serv'!D23 -> 0.2591
A6: LOCAL: | B6: ='Planilha Orçamentária'!B6 -> BARRAGEM CERAÍMA (GUANAMBI - BA) | D6: BDI (forn.): | E6: ='BDI forn'!E6 -> 0.147
A7: DATA BASE: | B7: ='Planilha Orçamentária'!B7 -> 2023-05-01
A8: PRAZO: | B8: ='Planilha Orçamentária'!B8 -> 240 DIAS
A9: Encargos Sociais – Bahia VIGÊNCIA A PARTIR DE 12/2022
A10: ENCARGOS SOCIAIS SOBRE A MÃO DE OBRA
A11: CÓDIGO | B11: DESCRIÇÃO | C11: COM DESONERAÇÃO | E11: SEM DESONERAÇÃO
C12: HORISTA % | D12: MENSALISTA % | E12: HORISTA % | F12: MENSALISTA %
A13: GRUPO A
A14: A1 | B14: INSS | C14: 0 | D14: 0 | E14: 0.2 | F14: 0.2
A15: A2 | B15: SESI | C15: 0.015 | D15: 0.015 | E15: 0.015 | F15: 0.015
A16: A3 | B16: SENAI | C16: 0.01 | D16: 0.01 | E16: 0.01 | F16: 0.01
A17: A4 | B17: INCRA | C17: 0.002 | D17: 0.002 | E17: 0.002 | F17: 0.002
A18: A5 | B18: SEBRAE | C18: 0.006 | D18: 0.006 | E18: 0.006 | F18: 0.006
A19: A6 | B19: Salário Educação | C19: 0.025 | D19: 0.025 | E19: 0.025 | F19: 0.025
A20: A7 | B20: Seguro Contra Acidentes de Trabalho | C20: 0.03 | D20: 0.03 | E20: 0.03 | F20: 0.03
A21: A8 | B21: FGTS | C21: 0.08 | D21: 0.08 | E21: 0.08 | F21: 0.08
A22: A9 | B22: SECONCI | C22: 0 | D22: 0 | E22: 0 | F22: 0
A23: A | B23: Total | C23: =SUM(C14:C22) -> 0.168 | D23: =SUM(D14:D22) -> 0.168 | E23: =SUM(E14:E22) -> 0.368 | F23: =SUM(F14:F22) -> 0.368
A24: GRUPO B
A25: B1 | B25: Repouso Semanal Remunerado | C25: 0.1797 | D25: Não incide | E25: 0.1797 | F25: Não incide
A26: B2 | B26: Feriados | C26: 0.0397 | D26: Não incide | E26: 0.0397 | F26: Não incide
A27: B3 | B27: Auxílio - Enfermidade | C27: 0.0087 | D27: 0.0066 | E27: 0.0087 | F27: 0.0066
A28: B4 | B28: 13º Salário | C28: 0.1102 | D28: 0.0833 | E28: 0.1102 | F28: 0.0833
A29: B5 | B29: Licença Paternidade | C29: 0.0007 | D29: 0.0005 | E29: 0.0007 | F29: 0.0005
A30: B6 | B30: Faltas Justificadas | C30: 0.0073 | D30: 0.0056 | E30: 0.0073 | F30: 0.0056
A31: B7 | B31: Dias de Chuvas | C31: 0.0205 | D31: Não incide | E31: 0.0205 | F31: Não incide
A32: B8 | B32: Auxílio Acidente de Trabalho | C32: 0.0011 | D32: 0.0008 | E32: 0.0011 | F32: 0.0008
A33: B9 | B33: Férias Gozadas | C33: 0.1121 | D33: 0.0847 | E33: 0.1121 | F33: 0.0847
A34: B10 | B34: Salário Maternidade | C34: 0.0004 | D34: 0.0003 | E34: 0.0004 | F34: 0.0003
A35: B | B35: Total | C35: =SUM(C25:C34) -> 0.4804 | D35: =SUM(D25:D34) -> 0.1818 | E35: =SUM(E25:E34) -> 0.4804 | F35: =SUM(F25:F34) -> 0.1818
A36: GRUPO C
A37: C1 | B37: Aviso Prévio Indenizado | C37: 0.0547 | D37: 0.0413 | E37: 0.0547 | F37: 0.0413
A38: C2 | B38: Aviso Prévio Trabalhado | C38: 0.0013 | D38: 0.001 | E38: 0.0013 | F38: 0.001
A39: C3 | B39: Férias Indenizadas | C39: 0.0295 | D39: 0.0223 | E39: 0.0295 | F39: 0.0223
A40: C4 | B40: Depósito Rescisão Sem Justa Causa | C40: 0.0313 | D40: 0.0237 | E40: 0.0313 | F40: 0.0237
A41: C5 | B41: Indenização Adicional | C41: 0.0046 | D41: 0.0035 | E41: 0.0046 | F41: 0.0035
A42: C | B42: Total | C42: =SUM(C37:C41) -> 0.1214 | D42: =SUM(D37:D41) -> 0.0918 | E42: =SUM(E37:E41) -> 0.1214 | F42: =SUM(F37:F41) -> 0.0918
A43: GRUPO D
A44: D1 | B44: Reincidência de Grupo A sobre Grupo B | C44: 0.0807 | D44: 0.0305 | E44: 0.1768 | F44: 0.0669
A45: D2 | B45: Reincidência de Grupo A sobre Aviso Prévio Trabalhado e Reincidência do FGTS sobre Aviso Prévio Indenizado | C45: 0.0046 | D45: 0.0035 | E45: 0.0049 | F45: 0.0037
A46: D | B46: Total | C46: =SUM(C44:C45) -> 0.0853 | D46: =SUM(D44:D45) -> 0.034 | E46: =SUM(E44:E45) -> 0.1817 | F46: =SUM(F44:F45) -> 0.0706
A47: TOTAL(A+B+C+D) | C47: =C23+C35+C42+C46 -> 0.8551 | D47: =D23+D35+D42+D46 -> 0.4756 | E47: =E23+E35+E42+E46 -> 1.1515 | F47: =F23+F35+F42+F46 -> 0.7122
A48: Fonte: Informação Dias de Chuva – INMET

Sheet Comp SINAPI BA 05-2023 Onerado (hidden)
A1: PCI.817.01 - CUSTO DE COMPOSIÇÕES - SINTÉTICO DATA DE EMISSÃO: 20/06/2023 16:31:22 DATA DE RT: 20/06/2023
A2: ENCARGOS SOCIAIS SOBRE PREÇOS DA MÃO-DE-OBRA: 115,15%(HORA) 71,22%(MÊS)
A3: ABRANGÊNCIA : NACIONAL LOCALIDADE : SALVADOR DATA DE PREÇO : 05/2023 REFERÊNCIA COLETA : MEDIANO
A5: DESCRICAO DA CLASSE | B5: SIGLA DA CLASSE | C5: DESCRICAO DO TIPO 1 | D5: SIGLA DO TIPO 1 | E5: CODIGO DO AGRUPADOR | F5: DESCRICAO DO AGRUPADOR | G5: CODIGO DA COMPOSICAO | H5: DESCRICAO DA COMPOSICAO | I5: UNIDADE | J5: ORIGEM DE PREÇO | K5: CUSTO TOTAL | L5: VINCULO
A7: ASSENTAMENTO DE TUBOS E PECAS | B7: ASTU | C7: FORNEC E/OU ASSENT DE TUBO DE FERRO FUNDIDO JUNTA ELASTICA | D7: 45 | G7: 97141 | H7: ASSENTAMENTO DE TUBO DE FERRO FUNDIDO PARA REDE DE ÁGUA, DN 80 MM, JUNTA ELÁSTICA, INSTALADO EM LOCAL COM NÍVEL ALTO DE INTERFERÊNCIAS (NÃO INCLUI FORNECIMENTO). AF_11/2017 | I7: M | J7: COEFICIENTE DE REPRESENTATIVIDADE | K7: 11.5 | L7: CAIXA REFERENCIAL
A8: ASSENTAMENTO DE TUBOS E PECAS | B8: ASTU | C8: FORNEC E/OU ASSENT DE TUBO DE FERRO FUNDIDO JUNTA ELASTICA | D8: 45 | G8: 97142 | H8: ASSENTAMENTO DE TUBO DE FERRO FUNDIDO PARA REDE DE ÁGUA, DN 100 MM, JUNTA ELÁSTICA, INSTALADO EM LOCAL COM NÍVEL ALTO DE INTERFERÊNCIAS (NÃO INCLUI FORNECIMENTO). AF_11/2017 | I8: M | J8: COEFICIENTE DE REPRESENTATIVIDADE | K8: 12.85 | L8: CAIXA REFERENCIAL
A9: ASSENTAMENTO DE TUBOS E PECAS | B9: ASTU | C9: FORNEC E/OU ASSENT DE TUBO DE FERRO FUNDIDO JUNTA ELASTICA | D9: 45 | G9: 97143 | H9: ASSENTAMENTO DE TUBO DE FERRO FUNDIDO PARA REDE DE ÁGUA, DN 150 MM, JUNTA ELÁSTICA, INSTALADO EM LOCAL COM NÍVEL ALTO DE INTERFERÊNCIAS (NÃO INCLUI FORNECIMENTO). AF_11/2017 | I9: M | J9: COEFICIENTE DE REPRESENTATIVIDADE | K9: 16.3 | L9: CAIXA REFERENCIAL
A10: ASSENTAMENTO DE TUBOS E PECAS | B10: ASTU | C10: FORNEC E/OU ASSENT DE TUBO DE FERRO FUNDIDO JUNTA ELASTICA | D10: 45 | G10: 97144 | H10: ASSENTAMENTO DE TUBO DE FERRO FUNDIDO PARA REDE DE ÁGUA, DN 200 MM, JUNTA ELÁSTICA, INSTALADO EM LOCAL COM NÍVEL ALTO DE INTERFERÊNCIAS (NÃO INCLUI FORNECIMENTO). AF_11/2017 | I10: M | J10: COEFICIENTE DE REPRESENTATIVIDADE | K10: 19.71 | L10: CAIXA REFERENCIAL
A11: ASSENTAMENTO DE TUBOS E PECAS | B11: ASTU | C11: FORNEC E/OU ASSENT DE TUBO DE FERRO FUNDIDO JUNTA ELASTICA | D11: 45 | G11: 97145 | H11: ASSENTAMENTO DE TUBO DE FERRO FUNDIDO PARA REDE DE ÁGUA, DN 250 MM, JUNTA ELÁSTICA, INSTALADO EM LOCAL COM NÍVEL ALTO DE INTERFERÊNCIAS (NÃO INCLUI FORNECIMENTO). AF_11/2017 | I11: M | J11: COEFICIENTE DE REPRESENTATIVIDADE | K11: 23.16 | L11: CAIXA REFERENCIAL
A12: ASSENTAMENTO DE TUBOS E PECAS | B12: ASTU | C12: FORNEC E/OU ASSENT DE TUBO DE FERRO FUNDIDO JUNTA ELASTICA | D12: 45 | G12: 97146 | H12: ASSENTAMENTO DE TUBO DE FERRO FUNDIDO PARA REDE DE ÁGUA, DN 300 MM, JUNTA ELÁSTICA, INSTALADO EM LOCAL COM NÍVEL ALTO DE INTERFERÊNCIAS (NÃO INCLUI FORNECIMENTO). AF_11/2017 | I12: M | J12: COEFICIENTE DE REPRESENTATIVIDADE | K12: 26.6 | L12: CAIXA REFERENCIAL
A13: ASSENTAMENTO DE TUBOS E PECAS | B13: ASTU | C13: FORNEC E/OU ASSENT DE TUBO DE FERRO FUNDIDO JUNTA ELASTICA | D13: 45 | G13: 97147 | H13: ASSENTAMENTO DE TUBO DE FERRO FUNDIDO PARA REDE DE ÁGUA, DN 350 MM, JUNTA ELÁSTICA, INSTALADO EM LOCAL COM NÍVEL ALTO DE INTERFERÊNCIAS (NÃO INCLUI FORNECIMENTO). AF_11/2017 | I13: M | J13: COEFICIENTE DE REPRESENTATIVIDADE | K13: 30.05 | L13: CAIXA REFERENCIAL
A14: ASSENTAMENTO DE TUBOS E PECAS | B14: ASTU | C14: FORNEC E/OU ASSENT DE TUBO DE FERRO FUNDIDO JUNTA ELASTICA | D14: 45 | G14: 97148 | H14: ASSENTAMENTO DE TUBO DE FERRO FUNDIDO PARA REDE DE ÁGUA, DN 400 MM, JUNTA ELÁSTICA, INSTALADO EM LOCAL COM NÍVEL ALTO DE INTERFERÊNCIAS (NÃO INCLUI FORNECIMENTO). AF_11/2017 | I14: M | J14: COEFICIENTE DE REPRESENTATIVIDADE | K14: 33.52 | L14: CAIXA REFERENCIAL
A15: ASSENTAMENTO DE TUBOS E PECAS | B15: ASTU | C15: FORNEC E/OU ASSENT DE TUBO DE FERRO FUNDIDO JUNTA ELASTICA | D15: 45 | G15: 97149 | H15: ASSENTAMENTO DE TUBO DE FERRO FUNDIDO PARA REDE DE ÁGUA, DN 450 MM, JUNTA ELÁSTICA, INSTALADO EM LOCAL COM NÍVEL ALTO DE INTERFERÊNCIAS (NÃO INCLUI FORNECIMENTO). AF_11/2017 | I15: M | J15: COEFICIENTE DE REPRESENTATIVIDADE | K15: 36.98 | L15: CAIXA REFERENCIAL
A16: ASSENTAMENTO DE TUBOS E PECAS | B16: ASTU | C16: FORNEC E/OU ASSENT DE TUBO DE FERRO FUNDIDO JUNTA ELASTICA | D16: 45 | G16: 97150 | H16: ASSENTAMENTO DE TUBO DE FERRO FUNDIDO PARA REDE DE ÁGUA, DN 500 MM, JUNTA ELÁSTICA, INSTALADO EM LOCAL COM NÍVEL ALTO DE INTERFERÊNCIAS (NÃO INCLUI FORNECIMENTO). AF_11/2017 | I16: M | J16: COEFICIENTE DE REPRESENTATIVIDADE | K16: 44.66 | L16: CAIXA REFERENCIAL
A17: ASSENTAMENTO DE TUBOS E PECAS | B17: ASTU | C17: FORNEC E/OU ASSENT DE TUBO DE FERRO FUNDIDO JUNTA ELASTICA | D17: 45 | G17: 97151 | H17: ASSENTAMENTO DE TUBO DE FERRO FUNDIDO PARA REDE DE ÁGUA, DN 600 MM, JUNTA ELÁSTICA, INSTALADO EM LOCAL COM NÍVEL ALTO DE INTERFERÊNCIAS (NÃO INCLUI FORNECIMENTO). AF_11/2017 | I17: M | J17: COEFICIENTE DE REPRESENTATIVIDADE | K17: 52.21 | L17: CAIXA REFERENCIAL
A18: ASSENTAMENTO DE TUBOS E PECAS | B18: ASTU | C18: FORNEC E/OU ASSENT DE TUBO DE FERRO FUNDIDO JUNTA ELASTICA | D18: 45 | G18: 97152 | H18: ASSENTAMENTO DE TUBO DE FERRO FUNDIDO PARA REDE DE ÁGUA, DN 700 MM, JUNTA ELÁSTICA, INSTALADO EM LOCAL COM NÍVEL ALTO DE INTERFERÊNCIAS (NÃO INCLUI FORNECIMENTO). AF_11/2017 | I18: M | J18: COEFICIENTE DE REPRESENTATIVIDADE | K18: 59.5 | L18: CAIXA REFERENCIAL
A19: ASSENTAMENTO DE TUBOS E PECAS | B19: ASTU | C19: FORNEC E/OU ASSENT DE TUBO DE FERRO FUNDIDO JUNTA ELASTICA | D19: 45 | G19: 97153 | H19: ASSENTAMENTO DE TUBO DE FERRO FUNDIDO PARA REDE DE ÁGUA, DN 800 MM, JUNTA ELÁSTICA, INSTALADO EM LOCAL COM NÍVEL ALTO DE INTERFERÊNCIAS (NÃO INCLUI FORNECIMENTO). AF_11/2017 | I19: M | J19: COEFICIENTE DE REPRESENTATIVIDADE | K19: 66.94 | L19: CAIXA REFERENCIAL
A20: ASSENTAMENTO DE TUBOS E PECAS | B20: ASTU | C20: FORNEC E/OU ASSENT DE TUBO DE FERRO FUNDIDO JUNTA ELASTICA | D20: 45 | G20: 97154 | H20: ASSENTAMENTO DE TUBO DE FERRO FUNDIDO PARA REDE DE ÁGUA, DN 900 MM, JUNTA ELÁSTICA, INSTALADO EM LOCAL COM NÍVEL ALTO DE INTERFERÊNCIAS (NÃO INCLUI FORNECIMENTO). AF_11/2017 | I20: M | J20: COEFICIENTE DE REPRESENTATIVIDADE | K20: 74.42 | L20: CAIXA REFERENCIAL
A21: ASSENTAMENTO DE TUBOS E PECAS | B21: ASTU | C21: FORNEC E/OU ASSENT DE TUBO DE FERRO FUNDIDO JUNTA ELASTICA | D21: 45 | G21: 97155 | H21: ASSENTAMENTO DE TUBO DE FERRO FUNDIDO PARA REDE DE ÁGUA, DN 1000 MM, JUNTA ELÁSTICA, INSTALADO EM LOCAL COM NÍVEL ALTO DE INTERFERÊNCIAS (NÃO INCLUI FORNECIMENTO). AF_11/2017 | I21: M | J21: COEFICIENTE DE REPRESENTATIVIDADE | K21: 81.89 | L21: CAIXA REFERENCIAL
A22: ASSENTAMENTO DE TUBOS E PECAS | B22: ASTU | C22: FORNEC E/OU ASSENT DE TUBO DE FERRO FUNDIDO JUNTA ELASTICA | D22: 45 | G22: 97156 | H22: ASSENTAMENTO DE TUBO DE FERRO FUNDIDO PARA REDE DE ÁGUA, DN 1200 MM, JUNTA ELÁSTICA, INSTALADO EM LOCAL COM NÍVEL ALTO DE INTERFERÊNCIAS (NÃO INCLUI FORNECIMENTO). AF_11/2017 | I22: M | J22: COEFICIENTE DE REPRESENTATIVIDADE | K22: 97.28 | L22: CAIXA REFERENCIAL
A23: ASSENTAMENTO DE TUBOS E PECAS | B23: ASTU | C23: FORNEC E/OU ASSENT DE TUBO DE FERRO FUNDIDO JUNTA ELASTICA | D23: 45 | G23: 97157 | H23: ASSENTAMENTO DE TUBO DE FERRO FUNDIDO PARA REDE DE ÁGUA, DN 80 MM, JUNTA ELÁSTICA, INSTALADO EM LOCAL COM NÍVEL BAIXO DE INTERFERÊNCIAS (NÃO INCLUI FORNECIMENTO). AF_11/2017 | I23: M | J23: COEFICIENTE DE REPRESENTATIVIDADE | K23: 6.87 | L23: CAIXA REFERENCIAL
A24: ASSENTAMENTO DE TUBOS E PECAS | B24: ASTU | C24: FORNEC E/OU ASSENT DE TUBO DE FERRO FUNDIDO JUNTA ELASTICA | D24: 45 | G24: 97158 | H24: ASSENTAMENTO DE TUBO DE FERRO FUNDIDO PARA REDE DE ÁGUA, DN 100 MM, JUNTA ELÁSTICA, INSTALADO EM LOCAL COM NÍVEL BAIXO DE INTERFERÊNCIAS (NÃO INCLUI FORNECIMENTO). AF_11/2017 | I24: M | J24: COEFICIENTE DE REPRESENTATIVIDADE | K24: 7.7 | L24: CAIXA REFERENCIAL
A25: ASSENTAMENTO DE TUBOS E PECAS | B25: ASTU | C25: FORNEC E/OU ASSENT DE TUBO DE FERRO FUNDIDO JUNTA ELASTICA | D25: 45 | G25: 97159 | H25: ASSENTAMENTO DE TUBO DE FERRO FUNDIDO PARA REDE DE ÁGUA, DN 150 MM, JUNTA ELÁSTICA, INSTALADO EM LOCAL COM NÍVEL BAIXO DE INTERFERÊNCIAS (NÃO INCLUI FORNECIMENTO). AF_11/2017 | I25: M | J25: COEFICIENTE DE REPRESENTATIVIDADE | K25: 9.77 | L25: CAIXA REFERENCIAL
A26: ASSENTAMENTO DE TUBOS E PECAS | B26: ASTU | C26: FORNEC E/OU ASSENT DE TUBO DE FERRO FUNDIDO JUNTA ELASTICA | D26: 45 | G26: 97160 | H26: ASSENTAMENTO DE TUBO DE FERRO FUNDIDO PARA REDE DE ÁGUA, DN 200 MM, JUNTA ELÁSTICA, INSTALADO EM LOCAL COM NÍVEL BAIXO DE INTERFERÊNCIAS (NÃO INCLUI FORNECIMENTO). AF_11/2017 | I26: M | J26: COEFICIENTE DE REPRESENTATIVIDADE | K26: 11.82 | L26: CAIXA REFERENCIAL
A27: ASSENTAMENTO DE TUBOS E PECAS | B27: ASTU | C27: FORNEC E/OU ASSENT DE TUBO DE FERRO FUNDIDO JUNTA ELASTICA | D27: 45 | G27: 97161 | H27: ASSENTAMENTO DE TUBO DE FERRO FUNDIDO PARA REDE DE ÁGUA, DN 250 MM, JUNTA ELÁSTICA, INSTALADO EM LOCAL COM NÍVEL BAIXO DE INTERFERÊNCIAS (NÃO INCLUI FORNECIMENTO). AF_11/2017 | I27: M | J27: COEFICIENTE DE REPRESENTATIVIDADE | K27: 13.94 | L27: CAIXA REFERENCIAL
A28: ASSENTAMENTO DE TUBOS E PECAS | B28: ASTU | C28: FORNEC E/OU ASSENT DE TUBO DE FERRO FUNDIDO JUNTA ELASTICA | D28: 45 | G28: 97162 | H28: ASSENTAMENTO DE TUBO DE FERRO FUNDIDO PARA REDE DE ÁGUA, DN 300 MM, JUNTA ELÁSTICA, INSTALADO EM LOCAL COM NÍVEL BAIXO DE INTERFERÊNCIAS (NÃO INCLUI FORNECIMENTO). AF_11/2017 | I28: M | J28: COEFICIENTE DE REPRESENTATIVIDADE | K28: 16.02 | L28: CAIXA REFERENCIAL
A29: ASSENTAMENTO DE TUBOS E PECAS | B29: ASTU | C29: FORNEC E/OU ASSENT DE TUBO DE FERRO FUNDIDO JUNTA ELASTICA | D29: 45 | G29: 97163 | H29: ASSENTAMENTO DE TUBO DE FERRO FUNDIDO PARA REDE DE ÁGUA, DN 350 MM, JUNTA ELÁSTICA, INSTALADO EM LOCAL COM NÍVEL BAIXO DE INTERFERÊNCIAS (NÃO INCLUI FORNECIMENTO). AF_11/2017 | I29: M | J29: COEFICIENTE DE REPRESENTATIVIDADE | K29: 18.12 | L29: CAIXA REFERENCIAL
A30: ASSENTAMENTO DE TUBOS E PECAS | B30: ASTU | C30: FORNEC E/OU ASSENT DE TUBO DE FERRO FUNDIDO JUNTA ELASTICA | D30: 45 | G30: 97164 | H30: ASSENTAMENTO DE TUBO DE FERRO FUNDIDO PARA REDE DE ÁGUA, DN 400 MM, JUNTA ELÁSTICA, INSTALADO EM LOCAL COM NÍVEL BAIXO DE INTERFERÊNCIAS (NÃO INCLUI FORNECIMENTO). AF_11/2017 | I30: M | J30: COEFICIENTE DE REPRESENTATIVIDADE | K30: 20.22 | L30: CAIXA REFERENCIAL
A31: ASSENTAMENTO DE TUBOS E PECAS | B31: ASTU | C31: FORNEC E/OU ASSENT DE TUBO DE FERRO FUNDIDO JUNTA ELASTICA | D31: 45 | G31: 97165 | H31: ASSENTAMENTO DE TUBO DE FERRO FUNDIDO PARA REDE DE ÁGUA, DN 450 MM, JUNTA ELÁSTICA, INSTALADO EM LOCAL COM NÍVEL BAIXO DE INTERFERÊNCIAS (NÃO INCLUI FORNECIMENTO). AF_11/2017 | I31: M | J31: COEFICIENTE DE REPRESENTATIVIDADE | K31: 22.33 | L31: CAIXA REFERENCIAL
A32: ASSENTAMENTO DE TUBOS E PECAS | B32: ASTU | C32: FORNEC E/OU ASSENT DE TUBO DE FERRO FUNDIDO JUNTA ELASTICA | D32: 45 | G32: 97166 | H32: ASSENTAMENTO DE TUBO DE FERRO FUNDIDO PARA REDE DE ÁGUA, DN 500 MM, JUNTA ELÁSTICA, INSTALADO EM LOCAL COM NÍVEL BAIXO DE INTERFERÊNCIAS (NÃO INCLUI FORNECIMENTO). AF_11/2017 | I32: M | J32: COEFICIENTE DE REPRESENTATIVIDADE | K32: 27 | L32: CAIXA REFERENCIAL
A33: ASSENTAMENTO DE TUBOS E PECAS | B33: ASTU | C33: FORNEC E/OU ASSENT DE TUBO DE FERRO FUNDIDO JUNTA ELASTICA | D33: 45 | G33: 97167 | H33: ASSENTAMENTO DE TUBO DE FERRO FUNDIDO PARA REDE DE ÁGUA, DN 600 MM, JUNTA ELÁSTICA, INSTALADO EM LOCAL COM NÍVEL BAIXO DE INTERFERÊNCIAS (NÃO INCLUI FORNECIMENTO). AF_11/2017 | I33: M | J33: COEFICIENTE DE REPRESENTATIVIDADE | K33: 31.58 | L33: CAIXA REFERENCIAL
A34: ASSENTAMENTO DE TUBOS E PECAS | B34: ASTU | C34: FORNEC E/OU ASSENT DE TUBO DE FERRO FUNDIDO JUNTA ELASTICA | D34: 45 | G34: 97168 | H34: ASSENTAMENTO DE TUBO DE FERRO FUNDIDO PARA REDE DE ÁGUA, DN 700 MM, JUNTA ELÁSTICA, INSTALADO EM LOCAL COM NÍVEL BAIXO DE INTERFERÊNCIAS (NÃO INCLUI FORNECIMENTO). AF_11/2017 | I34: M | J34: COEFICIENTE DE REPRESENTATIVIDADE | K34: 35.93 | L34: CAIXA REFERENCIAL
A35: ASSENTAMENTO DE TUBOS E PECAS | B35: ASTU | C35: FORNEC E/OU ASSENT DE TUBO DE FERRO FUNDIDO JUNTA ELASTICA | D35: 45 | G35: 97169 | H35: ASSENTAMENTO DE TUBO DE FERRO FUNDIDO PARA REDE DE ÁGUA, DN 800 MM, JUNTA ELÁSTICA, INSTALADO EM LOCAL COM NÍVEL BAIXO DE INTERFERÊNCIAS (NÃO INCLUI FORNECIMENTO). AF_11/2017 | I35: M | J35: COEFICIENTE DE REPRESENTATIVIDADE | K35: 40.42 | L35: CAIXA REFERENCIAL
A36: ASSENTAMENTO DE TUBOS E PECAS | B36: ASTU | C36: FORNEC E/OU ASSENT DE TUBO DE FERRO FUNDIDO JUNTA ELASTICA | D36: 45 | G36: 97170 | H36: ASSENTAMENTO DE TUBO DE FERRO FUNDIDO PARA REDE DE ÁGUA, DN 900 MM, JUNTA ELÁSTICA, INSTALADO EM LOCAL COM NÍVEL BAIXO DE INTERFERÊNCIAS (NÃO INCLUI FORNECIMENTO). AF_11/2017 | I36: M | J36: COEFICIENTE DE REPRESENTATIVIDADE | K36: 44.95 | L36: CAIXA REFERENCIAL
A37: ASSENTAMENTO DE TUBOS E PECAS | B37: ASTU | C37: FORNEC E/OU ASSENT DE TUBO DE FERRO FUNDIDO JUNTA ELASTICA | D37: 45 | G37: 97171 | H37: ASSENTAMENTO DE TUBO DE FERRO FUNDIDO PARA REDE DE ÁGUA, DN 1000 MM, JUNTA ELÁSTICA, INSTALADO EM LOCAL COM NÍVEL BAIXO DE INTERFERÊNCIAS (NÃO INCLUI FORNECIMENTO). AF_11/2017 | I37: M | J37: COEFICIENTE DE REPRESENTATIVIDADE | K37: 49.5 | L37: CAIXA REFERENCIAL
A38: ASSENTAMENTO DE TUBOS E PECAS | B38: ASTU | C38: FORNEC E/OU ASSENT DE TUBO DE FERRO FUNDIDO JUNTA ELASTICA | D38: 45 | G38: 97172 | H38: ASSENTAMENTO DE TUBO DE FERRO FUNDIDO PARA REDE DE ÁGUA, DN 1200 MM, JUNTA ELÁSTICA, INSTALADO EM LOCAL COM NÍVEL BAIXO DE INTERFERÊNCIAS (NÃO INCLUI FORNECIMENTO). AF_11/2017 | I38: M | J38: COEFICIENTE DE REPRESENTATIVIDADE | K38: 58.99 | L38: CAIXA REFERENCIAL
A39: ASSENTAMENTO DE TUBOS E PECAS | B39: ASTU | C39: FORNEC E/OU ASSENT DE TUBO DE ACO COM JUNTA SOLDADA | D39: 46 | G39: 97173 | H39: ASSENTAMENTO DE TUBO DE AÇO CARBONO PARA REDE DE ÁGUA, DN 600 MM (24), JUNTA SOLDADA, INSTALADO EM LOCAL COM NÍVEL ALTO DE INTERFERÊNCIAS (NÃO INCLUI FORNECIMENTO). AF_11/2017 | I39: M | J39: COEFICIENTE DE REPRESENTATIVIDADE | K39: 46.36 | L39: CAIXA REFERENCIAL
A40: ASSENTAMENTO DE TUBOS E PECAS | B40: ASTU | C40: FORNEC E/OU ASSENT DE TUBO DE ACO COM JUNTA SOLDADA | D40: 46 | G40: 97174 | H40: ASSENTAMENTO DE TUBO DE AÇO CARBONO PARA REDE DE ÁGUA, DN 700 MM (28), JUNTA SOLDADA, INSTALADO EM LOCAL COM NÍVEL ALTO DE INTERFERÊNCIAS (NÃO INCLUI FORNECIMENTO). AF_11/2017 | I40: M | J40: COEFICIENTE DE REPRESENTATIVIDADE | K40: 53.54 | L40: CAIXA REFERENCIAL
A41: ASSENTAMENTO DE TUBOS E PECAS | B41: ASTU | C41: FORNEC E/OU ASSENT DE TUBO DE ACO COM JUNTA SOLDADA | D41: 46 | G41: 97175 | H41: ASSENTAMENTO DE TUBO DE AÇO CARBONO PARA REDE DE ÁGUA, DN 800 MM (32), JUNTA SOLDADA, INSTALADO EM LOCAL COM NÍVEL ALTO DE INTERFERÊNCIAS (NÃO INCLUI FORNECIMENTO). AF_11/2017 | I41: M | J41: COEFICIENTE DE REPRESENTATIVIDADE | K41: 60.75 | L41: CAIXA REFERENCIAL
A42: ASSENTAMENTO DE TUBOS E PECAS | B42: ASTU | C42: FORNEC E/OU ASSENT DE TUBO DE ACO COM JUNTA SOLDADA | D42: 46 | G42: 97176 | H42: ASSENTAMENTO DE TUBO DE AÇO CARBONO PARA REDE DE ÁGUA, DN 900 MM (36), JUNTA SOLDADA, INSTALADO EM LOCAL COM NÍVEL ALTO DE INTERFERÊNCIAS (NÃO INCLUI FORNECIMENTO). AF_11/2017 | I42: M | J42: COEFICIENTE DE REPRESENTATIVIDADE | K42: 67.92 | L42: CAIXA REFERENCIAL
A43: ASSENTAMENTO DE TUBOS E PECAS | B43: ASTU | C43: FORNEC E/OU ASSENT DE TUBO DE ACO COM JUNTA SOLDADA | D43: 46 | G43: 97177 | H43: ASSENTAMENTO DE TUBO DE AÇO CARBONO PARA REDE DE ÁGUA, DN 1000 MM (40) OU DN 1100 MM (44), JUNTA SOLDADA, INSTALADO EM LOCAL COM NÍVEL ALTO DE INTERFERÊNCIAS (NÃO INCLUI FORNECIMENTO). AF_11/2017 | I43: M | J43: COEFICIENTE DE REPRESENTATIVIDADE | K43: 82.3 | L43: CAIXA REFERENCIAL
A44: ASSENTAMENTO DE TUBOS E PECAS | B44: ASTU | C44: FORNEC E/OU ASSENT DE TUBO DE ACO COM JUNTA SOLDADA | D44: 46 | G44: 97178 | H44: ASSENTAMENTO DE TUBO DE AÇO CARBONO PARA REDE DE ÁGUA, DN 1200 MM (48) OU DN 1300 MM (52), JUNTA SOLDADA, INSTALADO EM LOCAL COM NÍVEL ALTO DE INTERFERÊNCIAS (NÃO INCLUI FORNECIMENTO). AF_11/2017 | I44: M | J44: COEFICIENTE DE REPRESENTATIVIDADE | K44: 96.66 | L44: CAIXA REFERENCIAL
A45: ASSENTAMENTO DE TUBOS E PECAS | B45: ASTU | C45: FORNEC E/OU ASSENT DE TUBO DE ACO COM JUNTA SOLDADA | D45: 46 | G45: 97179 | H45: ASSENTAMENTO DE TUBO DE AÇO CARBONO PARA REDE DE ÁGUA, DN 1400 MM (56'') OU DN 1500 MM (60), JUNTA SOLDADA, INSTALADO EM LOCAL COM NÍVEL ALTO DE INTERFERÊNCIAS (NÃO INCLUI FORNECIMENTO). AF_11/2017 | I45: M | J45: COEFICIENTE DE REPRESENTATIVIDADE | K45: 111.04 | L45: CAIXA REFERENCIAL
A46: ASSENTAMENTO DE TUBOS E PECAS | B46: ASTU | C46: FORNEC E/OU ASSENT DE TUBO DE ACO COM JUNTA SOLDADA | D46: 46 | G46: 97180 | H46: ASSENTAMENTO DE TUBO DE AÇO CARBONO PARA REDE DE ÁGUA, DN 1600 MM (64) OU DN 1700 MM (68), JUNTA SOLDADA, INSTALADO EM LOCAL COM NÍVEL ALTO DE INTERFERÊNCIAS (NÃO INCLUI FORNECIMENTO). AF_11/2017 | I46: M | J46: COEFICIENTE DE REPRESENTATIVIDADE | K46: 125.42 | L46: CAIXA REFERENCIAL
A47: ASSENTAMENTO DE TUBOS E PECAS | B47: ASTU | C47: FORNEC E/OU ASSENT DE TUBO DE ACO COM JUNTA SOLDADA | D47: 46 | G47: 97181 | H47: ASSENTAMENTO DE TUBO DE AÇO CARBONO PARA REDE DE ÁGUA, DN 1800 MM (72) OU DN 1900 MM (76), JUNTA SOLDADA, INSTALADO EM LOCAL COM NÍVEL ALTO DE INTERFERÊNCIAS (NÃO INCLUI FORNECIMENTO). AF_11/2017 | I47: M | J47: COEFICIENTE DE REPRESENTATIVIDADE | K47: 144.05 | L47: CAIXA REFERENCIAL
A48: ASSENTAMENTO DE TUBOS E PECAS | B48: ASTU | C48: FORNEC E/OU ASSENT DE TUBO DE ACO COM JUNTA SOLDADA | D48: 46 | G48: 97182 | H48: ASSENTAMENTO DE TUBO DE AÇO CARBONO PARA REDE DE ÁGUA, DN 2000 MM (80) OU DN 2100 MM (84), JUNTA SOLDADA, INSTALADO EM LOCAL COM NÍVEL ALTO DE INTERFERÊNCIAS (NÃO INCLUI FORNECIMENTO). AF_11/2017 | I48: M | J48: COEFICIENTE DE REPRESENTATIVIDADE | K48: 158.86 | L48: CAIXA REFERENCIAL
A49: ASSENTAMENTO DE TUBOS E PECAS | B49: ASTU | C49: FORNEC E/OU ASSENT DE TUBO DE ACO COM JUNTA SOLDADA | D49: 46 | G49: 97183 | H49: ASSENTAMENTO DE TUBO DE AÇO CARBONO PARA REDE DE ÁGUA, DN 600 MM (24), JUNTA SOLDADA, INSTALADO EM LOCAL COM NÍVEL BAIXO DE INTERFERÊNCIAS (NÃO INCLUI FORNECIMENTO). AF_11/2017 | I49: M | J49: COEFICIENTE DE REPRESENTATIVIDADE | K49: 37.51 | L49: CAIXA REFERENCIAL
A50: ASSENTAMENTO DE TUBOS E PECAS | B50: ASTU | C50: FORNEC E/OU ASSENT DE TUBO DE ACO COM JUNTA SOLDADA | D50: 46 | G50: 97184 | H50: ASSENTAMENTO DE TUBO DE AÇO CARBONO PARA REDE DE ÁGUA, DN 700 MM (28), JUNTA SOLDADA, INSTALADO EM LOCAL COM NÍVEL BAIXO DE INTERFERÊNCIAS (NÃO INCLUI FORNECIMENTO). AF_11/2017 | I50: M | J50: COEFICIENTE DE REPRESENTATIVIDADE | K50: 43.44 | L50: CAIXA REFERENCIAL
A51: ASSENTAMENTO DE TUBOS E PECAS | B51: ASTU | C51: FORNEC E/OU ASSENT DE TUBO DE ACO COM JUNTA SOLDADA | D51: 46 | G51: 97185 | H51: ASSENTAMENTO DE TUBO DE AÇO CARBONO PARA REDE DE ÁGUA, DN 800 MM (32), JUNTA SOLDADA, INSTALADO EM LOCAL COM NÍVEL BAIXO DE INTERFERÊNCIAS (NÃO INCLUI FORNECIMENTO). AF_11/2017 | I51: M | J51: COEFICIENTE DE REPRESENTATIVIDADE | K51: 49.37 | L51: CAIXA REFERENCIAL
A52: ASSENTAMENTO DE TUBOS E PECAS | B52: ASTU | C52: FORNEC E/OU ASSENT DE TUBO DE ACO COM JUNTA SOLDADA | D52: 46 | G52: 97186 | H52: ASSENTAMENTO DE TUBO DE AÇO CARBONO PARA REDE DE ÁGUA, DN 900 MM (36), JUNTA SOLDADA, INSTALADO EM LOCAL COM NÍVEL BAIXO DE INTERFERÊNCIAS (NÃO INCLUI FORNECIMENTO). AF_11/2017 | I52: M | J52: COEFICIENTE DE REPRESENTATIVIDADE | K52: 55.3 | L52: CAIXA REFERENCIAL
A53: ASSENTAMENTO DE TUBOS E PECAS | B53: ASTU | C53: FORNEC E/OU ASSENT DE TUBO DE ACO COM JUNTA SOLDADA | D53: 46 | G53: 97187 | H53: ASSENTAMENTO DE TUBO DE AÇO CARBONO PARA REDE DE ÁGUA, DN 1000 MM (40 ) OU DN 1100 MM (44 ), JUNTA SOLDADA, INSTALADO EM LOCAL COM NÍVEL BAIXO DE INTERFERÊNCIAS (NÃO INCLUI FORNECIMENTO). AF_11/2017 | I53: M | J53: COEFICIENTE DE REPRESENTATIVIDADE | K53: 67.14 | L53: CAIXA REFERENCIAL
A54: ASSENTAMENTO DE TUBOS E PECAS | B54: ASTU | C54: FORNEC E/OU ASSENT DE TUBO DE ACO COM JUNTA SOLDADA | D54: 46 | G54: 97188 | H54: ASSENTAMENTO DE TUBO DE AÇO CARBONO PARA REDE DE ÁGUA, DN 1200 MM (48) OU DN 1300 MM (52), JUNTA SOLDADA, INSTALADO EM LOCAL COM NÍVEL BAIXO DE INTERFERÊNCIAS (NÃO INCLUI FORNECIMENTO). AF_11/2017 | I54: M | J54: COEFICIENTE DE REPRESENTATIVIDADE | K54: 79 | L54: CAIXA REFERENCIAL
A55: ASSENTAMENTO DE TUBOS E PECAS | B55: ASTU | C55: FORNEC E/OU ASSENT DE TUBO DE ACO COM JUNTA SOLDADA | D55: 46 | G55: 97189 | H55: ASSENTAMENTO DE TUBO DE AÇO CARBONO PARA REDE DE ÁGUA, DN 1400 MM (56'') OU DN 1500 MM (60), JUNTA SOLDADA, INSTALADO EM LOCAL COM NÍVEL BAIXO DE INTERFERÊNCIAS (NÃO INCLUI FORNECIMENTO). AF_11/2017 | I55: M | J55: COEFICIENTE DE REPRESENTATIVIDADE | K55: 90.85 | L55: CAIXA REFERENCIAL
A56: ASSENTAMENTO DE TUBOS E PECAS | B56: ASTU | C56: FORNEC E/OU ASSENT DE TUBO DE ACO COM JUNTA SOLDADA | D56: 46 | G56: 97190 | H56: ASSENTAMENTO DE TUBO DE AÇO CARBONO PARA REDE DE ÁGUA, DN 1600 MM (64) OU DN 1700 MM (68), JUNTA SOLDADA, INSTALADO EM LOCAL COM NÍVEL BAIXO DE INTERFERÊNCIAS (NÃO INCLUI FORNECIMENTO). AF_11/2017 | I56: M | J56: COEFICIENTE DE REPRESENTATIVIDADE | K56: 102.71 | L56: CAIXA REFERENCIAL
A57: ASSENTAMENTO DE TUBOS E PECAS | B57: ASTU | C57: FORNEC E/OU ASSENT DE TUBO DE ACO COM JUNTA SOLDADA | D57: 46 | G57: 97191 | H57: ASSENTAMENTO DE TUBO DE AÇO CARBONO PARA REDE DE ÁGUA, DN 1800 MM (72) OU DN 1900 MM (76), JUNTA SOLDADA, INSTALADO EM LOCAL COM NÍVEL BAIXO DE INTERFERÊNCIAS (NÃO INCLUI FORNECIMENTO). AF_11/2017 | I57: M | J57: COEFICIENTE DE REPRESENTATIVIDADE | K57: 117.61 | L57: CAIXA REFERENCIAL
A58: ASSENTAMENTO DE TUBOS E PECAS | B58: ASTU | C58: FORNEC E/OU ASSENT DE TUBO DE ACO COM JUNTA SOLDADA | D58: 46 | G58: 97192 | H58: ASSENTAMENTO DE TUBO DE AÇO CARBONO PARA REDE DE ÁGUA, DN 2000 MM (80) OU DN 2100 MM (84), JUNTA SOLDADA, INSTALADO EM LOCAL COM NÍVEL BAIXO DE INTERFERÊNCIAS (NÃO INCLUI FORNECIMENTO). AF_11/2017 | I58: M | J58: COEFICIENTE DE REPRESENTATIVIDADE | K58: 129.79 | L58: CAIXA REFERENCIAL
A59: ASSENTAMENTO DE TUBOS E PECAS | B59: ASTU | C59: FORNEC E/OU ASSENT DE TUBO DE PVC COM JUNTA ELASTICA | D59: 48 | G59: 90694 | H59: TUBO DE PVC PARA REDE COLETORA DE ESGOTO DE PAREDE MACIÇA, DN 100 MM, JUNTA ELÁSTICA - FORNECIMENTO E ASSENTAMENTO. AF_01/2021 | I59: M | J59: COEFICIENTE DE REPRESENTATIVIDADE | K59: 47.57 | L59: CAIXA REFERENCIAL
A60: ASSENTAMENTO DE TUBOS E PECAS | B60: ASTU | C60: FORNEC E/OU ASSENT DE TUBO DE PVC COM JUNTA ELASTICA | D60: 48 | G60: 90695 | H60: TUBO DE PVC PARA REDE COLETORA DE ESGOTO DE PAREDE MACIÇA, DN 150 MM, JUNTA ELÁSTICA - FORNECIMENTO E ASSENTAMENTO. AF_01/2021 | I60: M | J60: COEFICIENTE DE REPRESENTATIVIDADE | K60: 88.97 | L60: CAIXA REFERENCIAL
A61: ASSENTAMENTO DE TUBOS E PECAS | B61: ASTU | C61: FORNEC E/OU ASSENT DE TUBO DE PVC COM JUNTA ELASTICA | D61: 48 | G61: 90696 | H61: TUBO DE PVC PARA REDE COLETORA DE ESGOTO DE PAREDE MACIÇA, DN 200 MM, JUNTA ELÁSTICA - FORNECIMENTO E ASSENTAMENTO. AF_01/2021 | I61: M | J61: COEFICIENTE DE REPRESENTATIVIDADE | K61: 147.41 | L61: CAIXA REFERENCIAL
A62: ASSENTAMENTO DE TUBOS E PECAS | B62: ASTU | C62: FORNEC E/OU ASSENT DE TUBO DE PVC COM JUNTA ELASTICA | D62: 48 | G62: 90697 | H62: TUBO DE PVC PARA REDE COLETORA DE ESGOTO DE PAREDE MACIÇA, DN 250 MM, JUNTA ELÁSTICA - FORNECIMENTO E ASSENTAMENTO. AF_01/2021 | I62: M | J62: COEFICIENTE DE REPRESENTATIVIDADE | K62: 227.55 | L62: CAIXA REFERENCIAL
A63: ASSENTAMENTO DE TUBOS E PECAS | B63: ASTU | C63: FORNEC E/OU ASSENT DE TUBO DE PVC COM JUNTA ELASTICA | D63: 48 | G63: 90698 | H63: TUBO DE PVC PARA REDE COLETORA DE ESGOTO DE PAREDE MACIÇA, DN 300 MM, JUNTA ELÁSTICA, FORNECIMENTO E ASSENTAMENTO. AF_01/2021 | I63: M | J63: COEFICIENTE DE REPRESENTATIVIDADE | K63: 346.54 | L63: CAIXA REFERENCIAL
A64: ASSENTAMENTO DE TUBOS E PECAS | B64: ASTU | C64: FORNEC E/OU ASSENT DE TUBO DE PVC COM JUNTA ELASTICA | D64: 48 | G64: 90699 | H64: TUBO DE PVC PARA REDE COLETORA DE ESGOTO DE PAREDE MACIÇA, DN 350 MM, JUNTA ELÁSTICA - FORNECIMENTO E ASSENTAMENTO. AF_01/2021 | I64: M | J64: COEFICIENTE DE REPRESENTATIVIDADE | K64: 486.71 | L64: CAIXA REFERENCIAL
A65: ASSENTAMENTO DE TUBOS E PECAS | B65: ASTU | C65: FORNEC E/OU ASSENT DE TUBO DE PVC COM JUNTA ELASTICA | D65: 48 | G65: 90700 | H65: TUBO DE PVC PARA REDE COLETORA DE ESGOTO DE PAREDE MACIÇA, DN 400 MM, JUNTA ELÁSTICA FORNECIMENTO E ASSENTAMENTO. AF_01/2021 | I65: M | J65: COEFICIENTE DE REPRESENTATIVIDADE | K65: 566.46 | L65: CAIXA REFERENCIAL
A66: ASSENTAMENTO DE TUBOS E PECAS | B66: ASTU | C66: FORNEC E/OU ASSENT DE TUBO DE PVC COM JUNTA ELASTICA | D66: 48 | G66: 90701 | H66: TUBO DE PVC CORRUGADO DE DUPLA PAREDE PARA REDE COLETORA DE ESGOTO, DN 150 MM, JUNTA ELÁSTICA - FORNECIMENTO E ASSENTAMENTO. AF_01/2021 | I66: M | J66: COEFICIENTE DE REPRESENTATIVIDADE | K66: 71.07 | L66: CAIXA REFERENCIAL
A67: ASSENTAMENTO DE TUBOS E PECAS | B67: ASTU | C67: FORNEC E/OU ASSENT DE TUBO DE PVC COM JUNTA ELASTICA | D67: 48 | G67: 90702 | H67: TUBO DE PVC CORRUGADO DE DUPLA PAREDE PARA REDE COLETORA DE ESGOTO, DN 200 MM, JUNTA ELÁSTICA - FORNECIMENTO E ASSENTAMENTO. AF_01/2021 | I67: M | J67: COEFICIENTE DE REPRESENTATIVIDADE | K67: 116.24 | L67: CAIXA REFERENCIAL
A68: ASSENTAMENTO DE TUBOS E PECAS | B68: ASTU | C68: FORNEC E/OU ASSENT DE TUBO DE PVC COM JUNTA ELASTICA | D68: 48 | G68: 90703 | H68: TUBO DE PVC CORRUGADO DE DUPLA PAREDE PARA REDE COLETORA DE ESGOTO, DN 250 MM, JUNTA ELÁSTICA - FORNECIMENTO E ASSENTAMENTO. AF_01/2021 | I68: M | J68: COEFICIENTE DE REPRESENTATIVIDADE | K68: 181.33 | L68: CAIXA REFERENCIAL
A69: ASSENTAMENTO DE TUBOS E PECAS | B69: ASTU | C69: FORNEC E/OU ASSENT DE TUBO DE PVC COM JUNTA ELASTICA | D69: 48 | G69: 90704 | H69: TUBO DE PVC CORRUGADO DE DUPLA PAREDE PARA REDE COLETORA DE ESGOTO, DN 300 MM, JUNTA ELÁSTICA - FORNECIMENTO E ASSENTAMENTO. AF_01/2021 | I69: M | J69: COEFICIENTE DE REPRESENTATIVIDADE | K69: 269.37 | L69: CAIXA REFERENCIAL
A70: ASSENTAMENTO DE TUBOS E PECAS | B70: ASTU | C70: FORNEC E/OU ASSENT DE TUBO DE PVC COM JUNTA ELASTICA | D70: 48 | G70: 90705 | H70: TUBO DE PVC CORRUGADO DE DUPLA PAREDE PARA REDE COLETORA DE ESGOTO, DN 350 MM, JUNTA ELÁSTICA - FORNECIMENTO E ASSENTAMENTO. AF_01/2021 | I70: M | J70: COEFICIENTE DE REPRESENTATIVIDADE | K70: 349.28 | L70: CAIXA REFERENCIAL
A71: ASSENTAMENTO DE TUBOS E PECAS | B71: ASTU | C71: FORNEC E/OU ASSENT DE TUBO DE PVC COM JUNTA ELASTICA | D71: 48 | G71: 90706 | H71: TUBO DE PVC CORRUGADO DE DUPLA PAREDE PARA REDE COLETORA DE ESGOTO, DN 400 MM, JUNTA ELÁSTICA - FORNECIMENTO E ASSENTAMENTO. AF_01/2021 | I71: M | J71: COEFICIENTE DE REPRESENTATIVIDADE | K71: 460.49 | L71: CAIXA REFERENCIAL
A72: ASSENTAMENTO DE TUBOS E PECAS | B72: ASTU | C72: FORNEC E/OU ASSENT DE TUBO DE PVC COM JUNTA ELASTICA | D72: 48 | G72: 90708 | H72: TUBO DE PEAD CORRUGADO DE DUPLA PAREDE PARA REDE COLETORA DE ESGOTO, DN 600 MM, JUNTA ELÁSTICA INTEGRADA - FORNECIMENTO E ASSENTAMENTO. AF_01/2021 | I72: M | J72: COEFICIENTE DE REPRESENTATIVIDADE | K72: 825.93 | L72: CAIXA REFERENCIAL
A73: ASSENTAMENTO DE TUBOS E PECAS | B73: ASTU | C73: FORNEC E/OU ASSENT DE TUBO DE PVC COM JUNTA ELASTICA | D73: 48 | G73: 90724 | H73: JUNTA ARGAMASSADA ENTRE TUBO DN 100 MM E O POÇO DE VISITA/ CAIXA DE CONCRETO OU ALVENARIA EM REDES DE ESGOTO. AF_01/2021 | I73: UN | J73: COEFICIENTE DE REPRESENTATIVIDADE | K73: 37.75 | L73: CAIXA REFERENCIAL
A74: ASSENTAMENTO DE TUBOS E PECAS | B74: ASTU | C74: FORNEC E/OU ASSENT DE TUBO DE PVC COM JUNTA ELASTICA | D74: 48 | G74: 90725 | H74: JUNTA ARGAMASSADA ENTRE TUBO DN 150 MM E O POÇO DE VISITA/ CAIXA DE CONCRETO OU ALVENARIA EM REDES DE ESGOTO. AF_01/2021 | I74: UN | J74: COEFICIENTE DE REPRESENTATIVIDADE | K74: 46.37 | L74: CAIXA REFERENCIAL
A75: ASSENTAMENTO DE TUBOS E PECAS | B75: ASTU | C75: FORNEC E/OU ASSENT DE TUBO DE PVC COM JUNTA ELASTICA | D75: 48 | G75: 90726 | H75: JUNTA ARGAMASSADA ENTRE TUBO DN 200 MM E O POÇO/ CAIXA DE CONCRETO OU ALVENARIA EM REDES DE ESGOTO. AF_01/2021 | I75: UN | J75: COEFICIENTE DE REPRESENTATIVIDADE | K75: 55.05 | L75: CAIXA REFERENCIAL
A76: ASSENTAMENTO DE TUBOS E PECAS | B76: ASTU | C76: FORNEC E/OU ASSENT DE TUBO DE PVC COM JUNTA ELASTICA | D76: 48 | G76: 90727 | H76: JUNTA ARGAMASSADA ENTRE TUBO DN 250 MM E O POÇO DE VISITA/ CAIXA DE CONCRETO OU ALVENARIA EM REDES DE ESGOTO. AF_01/2021 | I76: UN | J76: COEFICIENTE DE REPRESENTATIVIDADE | K76: 63.67 | L76: CAIXA REFERENCIAL
A77: ASSENTAMENTO DE TUBOS E PECAS | B77: ASTU | C77: FORNEC E/OU ASSENT DE TUBO DE PVC COM JUNTA ELASTICA | D77: 48 | G77: 90728 | H77: JUNTA ARGAMASSADA ENTRE TUBO DN 300 MM E O POÇO DE VISITA/ CAIXA DE CONCRETO OU ALVENARIA EM REDES DE ESGOTO. AF_01/2021 | I77: UN | J77: COEFICIENTE DE REPRESENTATIVIDADE | K77: 72.28 | L77: CAIXA REFERENCIAL
A78: ASSENTAMENTO DE TUBOS E PECAS | B78: ASTU | C78: FORNEC E/OU ASSENT DE TUBO DE PVC COM JUNTA ELASTICA | D78: 48 | G78: 90729 | H78: JUNTA ARGAMASSADA ENTRE TUBO DN 350 MM E O POÇO DE VISITA/ CAIXA DE CONCRETO OU ALVENARIA EM REDES DE ESGOTO. AF_01/2021 | I78: UN | J78: COEFICIENTE DE REPRESENTATIVIDADE | K78: 80.89 | L78: CAIXA REFERENCIAL
A79: ASSENTAMENTO DE TUBOS E PECAS | B79: ASTU | C79: FORNEC E/OU ASSENT DE TUBO DE PVC COM JUNTA ELASTICA | D79: 48 | G79: 90730 | H79: JUNTA ARGAMASSADA ENTRE TUBO DN 400 MM E O POÇO DE VISITA/ CAIXA DE CONCRETO OU ALVENARIA EM REDES DE ESGOTO. AF_01/2021 | I79: UN | J79: COEFICIENTE DE REPRESENTATIVIDADE | K79: 89.5 | L79: CAIXA REFERENCIAL
A80: ASSENTAMENTO DE TUBOS E PECAS | B80: ASTU | C80: FORNEC E/OU ASSENT DE TUBO DE PVC COM JUNTA ELASTICA | D80: 48 | G80: 90731 | H80: JUNTA ARGAMASSADA ENTRE TUBO DN 450 MM E O POÇO DE VISITA/ CAIXA DE CONCRETO OU ALVENARIA EM REDES DE ESGOTO. AF_01/2021 | I80: UN | J80: COEFICIENTE DE REPRESENTATIVIDADE | K80: 98.12 | L80: CAIXA REFERENCIAL
A81: ASSENTAMENTO DE TUBOS E PECAS | B81: ASTU | C81: FORNEC E/OU ASSENT DE TUBO DE PVC COM JUNTA ELASTICA | D81: 48 | G81: 90732 | H81: JUNTA ARGAMASSADA ENTRE TUBO DN 600 MM E O POÇO DE VISITA/ CAIXA DE CONCRETO OU ALVENARIA EM REDES DE ESGOTO. AF_01/2021 | I81: UN | J81: COEFICIENTE DE REPRESENTATIVIDADE | K81: 123.96 | L81: CAIXA REFERENCIAL
A82: ASSENTAMENTO DE TUBOS E PECAS | B82: ASTU | C82: FORNEC E/OU ASSENT DE TUBO DE PVC COM JUNTA ELASTICA | D82: 48 | G82: 90733 | H82: ASSENTAMENTO DE TUBO DE PVC PARA REDE COLETORA DE ESGOTO DE PAREDE MACIÇA, DN 100 MM, JUNTA ELÁSTICA (NÃO INCLUI FORNECIMENTO). AF_01/2021 | I82: M | J82: COEFICIENTE DE REPRESENTATIVIDADE | K82: 5.39 | L82: CAIXA REFERENCIAL
A83: ASSENTAMENTO DE TUBOS E PECAS | B83: ASTU | C83: FORNEC E/OU ASSENT DE TUBO DE PVC COM JUNTA ELASTICA | D83: 48 | G83: 90734 | H83: ASSENTAMENTO DE TUBO DE PVC PARA REDE COLETORA DE ESGOTO DE PAREDE MACIÇA, DN 150 MM, JUNTA ELÁSTICA, (NÃO INCLUI FORNECIMENTO). AF_01/2021 | I83: M | J83: COEFICIENTE DE REPRESENTATIVIDADE | K83: 6.39 | L83: CAIXA REFERENCIAL
A84: ASSENTAMENTO DE TUBOS E PECAS | B84: ASTU | C84: FORNEC E/OU ASSENT DE TUBO DE PVC COM JUNTA ELASTICA | D84: 48 | G84: 90735 | H84: ASSENTAMENTO DE TUBO DE PVC PARA REDE COLETORA DE ESGOTO DE PAREDE MACIÇA, DN 200 MM, JUNTA ELÁSTICA (NÃO INCLUI FORNECIMENTO). AF_01/2021 | I84: M | J84: COEFICIENTE DE REPRESENTATIVIDADE | K84: 7.38 | L84: CAIXA REFERENCIAL
A85: ASSENTAMENTO DE TUBOS E PECAS | B85: ASTU | C85: FORNEC E/OU ASSENT DE TUBO DE PVC COM JUNTA ELASTICA | D85: 48 | G85: 90736 | H85: ASSENTAMENTO DE TUBO DE PVC PARA REDE COLETORA DE ESGOTO DE PAREDE MACIÇA, DN 250 MM, JUNTA ELÁSTICA (NÃO INCLUI FORNECIMENTO). AF_01/2021 | I85: M | J85: COEFICIENTE DE REPRESENTATIVIDADE | K85: 8.37 | L85: CAIXA REFERENCIAL
A86: ASSENTAMENTO DE TUBOS E PECAS | B86: ASTU | C86: FORNEC E/OU ASSENT DE TUBO DE PVC COM JUNTA ELASTICA | D86: 48 | G86: 90737 | H86: ASSENTAMENTO DE TUBO DE PVC PARA REDE COLETORA DE ESGOTO DE PAREDE MACIÇA, DN 300 MM, JUNTA ELÁSTICA (NÃO INCLUI FORNECIMENTO). AF_01/2021 | I86: M | J86: COEFICIENTE DE REPRESENTATIVIDADE | K86: 9.37 | L86: CAIXA REFERENCIAL
A87: ASSENTAMENTO DE TUBOS E PECAS | B87: ASTU | C87: FORNEC E/OU ASSENT DE TUBO DE PVC COM JUNTA ELASTICA | D87: 48 | G87: 90738 | H87: ASSENTAMENTO DE TUBO DE PVC PARA REDE COLETORA DE ESGOTO DE PAREDE MACIÇA, DN 350 MM, JUNTA ELÁSTICA (NÃO INCLUI FORNECIMENTO). AF_01/2021 | I87: M | J87: COEFICIENTE DE REPRESENTATIVIDADE | K87: 10.37 | L87: CAIXA REFERENCIAL
A88: ASSENTAMENTO DE TUBOS E PECAS | B88: ASTU | C88: FORNEC E/OU ASSENT DE TUBO DE PVC COM JUNTA ELASTICA | D88: 48 | G88: 90739 | H88: ASSENTAMENTO DE TUBO DE PVC PARA REDE COLETORA DE ESGOTO DE PAREDE MACIÇA, DN 400 MM, JUNTA ELÁSTICA (NÃO INCLUI FORNECIMENTO). AF_01/2021 | I88: M | J88: COEFICIENTE DE REPRESENTATIVIDADE | K88: 11.73 | L88: CAIXA REFERENCIAL
A89: ASSENTAMENTO DE TUBOS E PECAS | B89: ASTU | C89: FORNEC E/OU ASSENT DE TUBO DE PVC COM JUNTA ELASTICA | D89: 48 | G89: 90740 | H89: ASSENTAMENTO DE TUBO DE PVC CORRUGADO DE DUPLA PAREDE PARA REDE COLETORA DE ESGOTO, DN 150 MM, JUNTA ELÁSTICA (NÃO INCLUI FORNECIMENTO). AF_01/2021 | I89: M | J89: COEFICIENTE DE REPRESENTATIVIDADE | K89: 7.12 | L89: CAIXA REFERENCIAL
A90: ASSENTAMENTO DE TUBOS E PECAS | B90: ASTU | C90: FORNEC E/OU ASSENT DE TUBO DE PVC COM JUNTA ELASTICA | D90: 48 | G90: 90741 | H90: ASSENTAMENTO DE TUBO DE PVC CORRUGADO DE DUPLA PAREDE PARA REDE COLETORA DE ESGOTO, DN 200 MM, JUNTA ELÁSTICA (NÃO INCLUI FORNECIMENTO). AF_01/2021 | I90: M | J90: COEFICIENTE DE REPRESENTATIVIDADE | K90: 8.12 | L90: CAIXA REFERENCIAL
A91: ASSENTAMENTO DE TUBOS E PECAS | B91: ASTU | C91: FORNEC E/OU ASSENT DE TUBO DE PVC COM JUNTA ELASTICA | D91: 48 | G91: 90742 | H91: ASSENTAMENTO DE TUBO DE PVC CORRUGADO DE DUPLA PAREDE PARA REDE COLETORA DE ESGOTO, DN 250 MM, JUNTA ELÁSTICA (NÃO INCLUI FORNECIMENTO). AF_01/2021 | I91: M | J91: COEFICIENTE DE REPRESENTATIVIDADE | K91: 9.11 | L91: CAIXA REFERENCIAL
A92: ASSENTAMENTO DE TUBOS E PECAS | B92: ASTU | C92: FORNEC E/OU ASSENT DE TUBO DE PVC COM JUNTA ELASTICA | D92: 48 | G92: 90743 | H92: ASSENTAMENTO DE TUBO DE PVC CORRUGADO DE DUPLA PAREDE PARA REDE COLETORA DE ESGOTO, DN 300 MM, JUNTA ELÁSTICA (NÃO INCLUI FORNECIMENTO). AF_01/2021 | I92: M | J92: COEFICIENTE DE REPRESENTATIVIDADE | K92: 10.11 | L92: CAIXA REFERENCIAL
A93: ASSENTAMENTO DE TUBOS E PECAS | B93: ASTU | C93: FORNEC E/OU ASSENT DE TUBO DE PVC COM JUNTA ELASTICA | D93: 48 | G93: 90744 | H93: ASSENTAMENTO DE TUBO DE PVC CORRUGADO DE DUPLA PAREDE PARA REDE COLETORA DE ESGOTO, DN 350 MM, JUNTA ELÁSTICA (NÃO INCLUI FORNECIMENTO). AF_01/2021 | I93: M | J93: COEFICIENTE DE REPRESENTATIVIDADE | K93: 11.1 | L93: CAIXA REFERENCIAL
A94: ASSENTAMENTO DE TUBOS E PECAS | B94: ASTU | C94: FORNEC E/OU ASSENT DE TUBO DE PVC COM JUNTA ELASTICA | D94: 48 | G94: 90745 | H94: ASSENTAMENTO DE TUBO DE PVC CORRUGADO DE DUPLA PAREDE PARA REDE COLETORA DE ESGOTO, DN 400 MM, JUNTA ELÁSTICA (NÃO INCLUI FORNECIMENTO). AF_01/2021 | I94: M | J94: COEFICIENTE DE REPRESENTATIVIDADE | K94: 13.09 | L94: CAIXA REFERENCIAL
A95: ASSENTAMENTO DE TUBOS E PECAS | B95: ASTU | C95: FORNEC E/OU ASSENT DE TUBO DE PVC COM JUNTA ELASTICA | D95: 48 | G95: 90746 | H95: ASSENTAMENTO DE TUBO DE PEAD CORRUGADO DE DUPLA PAREDE PARA REDE COLETORA DE ESGOTO, DN 450 MM, JUNTA ELÁSTICA INTEGRADA (NÃO INCLUI FORNECIMENTO). AF_01/2021 | I95: M | J95: COEFICIENTE DE REPRESENTATIVIDADE | K95: 5.83 | L95: CAIXA REFERENCIAL
A96: ASSENTAMENTO DE TUBOS E PECAS | B96: ASTU | C96: FORNEC E/OU ASSENT DE TUBO DE PVC COM JUNTA ELASTICA | D96: 48 | G96: 90747 | H96: ASSENTAMENTO DE TUBO DE PEAD CORRUGADO DE DUPLA PAREDE PARA REDE COLETORA DE ESGOTO, DN 600 MM, JUNTA ELÁSTICA INTEGRADA (NÃO INCLUI FORNECIMENTO). AF_01/2021 | I96: M | J96: COEFICIENTE DE REPRESENTATIVIDADE | K96: 20.63 | L96: CAIXA REFERENCIAL
A97: ASSENTAMENTO DE TUBOS E PECAS | B97: ASTU | C97: FORNEC E/OU ASSENT DE TUBO DE PVC COM JUNTA ELASTICA | D97: 48 | G97: 94869 | H97: TUBO DE PEAD CORRUGADO DE DUPLA PAREDE PARA REDE COLETORA DE ESGOTO, DN 250 MM, JUNTA ELÁSTICA INTEGRADA - FORNECIMENTO E ASSENTAMENTO. AF_01/2021 | I97: M | J97: COEFICIENTE DE REPRESENTATIVIDADE | K97: 145.59 | L97: CAIXA REFERENCIAL
A98: ASSENTAMENTO DE TUBOS E PECAS | B98: ASTU | C98: FORNEC E/OU ASSENT DE TUBO DE PVC COM JUNTA ELASTICA | D98: 48 | G98: 94870 | H98: ASSENTAMENTO DE TUBO DE PEAD CORRUGADO DE DUPLA PAREDE PARA REDE COLETORA DE ESGOTO, DN 250 MM, JUNTA ELÁSTICA INTEGRADA (NÃO INCLUI FORNECIMENTO). AF_01/2021 | I98: M | J98: COEFICIENTE DE REPRESENTATIVIDADE | K98: 2.44 | L98: CAIXA REFERENCIAL
A99: ASSENTAMENTO DE TUBOS E PECAS | B99: ASTU | C99: FORNEC E/OU ASSENT DE TUBO DE PVC COM JUNTA ELASTICA | D99: 48 | G99: 94871 | H99: TUBO DE PEAD CORRUGADO DE DUPLA PAREDE PARA REDE COLETORA DE ESGOTO, DN 300 MM, JUNTA ELÁSTICA INTEGRADA - FORNECIMENTO E ASSENTAMENTO. AF_01/2021 | I99: M | J99: COEFICIENTE DE REPRESENTATIVIDADE | K99: 227.9 | L99: CAIXA REFERENCIAL
A100: ASSENTAMENTO DE TUBOS E PECAS | B100: ASTU | C100: FORNEC E/OU ASSENT DE TUBO DE PVC COM JUNTA ELASTICA | D100: 48 | G100: 94872 | H100: ASSENTAMENTO DE TUBO DE PEAD CORRUGADO DE DUPLA PAREDE PARA REDE COLETORA DE ESGOTO, DN 300 MM, JUNTA ELÁSTICA INTEGRADA (NÃO INCLUI FORNECIMENTO). AF_01/2021 | I100: M | J100: COEFICIENTE DE REPRESENTATIVIDADE | K100: 3.62 | L100: CAIXA REFERENCIAL
A101: ASSENTAMENTO DE TUBOS E PECAS | B101: ASTU | C101: FORNEC E/OU ASSENT DE TUBO DE PVC COM JUNTA ELASTICA | D101: 48 | G101: 94875 | H101: TUBO DE PEAD CORRUGADO DE DUPLA PAREDE PARA REDE COLETORA DE ESGOTO, DN 800 MM, JUNTA ELÁSTICA INTEGRADA - FORNECIMENTO E ASSENTAMENTO. AF_01/2021 | I101: M | J101: COEFICIENTE DE REPRESENTATIVIDADE | K101: 1340.83 | L101: CAIXA REFERENCIAL
A102: ASSENTAMENTO DE TUBOS E PECAS | B102: ASTU | C102: FORNEC E/OU ASSENT DE TUBO DE PVC COM JUNTA ELASTICA | D102: 48 | G102: 94876 | H102: ASSENTAMENTO DE TUBO DE PEAD CORRUGADO DE DUPLA PAREDE PARA REDE COLETORA DE ESGOTO, DN 800 MM, JUNTA ELÁSTICA INTEGRADA (NÃO INCLUI FORNECIMENTO). AF_01/2021 | I102: M | J102: COEFICIENTE DE REPRESENTATIVIDADE | K102: 34.04 | L102: CAIXA REFERENCIAL
A103: ASSENTAMENTO DE TUBOS E PECAS | B103: ASTU | C103: FORNEC E/OU ASSENT DE TUBO DE PVC COM JUNTA ELASTICA | D103: 48 | G103: 94878 | H103: ASSENTAMENTO DE TUBO DE PEAD CORRUGADO DE DUPLA PAREDE PARA REDE COLETORA DE ESGOTO, DN 900 MM, JUNTA ELÁSTICA INTEGRADA (NÃO INCLUI FORNECIMENTO). AF_01/2021 | I103: M | J103: COEFICIENTE DE REPRESENTATIVIDADE | K103: 39.47 | L103: CAIXA REFERENCIAL
A104: ASSENTAMENTO DE TUBOS E PECAS | B104: ASTU | C104: FORNEC E/OU ASSENT DE TUBO DE PVC COM JUNTA ELASTICA | D104: 48 | G104: 94879 | H104: TUBO DE PEAD CORRUGADO DE DUPLA PAREDE PARA REDE COLETORA DE ESGOTO, DN 1000 MM, JUNTA ELÁSTICA INTEGRADA - FORNECIMENTO E ASSENTAMENTO. AF_01/2021 | I104: M | J104: COEFICIENTE DE REPRESENTATIVIDADE | K104: 2063.62 | L104: CAIXA REFERENCIAL
A105: ASSENTAMENTO DE TUBOS E PECAS | B105: ASTU | C105: FORNEC E/OU ASSENT DE TUBO DE PVC COM JUNTA ELASTICA | D105: 48 | G105: 94880 | H105: ASSENTAMENTO DE TUBO DE PEAD CORRUGADO DE DUPLA PAREDE PARA REDE COLETORA DE ESGOTO, DN 1000 MM, JUNTA ELÁSTICA INTEGRADA (NÃO INCLUI FORNECIMENTO). AF_01/2021 | I105: M | J105: COEFICIENTE DE REPRESENTATIVIDADE | K105: 50.52 | L105: CAIXA REFERENCIAL
A106: ASSENTAMENTO DE TUBOS E PECAS | B106: ASTU | C106: FORNEC E/OU ASSENT DE TUBO DE PVC COM JUNTA ELASTICA | D106: 48 | G106: 94881 | H106: TUBO DE PEAD CORRUGADO DE DUPLA PAREDE PARA REDE COLETORA DE ESGOTO, DN 1200 MM, JUNTA ELÁSTICA INTEGRADA - FORNECIMENTO E ASSENTAMENTO. AF_01/2021 | I106: M | J106: COEFICIENTE DE REPRESENTATIVIDADE | K106: 2841.1 | L106: CAIXA REFERENCIAL
A107: ASSENTAMENTO DE TUBOS E PECAS | B107: ASTU | C107: FORNEC E/OU ASSENT DE TUBO DE PVC COM JUNTA ELASTICA | D107: 48 | G107: 94882 | H107: ASSENTAMENTO DE TUBO DE PEAD CORRUGADO DE DUPLA PAREDE PARA REDE COLETORA DE ESGOTO, DN 1200 MM, JUNTA ELÁSTICA INTEGRADA (NÃO INCLUI FORNECIMENTO). AF_01/2021 | I107: M | J107: COEFICIENTE DE REPRESENTATIVIDADE | K107: 58.88 | L107: CAIXA REFERENCIAL
A108: ASSENTAMENTO DE TUBOS E PECAS | B108: ASTU | C108: FORNEC E/OU ASSENT DE TUBO DE PVC COM JUNTA ELASTICA | D108: 48 | G108: 94884 | H108: ASSENTAMENTO DE TUBO DE PEAD CORRUGADO DE DUPLA PAREDE PARA REDE COLETORA DE ESGOTO, DN 1500 MM, JUNTA ELÁSTICA INTEGRADA (NÃO INCLUI FORNECIMENTO). AF_01/2021 | I108: M | J108: COEFICIENTE DE REPRESENTATIVIDADE | K108: 75.81 | L108: CAIXA REFERENCIAL
A109: ASSENTAMENTO DE TUBOS E PECAS | B109: ASTU | C109: FORNEC E/OU ASSENT DE TUBO DE PVC COM JUNTA ELASTICA | D109: 48 | G109: 97121 | H109: ASSENTAMENTO DE TUBO DE PVC PBA PARA REDE DE ÁGUA, DN 50 MM, JUNTA ELÁSTICA INTEGRADA, INSTALADO EM LOCAL COM NÍVEL ALTO DE INTERFERÊNCIAS (NÃO INCLUI FORNECIMENTO). AF_11/2017 | I109: M | J109: COEFICIENTE DE REPRESENTATIVIDADE | K109: 3.16 | L109: CAIXA REFERENCIAL
A110: ASSENTAMENTO DE TUBOS E PECAS | B110: ASTU | C110: FORNEC E/OU ASSENT DE TUBO DE PVC COM JUNTA ELASTICA | D110: 48 | G110: 97122 | H110: ASSENTAMENTO DE TUBO DE PVC PBA PARA REDE DE ÁGUA, DN 75 MM, JUNTA ELÁSTICA INTEGRADA, INSTALADO EM LOCAL COM NÍVEL ALTO DE INTERFERÊNCIAS (NÃO INCLUI FORNECIMENTO). AF_11/2017 | I110: M | J110: COEFICIENTE DE REPRESENTATIVIDADE | K110: 4.36 | L110: CAIXA REFERENCIAL
A111: ASSENTAMENTO DE TUBOS E PECAS | B111: ASTU | C111: FORNEC E/OU ASSENT DE TUBO DE PVC COM JUNTA ELASTICA | D111: 48 | G111: 97123 | H111: ASSENTAMENTO DE TUBO DE PVC PBA PARA REDE DE ÁGUA, DN 100 MM, JUNTA ELÁSTICA INTEGRADA, INSTALADO EM LOCAL COM NÍVEL ALTO DE INTERFERÊNCIAS (NÃO INCLUI FORNECIMENTO). AF_11/2017 | I111: M | J111: COEFICIENTE DE REPRESENTATIVIDADE | K111: 5.54 | L111: CAIXA REFERENCIAL
A112: ASSENTAMENTO DE TUBOS E PECAS | B112: ASTU | C112: FORNEC E/OU ASSENT DE TUBO DE PVC COM JUNTA ELASTICA | D112: 48 | G112: 97124 | H112: ASSENTAMENTO DE TUBO DE PVC PBA PARA REDE DE ÁGUA, DN 50 MM, JUNTA ELÁSTICA INTEGRADA, INSTALADO EM LOCAL COM NÍVEL BAIXO DE INTERFERÊNCIAS (NÃO INCLUI FORNECIMENTO). AF_11/2017 | I112: M | J112: COEFICIENTE DE REPRESENTATIVIDADE | K112: 1.36 | L112: CAIXA REFERENCIAL
A113: ASSENTAMENTO DE TUBOS E PECAS | B113: ASTU | C113: FORNEC E/OU ASSENT DE TUBO DE PVC COM JUNTA ELASTICA | D113: 48 | G113: 97125 | H113: ASSENTAMENTO DE TUBO DE PVC PBA PARA REDE DE ÁGUA, DN 75 MM, JUNTA ELÁSTICA INTEGRADA, INSTALADO EM LOCAL COM NÍVEL BAIXO DE INTERFERÊNCIAS (NÃO INCLUI FORNECIMENTO). AF_11/2017 | I113: M | J113: COEFICIENTE DE REPRESENTATIVIDADE | K113: 1.92 | L113: CAIXA REFERENCIAL
A114: ASSENTAMENTO DE TUBOS E PECAS | B114: ASTU | C114: FORNEC E/OU ASSENT DE TUBO DE PVC COM JUNTA ELASTICA | D114: 48 | G114: 97126 | H114: ASSENTAMENTO DE TUBO DE PVC PBA PARA REDE DE ÁGUA, DN 100 MM, JUNTA ELÁSTICA INTEGRADA, INSTALADO EM LOCAL COM NÍVEL BAIXO DE INTERFERÊNCIAS (NÃO INCLUI FORNECIMENTO). AF_11/2017 | I114: M | J114: COEFICIENTE DE REPRESENTATIVIDADE | K114: 2.44 | L114: CAIXA REFERENCIAL
A115: ASSENTAMENTO DE TUBOS E PECAS | B115: ASTU | C115: FORNEC E/OU ASSENT DE TUBO DE PVC COM JUNTA ELASTICA | D115: 48 | G115: 102264 | H115: TUBO DE PVC BRANCO PARA REDE COLETORA DE ESGOTO CONDOMINIAL DE PAREDE MACIÇA, DN 100 MM, JUNTA ELÁSTICA - FORNECIMENTO E ASSENTAMENTO. AF_01/2021 | I115: M | J115: COEFICIENTE DE REPRESENTATIVIDADE | K115: 21.89 | L115: CAIXA REFERENCIAL
A116: ASSENTAMENTO DE TUBOS E PECAS | B116: ASTU | C116: FORNEC E/OU ASSENT DE TUBO DE PVC COM JUNTA ELASTICA | D116: 48 | G116: 102265 | H116: JUNTA ARGAMASSADA ENTRE TUBO DN 800 MM E O POÇO DE VISITA/ CAIXA DE CONCRETO OU ALVENARIA EM REDES DE ESGOTO. AF_01/2021 | I116: UN | J116: COEFICIENTE DE REPRESENTATIVIDADE | K116: 158.4 | L116: CAIXA REFERENCIAL
A117: ASSENTAMENTO DE TUBOS E PECAS | B117: ASTU | C117: FORNEC E/OU ASSENT DE TUBO DE PVC COM JUNTA ELASTICA | D117: 48 | G117: 102266 | H117: JUNTA ARGAMASSADA ENTRE TUBO DN 900 MM E O POÇO DE VISITA/ CAIXA DE CONCRETO OU ALVENARIA EM REDES DE ESGOTO. AF_01/2021 | I117: UN | J117: COEFICIENTE DE REPRESENTATIVIDADE | K117: 175.63 | L117: CAIXA REFERENCIAL
A118: ASSENTAMENTO DE TUBOS E PECAS | B118: ASTU | C118: FORNEC E/OU ASSENT DE TUBO DE PVC COM JUNTA ELASTICA | D118: 48 | G118: 102267 | H118: JUNTA ARGAMASSADA ENTRE TUBO DN 1000 MM E O POÇO DE VISITA/ CAIXA DE CONCRETO OU ALVENARIA EM REDES DE ESGOTO. AF_01/2021 | I118: UN | J118: COEFICIENTE DE REPRESENTATIVIDADE | K118: 201.53 | L118: CAIXA REFERENCIAL
A119: ASSENTAMENTO DE TUBOS E PECAS | B119: ASTU | C119: FORNEC E/OU ASSENT DE TUBO DE PVC COM JUNTA ELASTICA | D119: 48 | G119: 102268 | H119: JUNTA ARGAMASSADA ENTRE TUBO DN 1200 MM E O POÇO DE VISITA/ CAIXA DE CONCRETO OU ALVENARIA EM REDES DE ESGOTO. AF_01/2021 | I119: UN | J119: COEFICIENTE DE REPRESENTATIVIDADE | K119: 227.37 | L119: CAIXA REFERENCIAL
A120: ASSENTAMENTO DE TUBOS E PECAS | B120: ASTU | C120: FORNEC E/OU ASSENT DE TUBO DE PVC COM JUNTA ELASTICA | D120: 48 | G120: 102269 | H120: JUNTA ARGAMASSADA ENTRE TUBO DN 1500 MM E O POÇO DE VISITA/ CAIXA DE CONCRETO OU ALVENARIA EM REDES DE ESGOTO. AF_01/2021 | I120: UN | J120: COEFICIENTE DE REPRESENTATIVIDADE | K120: 279.05 | L120: CAIXA REFERENCIAL
A121: ASSENTAMENTO DE TUBOS E PECAS | B121: ASTU | C121: FORNEC E/OU ASSENT DE TUBO DE CONCRETO COM JUNTA ELASTICA | D121: 51 | G121: 92833 | H121: TUBO DE CONCRETO PARA REDES COLETORAS DE ESGOTO SANITÁRIO, DIÂMETRO DE 300 MM, JUNTA ELÁSTICA, INSTALADO EM LOCAL COM BAIXO NÍVEL DE INTERFERÊNCIAS - FORNECIMENTO E ASSENTAMENTO. AF_12/2015 | I121: M | J121: COEFICIENTE DE REPRESENTATIVIDADE | K121: 219.2 | L121: CAIXA REFERENCIAL
A122: ASSENTAMENTO DE TUBOS E PECAS | B122: ASTU | C122: FORNEC E/OU ASSENT DE TUBO DE CONCRETO COM JUNTA ELASTICA | D122: 51 | G122: 92834 | H122: ASSENTAMENTO DE TUBO DE CONCRETO PARA REDES COLETORAS DE ESGOTO SANITÁRIO, DIÂMETRO DE 300 MM, JUNTA ELÁSTICA, INSTALADO EM LOCAL COM BAIXO NÍVEL DE INTERFERÊNCIAS (NÃO INCLUI FORNECIMENTO). AF_12/2015 | I122: M | J122: COEFICIENTE DE REPRESENTATIVIDADE | K122: 11.07 | L122: CAIXA REFERENCIAL
A123: ASSENTAMENTO DE TUBOS E PECAS | B123: ASTU | C123: FORNEC E/OU ASSENT DE TUBO DE CONCRETO COM JUNTA ELASTICA | D123: 51 | G123: 92835 | H123: TUBO DE CONCRETO PARA REDES COLETORAS DE ESGOTO SANITÁRIO, DIÂMETRO DE 400 MM, JUNTA ELÁSTICA, INSTALADO EM LOCAL COM BAIXO NÍVEL DE INTERFERÊNCIAS - FORNECIMENTO E ASSENTAMENTO. AF_12/2015 | I123: M | J123: COEFICIENTE DE REPRESENTATIVIDADE | K123: 229.82 | L123: CAIXA REFERENCIAL
A124: ASSENTAMENTO DE TUBOS E PECAS | B124: ASTU | C124: FORNEC E/OU ASSENT DE TUBO DE CONCRETO COM JUNTA ELASTICA | D124: 51 | G124: 92836 | H124: ASSENTAMENTO DE TUBO DE CONCRETO PARA REDES COLETORAS DE ESGOTO SANITÁRIO, DIÂMETRO DE 400 MM, JUNTA ELÁSTICA, INSTALADO EM LOCAL COM BAIXO NÍVEL DE INTERFERÊNCIAS (NÃO INCLUI FORNECIMENTO). AF_12/2015 | I124: M | J124: COEFICIENTE DE REPRESENTATIVIDADE | K124: 14.13 | L124: CAIXA REFERENCIAL
A125: ASSENTAMENTO DE TUBOS E PECAS | B125: ASTU | C125: FORNEC E/OU ASSENT DE TUBO DE CONCRETO COM JUNTA ELASTICA | D125: 51 | G125: 92837 | H125: TUBO DE CONCRETO PARA REDES COLETORAS DE ESGOTO SANITÁRIO, DIÂMETRO DE 500 MM, JUNTA ELÁSTICA, INSTALADO EM LOCAL COM BAIXO NÍVEL DE INTERFERÊNCIAS - FORNECIMENTO E ASSENTAMENTO. AF_12/2015 | I125: M | J125: COEFICIENTE DE REPRESENTATIVIDADE | K125: 405.65 | L125: CAIXA REFERENCIAL
A126: ASSENTAMENTO DE TUBOS E PECAS | B126: ASTU | C126: FORNEC E/OU ASSENT DE TUBO DE CONCRETO COM JUNTA ELASTICA | D126: 51 | G126: 92838 | H126: ASSENTAMENTO DE TUBO DE CONCRETO PARA REDES COLETORAS DE ESGOTO SANITÁRIO, DIÂMETRO DE 500 MM, JUNTA ELÁSTICA, INSTALADO EM LOCAL COM BAIXO NÍVEL DE INTERFERÊNCIAS (NÃO INCLUI FORNECIMENTO). AF_12/2015 | I126: M | J126: COEFICIENTE DE REPRESENTATIVIDADE | K126: 16.98 | L126: CAIXA REFERENCIAL
A127: ASSENTAMENTO DE TUBOS E PECAS | B127: ASTU | C127: FORNEC E/OU ASSENT DE TUBO DE CONCRETO COM JUNTA ELASTICA | D127: 51 | G127: 92839 | H127: TUBO DE CONCRETO PARA REDES COLETORAS DE ESGOTO SANITÁRIO, DIÂMETRO DE 600 MM, JUNTA ELÁSTICA, INSTALADO EM LOCAL COM BAIXO NÍVEL DE INTERFERÊNCIAS - FORNECIMENTO E ASSENTAMENTO. AF_12/2015 | I127: M | J127: COEFICIENTE DE REPRESENTATIVIDADE | K127: 496.24 | L127: CAIXA REFERENCIAL
A128: ASSENTAMENTO DE TUBOS E PECAS | B128: ASTU | C128: FORNEC E/OU ASSENT DE TUBO DE CONCRETO COM JUNTA ELASTICA | D128: 51 | G128: 92840 | H128: ASSENTAMENTO DE TUBO DE CONCRETO PARA REDES COLETORAS DE ESGOTO SANITÁRIO, DIÂMETRO DE 600 MM, JUNTA ELÁSTICA, INSTALADO EM LOCAL COM BAIXO NÍVEL DE INTERFERÊNCIAS (NÃO INCLUI FORNECIMENTO). AF_12/2015 | I128: M | J128: COEFICIENTE DE REPRESENTATIVIDADE | K128: 20.1 | L128: CAIXA REFERENCIAL
A129: ASSENTAMENTO DE TUBOS E PECAS | B129: ASTU | C129: FORNEC E/OU ASSENT DE TUBO DE CONCRETO COM JUNTA ELASTICA | D129: 51 | G129: 92841 | H129: TUBO DE CONCRETO PARA REDES COLETORAS DE ESGOTO SANITÁRIO, DIÂMETRO DE 700 MM, JUNTA ELÁSTICA, INSTALADO EM LOCAL COM BAIXO NÍVEL DE INTERFERÊNCIAS - FORNECIMENTO E ASSENTAMENTO. AF_12/2015 | I129: M | J129: COEFICIENTE DE REPRESENTATIVIDADE | K129: 646.18 | L129: CAIXA REFERENCIAL
A130: ASSENTAMENTO DE TUBOS E PECAS | B130: ASTU | C130: FORNEC E/OU ASSENT DE TUBO DE CONCRETO COM JUNTA ELASTICA | D130: 51 | G130: 92842 | H130: ASSENTAMENTO DE TUBO DE CONCRETO PARA REDES COLETORAS DE ESGOTO SANITÁRIO, DIÂMETRO DE 700 MM, JUNTA ELÁSTICA, INSTALADO EM LOCAL COM BAIXO NÍVEL DE INTERFERÊNCIAS (NÃO INCLUI FORNECIMENTO). AF_12/2015 | I130: M | J130: COEFICIENTE DE REPRESENTATIVIDADE | K130: 22.98 | L130: CAIXA REFERENCIAL
A131: ASSENTAMENTO DE TUBOS E PECAS | B131: ASTU | C131: FORNEC E/OU ASSENT DE TUBO DE CONCRETO COM JUNTA ELASTICA | D131: 51 | G131: 92843 | H131: TUBO DE CONCRETO PARA REDES COLETORAS DE ESGOTO SANITÁRIO, DIÂMETRO DE 800 MM, JUNTA ELÁSTICA, INSTALADO EM LOCAL COM BAIXO NÍVEL DE INTERFERÊNCIAS - FORNECIMENTO E ASSENTAMENTO. AF_12/2015 | I131: M | J131: COEFICIENTE DE REPRESENTATIVIDADE | K131: 669.44 | L131: CAIXA REFERENCIAL
A132: ASSENTAMENTO DE TUBOS E PECAS | B132: ASTU | C132: FORNEC E/OU ASSENT DE TUBO DE CONCRETO COM JUNTA ELASTICA | D132: 51 | G132: 92844 | H132: ASSENTAMENTO DE TUBO DE CONCRETO PARA REDES COLETORAS DE ESGOTO SANITÁRIO, DIÂMETRO DE 800 MM, JUNTA ELÁSTICA, INSTALADO EM LOCAL COM BAIXO NÍVEL DE INTERFERÊNCIAS (NÃO INCLUI FORNECIMENTO). AF_12/2015 | I132: M | J132: COEFICIENTE DE REPRESENTATIVIDADE | K132: 26.09 | L132: CAIXA REFERENCIAL
A133: ASSENTAMENTO DE TUBOS E PECAS | B133: ASTU | C133: FORNEC E/OU ASSENT DE TUBO DE CONCRETO COM JUNTA ELASTICA | D133: 51 | G133: 92845 | H133: TUBO DE CONCRETO PARA REDES COLETORAS DE ESGOTO SANITÁRIO, DIÂMETRO DE 900 MM, JUNTA ELÁSTICA, INSTALADO EM LOCAL COM BAIXO NÍVEL DE INTERFERÊNCIAS - FORNECIMENTO E ASSENTAMENTO. AF_12/2015 | I133: M | J133: COEFICIENTE DE REPRESENTATIVIDADE | K133: 991.09 | L133: CAIXA REFERENCIAL
A134: ASSENTAMENTO DE TUBOS E PECAS | B134: ASTU | C134: FORNEC E/OU ASSENT DE TUBO DE CONCRETO COM JUNTA ELASTICA | D134: 51 | G134: 92846 | H134: ASSENTAMENTO DE TUBO DE CONCRETO PARA REDES COLETORAS DE ESGOTO SANITÁRIO, DIÂMETRO DE 900 MM, JUNTA ELÁSTICA, INSTALADO EM LOCAL COM BAIXO NÍVEL DE INTERFERÊNCIAS (NÃO INCLUI FORNECIMENTO). AF_12/2015 | I134: M | J134: COEFICIENTE DE REPRESENTATIVIDADE | K134: 28.94 | L134: CAIXA REFERENCIAL
A135: ASSENTAMENTO DE TUBOS E PECAS | B135: ASTU | C135: FORNEC E/OU ASSENT DE TUBO DE CONCRETO COM JUNTA ELASTICA | D135: 51 | G135: 92847 | H135: TUBO DE CONCRETO PARA REDES COLETORAS DE ESGOTO SANITÁRIO, DIÂMETRO DE 1000 MM, JUNTA ELÁSTICA, INSTALADO EM LOCAL COM BAIXO NÍVEL DE INTERFERÊNCIAS - FORNECIMENTO E ASSENTAMENTO. AF_12/2015 | I135: M | J135: COEFICIENTE DE REPRESENTATIVIDADE | K135: 1018.38 | L135: CAIXA REFERENCIAL
A136: ASSENTAMENTO DE TUBOS E PECAS | B136: ASTU | C136: FORNEC E/OU ASSENT DE TUBO DE CONCRETO COM JUNTA ELASTICA | D136: 51 | G136: 92848 | H136: ASSENTAMENTO DE TUBO DE CONCRETO PARA REDES COLETORAS DE ESGOTO SANITÁRIO, DIÂMETRO DE 1000 MM, JUNTA ELÁSTICA, INSTALADO EM LOCAL COM BAIXO NÍVEL DE INTERFERÊNCIAS (NÃO INCLUI FORNECIMENTO). AF_12/2015 | I136: M | J136: COEFICIENTE DE REPRESENTATIVIDADE | K136: 32.1 | L136: CAIXA REFERENCIAL
A137: ASSENTAMENTO DE TUBOS E PECAS | B137: ASTU | C137: FORNEC E/OU ASSENT DE TUBO DE CONCRETO COM JUNTA ELASTICA | D137: 51 | G137: 92849 | H137: TUBO DE CONCRETO PARA REDES COLETORAS DE ESGOTO SANITÁRIO, DIÂMETRO DE 300 MM, JUNTA ELÁSTICA, INSTALADO EM LOCAL COM ALTO NÍVEL DE INTERFERÊNCIAS - FORNECIMENTO E ASSENTAMENTO. AF_12/2015 | I137: M | J137: COEFICIENTE DE REPRESENTATIVIDADE | K137: 229.07 | L137: CAIXA REFERENCIAL
A138: ASSENTAMENTO DE TUBOS E PECAS | B138: ASTU | C138: FORNEC E/OU ASSENT DE TUBO DE CONCRETO COM JUNTA ELASTICA | D138: 51 | G138: 92850 | H138: ASSENTAMENTO DE TUBO DE CONCRETO PARA REDES COLETORAS DE ESGOTO SANITÁRIO, DIÂMETRO DE 300 MM, JUNTA ELÁSTICA, INSTALADO EM LOCAL COM ALTO NÍVEL DE INTERFERÊNCIAS (NÃO INCLUI FORNECIMENTO). AF_12/2015 | I138: M | J138: COEFICIENTE DE REPRESENTATIVIDADE | K138: 20.94 | L138: CAIXA REFERENCIAL
A139: ASSENTAMENTO DE TUBOS E PECAS | B139: ASTU | C139: FORNEC E/OU ASSENT DE TUBO DE CONCRETO COM JUNTA ELASTICA | D139: 51 | G139: 92851 | H139: TUBO DE CONCRETO PARA REDES COLETORAS DE ESGOTO SANITÁRIO, DIÂMETRO DE 400 MM, JUNTA ELÁSTICA, INSTALADO EM LOCAL COM ALTO NÍVEL DE INTERFERÊNCIAS - FORNECIMENTO E ASSENTAMENTO. AF_12/2015 | I139: M | J139: COEFICIENTE DE REPRESENTATIVIDADE | K139: 242.15 | L139: CAIXA REFERENCIAL
A140: ASSENTAMENTO DE TUBOS E PECAS | B140: ASTU | C140: FORNEC E/OU ASSENT DE TUBO DE CONCRETO COM JUNTA ELASTICA | D140: 51 | G140: 92852 | H140: ASSENTAMENTO DE TUBO DE CONCRETO PARA REDES COLETORAS DE ESGOTO SANITÁRIO, DIÂMETRO DE 400 MM, JUNTA ELÁSTICA, INSTALADO EM LOCAL COM ALTO NÍVEL DE INTERFERÊNCIAS (NÃO INCLUI FORNECIMENTO). AF_12/2015 | I140: M | J140: COEFICIENTE DE REPRESENTATIVIDADE | K140: 26.46 | L140: CAIXA REFERENCIAL
A141: ASSENTAMENTO DE TUBOS E PECAS | B141: ASTU | C141: FORNEC E/OU ASSENT DE TUBO DE CONCRETO COM JUNTA ELASTICA | D141: 51 | G141: 92853 | H141: TUBO DE CONCRETO PARA REDES COLETORAS DE ESGOTO SANITÁRIO, DIÂMETRO DE 500 MM, JUNTA ELÁSTICA, INSTALADO EM LOCAL COM ALTO NÍVEL DE INTERFERÊNCIAS - FORNECIMENTO E ASSENTAMENTO. AF_12/2015 | I141: M | J141: COEFICIENTE DE REPRESENTATIVIDADE | K141: 420.88 | L141: CAIXA REFERENCIAL
A142: ASSENTAMENTO DE TUBOS E PECAS | B142: ASTU | C142: FORNEC E/OU ASSENT DE TUBO DE CONCRETO COM JUNTA ELASTICA | D142: 51 | G142: 92854 | H142: ASSENTAMENTO DE TUBO DE CONCRETO PARA REDES COLETORAS DE ESGOTO SANITÁRIO, DIÂMETRO DE 500 MM, JUNTA ELÁSTICA, INSTALADO EM LOCAL COM ALTO NÍVEL DE INTERFERÊNCIAS (NÃO INCLUI FORNECIMENTO). AF_12/2015 | I142: M | J142: COEFICIENTE DE REPRESENTATIVIDADE | K142: 32.21 | L142: CAIXA REFERENCIAL
A143: ASSENTAMENTO DE TUBOS E PECAS | B143: ASTU | C143: FORNEC E/OU ASSENT DE TUBO DE CONCRETO COM JUNTA ELASTICA | D143: 51 | G143: 92855 | H143: TUBO DE CONCRETO PARA REDES COLETORAS DE ESGOTO SANITÁRIO, DIÂMETRO DE 600 MM, JUNTA ELÁSTICA, INSTALADO EM LOCAL COM ALTO NÍVEL DE INTERFERÊNCIAS - FORNECIMENTO E ASSENTAMENTO. AF_12/2015 | I143: M | J143: COEFICIENTE DE REPRESENTATIVIDADE | K143: 514.12 | L143: CAIXA REFERENCIAL
A144: ASSENTAMENTO DE TUBOS E PECAS | B144: ASTU | C144: FORNEC E/OU ASSENT DE TUBO DE CONCRETO COM JUNTA ELASTICA | D144: 51 | G144: 92856 | H144: ASSENTAMENTO DE TUBO DE CONCRETO PARA REDES COLETORAS DE ESGOTO SANITÁRIO, DIÂMETRO DE 600 MM, JUNTA ELÁSTICA, INSTALADO EM LOCAL COM ALTO NÍVEL DE INTERFERÊNCIAS (NÃO INCLUI FORNECIMENTO). AF_12/2015 | I144: M | J144: COEFICIENTE DE REPRESENTATIVIDADE | K144: 37.98 | L144: CAIXA REFERENCIAL
A145: ASSENTAMENTO DE TUBOS E PECAS | B145: ASTU | C145: FORNEC E/OU ASSENT DE TUBO DE CONCRETO COM JUNTA ELASTICA | D145: 51 | G145: 92857 | H145: TUBO DE CONCRETO PARA REDES COLETORAS DE ESGOTO SANITÁRIO, DIÂMETRO DE 700 MM, JUNTA ELÁSTICA, INSTALADO EM LOCAL COM ALTO NÍVEL DE INTERFERÊNCIAS - FORNECIMENTO E ASSENTAMENTO. AF_12/2015 | I145: M | J145: COEFICIENTE DE REPRESENTATIVIDADE | K145: 666.68 | L145: CAIXA REFERENCIAL
A146: ASSENTAMENTO DE TUBOS E PECAS | B146: ASTU | C146: FORNEC E/OU ASSENT DE TUBO DE CONCRETO COM JUNTA ELASTICA | D146: 51 | G146: 92858 | H146: ASSENTAMENTO DE TUBO DE CONCRETO PARA REDES COLETORAS DE ESGOTO SANITÁRIO, DIÂMETRO DE 700 MM, JUNTA ELÁSTICA, INSTALADO EM LOCAL COM ALTO NÍVEL DE INTERFERÊNCIAS (NÃO INCLUI FORNECIMENTO). AF_12/2015 | I146: M | J146: COEFICIENTE DE REPRESENTATIVIDADE | K146: 43.48 | L146: CAIXA REFERENCIAL
A147: ASSENTAMENTO DE TUBOS E PECAS | B147: ASTU | C147: FORNEC E/OU ASSENT DE TUBO DE CONCRETO COM JUNTA ELASTICA | D147: 51 | G147: 92859 | H147: TUBO DE CONCRETO PARA REDES COLETORAS DE ESGOTO SANITÁRIO, DIÂMETRO DE 800 MM, JUNTA ELÁSTICA, INSTALADO EM LOCAL COM ALTO NÍVEL DE INTERFERÊNCIAS - FORNECIMENTO E ASSENTAMENTO. AF_12/2015 | I147: M | J147: COEFICIENTE DE REPRESENTATIVIDADE | K147: 692.68 | L147: CAIXA REFERENCIAL
A148: ASSENTAMENTO DE TUBOS E PECAS | B148: ASTU | C148: FORNEC E/OU ASSENT DE TUBO DE CONCRETO COM JUNTA ELASTICA | D148: 51 | G148: 92860 | H148: ASSENTAMENTO DE TUBO DE CONCRETO PARA REDES COLETORAS DE ESGOTO SANITÁRIO, DIÂMETRO DE 800 MM, JUNTA ELÁSTICA, INSTALADO EM LOCAL COM ALTO NÍVEL DE INTERFERÊNCIAS (NÃO INCLUI FORNECIMENTO). AF_12/2015 | I148: M | J148: COEFICIENTE DE REPRESENTATIVIDADE | K148: 49.33 | L148: CAIXA REFERENCIAL
A149: ASSENTAMENTO DE TUBOS E PECAS | B149: ASTU | C149: FORNEC E/OU ASSENT DE TUBO DE CONCRETO COM JUNTA ELASTICA | D149: 51 | G149: 92861 | H149: TUBO DE CONCRETO PARA REDES COLETORAS DE ESGOTO SANITÁRIO, DIÂMETRO DE 900 MM, JUNTA ELÁSTICA, INSTALADO EM LOCAL COM ALTO NÍVEL DE INTERFERÊNCIAS - FORNECIMENTO E ASSENTAMENTO. AF_12/2015 | I149: M | J149: COEFICIENTE DE REPRESENTATIVIDADE | K149: 1017.2 | L149: CAIXA REFERENCIAL
A150: ASSENTAMENTO DE TUBOS E PECAS | B150: ASTU | C150: FORNEC E/OU ASSENT DE TUBO DE CONCRETO COM JUNTA ELASTICA | D150: 51 | G150: 92862 | H150: ASSENTAMENTO DE TUBO DE CONCRETO PARA REDES COLETORAS DE ESGOTO SANITÁRIO, DIÂMETRO DE 900 MM, JUNTA ELÁSTICA, INSTALADO EM LOCAL COM ALTO NÍVEL DE INTERFERÊNCIAS (NÃO INCLUI FORNECIMENTO). AF_12/2015 | I150: M | J150: COEFICIENTE DE REPRESENTATIVIDADE | K150: 55.05 | L150: CAIXA REFERENCIAL
A151: ASSENTAMENTO DE TUBOS E PECAS | B151: ASTU | C151: FORNEC E/OU ASSENT DE TUBO DE CONCRETO COM JUNTA ELASTICA | D151: 51 | G151: 92863 | H151: TUBO DE CONCRETO PARA REDES COLETORAS DE ESGOTO SANITÁRIO, DIÂMETRO DE 1000 MM, JUNTA ELÁSTICA, INSTALADO EM LOCAL COM ALTO NÍVEL DE INTERFERÊNCIAS - FORNECIMENTO E ASSENTAMENTO. AF_12/2015 | I151: M | J151: COEFICIENTE DE REPRESENTATIVIDADE | K151: 1047.09 | L151: CAIXA REFERENCIAL
A152: ASSENTAMENTO DE TUBOS E PECAS | B152: ASTU | C152: FORNEC E/OU ASSENT DE TUBO DE CONCRETO COM JUNTA ELASTICA | D152: 51 | G152: 92864 | H152: ASSENTAMENTO DE TUBO DE CONCRETO PARA REDES COLETORAS DE ESGOTO SANITÁRIO, DIÂMETRO DE 1000 MM, JUNTA ELÁSTICA, INSTALADO EM LOCAL COM ALTO NÍVEL DE INTERFERÊNCIAS (NÃO INCLUI FORNECIMENTO). AF_12/2015 | I152: M | J152: COEFICIENTE DE REPRESENTATIVIDADE | K152: 60.81 | L152: CAIXA REFERENCIAL
A153: ASSENTAMENTO DE TUBOS E PECAS | B153: ASTU | C153: FORNEC E/OU ASSENT DE TUBO DE CONCRETO COM JUNTA ARGAMASSADA | D153: 52 | G153: 92210 | H153: TUBO DE CONCRETO PARA REDES COLETORAS DE ÁGUAS PLUVIAIS, DIÂMETRO DE 400 MM, JUNTA RÍGIDA, INSTALADO EM LOCAL COM BAIXO NÍVEL DE INTERFERÊNCIAS - FORNECIMENTO E ASSENTAMENTO. AF_12/2015 | I153: M | J153: COEFICIENTE DE REPRESENTATIVIDADE | K153: 186.82 | L153: CAIXA REFERENCIAL
A154: ASSENTAMENTO DE TUBOS E PECAS | B154: ASTU | C154: FORNEC E/OU ASSENT DE TUBO DE CONCRETO COM JUNTA ARGAMASSADA | D154: 52 | G154: 92211 | H154: TUBO DE CONCRETO PARA REDES COLETORAS DE ÁGUAS PLUVIAIS, DIÂMETRO DE 500 MM, JUNTA RÍGIDA, INSTALADO EM LOCAL COM BAIXO NÍVEL DE INTERFERÊNCIAS - FORNECIMENTO E ASSENTAMENTO. AF_12/2015 | I154: M | J154: COEFICIENTE DE REPRESENTATIVIDADE | K154: 224.67 | L154: CAIXA REFERENCIAL
A155: ASSENTAMENTO DE TUBOS E PECAS | B155: ASTU | C155: FORNEC E/OU ASSENT DE TUBO DE CONCRETO COM JUNTA ARGAMASSADA | D155: 52 | G155: 92212 | H155: TUBO DE CONCRETO PARA REDES COLETORAS DE ÁGUAS PLUVIAIS, DIÂMETRO DE 600 MM, JUNTA RÍGIDA, INSTALADO EM LOCAL COM BAIXO NÍVEL DE INTERFERÊNCIAS - FORNECIMENTO E ASSENTAMENTO. AF_12/2015 | I155: M | J155: COEFICIENTE DE REPRESENTATIVIDADE | K155: 330.37 | L155: CAIXA REFERENCIAL
A156: ASSENTAMENTO DE TUBOS E PECAS | B156: ASTU | C156: FORNEC E/OU ASSENT DE TUBO DE CONCRETO COM JUNTA ARGAMASSADA | D156: 52 | G156: 92213 | H156: TUBO DE CONCRETO PARA REDES COLETORAS DE ÁGUAS PLUVIAIS, DIÂMETRO DE 700 MM, JUNTA RÍGIDA, INSTALADO EM LOCAL COM BAIXO NÍVEL DE INTERFERÊNCIAS - FORNECIMENTO E ASSENTAMENTO. AF_12/2015 | I156: M | J156: COEFICIENTE DE REPRESENTATIVIDADE | K156: 431.31 | L156: CAIXA REFERENCIAL
A157: ASSENTAMENTO DE TUBOS E PECAS | B157: ASTU | C157: FORNEC E/OU ASSENT DE TUBO DE CONCRETO COM JUNTA ARGAMASSADA | D157: 52 | G157: 92214 | H157: TUBO DE CONCRETO PARA REDES COLETORAS DE ÁGUAS PLUVIAIS, DIÂMETRO DE 800 MM, JUNTA RÍGIDA, INSTALADO EM LOCAL COM BAIXO NÍVEL DE INTERFERÊNCIAS - FORNECIMENTO E ASSENTAMENTO. AF_12/2015 | I157: M | J157: COEFICIENTE DE REPRESENTATIVIDADE | K157: 519.74 | L157: CAIXA REFERENCIAL
A158: ASSENTAMENTO DE TUBOS E PECAS | B158: ASTU | C158: FORNEC E/OU ASSENT DE TUBO DE CONCRETO COM JUNTA ARGAMASSADA | D158: 52 | G158: 92215 | H158: TUBO DE CONCRETO PARA REDES COLETORAS DE ÁGUAS PLUVIAIS, DIÂMETRO DE 900 MM, JUNTA RÍGIDA, INSTALADO EM LOCAL COM BAIXO NÍVEL DE INTERFERÊNCIAS - FORNECIMENTO E ASSENTAMENTO. AF_12/2015 | I158: M | J158: COEFICIENTE DE REPRESENTATIVIDADE | K158: 596.32 | L158: CAIXA REFERENCIAL
A159: ASSENTAMENTO DE TUBOS E PECAS | B159: ASTU | C159: FORNEC E/OU ASSENT DE TUBO DE CONCRETO COM JUNTA ARGAMASSADA | D159: 52 | G159: 92216 | H159: TUBO DE CONCRETO PARA REDES COLETORAS DE ÁGUAS PLUVIAIS, DIÂMETRO DE 1000 MM, JUNTA RÍGIDA, INSTALADO EM LOCAL COM BAIXO NÍVEL DE INTERFERÊNCIAS - FORNECIMENTO E ASSENTAMENTO. AF_12/2015 | I159: M | J159: COEFICIENTE DE REPRESENTATIVIDADE | K159: 625.44 | L159: CAIXA REFERENCIAL
A160: ASSENTAMENTO DE TUBOS E PECAS | B160: ASTU | C160: FORNEC E/OU ASSENT DE TUBO DE CONCRETO COM JUNTA ARGAMASSADA | D160: 52 | G160: 92219 | H160: TUBO DE CONCRETO PARA REDES COLETORAS DE ÁGUAS PLUVIAIS, DIÂMETRO DE 400 MM, JUNTA RÍGIDA, INSTALADO EM LOCAL COM ALTO NÍVEL DE INTERFERÊNCIAS - FORNECIMENTO E ASSENTAMENTO. AF_12/2015 | I160: M | J160: COEFICIENTE DE REPRESENTATIVIDADE | K160: 199.15 | L160: CAIXA REFERENCIAL
A161: ASSENTAMENTO DE TUBOS E PECAS | B161: ASTU | C161: FORNEC E/OU ASSENT DE TUBO DE CONCRETO COM JUNTA ARGAMASSADA | D161: 52 | G161: 92220 | H161: TUBO DE CONCRETO PARA REDES COLETORAS DE ÁGUAS PLUVIAIS, DIÂMETRO DE 500 MM, JUNTA RÍGIDA, INSTALADO EM LOCAL COM ALTO NÍVEL DE INTERFERÊNCIAS - FORNECIMENTO E ASSENTAMENTO. AF_12/2015 | I161: M | J161: COEFICIENTE DE REPRESENTATIVIDADE | K161: 239.89 | L161: CAIXA REFERENCIAL
A162: ASSENTAMENTO DE TUBOS E PECAS | B162: ASTU | C162: FORNEC E/OU ASSENT DE TUBO DE CONCRETO COM JUNTA ARGAMASSADA | D162: 52 | G162: 92221 | H162: TUBO DE CONCRETO PARA REDES COLETORAS DE ÁGUAS PLUVIAIS, DIÂMETRO DE 600 MM, JUNTA RÍGIDA, INSTALADO EM LOCAL COM ALTO NÍVEL DE INTERFERÊNCIAS - FORNECIMENTO E ASSENTAMENTO. AF_12/2015 | I162: M | J162: COEFICIENTE DE REPRESENTATIVIDADE | K162: 348.25 | L162: CAIXA REFERENCIAL
A163: ASSENTAMENTO DE TUBOS E PECAS | B163: ASTU | C163: FORNEC E/OU ASSENT DE TUBO DE CONCRETO COM JUNTA ARGAMASSADA | D163: 52 | G163: 92222 | H163: TUBO DE CONCRETO PARA REDES COLETORAS DE ÁGUAS PLUVIAIS, DIÂMETRO DE 700 MM, JUNTA RÍGIDA, INSTALADO EM LOCAL COM ALTO NÍVEL DE INTERFERÊNCIAS - FORNECIMENTO E ASSENTAMENTO. AF_12/2015 | I163: M | J163: COEFICIENTE DE REPRESENTATIVIDADE | K163: 452.03 | L163: CAIXA REFERENCIAL
A164: ASSENTAMENTO DE TUBOS E PECAS | B164: ASTU | C164: FORNEC E/OU ASSENT DE TUBO DE CONCRETO COM JUNTA ARGAMASSADA | D164: 52 | G164: 92223 | H164: TUBO DE CONCRETO PARA REDES COLETORAS DE ÁGUAS PLUVIAIS, DIÂMETRO DE 800 MM, JUNTA RÍGIDA, INSTALADO EM LOCAL COM ALTO NÍVEL DE INTERFERÊNCIAS - FORNECIMENTO E ASSENTAMENTO. AF_12/2015 | I164: M | J164: COEFICIENTE DE REPRESENTATIVIDADE | K164: 543 | L164: CAIXA REFERENCIAL
A165: ASSENTAMENTO DE TUBOS E PECAS | B165: ASTU | C165: FORNEC E/OU ASSENT DE TUBO DE CONCRETO COM JUNTA ARGAMASSADA | D165: 52 | G165: 92224 | H165: TUBO DE CONCRETO PARA REDES COLETORAS DE ÁGUAS PLUVIAIS, DIÂMETRO DE 900 MM, JUNTA RÍGIDA, INSTALADO EM LOCAL COM ALTO NÍVEL DE INTERFERÊNCIAS - FORNECIMENTO E ASSENTAMENTO. AF_12/2015 | I165: M | J165: COEFICIENTE DE REPRESENTATIVIDADE | K165: 622.13 | L165: CAIXA REFERENCIAL
A166: ASSENTAMENTO DE TUBOS E PECAS | B166: ASTU | C166: FORNEC E/OU ASSENT DE TUBO DE CONCRETO COM JUNTA ARGAMASSADA | D166: 52 | G166: 92226 | H166: TUBO DE CONCRETO PARA REDES COLETORAS DE ÁGUAS PLUVIAIS, DIÂMETRO DE 1000 MM, JUNTA RÍGIDA, INSTALADO EM LOCAL COM ALTO NÍVEL DE INTERFERÊNCIAS - FORNECIMENTO E ASSENTAMENTO. AF_12/2015 | I166: M | J166: COEFICIENTE DE REPRESENTATIVIDADE | K166: 654.29 | L166: CAIXA REFERENCIAL
A167: ASSENTAMENTO DE TUBOS E PECAS | B167: ASTU | C167: FORNEC E/OU ASSENT DE TUBO DE CONCRETO COM JUNTA ARGAMASSADA | D167: 52 | G167: 92808 | H167: ASSENTAMENTO DE TUBO DE CONCRETO PARA REDES COLETORAS DE ÁGUAS PLUVIAIS, DIÂMETRO DE 300 MM, JUNTA RÍGIDA, INSTALADO EM LOCAL COM BAIXO NÍVEL DE INTERFERÊNCIAS (NÃO INCLUI FORNECIMENTO). AF_12/2015 | I167: M | J167: COEFICIENTE DE REPRESENTATIVIDADE | K167: 49.83 | L167: CAIXA REFERENCIAL
A168: ASSENTAMENTO DE TUBOS E PECAS | B168: ASTU | C168: FORNEC E/OU ASSENT DE TUBO DE CONCRETO COM JUNTA ARGAMASSADA | D168: 52 | G168: 92809 | H168: ASSENTAMENTO DE TUBO DE CONCRETO PARA REDES COLETORAS DE ÁGUAS PLUVIAIS, DIÂMETRO DE 400 MM, JUNTA RÍGIDA, INSTALADO EM LOCAL COM BAIXO NÍVEL DE INTERFERÊNCIAS (NÃO INCLUI FORNECIMENTO). AF_12/2015 | I168: M | J168: COEFICIENTE DE REPRESENTATIVIDADE | K168: 63.86 | L168: CAIXA REFERENCIAL
A169: ASSENTAMENTO DE TUBOS E PECAS | B169: ASTU | C169: FORNEC E/OU ASSENT DE TUBO DE CONCRETO COM JUNTA ARGAMASSADA | D169: 52 | G169: 92810 | H169: ASSENTAMENTO DE TUBO DE CONCRETO PARA REDES COLETORAS DE ÁGUAS PLUVIAIS, DIÂMETRO DE 500 MM, JUNTA RÍGIDA, INSTALADO EM LOCAL COM BAIXO NÍVEL DE INTERFERÊNCIAS (NÃO INCLUI FORNECIMENTO). AF_12/2015 | I169: M | J169: COEFICIENTE DE REPRESENTATIVIDADE | K169: 77.72 | L169: CAIXA REFERENCIAL
A170: ASSENTAMENTO DE TUBOS E PECAS | B170: ASTU | C170: FORNEC E/OU ASSENT DE TUBO DE CONCRETO COM JUNTA ARGAMASSADA | D170: 52 | G170: 92811 | H170: ASSENTAMENTO DE TUBO DE CONCRETO PARA REDES COLETORAS DE ÁGUAS PLUVIAIS, DIÂMETRO DE 600 MM, JUNTA RÍGIDA, INSTALADO EM LOCAL COM BAIXO NÍVEL DE INTERFERÊNCIAS (NÃO INCLUI FORNECIMENTO). AF_12/2015 | I170: M | J170: COEFICIENTE DE REPRESENTATIVIDADE | K170: 92.44 | L170: CAIXA REFERENCIAL
A171: ASSENTAMENTO DE TUBOS E PECAS | B171: ASTU | C171: FORNEC E/OU ASSENT DE TUBO DE CONCRETO COM JUNTA ARGAMASSADA | D171: 52 | G171: 92812 | H171: ASSENTAMENTO DE TUBO DE CONCRETO PARA REDES COLETORAS DE ÁGUAS PLUVIAIS, DIÂMETRO DE 700 MM, JUNTA RÍGIDA, INSTALADO EM LOCAL COM BAIXO NÍVEL DE INTERFERÊNCIAS (NÃO INCLUI FORNECIMENTO). AF_12/2015 | I171: M | J171: COEFICIENTE DE REPRESENTATIVIDADE | K171: 107.02 | L171: CAIXA REFERENCIAL
A172: ASSENTAMENTO DE TUBOS E PECAS | B172: ASTU | C172: FORNEC E/OU ASSENT DE TUBO DE CONCRETO COM JUNTA ARGAMASSADA | D172: 52 | G172: 92813 | H172: ASSENTAMENTO DE TUBO DE CONCRETO PARA REDES COLETORAS DE ÁGUAS PLUVIAIS, DIÂMETRO DE 800 MM, JUNTA RÍGIDA, INSTALADO EM LOCAL COM BAIXO NÍVEL DE INTERFERÊNCIAS (NÃO INCLUI FORNECIMENTO). AF_12/2015 | I172: M | J172: COEFICIENTE DE REPRESENTATIVIDADE | K172: 123.86 | L172: CAIXA REFERENCIAL
A173: ASSENTAMENTO DE TUBOS E PECAS | B173: ASTU | C173: FORNEC E/OU ASSENT DE TUBO DE CONCRETO COM JUNTA ARGAMASSADA | D173: 52 | G173: 92814 | H173: ASSENTAMENTO DE TUBO DE CONCRETO PARA REDES COLETORAS DE ÁGUAS PLUVIAIS, DIÂMETRO DE 900 MM, JUNTA RÍGIDA, INSTALADO EM LOCAL COM BAIXO NÍVEL DE INTERFERÊNCIAS (NÃO INCLUI FORNECIMENTO). AF_12/2015 | I173: M | J173: COEFICIENTE DE REPRESENTATIVIDADE | K173: 141.47 | L173: CAIXA REFERENCIAL
A174: ASSENTAMENTO DE TUBOS E PECAS | B174: ASTU | C174: FORNEC E/OU ASSENT DE TUBO DE CONCRETO COM JUNTA ARGAMASSADA | D174: 52 | G174: 92815 | H174: ASSENTAMENTO DE TUBO DE CONCRETO PARA REDES COLETORAS DE ÁGUAS PLUVIAIS, DIÂMETRO DE 1000 MM, JUNTA RÍGIDA, INSTALADO EM LOCAL COM BAIXO NÍVEL DE INTERFERÊNCIAS (NÃO INCLUI FORNECIMENTO). AF_12/2015 | I174: M | J174: COEFICIENTE DE REPRESENTATIVIDADE | K174: 161.58 | L174: CAIXA REFERENCIAL
A175: ASSENTAMENTO DE TUBOS E PECAS | B175: ASTU | C175: FORNEC E/OU ASSENT DE TUBO DE CONCRETO COM JUNTA ARGAMASSADA | D175: 52 | G175: 92816 | H175: TUBO DE CONCRETO PARA REDES COLETORAS DE ÁGUAS PLUVIAIS, DIÂMETRO DE 1200 MM, JUNTA RÍGIDA, INSTALADO EM LOCAL COM BAIXO NÍVEL DE INTERFERÊNCIAS - FORNECIMENTO E ASSENTAMENTO. AF_12/2015 | I175: M | J175: COEFICIENTE DE REPRESENTATIVIDADE | K175: 894.97 | L175: CAIXA REFERENCIAL
A176: ASSENTAMENTO DE TUBOS E PECAS | B176: ASTU | C176: FORNEC E/OU ASSENT DE TUBO DE CONCRETO COM JUNTA ARGAMASSADA | D176: 52 | G176: 92817 | H176: ASSENTAMENTO DE TUBO DE CONCRETO PARA REDES COLETORAS DE ÁGUAS PLUVIAIS, DIÂMETRO DE 1200 MM, JUNTA RÍGIDA, INSTALADO EM LOCAL COM BAIXO NÍVEL DE INTERFERÊNCIAS (NÃO INCLUI FORNECIMENTO). AF_12/2015 | I176: M | J176: COEFICIENTE DE REPRESENTATIVIDADE | K176: 202.19 | L176: CAIXA REFERENCIAL
A177: ASSENTAMENTO DE TUBOS E PECAS | B177: ASTU | C177: FORNEC E/OU ASSENT DE TUBO DE CONCRETO COM JUNTA ARGAMASSADA | D177: 52 | G177: 92818 | H177: TUBO DE CONCRETO PARA REDES COLETORAS DE ÁGUAS PLUVIAIS, DIÂMETRO DE 1500 MM, JUNTA RÍGIDA, INSTALADO EM LOCAL COM BAIXO NÍVEL DE INTERFERÊNCIAS - FORNECIMENTO E ASSENTAMENTO. AF_12/2015 | I177: M | J177: COEFICIENTE DE REPRESENTATIVIDADE | K177: 1275.85 | L177: CAIXA REFERENCIAL
A178: ASSENTAMENTO DE TUBOS E PECAS | B178: ASTU | C178: FORNEC E/OU ASSENT DE TUBO DE CONCRETO COM JUNTA ARGAMASSADA | D178: 52 | G178: 92819 | H178: ASSENTAMENTO DE TUBO DE CONCRETO PARA REDES COLETORAS DE ÁGUAS PLUVIAIS, DIÂMETRO DE 1500 MM, JUNTA RÍGIDA, INSTALADO EM LOCAL COM BAIXO NÍVEL DE INTERFERÊNCIAS (NÃO INCLUI FORNECIMENTO). AF_12/2015 | I178: M | J178: COEFICIENTE DE REPRESENTATIVIDADE | K178: 272.15 | L178: CAIXA REFERENCIAL
A179: ASSENTAMENTO DE TUBOS E PECAS | B179: ASTU | C179: FORNEC E/OU ASSENT DE TUBO DE CONCRETO COM JUNTA ARGAMASSADA | D179: 52 | G179: 92820 | H179: ASSENTAMENTO DE TUBO DE CONCRETO PARA REDES COLETORAS DE ÁGUAS PLUVIAIS, DIÂMETRO DE 300 MM, JUNTA RÍGIDA, INSTALADO EM LOCAL COM ALTO NÍVEL DE INTERFERÊNCIAS (NÃO INCLUI FORNECIMENTO). AF_12/2015 | I179: M | J179: COEFICIENTE DE REPRESENTATIVIDADE | K179: 59.47 | L179: CAIXA REFERENCIAL
A180: ASSENTAMENTO DE TUBOS E PECAS | B180: ASTU | C180: FORNEC E/OU ASSENT DE TUBO DE CONCRETO COM JUNTA ARGAMASSADA | D180: 52 | G180: 92821 | H180: ASSENTAMENTO DE TUBO DE CONCRETO PARA REDES COLETORAS DE ÁGUAS PLUVIAIS, DIÂMETRO DE 400 MM, JUNTA RÍGIDA, INSTALADO EM LOCAL COM ALTO NÍVEL DE INTERFERÊNCIAS (NÃO INCLUI FORNECIMENTO). AF_12/2015 | I180: M | J180: COEFICIENTE DE REPRESENTATIVIDADE | K180: 76.19 | L180: CAIXA REFERENCIAL
A181: ASSENTAMENTO DE TUBOS E PECAS | B181: ASTU | C181: FORNEC E/OU ASSENT DE TUBO DE CONCRETO COM JUNTA ARGAMASSADA | D181: 52 | G181: 92822 | H181: ASSENTAMENTO DE TUBO DE CONCRETO PARA REDES COLETORAS DE ÁGUAS PLUVIAIS, DIÂMETRO DE 500 MM, JUNTA RÍGIDA, INSTALADO EM LOCAL COM ALTO NÍVEL DE INTERFERÊNCIAS (NÃO INCLUI FORNECIMENTO). AF_12/2015 | I181: M | J181: COEFICIENTE DE REPRESENTATIVIDADE | K181: 92.94 | L181: CAIXA REFERENCIAL
A182: ASSENTAMENTO DE TUBOS E PECAS | B182: ASTU | C182: FORNEC E/OU ASSENT DE TUBO DE CONCRETO COM JUNTA ARGAMASSADA | D182: 52 | G182: 92824 | H182: ASSENTAMENTO DE TUBO DE CONCRETO PARA REDES COLETORAS DE ÁGUAS PLUVIAIS, DIÂMETRO DE 600 MM, JUNTA RÍGIDA, INSTALADO EM LOCAL COM ALTO NÍVEL DE INTERFERÊNCIAS (NÃO INCLUI FORNECIMENTO). AF_12/2015 | I182: M | J182: COEFICIENTE DE REPRESENTATIVIDADE | K182: 110.32 | L182: CAIXA REFERENCIAL
A183: ASSENTAMENTO DE TUBOS E PECAS | B183: ASTU | C183: FORNEC E/OU ASSENT DE TUBO DE CONCRETO COM JUNTA ARGAMASSADA | D183: 52 | G183: 92825 | H183: ASSENTAMENTO DE TUBO DE CONCRETO PARA REDES COLETORAS DE ÁGUAS PLUVIAIS, DIÂMETRO DE 700 MM, JUNTA RÍGIDA, INSTALADO EM LOCAL COM ALTO NÍVEL DE INTERFERÊNCIAS (NÃO INCLUI FORNECIMENTO). AF_12/2015 | I183: M | J183: COEFICIENTE DE REPRESENTATIVIDADE | K183: 127.74 | L183: CAIXA REFERENCIAL
A184: ASSENTAMENTO DE TUBOS E PECAS | B184: ASTU | C184: FORNEC E/OU ASSENT DE TUBO DE CONCRETO COM JUNTA ARGAMASSADA | D184: 52 | G184: 92826 | H184: ASSENTAMENTO DE TUBO DE CONCRETO PARA REDES COLETORAS DE ÁGUAS PLUVIAIS, DIÂMETRO DE 800 MM, JUNTA RÍGIDA, INSTALADO EM LOCAL COM ALTO NÍVEL DE INTERFERÊNCIAS (NÃO INCLUI FORNECIMENTO). AF_12/2015 | I184: M | J184: COEFICIENTE DE REPRESENTATIVIDADE | K184: 147.12 | L184: CAIXA REFERENCIAL
A185: ASSENTAMENTO DE TUBOS E PECAS | B185: ASTU | C185: FORNEC E/OU ASSENT DE TUBO DE CONCRETO COM JUNTA ARGAMASSADA | D185: 52 | G185: 92827 | H185: ASSENTAMENTO DE TUBO DE CONCRETO PARA REDES COLETORAS DE ÁGUAS PLUVIAIS, DIÂMETRO DE 900 MM, JUNTA RÍGIDA, INSTALADO EM LOCAL COM ALTO NÍVEL DE INTERFERÊNCIAS (NÃO INCLUI FORNECIMENTO). AF_12/2015 | I185: M | J185: COEFICIENTE DE REPRESENTATIVIDADE | K185: 167.28 | L185: CAIXA REFERENCIAL
A186: ASSENTAMENTO DE TUBOS E PECAS | B186: ASTU | C186: FORNEC E/OU ASSENT DE TUBO DE CONCRETO COM JUNTA ARGAMASSADA | D186: 52 | G186: 92828 | H186: ASSENTAMENTO DE TUBO DE CONCRETO PARA REDES COLETORAS DE ÁGUAS PLUVIAIS, DIÂMETRO DE 1000 MM, JUNTA RÍGIDA, INSTALADO EM LOCAL COM ALTO NÍVEL DE INTERFERÊNCIAS (NÃO INCLUI FORNECIMENTO). AF_12/2015 | I186: M | J186: COEFICIENTE DE REPRESENTATIVIDADE | K186: 190.43 | L186: CAIXA REFERENCIAL
A187: ASSENTAMENTO DE TUBOS E PECAS | B187: ASTU | C187: FORNEC E/OU ASSENT DE TUBO DE CONCRETO COM JUNTA ARGAMASSADA | D187: 52 | G187: 92829 | H187: TUBO DE CONCRETO PARA REDES COLETORAS DE ÁGUAS PLUVIAIS, DIÂMETRO DE 1200 MM, JUNTA RÍGIDA, INSTALADO EM LOCAL COM ALTO NÍVEL DE INTERFERÊNCIAS - FORNECIMENTO E ASSENTAMENTO. AF_12/2015 | I187: M | J187: COEFICIENTE DE REPRESENTATIVIDADE | K187: 929.01 | L187: CAIXA REFERENCIAL
A188: ASSENTAMENTO DE TUBOS E PECAS | B188: ASTU | C188: FORNEC E/OU ASSENT DE TUBO DE CONCRETO COM JUNTA ARGAMASSADA | D188: 52 | G188: 92830 | H188: ASSENTAMENTO DE TUBO DE CONCRETO PARA REDES COLETORAS DE ÁGUAS PLUVIAIS, DIÂMETRO DE 1200 MM, JUNTA RÍGIDA, INSTALADO EM LOCAL COM ALTO NÍVEL DE INTERFERÊNCIAS (NÃO INCLUI FORNECIMENTO). AF_12/2015 | I188: M | J188: COEFICIENTE DE REPRESENTATIVIDADE | K188: 236.23 | L188: CAIXA REFERENCIAL
A189: ASSENTAMENTO DE TUBOS E PECAS | B189: ASTU | C189: FORNEC E/OU ASSENT DE TUBO DE CONCRETO COM JUNTA ARGAMASSADA | D189: 52 | G189: 92831 | H189: TUBO DE CONCRETO PARA REDES COLETORAS DE ÁGUAS PLUVIAIS, DIÂMETRO DE 1500 MM, JUNTA RÍGIDA, INSTALADO EM LOCAL COM ALTO NÍVEL DE INTERFERÊNCIAS - FORNECIMENTO E ASSENTAMENTO. AF_12/2015 | I189: M | J189: COEFICIENTE DE REPRESENTATIVIDADE | K189: 1317.71 | L189: CAIXA REFERENCIAL
A190: ASSENTAMENTO DE TUBOS E PECAS | B190: ASTU | C190: FORNEC E/OU ASSENT DE TUBO DE CONCRETO COM JUNTA ARGAMASSADA | D190: 52 | G190: 92832 | H190: ASSENTAMENTO DE TUBO DE CONCRETO PARA REDES COLETORAS DE ÁGUAS PLUVIAIS, DIÂMETRO DE 1500 MM, JUNTA RÍGIDA, INSTALADO EM LOCAL COM ALTO NÍVEL DE INTERFERÊNCIAS (NÃO INCLUI FORNECIMENTO). AF_12/2015 | I190: M | J190: COEFICIENTE DE REPRESENTATIVIDADE | K190: 314.01 | L190: CAIXA REFERENCIAL
A191: ASSENTAMENTO DE TUBOS E PECAS | B191: ASTU | C191: FORNEC E/OU ASSENT DE TUBO DE CONCRETO COM JUNTA ARGAMASSADA | D191: 52 | G191: 95565 | H191: TUBO DE CONCRETO PARA REDES COLETORAS DE ÁGUAS PLUVIAIS, DIÂMETRO DE 300MM, JUNTA RÍGIDA, INSTALADO EM LOCAL COM BAIXO NÍVEL DE INTERFERÊNCIAS - FORNECIMENTO E ASSENTAMENTO. AF_12/2015 | I191: M | J191: COEFICIENTE DE REPRESENTATIVIDADE | K191: 158.79 | L191: CAIXA REFERENCIAL
A192: ASSENTAMENTO DE TUBOS E PECAS | B192: ASTU | C192: FORNEC E/OU ASSENT DE TUBO DE CONCRETO COM JUNTA ARGAMASSADA | D192: 52 | G192: 95566 | H192: TUBO DE CONCRETO PARA REDES COLETORAS DE ÁGUAS PLUVIAIS, DIÂMETRO DE 300MM, JUNTA RÍGIDA, INSTALADO EM LOCAL COM ALTO NÍVEL DE INTERFERÊNCIAS - FORNECIMENTO E ASSENTAMENTO. AF_12/2015 | I192: M | J192: COEFICIENTE DE REPRESENTATIVIDADE | K192: 168.43 | L192: CAIXA REFERENCIAL
A193: ASSENTAMENTO DE TUBOS E PECAS | B193: ASTU | C193: FORNEC E/OU ASSENT DE TUBO DE CONCRETO COM JUNTA ARGAMASSADA | D193: 52 | G193: 95567 | H193: TUBO DE CONCRETO (SIMPLES) PARA REDES COLETORAS DE ÁGUAS PLUVIAIS, DIÂMETRO DE 300 MM, JUNTA RÍGIDA, INSTALADO EM LOCAL COM BAIXO NÍVEL DE INTERFERÊNCIAS - FORNECIMENTO E ASSENTAMENTO. AF_12/2015 | I193: M | J193: COEFICIENTE DE REPRESENTATIVIDADE | K193: 109.57 | L193: CAIXA REFERENCIAL
A194: ASSENTAMENTO DE TUBOS E PECAS | B194: ASTU | C194: FORNEC E/OU ASSENT DE TUBO DE CONCRETO COM JUNTA ARGAMASSADA | D194: 52 | G194: 95568 | H194: TUBO DE CONCRETO (SIMPLES) PARA REDES COLETORAS DE ÁGUAS PLUVIAIS, DIÂMETRO DE 400 MM, JUNTA RÍGIDA, INSTALADO EM LOCAL COM BAIXO NÍVEL DE INTERFERÊNCIAS - FORNECIMENTO E ASSENTAMENTO. AF_12/2015 | I194: M | J194: COEFICIENTE DE REPRESENTATIVIDADE | K194: 134.45 | L194: CAIXA REFERENCIAL
A195: ASSENTAMENTO DE TUBOS E PECAS | B195: ASTU | C195: FORNEC E/OU ASSENT DE TUBO DE CONCRETO COM JUNTA ARGAMASSADA | D195: 52 | G195: 95569 | H195: TUBO DE CONCRETO (SIMPLES) PARA REDES COLETORAS DE ÁGUAS PLUVIAIS, DIÂMETRO DE 500 MM, JUNTA RÍGIDA, INSTALADO EM LOCAL COM BAIXO NÍVEL DE INTERFERÊNCIAS - FORNECIMENTO E ASSENTAMENTO. AF_12/2015 | I195: M | J195: COEFICIENTE DE REPRESENTATIVIDADE | K195: 182.78 | L195: CAIXA REFERENCIAL
A196: ASSENTAMENTO DE TUBOS E PECAS | B196: ASTU | C196: FORNEC E/OU ASSENT DE TUBO DE CONCRETO COM JUNTA ARGAMASSADA | D196: 52 | G196: 95570 | H196: TUBO DE CONCRETO (SIMPLES) PARA REDES COLETORAS DE ÁGUAS PLUVIAIS, DIÂMETRO DE 300 MM, JUNTA RÍGIDA, INSTALADO EM LOCAL COM ALTO NÍVEL DE INTERFERÊNCIAS - FORNECIMENTO E ASSENTAMENTO. AF_12/2015 | I196: M | J196: COEFICIENTE DE REPRESENTATIVIDADE | K196: 119.21 | L196: CAIXA REFERENCIAL
A197: ASSENTAMENTO DE TUBOS E PECAS | B197: ASTU | C197: FORNEC E/OU ASSENT DE TUBO DE CONCRETO COM JUNTA ARGAMASSADA | D197: 52 | G197: 95571 | H197: TUBO DE CONCRETO (SIMPLES) PARA REDES COLETORAS DE ÁGUAS PLUVIAIS, DIÂMETRO DE 400 MM, JUNTA RÍGIDA, INSTALADO EM LOCAL COM ALTO NÍVEL DE INTERFERÊNCIAS - FORNECIMENTO E ASSENTAMENTO. AF_12/2015 | I197: M | J197: COEFICIENTE DE REPRESENTATIVIDADE | K197: 146.78 | L197: CAIXA REFERENCIAL
A198: ASSENTAMENTO DE TUBOS E PECAS | B198: ASTU | C198: FORNEC E/OU ASSENT DE TUBO DE CONCRETO COM JUNTA ARGAMASSADA | D198: 52 | G198: 95572 | H198: TUBO DE CONCRETO (SIMPLES) PARA REDES COLETORAS DE ÁGUAS PLUVIAIS, DIÂMETRO DE 500 MM, JUNTA RÍGIDA, INSTALADO EM LOCAL COM ALTO NÍVEL DE INTERFERÊNCIAS - FORNECIMENTO E ASSENTAMENTO. AF_12/2015 | I198: M | J198: COEFICIENTE DE REPRESENTATIVIDADE | K198: 198 | L198: CAIXA REFERENCIAL
A199: ASSENTAMENTO DE TUBOS E PECAS | B199: ASTU | C199: FORNEC E/OU ASSENT DE TUBO PVC DEFOFO COM JUNTA ELASTICA | D199: 230 | G199: 97127 | H199: ASSENTAMENTO DE TUBO DE PVC DEFOFO OU PRFV OU RPVC PARA REDE DE ÁGUA, DN 150 MM, JUNTA ELÁSTICA INTEGRADA, INSTALADO EM LOCAL COM NÍVEL ALTO DE INTERFERÊNCIAS (NÃO INCLUI FORNECIMENTO). AF_11/2017 | I199: M | J199: COEFICIENTE DE REPRESENTATIVIDADE | K199: 7.92 | L199: CAIXA REFERENCIAL
A200: ASSENTAMENTO DE TUBOS E PECAS | B200: ASTU | C200: FORNEC E/OU ASSENT DE TUBO PVC DEFOFO COM JUNTA ELASTICA | D200: 230 | G200: 97128 | H200: ASSENTAMENTO DE TUBO DE PVC DEFOFO OU PRFV OU RPVC PARA REDE DE ÁGUA, DN 200 MM, JUNTA ELÁSTICA INTEGRADA, INSTALADO EM LOCAL COM NÍVEL ALTO DE INTERFERÊNCIAS (NÃO INCLUI FORNECIMENTO). AF_11/2017 | I200: M | J200: COEFICIENTE DE REPRESENTATIVIDADE | K200: 14.49 | L200: CAIXA REFERENCIAL
A201: ASSENTAMENTO DE TUBOS E PECAS | B201: ASTU | C201: FORNEC E/OU ASSENT DE TUBO PVC DEFOFO COM JUNTA ELASTICA | D201: 230 | G201: 97129 | H201: ASSENTAMENTO DE TUBO DE PVC DEFOFO OU PRFV OU RPVC PARA REDE DE ÁGUA, DN 250 MM, JUNTA ELÁSTICA INTEGRADA, INSTALADO EM LOCAL COM NÍVEL ALTO DE INTERFERÊNCIAS (NÃO INCLUI FORNECIMENTO). AF_11/2017 | I201: M | J201: COEFICIENTE DE REPRESENTATIVIDADE | K201: 17.84 | L201: CAIXA REFERENCIAL
A202: ASSENTAMENTO DE TUBOS E PECAS | B202: ASTU | C202: FORNEC E/OU ASSENT DE TUBO PVC DEFOFO COM JUNTA ELASTICA | D202: 230 | G202: 97130 | H202: ASSENTAMENTO DE TUBO DE PVC DEFOFO OU PRFV OU RPVC PARA REDE DE ÁGUA, DN 300 MM, JUNTA ELÁSTICA INTEGRADA, INSTALADO EM LOCAL COM NÍVEL ALTO DE INTERFERÊNCIAS (NÃO INCLUI FORNECIMENTO). AF_11/2017 | I202: M | J202: COEFICIENTE DE REPRESENTATIVIDADE | K202: 21.18 | L202: CAIXA REFERENCIAL
... 7322 more rows

Sheet Comp SINAPI BA 04-2023 Desoner (hidden)
A1: PCI.817.01 - CUSTO DE COMPOSIÇÕES - SINTÉTICO DATA DE EMISSÃO: 18/05/2023 23:15:44 DATA DE RT: 18/05/2023
A2: ENCARGOS SOCIAIS DESONERADOS: 85,51%(HORA) 47,56%(MÊS)
A3: ABRANGÊNCIA : NACIONAL LOCALIDADE : SALVADOR DATA DE PREÇO : 04/2023 REFERÊNCIA COLETA : MEDIANO
A5: DESCRICAO DA CLASSE | B5: SIGLA DA CLASSE | C5: DESCRICAO DO TIPO 1 | D5: SIGLA DO TIPO 1 | E5: CODIGO DO AGRUPADOR | F5: DESCRICAO DO AGRUPADOR | G5: CODIGO DA COMPOSICAO | H5: DESCRICAO DA COMPOSICAO | I5: UNIDADE | J5: ORIGEM DE PREÇO | K5: CUSTO TOTAL | L5: VINCULO
A7: ASSENTAMENTO DE TUBOS E PECAS | B7: ASTU | C7: FORNEC E/OU ASSENT DE TUBO DE FERRO FUNDIDO JUNTA ELASTICA | D7: 45 | G7: 97141 | H7: ASSENTAMENTO DE TUBO DE FERRO FUNDIDO PARA REDE DE ÁGUA, DN 80 MM, JUNTA ELÁSTICA, INSTALADO EM LOCAL COM NÍVEL ALTO DE INTERFERÊNCIAS (NÃO INCLUI FORNECIMENTO). AF_11/2017 | I7: M | J7: COEFICIENTE DE REPRESENTATIVIDADE | K7: 10.21 | L7: CAIXA REFERENCIAL
A8: ASSENTAMENTO DE TUBOS E PECAS | B8: ASTU | C8: FORNEC E/OU ASSENT DE TUBO DE FERRO FUNDIDO JUNTA ELASTICA | D8: 45 | G8: 97142 | H8: ASSENTAMENTO DE TUBO DE FERRO FUNDIDO PARA REDE DE ÁGUA, DN 100 MM, JUNTA ELÁSTICA, INSTALADO EM LOCAL COM NÍVEL ALTO DE INTERFERÊNCIAS (NÃO INCLUI FORNECIMENTO). AF_11/2017 | I8: M | J8: COEFICIENTE DE REPRESENTATIVIDADE | K8: 11.41 | L8: CAIXA REFERENCIAL
A9: ASSENTAMENTO DE TUBOS E PECAS | B9: ASTU | C9: FORNEC E/OU ASSENT DE TUBO DE FERRO FUNDIDO JUNTA ELASTICA | D9: 45 | G9: 97143 | H9: ASSENTAMENTO DE TUBO DE FERRO FUNDIDO PARA REDE DE ÁGUA, DN 150 MM, JUNTA ELÁSTICA, INSTALADO EM LOCAL COM NÍVEL ALTO DE INTERFERÊNCIAS (NÃO INCLUI FORNECIMENTO). AF_11/2017 | I9: M | J9: COEFICIENTE DE REPRESENTATIVIDADE | K9: 14.44 | L9: CAIXA REFERENCIAL
A10: ASSENTAMENTO DE TUBOS E PECAS | B10: ASTU | C10: FORNEC E/OU ASSENT DE TUBO DE FERRO FUNDIDO JUNTA ELASTICA | D10: 45 | G10: 97144 | H10: ASSENTAMENTO DE TUBO DE FERRO FUNDIDO PARA REDE DE ÁGUA, DN 200 MM, JUNTA ELÁSTICA, INSTALADO EM LOCAL COM NÍVEL ALTO DE INTERFERÊNCIAS (NÃO INCLUI FORNECIMENTO). AF_11/2017 | I10: M | J10: COEFICIENTE DE REPRESENTATIVIDADE | K10: 17.43 | L10: CAIXA REFERENCIAL
A11: ASSENTAMENTO DE TUBOS E PECAS | B11: ASTU | C11: FORNEC E/OU ASSENT DE TUBO DE FERRO FUNDIDO JUNTA ELASTICA | D11: 45 | G11: 97145 | H11: ASSENTAMENTO DE TUBO DE FERRO FUNDIDO PARA REDE DE ÁGUA, DN 250 MM, JUNTA ELÁSTICA, INSTALADO EM LOCAL COM NÍVEL ALTO DE INTERFERÊNCIAS (NÃO INCLUI FORNECIMENTO). AF_11/2017 | I11: M | J11: COEFICIENTE DE REPRESENTATIVIDADE | K11: 20.48 | L11: CAIXA REFERENCIAL
A12: ASSENTAMENTO DE TUBOS E PECAS | B12: ASTU | C12: FORNEC E/OU ASSENT DE TUBO DE FERRO FUNDIDO JUNTA ELASTICA | D12: 45 | G12: 97146 | H12: ASSENTAMENTO DE TUBO DE FERRO FUNDIDO PARA REDE DE ÁGUA, DN 300 MM, JUNTA ELÁSTICA, INSTALADO EM LOCAL COM NÍVEL ALTO DE INTERFERÊNCIAS (NÃO INCLUI FORNECIMENTO). AF_11/2017 | I12: M | J12: COEFICIENTE DE REPRESENTATIVIDADE | K12: 23.5 | L12: CAIXA REFERENCIAL
A13: ASSENTAMENTO DE TUBOS E PECAS | B13: ASTU | C13: FORNEC E/OU ASSENT DE TUBO DE FERRO FUNDIDO JUNTA ELASTICA | D13: 45 | G13: 97147 | H13: ASSENTAMENTO DE TUBO DE FERRO FUNDIDO PARA REDE DE ÁGUA, DN 350 MM, JUNTA ELÁSTICA, INSTALADO EM LOCAL COM NÍVEL ALTO DE INTERFERÊNCIAS (NÃO INCLUI FORNECIMENTO). AF_11/2017 | I13: M | J13: COEFICIENTE DE REPRESENTATIVIDADE | K13: 26.55 | L13: CAIXA REFERENCIAL
A14: ASSENTAMENTO DE TUBOS E PECAS | B14: ASTU | C14: FORNEC E/OU ASSENT DE TUBO DE FERRO FUNDIDO JUNTA ELASTICA | D14: 45 | G14: 97148 | H14: ASSENTAMENTO DE TUBO DE FERRO FUNDIDO PARA REDE DE ÁGUA, DN 400 MM, JUNTA ELÁSTICA, INSTALADO EM LOCAL COM NÍVEL ALTO DE INTERFERÊNCIAS (NÃO INCLUI FORNECIMENTO). AF_11/2017 | I14: M | J14: COEFICIENTE DE REPRESENTATIVIDADE | K14: 29.56 | L14: CAIXA REFERENCIAL
A15: ASSENTAMENTO DE TUBOS E PECAS | B15: ASTU | C15: FORNEC E/OU ASSENT DE TUBO DE FERRO FUNDIDO JUNTA ELASTICA | D15: 45 | G15: 97149 | H15: ASSENTAMENTO DE TUBO DE FERRO FUNDIDO PARA REDE DE ÁGUA, DN 450 MM, JUNTA ELÁSTICA, INSTALADO EM LOCAL COM NÍVEL ALTO DE INTERFERÊNCIAS (NÃO INCLUI FORNECIMENTO). AF_11/2017 | I15: M | J15: COEFICIENTE DE REPRESENTATIVIDADE | K15: 32.62 | L15: CAIXA REFERENCIAL
A16: ASSENTAMENTO DE TUBOS E PECAS | B16: ASTU | C16: FORNEC E/OU ASSENT DE TUBO DE FERRO FUNDIDO JUNTA ELASTICA | D16: 45 | G16: 97150 | H16: ASSENTAMENTO DE TUBO DE FERRO FUNDIDO PARA REDE DE ÁGUA, DN 500 MM, JUNTA ELÁSTICA, INSTALADO EM LOCAL COM NÍVEL ALTO DE INTERFERÊNCIAS (NÃO INCLUI FORNECIMENTO). AF_11/2017 | I16: M | J16: COEFICIENTE DE REPRESENTATIVIDADE | K16: 40.14 | L16: CAIXA REFERENCIAL
A17: ASSENTAMENTO DE TUBOS E PECAS | B17: ASTU | C17: FORNEC E/OU ASSENT DE TUBO DE FERRO FUNDIDO JUNTA ELASTICA | D17: 45 | G17: 97151 | H17: ASSENTAMENTO DE TUBO DE FERRO FUNDIDO PARA REDE DE ÁGUA, DN 600 MM, JUNTA ELÁSTICA, INSTALADO EM LOCAL COM NÍVEL ALTO DE INTERFERÊNCIAS (NÃO INCLUI FORNECIMENTO). AF_11/2017 | I17: M | J17: COEFICIENTE DE REPRESENTATIVIDADE | K17: 46.88 | L17: CAIXA REFERENCIAL
A18: ASSENTAMENTO DE TUBOS E PECAS | B18: ASTU | C18: FORNEC E/OU ASSENT DE TUBO DE FERRO FUNDIDO JUNTA ELASTICA | D18: 45 | G18: 97152 | H18: ASSENTAMENTO DE TUBO DE FERRO FUNDIDO PARA REDE DE ÁGUA, DN 700 MM, JUNTA ELÁSTICA, INSTALADO EM LOCAL COM NÍVEL ALTO DE INTERFERÊNCIAS (NÃO INCLUI FORNECIMENTO). AF_11/2017 | I18: M | J18: COEFICIENTE DE REPRESENTATIVIDADE | K18: 53.39 | L18: CAIXA REFERENCIAL
A19: ASSENTAMENTO DE TUBOS E PECAS | B19: ASTU | C19: FORNEC E/OU ASSENT DE TUBO DE FERRO FUNDIDO JUNTA ELASTICA | D19: 45 | G19: 97153 | H19: ASSENTAMENTO DE TUBO DE FERRO FUNDIDO PARA REDE DE ÁGUA, DN 800 MM, JUNTA ELÁSTICA, INSTALADO EM LOCAL COM NÍVEL ALTO DE INTERFERÊNCIAS (NÃO INCLUI FORNECIMENTO). AF_11/2017 | I19: M | J19: COEFICIENTE DE REPRESENTATIVIDADE | K19: 60.04 | L19: CAIXA REFERENCIAL
A20: ASSENTAMENTO DE TUBOS E PECAS | B20: ASTU | C20: FORNEC E/OU ASSENT DE TUBO DE FERRO FUNDIDO JUNTA ELASTICA | D20: 45 | G20: 97154 | H20: ASSENTAMENTO DE TUBO DE FERRO FUNDIDO PARA REDE DE ÁGUA, DN 900 MM, JUNTA ELÁSTICA, INSTALADO EM LOCAL COM NÍVEL ALTO DE INTERFERÊNCIAS (NÃO INCLUI FORNECIMENTO). AF_11/2017 | I20: M | J20: COEFICIENTE DE REPRESENTATIVIDADE | K20: 66.72 | L20: CAIXA REFERENCIAL
A21: ASSENTAMENTO DE TUBOS E PECAS | B21: ASTU | C21: FORNEC E/OU ASSENT DE TUBO DE FERRO FUNDIDO JUNTA ELASTICA | D21: 45 | G21: 97155 | H21: ASSENTAMENTO DE TUBO DE FERRO FUNDIDO PARA REDE DE ÁGUA, DN 1000 MM, JUNTA ELÁSTICA, INSTALADO EM LOCAL COM NÍVEL ALTO DE INTERFERÊNCIAS (NÃO INCLUI FORNECIMENTO). AF_11/2017 | I21: M | J21: COEFICIENTE DE REPRESENTATIVIDADE | K21: 73.41 | L21: CAIXA REFERENCIAL
A22: ASSENTAMENTO DE TUBOS E PECAS | B22: ASTU | C22: FORNEC E/OU ASSENT DE TUBO DE FERRO FUNDIDO JUNTA ELASTICA | D22: 45 | G22: 97156 | H22: ASSENTAMENTO DE TUBO DE FERRO FUNDIDO PARA REDE DE ÁGUA, DN 1200 MM, JUNTA ELÁSTICA, INSTALADO EM LOCAL COM NÍVEL ALTO DE INTERFERÊNCIAS (NÃO INCLUI FORNECIMENTO). AF_11/2017 | I22: M | J22: COEFICIENTE DE REPRESENTATIVIDADE | K22: 87.2 | L22: CAIXA REFERENCIAL
A23: ASSENTAMENTO DE TUBOS E PECAS | B23: ASTU | C23: FORNEC E/OU ASSENT DE TUBO DE FERRO FUNDIDO JUNTA ELASTICA | D23: 45 | G23: 97157 | H23: ASSENTAMENTO DE TUBO DE FERRO FUNDIDO PARA REDE DE ÁGUA, DN 80 MM, JUNTA ELÁSTICA, INSTALADO EM LOCAL COM NÍVEL BAIXO DE INTERFERÊNCIAS (NÃO INCLUI FORNECIMENTO). AF_11/2017 | I23: M | J23: COEFICIENTE DE REPRESENTATIVIDADE | K23: 6.15 | L23: CAIXA REFERENCIAL
A24: ASSENTAMENTO DE TUBOS E PECAS | B24: ASTU | C24: FORNEC E/OU ASSENT DE TUBO DE FERRO FUNDIDO JUNTA ELASTICA | D24: 45 | G24: 97158 | H24: ASSENTAMENTO DE TUBO DE FERRO FUNDIDO PARA REDE DE ÁGUA, DN 100 MM, JUNTA ELÁSTICA, INSTALADO EM LOCAL COM NÍVEL BAIXO DE INTERFERÊNCIAS (NÃO INCLUI FORNECIMENTO). AF_11/2017 | I24: M | J24: COEFICIENTE DE REPRESENTATIVIDADE | K24: 6.89 | L24: CAIXA REFERENCIAL
A25: ASSENTAMENTO DE TUBOS E PECAS | B25: ASTU | C25: FORNEC E/OU ASSENT DE TUBO DE FERRO FUNDIDO JUNTA ELASTICA | D25: 45 | G25: 97159 | H25: ASSENTAMENTO DE TUBO DE FERRO FUNDIDO PARA REDE DE ÁGUA, DN 150 MM, JUNTA ELÁSTICA, INSTALADO EM LOCAL COM NÍVEL BAIXO DE INTERFERÊNCIAS (NÃO INCLUI FORNECIMENTO). AF_11/2017 | I25: M | J25: COEFICIENTE DE REPRESENTATIVIDADE | K25: 8.73 | L25: CAIXA REFERENCIAL
A26: ASSENTAMENTO DE TUBOS E PECAS | B26: ASTU | C26: FORNEC E/OU ASSENT DE TUBO DE FERRO FUNDIDO JUNTA ELASTICA | D26: 45 | G26: 97160 | H26: ASSENTAMENTO DE TUBO DE FERRO FUNDIDO PARA REDE DE ÁGUA, DN 200 MM, JUNTA ELÁSTICA, INSTALADO EM LOCAL COM NÍVEL BAIXO DE INTERFERÊNCIAS (NÃO INCLUI FORNECIMENTO). AF_11/2017 | I26: M | J26: COEFICIENTE DE REPRESENTATIVIDADE | K26: 10.53 | L26: CAIXA REFERENCIAL
A27: ASSENTAMENTO DE TUBOS E PECAS | B27: ASTU | C27: FORNEC E/OU ASSENT DE TUBO DE FERRO FUNDIDO JUNTA ELASTICA | D27: 45 | G27: 97161 | H27: ASSENTAMENTO DE TUBO DE FERRO FUNDIDO PARA REDE DE ÁGUA, DN 250 MM, JUNTA ELÁSTICA, INSTALADO EM LOCAL COM NÍVEL BAIXO DE INTERFERÊNCIAS (NÃO INCLUI FORNECIMENTO). AF_11/2017 | I27: M | J27: COEFICIENTE DE REPRESENTATIVIDADE | K27: 12.39 | L27: CAIXA REFERENCIAL
A28: ASSENTAMENTO DE TUBOS E PECAS | B28: ASTU | C28: FORNEC E/OU ASSENT DE TUBO DE FERRO FUNDIDO JUNTA ELASTICA | D28: 45 | G28: 97162 | H28: ASSENTAMENTO DE TUBO DE FERRO FUNDIDO PARA REDE DE ÁGUA, DN 300 MM, JUNTA ELÁSTICA, INSTALADO EM LOCAL COM NÍVEL BAIXO DE INTERFERÊNCIAS (NÃO INCLUI FORNECIMENTO). AF_11/2017 | I28: M | J28: COEFICIENTE DE REPRESENTATIVIDADE | K28: 14.24 | L28: CAIXA REFERENCIAL
A29: ASSENTAMENTO DE TUBOS E PECAS | B29: ASTU | C29: FORNEC E/OU ASSENT DE TUBO DE FERRO FUNDIDO JUNTA ELASTICA | D29: 45 | G29: 97163 | H29: ASSENTAMENTO DE TUBO DE FERRO FUNDIDO PARA REDE DE ÁGUA, DN 350 MM, JUNTA ELÁSTICA, INSTALADO EM LOCAL COM NÍVEL BAIXO DE INTERFERÊNCIAS (NÃO INCLUI FORNECIMENTO). AF_11/2017 | I29: M | J29: COEFICIENTE DE REPRESENTATIVIDADE | K29: 16.1 | L29: CAIXA REFERENCIAL
A30: ASSENTAMENTO DE TUBOS E PECAS | B30: ASTU | C30: FORNEC E/OU ASSENT DE TUBO DE FERRO FUNDIDO JUNTA ELASTICA | D30: 45 | G30: 97164 | H30: ASSENTAMENTO DE TUBO DE FERRO FUNDIDO PARA REDE DE ÁGUA, DN 400 MM, JUNTA ELÁSTICA, INSTALADO EM LOCAL COM NÍVEL BAIXO DE INTERFERÊNCIAS (NÃO INCLUI FORNECIMENTO). AF_11/2017 | I30: M | J30: COEFICIENTE DE REPRESENTATIVIDADE | K30: 17.94 | L30: CAIXA REFERENCIAL
A31: ASSENTAMENTO DE TUBOS E PECAS | B31: ASTU | C31: FORNEC E/OU ASSENT DE TUBO DE FERRO FUNDIDO JUNTA ELASTICA | D31: 45 | G31: 97165 | H31: ASSENTAMENTO DE TUBO DE FERRO FUNDIDO PARA REDE DE ÁGUA, DN 450 MM, JUNTA ELÁSTICA, INSTALADO EM LOCAL COM NÍVEL BAIXO DE INTERFERÊNCIAS (NÃO INCLUI FORNECIMENTO). AF_11/2017 | I31: M | J31: COEFICIENTE DE REPRESENTATIVIDADE | K31: 19.82 | L31: CAIXA REFERENCIAL
A32: ASSENTAMENTO DE TUBOS E PECAS | B32: ASTU | C32: FORNEC E/OU ASSENT DE TUBO DE FERRO FUNDIDO JUNTA ELASTICA | D32: 45 | G32: 97166 | H32: ASSENTAMENTO DE TUBO DE FERRO FUNDIDO PARA REDE DE ÁGUA, DN 500 MM, JUNTA ELÁSTICA, INSTALADO EM LOCAL COM NÍVEL BAIXO DE INTERFERÊNCIAS (NÃO INCLUI FORNECIMENTO). AF_11/2017 | I32: M | J32: COEFICIENTE DE REPRESENTATIVIDADE | K32: 24.4 | L32: CAIXA REFERENCIAL
A33: ASSENTAMENTO DE TUBOS E PECAS | B33: ASTU | C33: FORNEC E/OU ASSENT DE TUBO DE FERRO FUNDIDO JUNTA ELASTICA | D33: 45 | G33: 97167 | H33: ASSENTAMENTO DE TUBO DE FERRO FUNDIDO PARA REDE DE ÁGUA, DN 600 MM, JUNTA ELÁSTICA, INSTALADO EM LOCAL COM NÍVEL BAIXO DE INTERFERÊNCIAS (NÃO INCLUI FORNECIMENTO). AF_11/2017 | I33: M | J33: COEFICIENTE DE REPRESENTATIVIDADE | K33: 28.52 | L33: CAIXA REFERENCIAL
A34: ASSENTAMENTO DE TUBOS E PECAS | B34: ASTU | C34: FORNEC E/OU ASSENT DE TUBO DE FERRO FUNDIDO JUNTA ELASTICA | D34: 45 | G34: 97168 | H34: ASSENTAMENTO DE TUBO DE FERRO FUNDIDO PARA REDE DE ÁGUA, DN 700 MM, JUNTA ELÁSTICA, INSTALADO EM LOCAL COM NÍVEL BAIXO DE INTERFERÊNCIAS (NÃO INCLUI FORNECIMENTO). AF_11/2017 | I34: M | J34: COEFICIENTE DE REPRESENTATIVIDADE | K34: 32.42 | L34: CAIXA REFERENCIAL
A35: ASSENTAMENTO DE TUBOS E PECAS | B35: ASTU | C35: FORNEC E/OU ASSENT DE TUBO DE FERRO FUNDIDO JUNTA ELASTICA | D35: 45 | G35: 97169 | H35: ASSENTAMENTO DE TUBO DE FERRO FUNDIDO PARA REDE DE ÁGUA, DN 800 MM, JUNTA ELÁSTICA, INSTALADO EM LOCAL COM NÍVEL BAIXO DE INTERFERÊNCIAS (NÃO INCLUI FORNECIMENTO). AF_11/2017 | I35: M | J35: COEFICIENTE DE REPRESENTATIVIDADE | K35: 36.44 | L35: CAIXA REFERENCIAL
A36: ASSENTAMENTO DE TUBOS E PECAS | B36: ASTU | C36: FORNEC E/OU ASSENT DE TUBO DE FERRO FUNDIDO JUNTA ELASTICA | D36: 45 | G36: 97170 | H36: ASSENTAMENTO DE TUBO DE FERRO FUNDIDO PARA REDE DE ÁGUA, DN 900 MM, JUNTA ELÁSTICA, INSTALADO EM LOCAL COM NÍVEL BAIXO DE INTERFERÊNCIAS (NÃO INCLUI FORNECIMENTO). AF_11/2017 | I36: M | J36: COEFICIENTE DE REPRESENTATIVIDADE | K36: 40.51 | L36: CAIXA REFERENCIAL
A37: ASSENTAMENTO DE TUBOS E PECAS | B37: ASTU | C37: FORNEC E/OU ASSENT DE TUBO DE FERRO FUNDIDO JUNTA ELASTICA | D37: 45 | G37: 97171 | H37: ASSENTAMENTO DE TUBO DE FERRO FUNDIDO PARA REDE DE ÁGUA, DN 1000 MM, JUNTA ELÁSTICA, INSTALADO EM LOCAL COM NÍVEL BAIXO DE INTERFERÊNCIAS (NÃO INCLUI FORNECIMENTO). AF_11/2017 | I37: M | J37: COEFICIENTE DE REPRESENTATIVIDADE | K37: 44.61 | L37: CAIXA REFERENCIAL
A38: ASSENTAMENTO DE TUBOS E PECAS | B38: ASTU | C38: FORNEC E/OU ASSENT DE TUBO DE FERRO FUNDIDO JUNTA ELASTICA | D38: 45 | G38: 97172 | H38: ASSENTAMENTO DE TUBO DE FERRO FUNDIDO PARA REDE DE ÁGUA, DN 1200 MM, JUNTA ELÁSTICA, INSTALADO EM LOCAL COM NÍVEL BAIXO DE INTERFERÊNCIAS (NÃO INCLUI FORNECIMENTO). AF_11/2017 | I38: M | J38: COEFICIENTE DE REPRESENTATIVIDADE | K38: 53.17 | L38: CAIXA REFERENCIAL
A39: ASSENTAMENTO DE TUBOS E PECAS | B39: ASTU | C39: FORNEC E/OU ASSENT DE TUBO DE ACO COM JUNTA SOLDADA | D39: 46 | G39: 97173 | H39: ASSENTAMENTO DE TUBO DE AÇO CARBONO PARA REDE DE ÁGUA, DN 600 MM (24), JUNTA SOLDADA, INSTALADO EM LOCAL COM NÍVEL ALTO DE INTERFERÊNCIAS (NÃO INCLUI FORNECIMENTO). AF_11/2017 | I39: M | J39: COEFICIENTE DE REPRESENTATIVIDADE | K39: 43.1 | L39: CAIXA REFERENCIAL
A40: ASSENTAMENTO DE TUBOS E PECAS | B40: ASTU | C40: FORNEC E/OU ASSENT DE TUBO DE ACO COM JUNTA SOLDADA | D40: 46 | G40: 97174 | H40: ASSENTAMENTO DE TUBO DE AÇO CARBONO PARA REDE DE ÁGUA, DN 700 MM (28), JUNTA SOLDADA, INSTALADO EM LOCAL COM NÍVEL ALTO DE INTERFERÊNCIAS (NÃO INCLUI FORNECIMENTO). AF_11/2017 | I40: M | J40: COEFICIENTE DE REPRESENTATIVIDADE | K40: 49.83 | L40: CAIXA REFERENCIAL
A41: ASSENTAMENTO DE TUBOS E PECAS | B41: ASTU | C41: FORNEC E/OU ASSENT DE TUBO DE ACO COM JUNTA SOLDADA | D41: 46 | G41: 97175 | H41: ASSENTAMENTO DE TUBO DE AÇO CARBONO PARA REDE DE ÁGUA, DN 800 MM (32), JUNTA SOLDADA, INSTALADO EM LOCAL COM NÍVEL ALTO DE INTERFERÊNCIAS (NÃO INCLUI FORNECIMENTO). AF_11/2017 | I41: M | J41: COEFICIENTE DE REPRESENTATIVIDADE | K41: 56.55 | L41: CAIXA REFERENCIAL
A42: ASSENTAMENTO DE TUBOS E PECAS | B42: ASTU | C42: FORNEC E/OU ASSENT DE TUBO DE ACO COM JUNTA SOLDADA | D42: 46 | G42: 97176 | H42: ASSENTAMENTO DE TUBO DE AÇO CARBONO PARA REDE DE ÁGUA, DN 900 MM (36), JUNTA SOLDADA, INSTALADO EM LOCAL COM NÍVEL ALTO DE INTERFERÊNCIAS (NÃO INCLUI FORNECIMENTO). AF_11/2017 | I42: M | J42: COEFICIENTE DE REPRESENTATIVIDADE | K42: 63.26 | L42: CAIXA REFERENCIAL
A43: ASSENTAMENTO DE TUBOS E PECAS | B43: ASTU | C43: FORNEC E/OU ASSENT DE TUBO DE ACO COM JUNTA SOLDADA | D43: 46 | G43: 97177 | H43: ASSENTAMENTO DE TUBO DE AÇO CARBONO PARA REDE DE ÁGUA, DN 1000 MM (40) OU DN 1100 MM (44), JUNTA SOLDADA, INSTALADO EM LOCAL COM NÍVEL ALTO DE INTERFERÊNCIAS (NÃO INCLUI FORNECIMENTO). AF_11/2017 | I43: M | J43: COEFICIENTE DE REPRESENTATIVIDADE | K43: 76.7 | L43: CAIXA REFERENCIAL
A44: ASSENTAMENTO DE TUBOS E PECAS | B44: ASTU | C44: FORNEC E/OU ASSENT DE TUBO DE ACO COM JUNTA SOLDADA | D44: 46 | G44: 97178 | H44: ASSENTAMENTO DE TUBO DE AÇO CARBONO PARA REDE DE ÁGUA, DN 1200 MM (48) OU DN 1300 MM (52), JUNTA SOLDADA, INSTALADO EM LOCAL COM NÍVEL ALTO DE INTERFERÊNCIAS (NÃO INCLUI FORNECIMENTO). AF_11/2017 | I44: M | J44: COEFICIENTE DE REPRESENTATIVIDADE | K44: 90.15 | L44: CAIXA REFERENCIAL
A45: ASSENTAMENTO DE TUBOS E PECAS | B45: ASTU | C45: FORNEC E/OU ASSENT DE TUBO DE ACO COM JUNTA SOLDADA | D45: 46 | G45: 97179 | H45: ASSENTAMENTO DE TUBO DE AÇO CARBONO PARA REDE DE ÁGUA, DN 1400 MM (56'') OU DN 1500 MM (60), JUNTA SOLDADA, INSTALADO EM LOCAL COM NÍVEL ALTO DE INTERFERÊNCIAS (NÃO INCLUI FORNECIMENTO). AF_11/2017 | I45: M | J45: COEFICIENTE DE REPRESENTATIVIDADE | K45: 103.6 | L45: CAIXA REFERENCIAL
